Workbook

Sheet Exh. D

Sheet User Notes (hidden)
A1: Ctrl+G only works on New Allocations.
A2: Ctrl+G doesn't toggle empty cells. Only cells with a zero value.
A3: Sponsor can be free-form entry or selected from dropdown list.

Sheet Ref
H1: Raw Fund | I1: Friendly Fund | M1: Sponsor | O1: Industry | P1: ID | R1: Deal | S1: Sponsor | T1: Industry
H2: NXT CAPITAL SLF IV FUNDING, LLC | I2: SLF IV | M2: 3RD AVE INVESTMENTS LLC | O2: Aerospace & Defense | P2: 1 | R2: 4 OVER INTERNATIONAL | S2: HGGC, LLC | T2: MEDIA: ADVERTISING, PRINTING & PUBLIS
D3: Table Color Coding | H3: NXT CAPITAL FUNDING I, LLC | I3: NXT CAPITAL FUNDING I, LLC | K3: Add sponsors to those queried from EIM. | M3: A&M CAPITAL PARTNERS | O3: Automotive | P3: 2 | R3: 42 NORTH DENTAL, LLC | S3: AUDAX PRIVATE EQUITY | T3: HEALTHCARE & PHARMACEUTICALS
D4: Blue are code-managed | H4: NXT | I4: NXT CAPITAL, LLC | K4: *Discuss internally before modifying. | M4: ABRY PARTNERS | O4: Banking/Finance/Insurance/RE | P4: 3 | R4: ACCENT FOOD | S4: AUDAX PRIVATE EQUITY | T4: BEVERAGE, FOOD & TOBACCO
D5: Green are user-managed. | H5: NXT CAPITAL, LLC | I5: NXT CAPITAL, LLC | K5: Additional Sponsors | M5: ABRY PARTNERS II, LLC | O5: Beverage, Food & Tobacco | P5: 4 | R5: ACCENT FOODS SERVICES, LLC | S5: AUDAX PRIVATE EQUITY | T5: BEVERAGE, FOOD & TOBACCO
H6: NXT CAPITAL CLO 2015-1, LLC | I6: NXT CLO 2015-1 | K6: Test Sponsor 1 | M6: ACCEL-KKR CAPITAL PARTNERS V, LP | O6: Capital Equipment | P6: 5 | R6: ACCESS INSURANCE | S6: ALTAMONT CAPITAL PARTNERS | T6: BANKING, FINANCE, INSURANCE, REAL ESTATE
H7: NXT CAPITAL CLO 2017-1, LLC | I7: NXT CLO 2017-1 | K7: Test Sponsor 2 | M7: ACCESS HOLDCO MANAGEMENT LLC | O7: Chemicals, Plastics, & Rubber | P7: 6 | R7: ADVANCED PAIN | S7: CHICAGO GROWTH PARTNERS, LLC | T7: HEALTHCARE & PHARMACEUTICALS
H8: NXT CAPITAL CLO 2017-2, LLC | I8: NXT CLO 2017-2 | M8: ADVENT CAPITAL MANAGEMENT, LLC | O8: Construction & Building | P8: 7 | R8: ADVARRA | S8: GENSTAR CAPITAL LLC | T8: HEALTHCARE & PHARMACEUTICALS
A9: Saved Allocations Root Directory | H9: NXT CAPITAL SENIOR LOAN FUND A | I9: SLF I (A) | M9: AE INDUSTRIAL PARTNERS | O9: Consumer goods: Durable | P9: 8 | R9: AFA | S9: RIVERSIDE PARTNERS | T9: SERVICES: CONSUMER
A10: S:\Asset Management\Consolidated Hypo\Allocations | H10: NXT CAPITAL SENIOR LOAN FUND B | I10: SLF I (B) | M10: AEA INVESTORS, LP | O10: Consumer goods: Non-durable | P10: 9 | R10: ALLIANCE PT | S10: BPOC V AGGREGATOR A LP | T10: HEALTHCARE & PHARMACEUTICALS
H11: NXT CAPITAL SENIOR LOAN FUND II, LP | I11: SLF II | M11: ALTAMONT CAPITAL PARTNERS | O11: Containers, Packaging & Glass | P11: 10 | R11: ALPHA PACKAGING | S11: IRVING PLACE CAPITAL PARTNERS | T11: CHEMICALS, PLASTICS & RUBBER
A12: Command | H12: NXT CAPITAL SLF II FUNDING, LLC | I12: SLF II | M12: AMERICAN CAPITAL, LTD. | O12: Energy: Electricity | P12: 11 | R12: ANNE ARUNDEL DERMATOLOGY MANAGEMENT | S12: RIDGEMONT EQUITY PARTNERS | T12: HEALTHCARE & PHARMACEUTICALS
H13: NXT CAPITAL SENIOR LOAN FUND III LP | I13: SLF III | M13: ANCOR CAPITAL PARTNERS | O13: Energy: Oil & Gas | P13: 12 | R13: APE+MARCO | S13: CAPSTREET | T13: WHOLESALE
H14: NXT CAPITAL SLF III FUNDING, LLC | I14: SLF III | M14: ANDREW ALMEIDA | O14: Environmental Industries | P14: 13 | R14: AQ HOLDCO | S14: TA ASSOCIATES | T14: SERVICES: BUSINESS
A15: Fund | B15: Standard Commitment | C15: Specific Commitment | D15: Protective Advances | E15: Total Commitment | F15: Principal Balance | H15: NXT CAPITAL SENIOR LOAN FUND IV, LP | I15: SLF IV | M15: APAX PARTNERS | O15: Forest Products & Paper | P15: 14 | R15: ARI NETWORK SERVICES, INC. | S15: TRUE WIND CAPITAL | T15: HIGH TECH INDUSTRIES
A16: SMA-AF JAP | B16: 900000000 | D16: 45000000 | E16: =SUMIF(tbl_ExistingData[Fund],tbl_Funds[[#This Row],[Fund]],tbl_ExistingData[Total Commitment]) -> 399180459.1 | F16: =SUMIFS(tbl_ExistingData[Principal Balance],tbl_ExistingData[Paid Off Date],"",tbl_ExistingData[Fund],tbl_Funds[[#This Row],[Fund]]) -> 364348148.6 | H16: NXT CAPITAL SENIOR LOAN FUND V, LP | I16: SLF V | M16: AQUILINE CAPITAL PARTNERS | O16: Healthcare & Pharmaceuticals | P16: 15 | R16: ARISTOTLE CORP | S16: WASSERSTEIN PARTNERS III, LP | T16: CONSUMER GOODS: NON-DURABLE
A17: SMA-AF US | B17: 100000000 | D17: 5000000 | E17: =SUMIF(tbl_ExistingData[Fund],tbl_Funds[[#This Row],[Fund]],tbl_ExistingData[Total Commitment]) -> 60194579.02 | F17: =SUMIFS(tbl_ExistingData[Principal Balance],tbl_ExistingData[Paid Off Date],"",tbl_ExistingData[Fund],tbl_Funds[[#This Row],[Fund]]) -> 54360327.98 | H17: NXT CAPITAL SLF V FUNDING, LLC | I17: SLF V | M17: ARBOR INVESTMENTS | O17: High Tech Industries | P17: 16 | R17: ASPEN | S17: CORTEC GROUP FUND VI, L.P. | T17: HEALTHCARE & PHARMACEUTICALS
A18: SMA-CH | B18: 550000000 | D18: =tbl_Funds[[#This Row],[Standard Commitment]]*0.05 -> 27500000 | E18: =SUMIF(tbl_ExistingData[Fund],tbl_Funds[[#This Row],[Fund]],tbl_ExistingData[Total Commitment]) -> 484617405.5 | F18: =SUMIFS(tbl_ExistingData[Principal Balance],tbl_ExistingData[Paid Off Date],"",tbl_ExistingData[Fund],tbl_Funds[[#This Row],[Fund]]) -> 419659784.2 | H18: NXT CAPITAL SENIOR LOAN FUND VI (L) , LP | I18: SLF VI L | M18: ARCAPITA BANK | O18: Hotel, Gaming & Leisure | P18: 17 | R18: ATTICA | S18: STONEBRIDGE PARTNERS EQUITY FUND IV LP | T18: CAPITAL EQUIPMENT
A19: SLF I | B19: 500000000 | D19: 0 | E19: =SUMIF(tbl_ExistingData[Fund],tbl_Funds[[#This Row],[Fund]],tbl_ExistingData[Total Commitment]) -> 0 | F19: =SUMIFS(tbl_ExistingData[Principal Balance],tbl_ExistingData[Paid Off Date],"",tbl_ExistingData[Fund],tbl_Funds[[#This Row],[Fund]]) -> 0 | H19: PDL US HOLDINGS LP (AIMCO A) | I19: SMA-A | M19: ARLINGTON CAPITAL III, L.P. | O19: Media: Adv., Print & Publishing | P19: 18 | R19: ATX CANADA ACQUISITI | S19: HIG CAPITAL | T19: MEDIA: BROADCASTING & SUBSCRIPTION
A20: SMA-SC | B20: 360000000 | C20: 99566495.46 | D20: =VLOOKUP(tbl_Funds[[#This Row],[Fund]],tblGrossCommitments[[Fund]:[Gross Commitment]],2,0) * 0.05 -> 12896577.04 | E20: =SUMIF(tbl_ExistingData[Fund],tbl_Funds[[#This Row],[Fund]],tbl_ExistingData[Total Commitment]) -> 252995792.4 | F20: =SUMIFS(tbl_ExistingData[Principal Balance],tbl_ExistingData[Paid Off Date],"",tbl_ExistingData[Fund],tbl_Funds[[#This Row],[Fund]]) -> 227422645.7 | H20: GLOBAL INVESTMENT FUND I | I20: SMA-AF JAP | M20: ARLINGTON CAPITAL PARTNERS | O20: Media: Broadcasting/Subscrip. | P20: 19 | R20: AUDAX PRIVATE EQUITY JUNIOR CAPITAL | T20: BANKING, FINANCE, INSURANCE, REAL ESTATE
A21: SMA-SC NT | B21: 113500000 | D21: 5500000 | E21: =SUMIF(tbl_ExistingData[Fund],tbl_Funds[[#This Row],[Fund]],tbl_ExistingData[Total Commitment]) -> 59208990.51 | F21: =SUMIFS(tbl_ExistingData[Principal Balance],tbl_ExistingData[Paid Off Date],"",tbl_ExistingData[Fund],tbl_Funds[[#This Row],[Fund]]) -> 53794255.14 | H21: AMERICAN FAMILY LIFE ASSURANCE COMP | I21: SMA-AF US | M21: ARSENAL CAPITAL PARTNERS | O21: Media: Diversified & Production | P21: 20 | R21: AUTO EUROPE | S21: COURT SQUARE CAPITAL PARTNERS | T21: TRANSPORTATION: CONSUMER
A22: SMA-VG | B22: 606250000 | D22: 5000000 | E22: =SUMIF(tbl_ExistingData[Fund],tbl_Funds[[#This Row],[Fund]],tbl_ExistingData[Total Commitment]) -> 346962861.4 | F22: =SUMIFS(tbl_ExistingData[Principal Balance],tbl_ExistingData[Paid Off Date],"",tbl_ExistingData[Fund],tbl_Funds[[#This Row],[Fund]]) -> 301103907.7 | H22: NXT STEPSTONE CC FUNDING, LLC | I22: SMA-CC | M22: AUA PRIVATE EQUITY PARTNERS | O22: Metals & Mining | P22: 21 | R22: AWRS | S22: SOUNDCORE CAPITAL PARTNERS | T22: AUTOMOTIVE
A23: SLF VI UL | B23: 45454545.45 | D23: =tbl_Funds[[#This Row],[Standard Commitment]]*0.1 -> 4545454.545 | E23: =SUMIF(tbl_ExistingData[Fund],tbl_Funds[[#This Row],[Fund]],tbl_ExistingData[Total Commitment]) -> 37600609.57 | F23: =SUMIFS(tbl_ExistingData[Principal Balance],tbl_ExistingData[Paid Off Date],"",tbl_ExistingData[Fund],tbl_Funds[[#This Row],[Fund]]) -> 33209962.93 | H23: NXT STEPSTONE CC, LLC | I23: SMA-CC | M23: AUDAX PRIVATE EQUITY | O23: Retail | P23: 22 | R23: BADGER SPORTSWEAR | S23: CCMP CAPITAL ADVISORS, LP | T23: WHOLESALE
A24: SN-I | D24: =tbl_Funds[[#This Row],[Standard Commitment]]*0.1 -> 0 | E24: =SUMIF(tbl_ExistingData[Fund],tbl_Funds[[#This Row],[Fund]],tbl_ExistingData[Total Commitment]) -> 0 | F24: =SUMIFS(tbl_ExistingData[Principal Balance],tbl_ExistingData[Paid Off Date],"",tbl_ExistingData[Fund],tbl_Funds[[#This Row],[Fund]]) -> 0 | H24: Chubb | I24: SMA-CH | M24: AVISTA CAPITAL | O24: Services: Business | P24: 23 | R24: BELT POWER | S24: SHOREHILL CAPITAL LLC | T24: CAPITAL EQUIPMENT
A25: SRC-1 | D25: =tbl_Funds[[#This Row],[Standard Commitment]]*0.1 -> 0 | E25: =SUMIF(tbl_ExistingData[Fund],tbl_Funds[[#This Row],[Fund]],tbl_ExistingData[Total Commitment]) -> 0 | F25: =SUMIFS(tbl_ExistingData[Principal Balance],tbl_ExistingData[Paid Off Date],"",tbl_ExistingData[Fund],tbl_Funds[[#This Row],[Fund]]) -> 0 | H25: PACIFIC INDEMNITY COMPANY | I25: SMA-CH | M25: BAIN CAPITAL DOUBLE IMPACT | O25: Services: Consumer | P25: 24 | R25: BHI INVESTMENTS LLC | S25: AE INDUSTRIAL PARTNERS | T25: UTILITIES: ELECTRIC
H26: SC NXT CAPITAL PVT DBT FUND LP A | I26: SMA-SC | M26: BAIN CAPITAL DOUBLE IMPACT FUND LP | O26: Sovereign & Public Finance | P26: 25 | R26: BIG BOLT, LLC | S26: TENEX CAPITAL MANAGEMENT | T26: METALS & MINING
A27: Date | B27: Fund | C27: Gross Commitment | H27: SC NXT CAP PVT DEBT OFFSHORE SP A | I27: SMA-SC NT | M27: BAIN CAPITAL VENTURES | O27: Telecommunications | P27: 26 | R27: BOTTOM LINE SYSTEMS | S27: RIVERSIDE PARTNERS | T27: HEALTHCARE & PHARMACEUTICALS
A28: 20211231 | B28: SMA-SC | C28: 257931540.9 | H28: NXT CAPITAL CORPORATE FINANCE D-E INVESTMENTS, LLC | I28: TBD | M28: BANK OF AMERICA - MERRILL LYNCH | O28: Transportation: Cargo | P28: 27 | R28: BRIDGES CONSUMER HEALTHCARE | S28: CHARLESBANK CAPITAL PARTNERS/GROUP | T28: CONSUMER GOODS: NON-DURABLE
A29: 20211231 | B29: SMA-SC NT | C29: 61142385.67 | H29: NXT CAPITAL CORPORATE FINANCE INVESTMENTS, LLC | I29: TBD | M29: BEEKEN PETTY O'KEEFE & CO., LLC | O29: Transportation: Consumer | P29: 28 | R29: CAPTAIN D'S, LLC | S29: SENTINEL CAPITAL PARTNERS, LLC | T29: SERVICES: CONSUMER
H30: NXT CAPITAL SLF VI FUNDING (L), LLC | I30: SLF VI L | M30: BESSEMER INVESTORS | O30: Utilities: Electric | P30: 29 | R30: CAPTEK HOLDINGS INC | S30: SWANDER PACE CAPITAL | T30: CONSUMER GOODS: NON-DURABLE
H31: NXT CAPITAL SLF VI FUNDING (UL), LLC | I31: SLF VI UL | M31: BLUE POINT CAPITAL PARTNERS II, LLC | O31: Utilities: Oil & Gas | P31: 30 | R31: CERTIFIED POWER | S31: BRINKMERE CAPITAL PARTNERS, LLC | T31: CAPITAL EQUIPMENT
H32: NXT CAPITAL CLO 2020-1, LLC | I32: NXT CLO 2020-1 | M32: BLUE SEA CAPITAL FUND I LP | O32: Utilities: Water | P32: 31 | R32: CHA HOLDING INC | S32: FIRST RESERVE | T32: SERVICES: BUSINESS
H33: NXT CAPITAL EQUITY HOLDINGS, LLC | I33: TBD | M33: BPOC V AGGREGATOR A LP | O33: Wholesale | P33: 32 | R33: COMMUNITY INVESTORS | S33: CIP CAPITAL | T33: HIGH TECH INDUSTRIES
H34: VG NXT CAPITAL PRIVATE DEBT FUND LP | I34: SMA-VG | M34: BRAZOS INVESTMENT PARTNERS I, LP | R34: CONSOLIDATED LABEL CO., LLC | S34: TENEX CAPITAL MANAGEMENT | T34: CONTAINERS, PACKAGING & GLASS
H35: PDL US HOLDINGS LP (AIMCO B) | I35: TBD | M35: BREGAL PARTNERS, L.P. | R35: CP TURF PARENT, LLC | S35: SENTINEL CAPITAL PARTNERS, LLC | T35: CONSUMER GOODS: DURABLE
H36: NXT CAPITAL SENIOR LOAN FUND VI (UL ), LP | I36: SLF VI UL | M36: BRIDGE GROWTH | R36: CRANE 1 SERVICES | S36: L-SQUARED CAPITAL | T36: SERVICES: BUSINESS
H37: NXT CAPITAL SLF IV INVESTMENTS B, LLC | I37: TBD | M37: BRINKMERE CAPITAL PARTNERS, LLC | R37: CREATIVE CO-OP | S37: FREEMAN SPOGLI & CO. | T37: WHOLESALE
H38: NXT CAPITAL SLF III INVESTMENTS B, LLC | I38: TBD | M38: BRYNWOOD PARTNERS | R38: CRS TEXAS | S38: CAPSTREET | T38: SERVICES: BUSINESS
H39: AMERICAN LIFE AND SECURITY CORP. | I39: TBD | M39: CALERA CAPITAL PARTNERS IV, L.P. | R39: DERMATOLOGY GROUP | S39: THE RIVERSIDE COMPANY | T39: HEALTHCARE & PHARMACEUTICALS
H40: NXT CAPITAL STRUCTURED NOTE I, LLC | I40: SN-I | M40: CAPSTREET | R40: DRESSER NATURAL GAS | S40: FIRST RESERVE | T40: ENERGY: OIL & GAS
M41: CATALYST EQUITY PARTNERS | R41: DRILLINGINFO | S41: GENSTAR CAPITAL LLC | T41: HIGH TECH INDUSTRIES
M42: CCMP CAPITAL ADVISORS, LP | R42: DUNN PAPER, INC | S42: ARBOR INVESTMENTS | T42: FOREST PRODUCTS AND PAPER
M43: CDPQ | R43: ECM INDUSTRIES, LLC | S43: SENTINEL CAPITAL PARTNERS, LLC | T43: CONSUMER GOODS: NON-DURABLE
M44: CENTEROAK PARTNERS | R44: EFC | S44: FRONTENAC COMPANY | T44: AUTOMOTIVE
M45: CENTRE PARTNERS | R45: ELGIN FASTENER | S45: AUDAX PRIVATE EQUITY | T45: METALS & MINING
M46: CENTURY PARK CAPITAL PARTNERS | R46: ENTHUSIAST AUTO HOLDINGS, LLC | S46: CORTEC GROUP FUND V, L.P. | T46: CONSUMER GOODS: DURABLE
M47: CHARLESBANK CAPITAL PARTNERS/GROUP | R47: EPIC HOLDINGS | S47: OAK HILL CAPITAL | T47: BANKING, FINANCE, INSURANCE, REAL ESTATE
M48: CHICAGO GROWTH PARTNERS, LLC | R48: FINELINETECH | S48: L-SQUARED CAPITAL | T48: MEDIA: ADVERTISING, PRINTING & PUBLIS
M49: CHS CAPITAL LLC | R49: FLAVOR PRODUCERS, LLC | S49: GTCR, LLC | T49: BEVERAGE, FOOD & TOBACCO
M50: CI CAPITAL PARTNERS | R50: FOREFRONT MANAGEMENT HOLDINGS, LLC | S50: OMERS PRIVATE EQUITY | T50: HEALTHCARE & PHARMACEUTICALS
M51: CINVEN | R51: FOUNDATION PARTNERS | S51: ACCESS HOLDCO MANAGEMENT LLC | T51: SERVICES: CONSUMER
M52: CIP CAPITAL | R52: G.E.T. ACQUISITION | S52: OLYMPUS PARTNERS | T52: CONSUMER GOODS: DURABLE
M53: CIP REAL ESTATE | R53: GCR INTERMEDIATE HOL | S53: HKW, NORTHSTAR CAPITAL | T53: SERVICES: BUSINESS
M54: CITIC CAPITAL INTERNATIONAL PARTNER III, L.P. | R54: GENOVA DIAGNOSTICS, INC. | S54: LEVINE LEICHTMAN | T54: HEALTHCARE & PHARMACEUTICALS
M55: CLEARLAKE CAPITAL GROUP | R55: GETWELLNETWORK, INC | S55: PAMPLONA TMTI, L.P. | T55: HIGH TECH INDUSTRIES
M56: COBEPA | R56: GLOBAL TRACKING | S56: INVERNESS GRAHAM | T56: TELECOMMUNICATIONS
M57: COMPASS PARTNERS | R57: GNAP | S57: CENTEROAK PARTNERS | T57: WHOLESALE
M58: COMVEST INVESTMENT PARTNERS V, L.P. | R58: GOURMET KITCHEN, INC | S58: AUA PRIVATE EQUITY PARTNERS | T58: BEVERAGE, FOOD & TOBACCO
M59: COMVEST INVESTMENT PARTNERS V-A, LP | R59: GRAFFITI BUYER, INC. | S59: ODYSSEY INVESTMENT PARTNERS FUND VI | T59: AUTOMOTIVE
M60: CORTEC GROUP FUND V, L.P. | R60: GREAT EXPRESSIONS | S60: ROARK CAPITAL GROUP | T60: HEALTHCARE & PHARMACEUTICALS
M61: CORTEC GROUP FUND VI, L.P. | R61: GRYPHON MEZZANINE PARTNERS II, L.P. | T61: BANKING, FINANCE, INSURANCE, REAL ESTATE
M62: COURT SQUARE CAPITAL PARTNERS | R62: GSM MIDCO, INC. | S62: GRIDIRON CAPITAL, LLC | T62: CONSUMER GOODS: NON-DURABLE
M63: CRESSEY & COMPANY | R63: HEARTLAND VET | S63: GRYPHON INVESTORS, INC | T63: HEALTHCARE & PHARMACEUTICALS
M64: CRESTVIEW PARTNERS, LP | R64: HEMASOURCE, INC. | S64: RIDGEMONT EQUITY PARTNERS | T64: WHOLESALE
M65: CVC CAPITAL PARTNERS | R65: HK SOLUTIONS | S65: CENTEROAK PARTNERS | T65: SERVICES: BUSINESS
M66: DOMINUS CAPITAL PARTNERS | R66: HOME CARE ASSISTANCE, LLC | S66: SUMMIT PARTNERS | T66: SERVICES: CONSUMER
M67: DUBIN CLARK | R67: HUB PEN COMPANY, LLC | S67: TENEX CAPITAL MANAGEMENT | T67: CONSUMER GOODS: NON-DURABLE
M68: DW HEALTHCARE PARTNERS | R68: ICON EYE CARE | S68: CORTEC GROUP FUND VI, L.P. | T68: HEALTHCARE & PHARMACEUTICALS
M69: EAGLE MERCHANT PARTNERS | R69: IHS INTERMEDIATE, INC | S69: FRIEDMAN FLEISCHER & LOWE LLC | T69: HEALTHCARE & PHARMACEUTICALS
M70: ENHANCED EQUITY FUNDS | R70: INFOGROUP INC | S70: COURT SQUARE CAPITAL PARTNERS | T70: SERVICES: BUSINESS
M71: EQT PARTNERS | R71: INSIDE REAL ESTATE | S71: LOVELL MINNICK PARTNERS LLC | T71: SERVICES: BUSINESS
M72: ESSEX WOODLANDS | R72: KELLSTROM COMMERCIAL AEROSPACE, INC | S72: AE INDUSTRIAL PARTNERS | T72: AEROSPACE & DEFENSE
M73: EXCELLERE PARTNERS | R73: KRAYDEN, INC. | S73: QUAD-C MANAGEMENT | T73: CHEMICALS, PLASTICS & RUBBER
M74: FALCONHEAD CAPITAL | R74: LAZER SPOT GB HOLDIN | S74: HARVEST PARTNERS, LP | T74: SERVICES: BUSINESS
M75: FIRST ATLANTIC CAPITAL, LTD. | R75: LIVING EARTH | S75: BAIN CAPITAL DOUBLE IMPACT | T75: ENVIRONMENTAL INDUSTRIES
M76: FIRST RESERVE | R76: LOUISIANA FISH FRY PRODUCTS, LTD | S76: PEAK ROCK CAPITAL | T76: BEVERAGE, FOOD & TOBACCO
M77: FIVE ARROWS CAPITAL PARTNERS | R77: LSO | S77: EAGLE MERCHANT PARTNERS | T77: TRANSPORTATION: CARGO
M78: FLEXPOINT FORD, LLC | R78: MADISON SAFETY & FLOW LLC | T78: CAPITAL EQUIPMENT
M79: FORMATION CAPITAL, LLC | R79: MCA | S79: SENTINEL CAPITAL PARTNERS, LLC | T79: TELECOMMUNICATIONS
M80: FRAZIER HEALTHCARE VENTURES | R80: MID ATLANTIC CAPITAL | S80: PARTHENON CAPITAL PARTNERS | T80: BANKING, FINANCE, INSURANCE, REAL ESTATE
M81: FREEMAN SPOGLI & CO. | R81: MISSION CRITICAL ELECTRONICS, INC. | S81: WINDJAMMER CAPITAL INVESTORS, LLC | T81: TRANSPORTATION: CARGO
M82: FRIEDMAN FLEISCHER & LOWE LLC | R82: MMO | S82: ARLINGTON CAPITAL PARTNERS | T82: SERVICES: BUSINESS
M83: FRONTENAC COMPANY | R83: MOLDED DIMENSIONS, LLC | S83: SHOREVIEW INDUSTRIES, LLC | T83: CHEMICALS, PLASTICS & RUBBER
M84: FTV CAPITAL | R84: MOMENTUM | S84: RIVERSIDE COMPANY | T84: CONSUMER GOODS: DURABLE
M85: GENERAL ATLANTIC, LLC | R85: MONROE ENGINEERING GROUP LLC | S85: AEA INVESTORS, LP | T85: WHOLESALE
M86: GENEVA GLEN CAPITAL | R86: MR. GREENS | S86: SHORELINE EQUITY PARTNERS | T86: BEVERAGE, FOOD & TOBACCO
M87: GENNX360 | R87: MRI SOFTWARE, LLC | S87: GI CAPITAL PARTNERS | T87: HIGH TECH INDUSTRIES
M88: GENSTAR CAPITAL LLC | R88: NATIONAL SPINE AND P | S88: AVISTA CAPITAL | T88: HEALTHCARE & PHARMACEUTICALS
M89: GI CAPITAL PARTNERS | R89: NEKOOSA COATED PRODUCTS LLC | S89: SENTINEL CAPITAL PARTNERS, LLC | T89: CONTAINERS, PACKAGING & GLASS
M90: GLENCOE CAPITAL | R90: NEWTEAM LLC | S90: GRAHAM PARTNERS | T90: CHEMICALS, PLASTICS & RUBBER
M91: GOLDEN GATE PRIVATE EQUITY, INC. | R91: NEXTCARE, INC. | S91: ENHANCED EQUITY FUNDS | T91: HEALTHCARE & PHARMACEUTICALS
M92: GRAHAM PARTNERS | R92: NEXTIRAONE | S92: ARLINGTON CAPITAL PARTNERS | T92: AEROSPACE & DEFENSE
M93: GREAT HILL PARTNERS | R93: NORTH SAILS | S93: OAKLEY CAPITAL LIMITED | T93: TRANSPORTATION: CONSUMER
M94: GREAT POINT PARTNERS, LLC | R94: NXGEN BUYER, INC. | S94: PARTHENON CAPITAL PARTNERS | T94: HIGH TECH INDUSTRIES
M95: GRIDIRON CAPITAL, LLC | R95: OHIO MEDICAL, LLC | S95: TENEX CAPITAL MANAGEMENT | T95: CAPITAL EQUIPMENT
M96: GRYPHON INVESTORS, INC | R96: OLIVER PRINTING & PA | S96: PFINGSTEN | T96: CONTAINERS, PACKAGING & GLASS
M97: GS CAPITAL PARTNERS VI FUND, L.P. | R97: ON CAMPUS MARKETING INC | S97: SPIRE CAPITAL | T97: CONSUMER GOODS: NON-DURABLE
M98: GS MERCHANT BANKING | R98: ONTARIO SYSTEMS, LLC | S98: NEW MOUNTAIN CAPITAL, LLC | T98: HIGH TECH INDUSTRIES
M99: GTCR GOLDER RAUNER LLC | R99: OPTCONNECT, LLC | S99: GRAHAM PARTNERS | T99: SERVICES: BUSINESS
M100: GTCR, LLC | R100: ORACLE ELEVATOR COMPANY | S100: L-SQUARED CAPITAL | T100: SERVICES: BUSINESS
M101: HARBOUR GROUP INVESTMENTS V, L.P. | R101: OSG BILLING SERVICES | S101: AQUILINE CAPITAL PARTNERS | T101: SERVICES: BUSINESS
M102: HARVEST PARTNERS V, LP | R102: PACUR | S102: GRYPHON INVESTORS, INC | T102: CHEMICALS, PLASTICS & RUBBER
M103: HARVEST PARTNERS, LP | R103: PARIS PRESENTS | S103: YELLOW WOOD PARTNERS LLC | T103: CONSUMER GOODS: NON-DURABLE
M104: HGGC, LLC | R104: PEARL INTERMEDIATE | S104: KKR CORPORATE LENDING LLC | T104: SERVICES: CONSUMER
M105: HIG CAPITAL | R105: PESTCO, LLC | S105: THOMPSON STREET CAPITAL PARTNERS | T105: SERVICES: CONSUMER
M106: HKW, NORTHSTAR CAPITAL | R106: PHOENIX REHABILITATION AND HEALTH | S106: AUDAX PRIVATE EQUITY | T106: HEALTHCARE & PHARMACEUTICALS
M107: HUNTSMAN GAY GLOBAL CAPITAL | R107: PREFERRED HOMECARE | S107: BEEKEN PETTY O'KEEFE & CO., LLC | T107: HEALTHCARE & PHARMACEUTICALS
M108: HURON CAPITAL PARTNERS, LLC | R108: PREMIER PARKING OF TENNESSEE LLC | S108: RIVER ASSOCIATES INVESTMENTS, LLC | T108: SERVICES: BUSINESS
M109: ICV PARTNERS | R109: PRESCO POLYMERS OPCO, INC | S109: RIVER ASSOCIATES INVESTMENTS, LLC | T109: CHEMICALS, PLASTICS & RUBBER
M110: ICV PARTNERS II, L.P. | R110: PROCARE SOFTWARE | S110: WARBURG PINCUS | T110: HIGH TECH INDUSTRIES
M111: INCLINE EQUITY PARTNERS | R111: RAREBREED VETERINARY | S111: TRILANTIC | T111: HEALTHCARE & PHARMACEUTICALS
M112: INSIGHT GLOBAL, INC. | R112: RAYMUNDOS FOOD GROUP, LLC | S112: AUA PRIVATE EQUITY PARTNERS | T112: BEVERAGE, FOOD & TOBACCO
M113: INVERNESS GRAHAM | R113: REFRIGIWEAR, LLC | S113: SENTINEL CAPITAL PARTNERS, LLC | T113: WHOLESALE
M114: IRVING PLACE CAPITAL PARTNERS | R114: REMINGTON PRODUCTS COMPANY | S114: GRIDIRON CAPITAL, LLC | T114: CONSUMER GOODS: NON-DURABLE
M115: J.F. LEHMAN & CO. | R115: RESTAURANTS UNLIMITE | S115: SUN CAPITAL PARTNERS, LLC | T115: BEVERAGE, FOOD & TOBACCO
M116: JH WHITNEY | R116: REVENTION, LLC | S116: CAPSTREET | T116: SERVICES: BUSINESS
M117: JLL PARTNERS, INC. | R117: RIVERPOINT MEDICAL, LLC | S117: ARLINGTON CAPITAL PARTNERS | T117: HEALTHCARE & PHARMACEUTICALS
M118: JMI EQUITY | R118: ROSCOE CAREX | S118: TENEX CAPITAL MANAGEMENT | T118: HEALTHCARE & PHARMACEUTICALS
M119: JUGGERNAUT CAPITAL PARTNERS | R119: ROYAL PAPER CONVERTING, LLC | S119: GRIDIRON CAPITAL, LLC | T119: FOREST PRODUCTS AND PAPER
M120: JZ PARTNERS | R120: SCHLOTTERBECK FOSS, LLC | S120: FRONTENAC COMPANY | T120: BEVERAGE, FOOD & TOBACCO
M121: KCB MANAGEMENT | R121: SCIENCE CARE PARENT INC. | S121: LEVINE LEICHTMAN | T121: WHOLESALE
M122: KINDERHOOK INDUSTRIES | R122: SHIPLEY'S DONUTS | S122: PEAK ROCK CAPITAL | T122: BEVERAGE, FOOD & TOBACCO
M123: KKR CORPORATE LENDING LLC | R123: SHOCK DOCTOR, INC. | S123: BREGAL PARTNERS, L.P. | T123: CONSUMER GOODS: NON-DURABLE
M124: KRG CAPITAL PARTNERS | R124: SMILE BRANDS INC | S124: GRYPHON INVESTORS, INC | T124: HEALTHCARE & PHARMACEUTICALS
M125: LEE EQUITY PARTNERS | R125: SMITH COOPER | S125: TAILWIND CAPITAL | T125: CAPITAL EQUIPMENT
M126: LEEDS EQUITY EQUITY PARTNERS, LLC | R126: SOLMETEX, LLC | S126: AVISTA CAPITAL | T126: HEALTHCARE & PHARMACEUTICALS
M127: LEMHI VENTURES | R127: SOLVE INDUSTIRAL | S127: AUDAX PRIVATE EQUITY | T127: WHOLESALE
M128: LEONARD GREEN & PARTNERS, L.P. | R128: SPICE WORLD | S128: PALLADIUM EQUITY PARTNERS, LLC | T128: BEVERAGE, FOOD & TOBACCO
M129: LEVINE LEICHTMAN | R129: STEELITE | S129: ARBOR INVESTMENTS | T129: WHOLESALE
M130: LEVINE LEICHTMAN CAP. PART. IV, LP | R130: STEPPING STONES HEALTHCARE SERVICES | S130: FIVE ARROWS CAPITAL PARTNERS | T130: SERVICES: CONSUMER
M131: LINCOLNSHIRE MANAGEMENT, INC. | R131: SUNVAIR, INC. | S131: BLUE SEA CAPITAL FUND I LP | T131: AEROSPACE & DEFENSE
M132: LINDEN CAPITAL PARTNERS | R132: SUPPLYONE HOLDINGS | S132: WELLSPRING CAPITAL MANAGEMENT | T132: CONTAINERS, PACKAGING & GLASS
M133: LINDSAY GOLDBERG | R133: SV-WINZER CORP. | S133: SHOREVIEW INDUSTRIES, LLC | T133: SERVICES: BUSINESS
M134: LINEAGE HALCO, INC | R134: SWANSON HEALTH PRODUCTS, INC. | S134: SWANDER PACE CAPITAL | T134: CONSUMER GOODS: NON-DURABLE
M135: LITTLEJOHN & CO., LLC | R135: TECHNO HOLDINGS | S135: COMVEST INVESTMENT PARTNERS V, L.P. | T135: HEALTHCARE & PHARMACEUTICALS
M136: LITTLEJOHN FUND IV, L.P. | R136: TENCARVA MACHINERY COMPANY, LLC | S136: BESSEMER INVESTORS | T136: CAPITAL EQUIPMENT
M137: LKCM HEADWATER INVESTMENTS II, L.P. | R137: TESTEQUITY, LLC | S137: LKCM HEADWATER INVESTMENTS II, L.P. | T137: CAPITAL EQUIPMENT
M138: LOVELL MINNICK PARTNERS LLC | R138: TEX TECH HOLDINGS IN | S138: ARLINGTON CAPITAL PARTNERS | T138: HIGH TECH INDUSTRIES
M139: L-SQUARED CAPITAL | R139: TFS MATERIAL HANDLI | S139: HARVEST PARTNERS, LP | T139: SERVICES: BUSINESS
M140: MADISON DEARBORN PARTNERS, LLC | R140: THE DICKSON COMPANY | S140: MAY RIVER CAPITAL | T140: ENVIRONMENTAL INDUSTRIES
M141: MAY RIVER CAPITAL | R141: THINGS REMEMBERED, INC. | S141: MADISON DEARBORN PARTNERS, LLC | T141: RETAIL
M142: MERIT CAPITAL | R142: THRIVE BUYER, INC. | S142: COURT SQUARE CAPITAL PARTNERS | T142: HIGH TECH INDUSTRIES
M143: METALMARK CAPITAL | R143: TITAN GROUP HOLDCO, LLC | S143: QUAD-C MANAGEMENT | T143: SERVICES: BUSINESS
M144: MIDOCEAN PARTNERS | R144: TOP RX, LLC | S144: FLEXPOINT FORD, LLC | T144: HEALTHCARE & PHARMACEUTICALS
M145: MONITOR CLIPPER PARTNERS | R145: TOTAL ACCESS URGENT | S145: ICV PARTNERS | T145: HEALTHCARE & PHARMACEUTICALS
M146: MORGAN STANLEY PRIVATE EQUITY | R146: TPC WIRE CABLE CORP. | S146: AUDAX PRIVATE EQUITY | T146: WHOLESALE
M147: MSOUTH EQUITY PARTNERS, LLC | R147: TRANZONIC | S147: PNC RIVERARCH CAPITAL, A DIVISION OF PNC FINANCE, LLC | T147: CONSUMER GOODS: NON-DURABLE
M148: NEA MANAGEMENT COMPANY, LLC | R148: TRUCK LITE CO LLC | S148: GENSTAR CAPITAL LLC | T148: CAPITAL EQUIPMENT
M149: NEW HARBOR CAPITAL, LLC | R149: TTG IMAGING SOLUTIONS, LLC | S149: SENTINEL CAPITAL PARTNERS, LLC | T149: CAPITAL EQUIPMENT
M150: NEW MOUNTAIN CAPITAL, LLC | R150: UNITED SAFETY | S150: DUBIN CLARK | T150: TRANSPORTATION: CONSUMER
M151: NORWEST EQUITY PARTNERS | R151: VINTAGE PARTS, INC | S151: GENNX360 | T151: AUTOMOTIVE
M152: OAK HILL CAPITAL | R152: VIVIFY MERGER SUB I LLC | S152: GRYPHON INVESTORS, INC | T152: CHEMICALS, PLASTICS & RUBBER
M153: OAKLEY CAPITAL LIMITED | R153: WELLSPRING PHARMACEUTICAL CORPORATI | S153: AUDAX PRIVATE EQUITY | T153: CONSUMER GOODS: NON-DURABLE
M154: OAKTREE CAPITAL MANAGEMENT LP | R154: WESTERN VETERINARY PARTNERS LLC | S154: TYREE & D'ANGELO PARTNERS LLC | T154: HEALTHCARE & PHARMACEUTICALS
M155: ODYSSEY INVESTMENT PARTNERS FUND VI | R155: WIND RIVER ENVIRONME | S155: GRYPHON INVESTORS, INC | T155: SERVICES: CONSUMER
M156: OLYMPUS PARTNERS | R156: WITTICHEN | S156: GRYPHON INVESTORS, INC | T156: WHOLESALE
M157: OMERS PRIVATE EQUITY | R157: WOODLAND BUYER LLC | S157: GRAHAM PARTNERS | T157: BEVERAGE, FOOD & TOBACCO
M158: ONTARIO TEACHERS' PENSION PLAN | R158: ZENITH AMERICAN SOLU | S158: BEEKEN PETTY O'KEEFE & CO., LLC | T158: BANKING, FINANCE, INSURANCE, REAL ESTATE
M159: PALLADIUM EQUITY PARTNERS, LLC | R159: ZONE MECHANICAL | S159: WIND POINT PARTNERS | T159: SERVICES: BUSINESS
M160: PAMLICO CAPITAL
M161: PAMPLONA TMTI, L.P.
M162: PARTHENON CAPITAL PARTNERS
M163: PEAK ROCK CAPITAL
M164: PFINGSTEN
M165: PNC EQUITY PARTNERS
M166: PNC RIVERARCH CAPITAL, A DIVISION OF PNC FINANCE, LLC
M167: PRAIRIE CAPITAL, LP
M168: PROVIDENCE EQUITY PARTNERS
M169: PROVIDENCE STRATEGIC GROWTH
M170: PRUDENTIAL CAPITAL PARTNERS
M171: QUAD-C MANAGEMENT
M172: RAYMOND JAMES CAPITAL INC.
M173: REVELSTOKE CAPITAL
M174: RIDGEMONT EQUITY PARTNERS
M175: RIVER ASSOCIATES INVESTMENTS, LLC
M176: RIVERSIDE COMPANY
M177: RIVERSIDE PARTNERS
M178: RIVERSTONE HOLDINGS LLC
M179: RIZVI TRAVERSE MANAGMENT
M180: ROARK CAPITAL GROUP
M181: ROCKBRIDGE GROWTH EQUITY, LLC
M182: SEIDLER EQUITY PARTNERS
M183: SENECA INVESTMENTS, LTD
M184: SENTINEL CAPITAL PARTNERS, LLC
M185: SEQUEL HOLDINGS
M186: SHOREHILL CAPITAL LLC
M187: SHORELINE EQUITY PARTNERS
M188: SHOREVIEW INDUSTRIES, LLC
M189: SORENSON CAPITAL
M190: SOUNDCORE CAPITAL PARTNERS
M191: SPIRE CAPITAL
M192: STEPHENS CAPITAL PARTNERS, LLC
M193: STERLING CAPITAL PARTNERS III, L.P.
M194: STERLING GROUP, LP
M195: STONEBRIDGE PARTNERS EQUITY FUND IV LP
M196: SUMMIT PARK II, L.P.
M197: SUMMIT PARK MANAGEMENT SERVICES
M198: SUMMIT PARTNERS
M199: SUN CAPITAL PARTNERS, LLC
M200: SWANDER PACE CAPITAL
... 32 more rows

Sheet Original Commitments
A1: SMA-SC | M1: SMA-SC NT | Y1: SMA-VG
A2: Borrower Name | B2: Tranche | C2: Commitment Amount | D2: Date Closed | E2: Net Senior Leverage | F2: WA Commitment 4.35x Net Senior Leverage | G2: LTV | H2: WA Commitment LTV | I2: Dividend Recap | J2: Country (CAN) | K2: Approved by Swiss | M2: Borrower Name | N2: Tranche | O2: Commitment Amount | P2: Date Closed | Q2: Net Senior Leverage | R2: WA Commitment 4.35x Net Senior Leverage | S2: LTV | T2: WA Commitment LTV | U2: Dividend Recap | V2: Country (CAN) | W2: Approved by Swiss | Y2: Borrower Name | Z2: Tranche | AA2: Commitment Amount | AB2: Date Closed | AC2: Net Senior Leverage | AD2: LTV | AE2: Weighted Commitment | AF2: Dividend Recap
A3: ECM Industries | B3: Revolver | C3: 452368.77 | D3: 2020-01-03 | F3: =tbl_OC_Swiss[[#This Row],[Commitment Amount]]*tbl_OC_Swiss[[#This Row],[Net Senior Leverage]] -> 0 | H3: =tbl_OC_Swiss[[#This Row],[Commitment Amount]]*tbl_OC_Swiss[[#This Row],[LTV]] -> 0 | M3: Oliver Printing & Packaging | N3: Delayed Draw | O3: 500000 | P3: 2020-01-09 | R3: =tbl_OC_SwissNT[[#This Row],[Commitment Amount]]*tbl_OC_SwissNT[[#This Row],[Net Senior Leverage]] -> 0 | T3: =tbl_OC_SwissNT[[#This Row],[Commitment Amount]]*tbl_OC_SwissNT[[#This Row],[LTV]] -> 0 | Y3: HemaSource | Z3: Term Loan | AA3: 3937500 | AB3: 44281 | AC3: 4.034185279 | AD3: 0.3357702546 | AE3: 0
A4: ECM Industries | B4: Term Loan A | C4: 2547631.23 | D4: 2020-01-03 | F4: =tbl_OC_Swiss[[#This Row],[Commitment Amount]]*tbl_OC_Swiss[[#This Row],[Net Senior Leverage]] -> 0 | H4: =tbl_OC_Swiss[[#This Row],[Commitment Amount]]*tbl_OC_Swiss[[#This Row],[LTV]] -> 0 | M4: OptConnect, LLC | N4: Revolver | O4: 96153.85 | P4: 2020-01-16 | R4: =tbl_OC_SwissNT[[#This Row],[Commitment Amount]]*tbl_OC_SwissNT[[#This Row],[Net Senior Leverage]] -> 0 | T4: =tbl_OC_SwissNT[[#This Row],[Commitment Amount]]*tbl_OC_SwissNT[[#This Row],[LTV]] -> 0 | Y4: HemaSource | Z4: Revolver | AA4: 1312500 | AB4: 44281 | AC4: 4.034185279 | AD4: 0.3357702546 | AE4: 0
A5: EFC International | B5: Revolver | C5: 514138.82 | D5: 2020-02-07 | F5: =tbl_OC_Swiss[[#This Row],[Commitment Amount]]*tbl_OC_Swiss[[#This Row],[Net Senior Leverage]] -> 0 | H5: =tbl_OC_Swiss[[#This Row],[Commitment Amount]]*tbl_OC_Swiss[[#This Row],[LTV]] -> 0 | M5: OptConnect, LLC | N5: Term Loan A | O5: 903846.15 | P5: 2020-01-16 | R5: =tbl_OC_SwissNT[[#This Row],[Commitment Amount]]*tbl_OC_SwissNT[[#This Row],[Net Senior Leverage]] -> 0 | T5: =tbl_OC_SwissNT[[#This Row],[Commitment Amount]]*tbl_OC_SwissNT[[#This Row],[LTV]] -> 0 | Y5: OLIVER PRINTING & PA | Z5: Term Loan | AA5: 3000000 | AB5: 44286 | AC5: 3.712475094 | AD5: 0.4901455041 | AE5: 0
A6: EFC International | B6: Term Loan A | C6: 3485861.18 | D6: 2020-02-07 | F6: =tbl_OC_Swiss[[#This Row],[Commitment Amount]]*tbl_OC_Swiss[[#This Row],[Net Senior Leverage]] -> 0 | H6: =tbl_OC_Swiss[[#This Row],[Commitment Amount]]*tbl_OC_Swiss[[#This Row],[LTV]] -> 0 | M6: ICP Group | N6: Term Loan C | O6: 240318.42 | P6: 2020-01-18 | R6: =tbl_OC_SwissNT[[#This Row],[Commitment Amount]]*tbl_OC_SwissNT[[#This Row],[Net Senior Leverage]] -> 0 | T6: =tbl_OC_SwissNT[[#This Row],[Commitment Amount]]*tbl_OC_SwissNT[[#This Row],[LTV]] -> 0 | Y6: HOME CARE ASSISTANCE, LLC | Z6: Term Loan | AA6: 9000000 | AB6: 44287 | AC6: 4.673231871 | AD6: 0.4092594961 | AE6: 0 | AF6: Y
A7: Mr. Greens | B7: Term Loan A | C7: 1000000 | D7: 2020-02-07 | F7: =tbl_OC_Swiss[[#This Row],[Commitment Amount]]*tbl_OC_Swiss[[#This Row],[Net Senior Leverage]] -> 0 | H7: =tbl_OC_Swiss[[#This Row],[Commitment Amount]]*tbl_OC_Swiss[[#This Row],[LTV]] -> 0 | M7: Lazer Spot, Inc. | N7: Revolver | O7: 156250 | P7: 2020-02-05 | R7: =tbl_OC_SwissNT[[#This Row],[Commitment Amount]]*tbl_OC_SwissNT[[#This Row],[Net Senior Leverage]] -> 0 | T7: =tbl_OC_SwissNT[[#This Row],[Commitment Amount]]*tbl_OC_SwissNT[[#This Row],[LTV]] -> 0 | Y7: HOME CARE ASSISTANCE, LLC | Z7: Delayed Draw | AA7: 2343750 | AB7: 44287 | AC7: 4.673231871 | AD7: 0.4092594961 | AE7: 0 | AF7: Y
A8: Winzer Corporation | B8: Term Loan B | C8: 1000000 | D8: 2020-02-28 | F8: =tbl_OC_Swiss[[#This Row],[Commitment Amount]]*tbl_OC_Swiss[[#This Row],[Net Senior Leverage]] -> 0 | H8: =tbl_OC_Swiss[[#This Row],[Commitment Amount]]*tbl_OC_Swiss[[#This Row],[LTV]] -> 0 | M8: Lazer Spot, Inc. | N8: Term Loan A | O8: 765625 | P8: 2020-02-05 | R8: =tbl_OC_SwissNT[[#This Row],[Commitment Amount]]*tbl_OC_SwissNT[[#This Row],[Net Senior Leverage]] -> 0 | T8: =tbl_OC_SwissNT[[#This Row],[Commitment Amount]]*tbl_OC_SwissNT[[#This Row],[LTV]] -> 0 | Y8: HOME CARE ASSISTANCE, LLC | Z8: Revolver | AA8: 656250 | AB8: 44287 | AC8: 4.673231871 | AD8: 0.4092594961 | AE8: 0 | AF8: Y
A9: Pacur | B9: Revolver | C9: 360000 | D9: 2020-03-02 | F9: =tbl_OC_Swiss[[#This Row],[Commitment Amount]]*tbl_OC_Swiss[[#This Row],[Net Senior Leverage]] -> 0 | H9: =tbl_OC_Swiss[[#This Row],[Commitment Amount]]*tbl_OC_Swiss[[#This Row],[LTV]] -> 0 | M9: Lazer Spot, Inc. | N9: Delayed Draw | O9: 78125 | P9: 2020-02-05 | R9: =tbl_OC_SwissNT[[#This Row],[Commitment Amount]]*tbl_OC_SwissNT[[#This Row],[Net Senior Leverage]] -> 0 | T9: =tbl_OC_SwissNT[[#This Row],[Commitment Amount]]*tbl_OC_SwissNT[[#This Row],[LTV]] -> 0 | Y9: ZONE MECHANICAL | Z9: Revolver | AA9: 1406250 | AB9: 44287 | AC9: 4.354690363 | AD9: 0.3992237316 | AE9: 0
A10: Pacur | B10: Term Loan A | C10: 2100000 | D10: 2020-03-02 | F10: =tbl_OC_Swiss[[#This Row],[Commitment Amount]]*tbl_OC_Swiss[[#This Row],[Net Senior Leverage]] -> 0 | H10: =tbl_OC_Swiss[[#This Row],[Commitment Amount]]*tbl_OC_Swiss[[#This Row],[LTV]] -> 0 | M10: ECM Industries | N10: Revolver | O10: 150789.59 | P10: 2020-02-06 | R10: =tbl_OC_SwissNT[[#This Row],[Commitment Amount]]*tbl_OC_SwissNT[[#This Row],[Net Senior Leverage]] -> 0 | T10: =tbl_OC_SwissNT[[#This Row],[Commitment Amount]]*tbl_OC_SwissNT[[#This Row],[LTV]] -> 0 | Y10: ZONE MECHANICAL | Z10: Delayed Draw | AA10: 1171875 | AB10: 44287 | AC10: 4.354690363 | AD10: 0.3992237316 | AE10: 0
A11: Pacur | B11: Delayed Draw | C11: 540000 | D11: 2020-03-02 | F11: =tbl_OC_Swiss[[#This Row],[Commitment Amount]]*tbl_OC_Swiss[[#This Row],[Net Senior Leverage]] -> 0 | H11: =tbl_OC_Swiss[[#This Row],[Commitment Amount]]*tbl_OC_Swiss[[#This Row],[LTV]] -> 0 | M11: ECM Industries | N11: Term Loan A | O11: 849210.41 | P11: 2020-02-06 | R11: =tbl_OC_SwissNT[[#This Row],[Commitment Amount]]*tbl_OC_SwissNT[[#This Row],[Net Senior Leverage]] -> 0 | T11: =tbl_OC_SwissNT[[#This Row],[Commitment Amount]]*tbl_OC_SwissNT[[#This Row],[LTV]] -> 0 | Y11: ZONE MECHANICAL | Z11: Delayed Draw | AA11: 1171875 | AB11: 44287 | AC11: 4.354690363 | AD11: 0.3992237316 | AE11: 0
A12: Pugh Lubricants | B12: Term Loan A | C12: 1500000 | D12: 2020-03-02 | F12: =tbl_OC_Swiss[[#This Row],[Commitment Amount]]*tbl_OC_Swiss[[#This Row],[Net Senior Leverage]] -> 0 | H12: =tbl_OC_Swiss[[#This Row],[Commitment Amount]]*tbl_OC_Swiss[[#This Row],[LTV]] -> 0 | M12: TractManager | N12: Incremental Term Loan | O12: 38590.05 | P12: 2020-03-23 | R12: =tbl_OC_SwissNT[[#This Row],[Commitment Amount]]*tbl_OC_SwissNT[[#This Row],[Net Senior Leverage]] -> 0 | T12: =tbl_OC_SwissNT[[#This Row],[Commitment Amount]]*tbl_OC_SwissNT[[#This Row],[LTV]] -> 0 | Y12: ZONE MECHANICAL | Z12: Term Loan | AA12: 11250000 | AB12: 44287 | AC12: 4.354690363 | AD12: 0.3992237316 | AE12: 0
A13: HungerRush | B13: Revolver (CRS + Revention) | C13: 468750 | D13: 2020-03-18 | F13: =tbl_OC_Swiss[[#This Row],[Commitment Amount]]*tbl_OC_Swiss[[#This Row],[Net Senior Leverage]] -> 0 | H13: =tbl_OC_Swiss[[#This Row],[Commitment Amount]]*tbl_OC_Swiss[[#This Row],[LTV]] -> 0 | M13: Mr. Greens | N13: Term Loan B | O13: 14374.34 | P13: 2020-03-31 | R13: =tbl_OC_SwissNT[[#This Row],[Commitment Amount]]*tbl_OC_SwissNT[[#This Row],[Net Senior Leverage]] -> 0 | T13: =tbl_OC_SwissNT[[#This Row],[Commitment Amount]]*tbl_OC_SwissNT[[#This Row],[LTV]] -> 0 | Y13: TECHNO HOLDINGS | Z13: Revolver | AA13: 937500 | AB13: 44292 | AC13: 4.49653193 | AD13: 0.4388745337 | AE13: 0
A14: HungerRush | B14: Term Loan A (CRS + Revention) | C14: 781250 | D14: 2020-03-18 | F14: =tbl_OC_Swiss[[#This Row],[Commitment Amount]]*tbl_OC_Swiss[[#This Row],[Net Senior Leverage]] -> 0 | H14: =tbl_OC_Swiss[[#This Row],[Commitment Amount]]*tbl_OC_Swiss[[#This Row],[LTV]] -> 0 | M14: Nuvei Technologies | N14: Term Loan A | O14: 105713.74 | P14: 2020-04-02 | R14: =tbl_OC_SwissNT[[#This Row],[Commitment Amount]]*tbl_OC_SwissNT[[#This Row],[Net Senior Leverage]] -> 0 | T14: =tbl_OC_SwissNT[[#This Row],[Commitment Amount]]*tbl_OC_SwissNT[[#This Row],[LTV]] -> 0 | Y14: TECHNO HOLDINGS | Z14: Term Loan | AA14: 5625000 | AB14: 44292 | AC14: 4.49653193 | AD14: 0.4388745337 | AE14: 0
A15: Madison Safety and Flow LLC | B15: Revolver | C15: 375000 | D15: 2020-03-18 | F15: =tbl_OC_Swiss[[#This Row],[Commitment Amount]]*tbl_OC_Swiss[[#This Row],[Net Senior Leverage]] -> 0 | H15: =tbl_OC_Swiss[[#This Row],[Commitment Amount]]*tbl_OC_Swiss[[#This Row],[LTV]] -> 0 | M15: Mr. Greens | N15: Term Loan C | O15: 65530.47 | P15: 2020-08-12 | R15: =tbl_OC_SwissNT[[#This Row],[Commitment Amount]]*tbl_OC_SwissNT[[#This Row],[Net Senior Leverage]] -> 0 | T15: =tbl_OC_SwissNT[[#This Row],[Commitment Amount]]*tbl_OC_SwissNT[[#This Row],[LTV]] -> 0 | Y15: TECHNO HOLDINGS | Z15: Delayed Draw | AA15: 937500 | AB15: 44292 | AC15: 4.49653193 | AD15: 0.4388745337 | AE15: 0
A16: Madison Safety and Flow LLC | B16: Term Loan A | C16: 2625000 | D16: 2020-03-18 | F16: =tbl_OC_Swiss[[#This Row],[Commitment Amount]]*tbl_OC_Swiss[[#This Row],[Net Senior Leverage]] -> 0 | H16: =tbl_OC_Swiss[[#This Row],[Commitment Amount]]*tbl_OC_Swiss[[#This Row],[LTV]] -> 0 | M16: Resource Label Group | N16: Term Loan | O16: 400160.97 | P16: 2021-01-06 | Q16: 4.777209252 | R16: =tbl_OC_SwissNT[[#This Row],[Commitment Amount]]*tbl_OC_SwissNT[[#This Row],[Net Senior Leverage]] -> 1911652.688 | S16: 0.4051261069 | T16: =tbl_OC_SwissNT[[#This Row],[Commitment Amount]]*tbl_OC_SwissNT[[#This Row],[LTV]] -> 162115.6559 | Y16: GSM MIDCO, INC. | Z16: Term Loan | AA16: 5000000 | AB16: 44302 | AC16: 3.705501048 | AD16: 0.3974298257 | AE16: 0
A17: TractManager | B17: Incremental Term Loan | C17: 77272.87 | D17: 2020-03-23 | F17: =tbl_OC_Swiss[[#This Row],[Commitment Amount]]*tbl_OC_Swiss[[#This Row],[Net Senior Leverage]] -> 0 | H17: =tbl_OC_Swiss[[#This Row],[Commitment Amount]]*tbl_OC_Swiss[[#This Row],[LTV]] -> 0 | M17: Solmetex | N17: Revolver | O17: 454545.45 | P17: 2021-01-22 | Q17: 5.592920354 | R17: =tbl_OC_SwissNT[[#This Row],[Commitment Amount]]*tbl_OC_SwissNT[[#This Row],[Net Senior Leverage]] -> 2542236.499 | S17: 0.421686747 | T17: =tbl_OC_SwissNT[[#This Row],[Commitment Amount]]*tbl_OC_SwissNT[[#This Row],[LTV]] -> 191675.7922 | Y17: Louisiana Fish Fry | Z17: Term Loan A | AA17: 734291.76 | AB17: 44313 | AC17: 4.132189563 | AD17: 0.4709219172 | AE17: 0 | AF17: Y
A18: Mr. Greens | B18: Term Loan B | C18: 28777.07 | D18: 2020-03-31 | F18: =tbl_OC_Swiss[[#This Row],[Commitment Amount]]*tbl_OC_Swiss[[#This Row],[Net Senior Leverage]] -> 0 | H18: =tbl_OC_Swiss[[#This Row],[Commitment Amount]]*tbl_OC_Swiss[[#This Row],[LTV]] -> 0 | M18: Solmetex | N18: Term Loan | O18: 2545454.55 | P18: 2021-01-22 | Q18: 5.592920354 | R18: =tbl_OC_SwissNT[[#This Row],[Commitment Amount]]*tbl_OC_SwissNT[[#This Row],[Net Senior Leverage]] -> 14236524.56 | S18: 0.421686747 | T18: =tbl_OC_SwissNT[[#This Row],[Commitment Amount]]*tbl_OC_SwissNT[[#This Row],[LTV]] -> 1073384.449 | Y18: Consolidated Label | Z18: Incremental Term Loan | AA18: 4250000 | AB18: 44315 | AC18: 4.679890752 | AD18: 0.4464511276 | AE18: 0 | AF18: Y
A19: Nuvei Technologies | B19: Term Loan A | C19: 317141.22 | D19: 2020-04-02 | F19: =tbl_OC_Swiss[[#This Row],[Commitment Amount]]*tbl_OC_Swiss[[#This Row],[Net Senior Leverage]] -> 0 | H19: =tbl_OC_Swiss[[#This Row],[Commitment Amount]]*tbl_OC_Swiss[[#This Row],[LTV]] -> 0 | M19: GSM Outdoors - TruGlo Add-on | N19: Term Loan | O19: 3500000 | P19: 2021-01-25 | Q19: 5.169072681 | R19: =tbl_OC_SwissNT[[#This Row],[Commitment Amount]]*tbl_OC_SwissNT[[#This Row],[Net Senior Leverage]] -> 18091754.38 | S19: 0.412615005 | T19: =tbl_OC_SwissNT[[#This Row],[Commitment Amount]]*tbl_OC_SwissNT[[#This Row],[LTV]] -> 1444152.517 | Y19: GSM Outdoors | Z19: Revolver | AA19: 1138700.79 | AB19: 44315 | AC19: 4.921881579 | AD19: 0.4732158605 | AE19: 0
A20: Consolidated Label | B20: Revolver | C20: 675675.68 | D20: 2020-07-15 | F20: =tbl_OC_Swiss[[#This Row],[Commitment Amount]]*tbl_OC_Swiss[[#This Row],[Net Senior Leverage]] -> 0 | H20: =tbl_OC_Swiss[[#This Row],[Commitment Amount]]*tbl_OC_Swiss[[#This Row],[LTV]] -> 0 | Y20: GSM Outdoors | Z20: Term Loan A | AA20: 9067682.52 | AB20: 44315 | AC20: 4.921881579 | AD20: 0.4732158605 | AE20: 0
A21: Consolidated Label | B21: Term Loan A | C21: 4324324.32 | D21: 2020-07-15 | F21: =tbl_OC_Swiss[[#This Row],[Commitment Amount]]*tbl_OC_Swiss[[#This Row],[Net Senior Leverage]] -> 0 | H21: =tbl_OC_Swiss[[#This Row],[Commitment Amount]]*tbl_OC_Swiss[[#This Row],[LTV]] -> 0 | Y21: GSM Outdoors | Z21: Delayed Draw | AA21: 1026156.92 | AB21: 44315 | AC21: 4.921881579 | AD21: 0.4732158605 | AE21: 0
A22: Painters Supply | B22: Term Loan | C22: 3000000 | D22: 2020-08-03 | F22: =tbl_OC_Swiss[[#This Row],[Commitment Amount]]*tbl_OC_Swiss[[#This Row],[Net Senior Leverage]] -> 0 | H22: =tbl_OC_Swiss[[#This Row],[Commitment Amount]]*tbl_OC_Swiss[[#This Row],[LTV]] -> 0 | Y22: HemaSource | Z22: Term Loan C | AA22: 263891.82 | AB22: 44315 | AC22: 3.765159349 | AD22: 0.3775737235 | AE22: 0
A23: Mr. Greens | B23: Term Loan C | C23: 131155.27 | D23: 2020-08-12 | F23: =tbl_OC_Swiss[[#This Row],[Commitment Amount]]*tbl_OC_Swiss[[#This Row],[Net Senior Leverage]] -> 0 | H23: =tbl_OC_Swiss[[#This Row],[Commitment Amount]]*tbl_OC_Swiss[[#This Row],[LTV]] -> 0 | Y23: Mobile Communications America | Z23: Term Loan B | AA23: 2200609.69 | AB23: 44315 | AC23: 4.091568884 | AD23: 0.482725842 | AE23: 0
A24: Medbio | B24: Revolver | C24: 456521.74 | D24: 2020-08-31 | F24: =tbl_OC_Swiss[[#This Row],[Commitment Amount]]*tbl_OC_Swiss[[#This Row],[Net Senior Leverage]] -> 0 | H24: =tbl_OC_Swiss[[#This Row],[Commitment Amount]]*tbl_OC_Swiss[[#This Row],[LTV]] -> 0 | Y24: Monroe Engineering | Z24: Revolver | AA24: 494329.9 | AB24: 44315 | AC24: 3.128563831 | AD24: 0.4086600481 | AE24: 0
A25: Medbio | B25: Term Loan A | C25: 3043478.26 | D25: 2020-08-31 | F25: =tbl_OC_Swiss[[#This Row],[Commitment Amount]]*tbl_OC_Swiss[[#This Row],[Net Senior Leverage]] -> 0 | H25: =tbl_OC_Swiss[[#This Row],[Commitment Amount]]*tbl_OC_Swiss[[#This Row],[LTV]] -> 0 | Y25: Monroe Engineering | Z25: Term Loan A | AA25: 1893654.24 | AB25: 44315 | AC25: 3.128563831 | AD25: 0.4086600481 | AE25: 0
A26: MB2 | B26: Delayed Draw | C26: 2000000 | D26: 2020-08-31 | F26: =tbl_OC_Swiss[[#This Row],[Commitment Amount]]*tbl_OC_Swiss[[#This Row],[Net Senior Leverage]] -> 0 | H26: =tbl_OC_Swiss[[#This Row],[Commitment Amount]]*tbl_OC_Swiss[[#This Row],[LTV]] -> 0 | Y26: Monroe Engineering | Z26: Term Loan B | AA26: 1834158.44 | AB26: 44315 | AC26: 3.438139491 | AD26: 0.4281235725 | AE26: 0
A27: Louisiana Fish Fry | B27: Term Loan A | C27: 3000000 | D27: 2020-09-24 | F27: =tbl_OC_Swiss[[#This Row],[Commitment Amount]]*tbl_OC_Swiss[[#This Row],[Net Senior Leverage]] -> 0 | H27: =tbl_OC_Swiss[[#This Row],[Commitment Amount]]*tbl_OC_Swiss[[#This Row],[LTV]] -> 0 | Y27: TeamVantage | Z27: Revolver | AA27: 499955.06 | AB27: 44315 | AC27: 4.001317839 | AD27: 0.474025974 | AE27: 0
A28: HemaSource | B28: Term Loan B | C28: 1369047.63 | D28: 2020-09-24 | F28: =tbl_OC_Swiss[[#This Row],[Commitment Amount]]*tbl_OC_Swiss[[#This Row],[Net Senior Leverage]] -> 0 | H28: =tbl_OC_Swiss[[#This Row],[Commitment Amount]]*tbl_OC_Swiss[[#This Row],[LTV]] -> 0 | Y28: TeamVantage | Z28: Term Loan A | AA28: 2275342.33 | AB28: 44315 | AC28: 4.001317839 | AD28: 0.474025974 | AE28: 0
A29: Monroe Engineering | B29: Revolver | C29: 2577319.59 | D29: 2020-10-01 | F29: =tbl_OC_Swiss[[#This Row],[Commitment Amount]]*tbl_OC_Swiss[[#This Row],[Net Senior Leverage]] -> 0 | H29: =tbl_OC_Swiss[[#This Row],[Commitment Amount]]*tbl_OC_Swiss[[#This Row],[LTV]] -> 0 | Y29: Painters Supply & Equipment | Z29: Term Loan A | AA29: 1019150.71 | AB29: 44315 | AC29: 3.686800155 | AD29: 0.5523595046 | AE29: 0
A30: Monroe Engineering | B30: Term Loan A | C30: 9922680.41 | D30: 2020-10-01 | F30: =tbl_OC_Swiss[[#This Row],[Commitment Amount]]*tbl_OC_Swiss[[#This Row],[Net Senior Leverage]] -> 0 | H30: =tbl_OC_Swiss[[#This Row],[Commitment Amount]]*tbl_OC_Swiss[[#This Row],[LTV]] -> 0 | Y30: Presco - WF Add-on | Z30: Term Loan B | AA30: 7618088.39 | AB30: 44315 | AC30: 3.247863248 | AD30: 0.3933988397 | AE30: 0
A31: Refresh Mental Health | B31: Term Loan A | C31: 2622950.82 | D31: 2020-10-09 | F31: =tbl_OC_Swiss[[#This Row],[Commitment Amount]]*tbl_OC_Swiss[[#This Row],[Net Senior Leverage]] -> 0 | H31: =tbl_OC_Swiss[[#This Row],[Commitment Amount]]*tbl_OC_Swiss[[#This Row],[LTV]] -> 0 | Y31: Shipley's Donuts | Z31: Revolver | AA31: 422187.5 | AB31: 44315 | AC31: 2.966273923 | AD31: 0.2361275089 | AE31: 0
A32: Refresh Mental Health | B32: Delayed Draw | C32: 2688524.59 | D32: 2020-10-09 | F32: =tbl_OC_Swiss[[#This Row],[Commitment Amount]]*tbl_OC_Swiss[[#This Row],[Net Senior Leverage]] -> 0 | H32: =tbl_OC_Swiss[[#This Row],[Commitment Amount]]*tbl_OC_Swiss[[#This Row],[LTV]] -> 0 | Y32: Shipley's Donuts | Z32: Term Loan A | AA32: 3790188.28 | AB32: 44315 | AC32: 2.966273923 | AD32: 0.2361275089 | AE32: 0
A33: Refresh Mental Health | B33: Delayed Draw | C33: 2688524.59 | D33: 2020-10-09 | F33: =tbl_OC_Swiss[[#This Row],[Commitment Amount]]*tbl_OC_Swiss[[#This Row],[Net Senior Leverage]] -> 0 | H33: =tbl_OC_Swiss[[#This Row],[Commitment Amount]]*tbl_OC_Swiss[[#This Row],[LTV]] -> 0 | Y33: Shipley's Donuts | Z33: Delayed Draw | AA33: 422187.5 | AB33: 44315 | AC33: 2.966273923 | AD33: 0.2361275089 | AE33: 0
A34: Hub Pen | B34: Term Loan A | C34: 119847.85 | D34: 2020-10-16 | F34: =tbl_OC_Swiss[[#This Row],[Commitment Amount]]*tbl_OC_Swiss[[#This Row],[Net Senior Leverage]] -> 0 | H34: =tbl_OC_Swiss[[#This Row],[Commitment Amount]]*tbl_OC_Swiss[[#This Row],[LTV]] -> 0 | Y34: Shipley's Donuts | Z34: Delayed Draw | AA34: 422187.5 | AB34: 44315 | AC34: 2.966273923 | AD34: 0.2361275089 | AE34: 0
A35: SupplyOne | B35: Term Loan C | C35: 4500000 | D35: 2020-10-27 | F35: =tbl_OC_Swiss[[#This Row],[Commitment Amount]]*tbl_OC_Swiss[[#This Row],[Net Senior Leverage]] -> 0 | H35: =tbl_OC_Swiss[[#This Row],[Commitment Amount]]*tbl_OC_Swiss[[#This Row],[LTV]] -> 0 | Y35: Sunvair | Z35: Term Loan B | AA35: 2436663.91 | AB35: 44315 | AC35: 3.639742129 | AD35: 0.4404913105 | AE35: 0
A36: Resonetics | B36: Term Loan B | C36: 5500000 | D36: 2020-11-02 | F36: =tbl_OC_Swiss[[#This Row],[Commitment Amount]]*tbl_OC_Swiss[[#This Row],[Net Senior Leverage]] -> 0 | H36: =tbl_OC_Swiss[[#This Row],[Commitment Amount]]*tbl_OC_Swiss[[#This Row],[LTV]] -> 0 | Y36: Sunvair | Z36: Term Loan C | AA36: 572793.59 | AB36: 44315 | AC36: 3.639742129 | AD36: 0.4404913105 | AE36: 0
A37: TeamVantage | B37: Revolver | C37: 1797752.81 | D37: 2020-10-30 | F37: =tbl_OC_Swiss[[#This Row],[Commitment Amount]]*tbl_OC_Swiss[[#This Row],[Net Senior Leverage]] -> 0 | H37: =tbl_OC_Swiss[[#This Row],[Commitment Amount]]*tbl_OC_Swiss[[#This Row],[LTV]] -> 0 | Y37: Total Access Urgent Care | Z37: Revolver | AA37: 216440.35 | AB37: 44315 | AC37: 5.05550968 | AD37: 0.4509001637 | AE37: 0
A38: TeamVantage | B38: Term Loan A | C38: 8202247.19 | D38: 2020-10-30 | F38: =tbl_OC_Swiss[[#This Row],[Commitment Amount]]*tbl_OC_Swiss[[#This Row],[Net Senior Leverage]] -> 0 | H38: =tbl_OC_Swiss[[#This Row],[Commitment Amount]]*tbl_OC_Swiss[[#This Row],[LTV]] -> 0 | Y38: Total Access Urgent Care | Z38: Term Loan A | AA38: 3447894.75 | AB38: 44315 | AC38: 5.05550968 | AD38: 0.4509001637 | AE38: 0
A39: Lazer Spot, Inc. | B39: Term Loan A | C39: 1120000 | D39: 2020-11-04 | F39: =tbl_OC_Swiss[[#This Row],[Commitment Amount]]*tbl_OC_Swiss[[#This Row],[Net Senior Leverage]] -> 0 | H39: =tbl_OC_Swiss[[#This Row],[Commitment Amount]]*tbl_OC_Swiss[[#This Row],[LTV]] -> 0 | Y39: Total Access Urgent Care | Z39: Delayed Draw | AA39: 432880.7 | AB39: 44315 | AC39: 5.05550968 | AD39: 0.4509001637 | AE39: 0
A40: Lazer Spot, Inc. | B40: Delayed Draw #2 | C40: 2880000 | D40: 2020-11-04 | F40: =tbl_OC_Swiss[[#This Row],[Commitment Amount]]*tbl_OC_Swiss[[#This Row],[Net Senior Leverage]] -> 0 | H40: =tbl_OC_Swiss[[#This Row],[Commitment Amount]]*tbl_OC_Swiss[[#This Row],[LTV]] -> 0 | Y40: TPC Wire & Cable Corp. | Z40: Revolver | AA40: 1035000 | AB40: 44315 | AC40: 3.361085216 | AD40: 0.3535954225 | AE40: 0
A41: GSM Outdoors | B41: Revolver | C41: 2602744.67 | D41: 2020-11-16 | F41: =tbl_OC_Swiss[[#This Row],[Commitment Amount]]*tbl_OC_Swiss[[#This Row],[Net Senior Leverage]] -> 0 | H41: =tbl_OC_Swiss[[#This Row],[Commitment Amount]]*tbl_OC_Swiss[[#This Row],[LTV]] -> 0 | Y41: TPC Wire & Cable Corp. | Z41: Term Loan A | AA41: 7245000 | AB41: 44315 | AC41: 3.361085216 | AD41: 0.3535954225 | AE41: 0
A42: GSM Outdoors | B42: Term Loan A | C42: 14049276.67 | D42: 2020-11-16 | F42: =tbl_OC_Swiss[[#This Row],[Commitment Amount]]*tbl_OC_Swiss[[#This Row],[Net Senior Leverage]] -> 0 | H42: =tbl_OC_Swiss[[#This Row],[Commitment Amount]]*tbl_OC_Swiss[[#This Row],[LTV]] -> 0 | Y42: TPC Wire & Cable Corp. | Z42: Delayed Draw | AA42: 2070000 | AB42: 44315 | AC42: 3.361085216 | AD42: 0.3535954225 | AE42: 0
A43: GSM Outdoors | B43: Delayed Draw | C43: 2347978.66 | D43: 2020-11-16 | F43: =tbl_OC_Swiss[[#This Row],[Commitment Amount]]*tbl_OC_Swiss[[#This Row],[Net Senior Leverage]] -> 0 | H43: =tbl_OC_Swiss[[#This Row],[Commitment Amount]]*tbl_OC_Swiss[[#This Row],[LTV]] -> 0 | Y43: Consolidated Label | Z43: Revolver | AA43: 129324.39 | AB43: 44323 | AC43: 3.835268059 | AD43: 0.3747819709 | AE43: 0
A44: Holley DPB | B44: Term Loan A | C44: 5000000 | D44: 2020-11-23 | F44: =tbl_OC_Swiss[[#This Row],[Commitment Amount]]*tbl_OC_Swiss[[#This Row],[Net Senior Leverage]] -> 0 | H44: =tbl_OC_Swiss[[#This Row],[Commitment Amount]]*tbl_OC_Swiss[[#This Row],[LTV]] -> 0 | Y44: Consolidated Label | Z44: Term Loan A | AA44: 823537.23 | AB44: 44323 | AC44: 3.835268059 | AD44: 0.3747819709 | AE44: 0
A45: Mobile Communications America | B45: Term Loan B | C45: 3750000 | D45: 2020-12-02 | F45: =tbl_OC_Swiss[[#This Row],[Commitment Amount]]*tbl_OC_Swiss[[#This Row],[Net Senior Leverage]] -> 0 | H45: =tbl_OC_Swiss[[#This Row],[Commitment Amount]]*tbl_OC_Swiss[[#This Row],[LTV]] -> 0 | Y45: Lazer Spot, Inc. | Z45: Term Loan A | AA45: 263555.66 | AB45: 44316 | AC45: 4.791055241 | AD45: 0.3726174027 | AE45: 0
A46: Smile Brands | B46: Revolver | C46: 200000 | D46: 2020-12-03 | F46: =tbl_OC_Swiss[[#This Row],[Commitment Amount]]*tbl_OC_Swiss[[#This Row],[Net Senior Leverage]] -> 0 | H46: =tbl_OC_Swiss[[#This Row],[Commitment Amount]]*tbl_OC_Swiss[[#This Row],[LTV]] -> 0 | Y46: Lazer Spot, Inc. | Z46: Delayed Draw #2 | AA46: 680365.9 | AB46: 44316 | AC46: 4.791055241 | AD46: 0.3726174027 | AE46: 0
A47: Smile Brands | B47: Term Loan B | C47: 3900000 | D47: 2020-12-03 | F47: =tbl_OC_Swiss[[#This Row],[Commitment Amount]]*tbl_OC_Swiss[[#This Row],[Net Senior Leverage]] -> 0 | H47: =tbl_OC_Swiss[[#This Row],[Commitment Amount]]*tbl_OC_Swiss[[#This Row],[LTV]] -> 0 | Y47: Medbio | Z47: Revolver | AA47: 120841.3 | AB47: 44323 | AC47: 5.025081257 | AD47: 0.6052907187 | AE47: 0
A48: Smile Brands | B48: Delayed Draw | C48: 900000 | D48: 2020-12-03 | F48: =tbl_OC_Swiss[[#This Row],[Commitment Amount]]*tbl_OC_Swiss[[#This Row],[Net Senior Leverage]] -> 0 | H48: =tbl_OC_Swiss[[#This Row],[Commitment Amount]]*tbl_OC_Swiss[[#This Row],[LTV]] -> 0 | Y48: Medbio | Z48: Term Loan A | AA48: 801580.66 | AB48: 44323 | AC48: 5.025081257 | AD48: 0.6052907187 | AE48: 0
A49: SavATree | B49: Term Loan A | C49: 4009090.91 | D49: 2020-12-09 | F49: =tbl_OC_Swiss[[#This Row],[Commitment Amount]]*tbl_OC_Swiss[[#This Row],[Net Senior Leverage]] -> 0 | H49: =tbl_OC_Swiss[[#This Row],[Commitment Amount]]*tbl_OC_Swiss[[#This Row],[LTV]] -> 0 | Y49: Resource Label Group | Z49: Term Loan B | AA49: 185943 | AB49: 44323 | AC49: 3.879577111 | AD49: 0.4051261069 | AE49: 0
A50: SavATree | B50: Delayed Draw | C50: 2990909.09 | D50: 2020-12-09 | F50: =tbl_OC_Swiss[[#This Row],[Commitment Amount]]*tbl_OC_Swiss[[#This Row],[Net Senior Leverage]] -> 0 | H50: =tbl_OC_Swiss[[#This Row],[Commitment Amount]]*tbl_OC_Swiss[[#This Row],[LTV]] -> 0 | Y50: Resource Label Group | Z50: Delayed Draw | AA50: 186409.02 | AB50: 44323 | AC50: 3.879577111 | AD50: 0.4051261069 | AE50: 0
A51: Phoenix Rehab | B51: Term Loan B | C51: 192000 | D51: 2020-12-11 | F51: =tbl_OC_Swiss[[#This Row],[Commitment Amount]]*tbl_OC_Swiss[[#This Row],[Net Senior Leverage]] -> 0 | H51: =tbl_OC_Swiss[[#This Row],[Commitment Amount]]*tbl_OC_Swiss[[#This Row],[LTV]] -> 0 | Y51: SavATree | Z51: Term Loan A | AA51: 1064005.28 | AB51: 44323 | AC51: 3.989203004 | AD51: 0.4854826141 | AE51: 0
A52: Resource Label Group | B52: Term Loan B | C52: 624904.51 | D52: 2020-12-18 | F52: =tbl_OC_Swiss[[#This Row],[Commitment Amount]]*tbl_OC_Swiss[[#This Row],[Net Senior Leverage]] -> 0 | H52: =tbl_OC_Swiss[[#This Row],[Commitment Amount]]*tbl_OC_Swiss[[#This Row],[LTV]] -> 0 | Y52: SavATree | Z52: Delayed Draw | AA52: 797376.36 | AB52: 44323 | AC52: 3.989203004 | AD52: 0.4854826141 | AE52: 0
A53: Resource Label Group | B53: Delayed Draw | C53: 624904.51 | D53: 2020-12-18 | F53: =tbl_OC_Swiss[[#This Row],[Commitment Amount]]*tbl_OC_Swiss[[#This Row],[Net Senior Leverage]] -> 0 | H53: =tbl_OC_Swiss[[#This Row],[Commitment Amount]]*tbl_OC_Swiss[[#This Row],[LTV]] -> 0 | Y53: Smile Brands | Z53: Revolver | AA53: 154460 | AB53: 44323 | AC53: 4.053400385 | AD53: 0.4913401889 | AE53: 0
A54: Sunvair | B54: Term Loan B | C54: 8096688.24 | D54: 2020-12-23 | F54: =tbl_OC_Swiss[[#This Row],[Commitment Amount]]*tbl_OC_Swiss[[#This Row],[Net Senior Leverage]] -> 0 | H54: =tbl_OC_Swiss[[#This Row],[Commitment Amount]]*tbl_OC_Swiss[[#This Row],[LTV]] -> 0 | Y54: Smile Brands | Z54: Term Loan B | AA54: 3004440.07 | AB54: 44323 | AC54: 4.053400385 | AD54: 0.4913401889 | AE54: 0
A55: Sunvair | B55: Term Loan C | C55: 1903311.76 | D55: 2020-12-23 | F55: =tbl_OC_Swiss[[#This Row],[Commitment Amount]]*tbl_OC_Swiss[[#This Row],[Net Senior Leverage]] -> 0 | H55: =tbl_OC_Swiss[[#This Row],[Commitment Amount]]*tbl_OC_Swiss[[#This Row],[LTV]] -> 0 | Y55: Smile Brands | Z55: Delayed Draw | AA55: 695070 | AB55: 44323 | AC55: 4.053400385 | AD55: 0.4913401889 | AE55: 0
A56: Presco - WF Add-on | B56: Term Loan B | C56: 3500000 | D56: 2020-12-30 | F56: =tbl_OC_Swiss[[#This Row],[Commitment Amount]]*tbl_OC_Swiss[[#This Row],[Net Senior Leverage]] -> 0 | H56: =tbl_OC_Swiss[[#This Row],[Commitment Amount]]*tbl_OC_Swiss[[#This Row],[LTV]] -> 0 | Y56: SupplyOne Holdings, LLC | Z56: Term Loan C | AA56: 1015049.25 | AB56: 44316 | AC56: 3.104174757 | AD56: 0.4167351331 | AE56: 0
A57: Shipley's Donuts | B57: Revolver | C57: 1041666.67 | D57: 2020-12-30 | F57: =tbl_OC_Swiss[[#This Row],[Commitment Amount]]*tbl_OC_Swiss[[#This Row],[Net Senior Leverage]] -> 0 | H57: =tbl_OC_Swiss[[#This Row],[Commitment Amount]]*tbl_OC_Swiss[[#This Row],[LTV]] -> 0 | Y57: Thrive | Z57: Revolver | AA57: 54692.31 | AB57: 44316 | AC57: 5.754360689 | AD57: 0.3653543311 | AE57: 0
A58: Shipley's Donuts | B58: Term Loan A | C58: 9375000 | D58: 2020-12-30 | F58: =tbl_OC_Swiss[[#This Row],[Commitment Amount]]*tbl_OC_Swiss[[#This Row],[Net Senior Leverage]] -> 0 | H58: =tbl_OC_Swiss[[#This Row],[Commitment Amount]]*tbl_OC_Swiss[[#This Row],[LTV]] -> 0 | Y58: Thrive | Z58: Term Loan A | AA58: 639900 | AB58: 44316 | AC58: 5.754360689 | AD58: 0.3653543311 | AE58: 0
A59: Shipley's Donuts | B59: Delayed Draw | C59: 1041666.67 | D59: 2020-12-30 | F59: =tbl_OC_Swiss[[#This Row],[Commitment Amount]]*tbl_OC_Swiss[[#This Row],[Net Senior Leverage]] -> 0 | H59: =tbl_OC_Swiss[[#This Row],[Commitment Amount]]*tbl_OC_Swiss[[#This Row],[LTV]] -> 0 | Y59: Thrive | Z59: Delayed Draw | AA59: 158607.69 | AB59: 44316 | AC59: 5.754360689 | AD59: 0.3653543311 | AE59: 0
A60: Shipley's Donuts | B60: Delayed Draw | C60: 1041666.66 | D60: 2020-12-30 | F60: =tbl_OC_Swiss[[#This Row],[Commitment Amount]]*tbl_OC_Swiss[[#This Row],[Net Senior Leverage]] -> 0 | H60: =tbl_OC_Swiss[[#This Row],[Commitment Amount]]*tbl_OC_Swiss[[#This Row],[LTV]] -> 0 | Y60: Oracle Elevator Company | Z60: Term Loan A | AA60: 3000000 | AB60: 44328 | AC60: 4.226519696 | AD60: 0.5663753207 | AE60: 0
A61: Monroe Engineering | B61: Term Loan B | C61: 2448453.61 | D61: 2020-12-31 | F61: =tbl_OC_Swiss[[#This Row],[Commitment Amount]]*tbl_OC_Swiss[[#This Row],[Net Senior Leverage]] -> 0 | H61: =tbl_OC_Swiss[[#This Row],[Commitment Amount]]*tbl_OC_Swiss[[#This Row],[LTV]] -> 0 | Y61: Payroc | Z61: Delayed Draw C | AA61: 317869.51 | AB61: 44323 | AC61: 3.805267168 | AD61: 0.3937369368 | AE61: 0
A62: Resource Label Group | B62: Term Loan A | C62: 400160.97 | D62: 2020-01-06 | F62: =tbl_OC_Swiss[[#This Row],[Commitment Amount]]*tbl_OC_Swiss[[#This Row],[Net Senior Leverage]] -> 0 | H62: =tbl_OC_Swiss[[#This Row],[Commitment Amount]]*tbl_OC_Swiss[[#This Row],[LTV]] -> 0 | Y62: Payroc | Z62: Delayed Draw B | AA62: 876730.49 | AB62: 44323 | AC62: 3.805267168 | AD62: 0.3937369368 | AE62: 0
A63: Solmetex | B63: Revolver | C63: 454545.45 | D63: 2020-01-07 | F63: =tbl_OC_Swiss[[#This Row],[Commitment Amount]]*tbl_OC_Swiss[[#This Row],[Net Senior Leverage]] -> 0 | H63: =tbl_OC_Swiss[[#This Row],[Commitment Amount]]*tbl_OC_Swiss[[#This Row],[LTV]] -> 0 | Y63: Holley DPB | Z63: Term Loan A | AA63: 1176482.18 | AB63: 44334 | AC63: 3.439886173 | AD63: 0.4668330838 | AE63: 0
A64: Solmetex | B64: Term Loan A | C64: 2545454.55 | D64: 2020-01-08 | F64: =tbl_OC_Swiss[[#This Row],[Commitment Amount]]*tbl_OC_Swiss[[#This Row],[Net Senior Leverage]] -> 0 | H64: =tbl_OC_Swiss[[#This Row],[Commitment Amount]]*tbl_OC_Swiss[[#This Row],[LTV]] -> 0 | Y64: Solmetex | Z64: Revolver | AA64: 327863.63 | AB64: 44349 | AC64: 5.592920354 | AD64: 0.421686747 | AE64: 0
A65: GSM Outdoors - TruGlo Add-on | B65: Term Loan A | C65: 3500000 | D65: 2020-01-09 | F65: =tbl_OC_Swiss[[#This Row],[Commitment Amount]]*tbl_OC_Swiss[[#This Row],[Net Senior Leverage]] -> 0 | H65: =tbl_OC_Swiss[[#This Row],[Commitment Amount]]*tbl_OC_Swiss[[#This Row],[LTV]] -> 0 | Y65: Solmetex | Z65: Term Loan A | AA65: 1836036.37 | AB65: 44349 | AC65: 5.592920354 | AD65: 0.421686747 | AE65: 0
A66: Thrive | B66: Revolver | C66: 192307.69 | D66: 2020-01-10 | F66: =tbl_OC_Swiss[[#This Row],[Commitment Amount]]*tbl_OC_Swiss[[#This Row],[Net Senior Leverage]] -> 0 | H66: =tbl_OC_Swiss[[#This Row],[Commitment Amount]]*tbl_OC_Swiss[[#This Row],[LTV]] -> 0 | Y66: SupplyOne Holdings, LLC | Z66: Fourth Amendment Term Loan | AA66: 3796078.9 | AB66: 44351 | AC66: 3.79977313 | AD66: 0.481190059 | AE66: 0
A67: Thrive | B67: Term Loan A | C67: 2250000 | D67: 2020-01-11 | F67: =tbl_OC_Swiss[[#This Row],[Commitment Amount]]*tbl_OC_Swiss[[#This Row],[Net Senior Leverage]] -> 0 | H67: =tbl_OC_Swiss[[#This Row],[Commitment Amount]]*tbl_OC_Swiss[[#This Row],[LTV]] -> 0 | Y67: Solve Industrial Motion Group | Z67: Revolver | AA67: 360000 | AB67: 44377 | AC67: 4.294843671 | AD67: 0.3261707989 | AE67: 0
A68: Thrive | B68: Delayed Draw | C68: 557692.31 | D68: 2020-01-12 | F68: =tbl_OC_Swiss[[#This Row],[Commitment Amount]]*tbl_OC_Swiss[[#This Row],[Net Senior Leverage]] -> 0 | H68: =tbl_OC_Swiss[[#This Row],[Commitment Amount]]*tbl_OC_Swiss[[#This Row],[LTV]] -> 0 | Y68: Solve Industrial Motion Group | Z68: Term Loan A | AA68: 2100000 | AB68: 44377 | AC68: 4.294843671 | AD68: 0.3261707989 | AE68: 0
A69: Painters Supply & Equipment | B69: Term Loan A | C69: 1000000 | D69: 2020-01-13 | F69: =tbl_OC_Swiss[[#This Row],[Commitment Amount]]*tbl_OC_Swiss[[#This Row],[Net Senior Leverage]] -> 0 | H69: =tbl_OC_Swiss[[#This Row],[Commitment Amount]]*tbl_OC_Swiss[[#This Row],[LTV]] -> 0 | Y69: Solve Industrial Motion Group | Z69: Delayed Draw | AA69: 540000 | AB69: 44377 | AC69: 4.294843671 | AD69: 0.3261707989 | AE69: 0
A70: Total Access Urgent Care | B70: Revolver | C70: 732206.87 | D70: 2020-01-14 | F70: =tbl_OC_Swiss[[#This Row],[Commitment Amount]]*tbl_OC_Swiss[[#This Row],[Net Senior Leverage]] -> 0 | H70: =tbl_OC_Swiss[[#This Row],[Commitment Amount]]*tbl_OC_Swiss[[#This Row],[LTV]] -> 0 | Y70: HK Solutions | Z70: Revolver | AA70: 1250000 | AB70: 44385 | AC70: 4.590218005 | AD70: 0.3475157584 | AE70: 0
A71: Total Access Urgent Care | B71: Term Loan A | C71: 12103379.41 | D71: 2020-01-15 | F71: =tbl_OC_Swiss[[#This Row],[Commitment Amount]]*tbl_OC_Swiss[[#This Row],[Net Senior Leverage]] -> 0 | H71: =tbl_OC_Swiss[[#This Row],[Commitment Amount]]*tbl_OC_Swiss[[#This Row],[LTV]] -> 0 | Y71: HK Solutions | Z71: Term Loan A | AA71: 6500000 | AB71: 44385 | AC71: 4.590218005 | AD71: 0.3475157584 | AE71: 0
A72: Total Access Urgent Care | B72: Delayed Draw | C72: 1464413.72 | D72: 2020-01-16 | F72: =tbl_OC_Swiss[[#This Row],[Commitment Amount]]*tbl_OC_Swiss[[#This Row],[Net Senior Leverage]] -> 0 | H72: =tbl_OC_Swiss[[#This Row],[Commitment Amount]]*tbl_OC_Swiss[[#This Row],[LTV]] -> 0 | Y72: HK Solutions | Z72: Delayed Draw Term Loan A | AA72: 1125000 | AB72: 44385 | AC72: 4.590218005 | AD72: 0.3475157584 | AE72: 0
A73: TPC Wire & Cable Corp. | B73: Revolver | C73: 1200000 | D73: 2020-01-17 | F73: =tbl_OC_Swiss[[#This Row],[Commitment Amount]]*tbl_OC_Swiss[[#This Row],[Net Senior Leverage]] -> 0 | H73: =tbl_OC_Swiss[[#This Row],[Commitment Amount]]*tbl_OC_Swiss[[#This Row],[LTV]] -> 0 | Y73: HK Solutions | Z73: Delayed Draw Term Loan B | AA73: 1125000 | AB73: 44385 | AC73: 4.590218005 | AD73: 0.3475157584 | AE73: 0
A74: TPC Wire & Cable Corp. | B74: Term Loan A | C74: 8400000 | D74: 2020-01-18 | F74: =tbl_OC_Swiss[[#This Row],[Commitment Amount]]*tbl_OC_Swiss[[#This Row],[Net Senior Leverage]] -> 0 | H74: =tbl_OC_Swiss[[#This Row],[Commitment Amount]]*tbl_OC_Swiss[[#This Row],[LTV]] -> 0 | Y74: Wittichen Supply | Z74: Revolver | AA74: 1050000 | AB74: 44407 | AC74: 4.364850235 | AD74: 0.3809669289 | AE74: 0
A75: TPC Wire & Cable Corp. | B75: Delayed Draw | C75: 2400000 | D75: 2020-01-19 | F75: =tbl_OC_Swiss[[#This Row],[Commitment Amount]]*tbl_OC_Swiss[[#This Row],[Net Senior Leverage]] -> 0 | H75: =tbl_OC_Swiss[[#This Row],[Commitment Amount]]*tbl_OC_Swiss[[#This Row],[LTV]] -> 0 | Y75: Wittichen Supply | Z75: Term Loan A | AA75: 6300000 | AB75: 44407 | AC75: 4.364850235 | AD75: 0.3809669289 | AE75: 0
A76: Resource Label Group | B76: Term Loan | C76: 400160.97 | D76: 2021-01-06 | E76: 4.777209252 | F76: =tbl_OC_Swiss[[#This Row],[Commitment Amount]]*tbl_OC_Swiss[[#This Row],[Net Senior Leverage]] -> 1911652.688 | G76: 0.4051261069 | H76: =tbl_OC_Swiss[[#This Row],[Commitment Amount]]*tbl_OC_Swiss[[#This Row],[LTV]] -> 162115.6559 | Y76: Wittichen Supply | Z76: Delayed Draw | AA76: 3150000 | AB76: 44407 | AC76: 4.364850235 | AD76: 0.3809669289 | AE76: 0
A77: Solmetex | B77: Revolver | C77: 454545.45 | D77: 2021-01-22 | E77: 5.592920354 | F77: =tbl_OC_Swiss[[#This Row],[Commitment Amount]]*tbl_OC_Swiss[[#This Row],[Net Senior Leverage]] -> 2542236.499 | G77: 0.421686747 | H77: =tbl_OC_Swiss[[#This Row],[Commitment Amount]]*tbl_OC_Swiss[[#This Row],[LTV]] -> 191675.7922 | Y77: Belt Power | Z77: Term Loan A | AA77: 4000000 | AB77: 44414 | AC77: 3.89623166 | AD77: 0.4943558202 | AE77: 0 | AF77: Y
A78: Solmetex | B78: Term Loan | C78: 2545454.55 | D78: 2021-01-22 | E78: 5.592920354 | F78: =tbl_OC_Swiss[[#This Row],[Commitment Amount]]*tbl_OC_Swiss[[#This Row],[Net Senior Leverage]] -> 14236524.56 | G78: 0.421686747 | H78: =tbl_OC_Swiss[[#This Row],[Commitment Amount]]*tbl_OC_Swiss[[#This Row],[LTV]] -> 1073384.449 | Y78: TPC WIRE | Z78: Term Loan A | AA78: 2000000 | AB78: 44418 | AC78: 3.939628136 | AD78: 0.4120943113 | AE78: 0
A79: GSM Outdoors - TruGlo Add-on | B79: Term Loan | C79: 3500000 | D79: 2021-01-25 | E79: 5.169072681 | F79: =tbl_OC_Swiss[[#This Row],[Commitment Amount]]*tbl_OC_Swiss[[#This Row],[Net Senior Leverage]] -> 18091754.38 | G79: 0.412615005 | H79: =tbl_OC_Swiss[[#This Row],[Commitment Amount]]*tbl_OC_Swiss[[#This Row],[LTV]] -> 1444152.517 | Y79: Titan Security Group | Z79: Revolver | AA79: 450000 | AB79: 44420 | AC79: 3.55366027 | AD79: 0.3098441926 | AE79: 0
Y80: Titan Security Group | Z80: Term Loan | AA80: 2475000 | AB80: 44420 | AC80: 3.55366027 | AD80: 0.3098441926 | AE80: 0
Y81: Titan Security Group | Z81: Delayed Draw A | AA81: 450000 | AB81: 44420 | AC81: 3.55366027 | AD81: 0.3098441926 | AE81: 0
Y82: Titan Security Group | Z82: Delayed Draw B | AA82: 450000 | AB82: 44420 | AC82: 3.55366027 | AD82: 0.3098441926 | AE82: 0
Y83: Titan Security Group | Z83: Delayed Draw C | AA83: 675000 | AB83: 44420 | AC83: 3.55366027 | AD83: 0.3098441926 | AE83: 0
Y84: Crane 1 Services | Z84: Revolver | AA84: 852272.73 | AB84: 44424 | AC84: 5.108038728 | AD84: 0.4232638345 | AE84: 0
Y85: Crane 1 Services | Z85: Term Loan A | AA85: 9375000 | AB85: 44424 | AC85: 5.108038728 | AD85: 0.4232638345 | AE85: 0
Y86: Crane 1 Services | Z86: Delayed Draw | AA86: 2272727.27 | AB86: 44424 | AC86: 5.108038728 | AD86: 0.4232638345 | AE86: 0
Y87: SupplyOne Holdings, LLC | Z87: 5A Term Loan | AA87: 3000000 | AB87: 44425 | AC87: 3.735177169 | AD87: 0.4680877525 | AE87: 0
Y88: BioAgilytix | Z88: Revolver | AA88: 701149.43 | AB88: 44427 | AC88: 3.837163697 | AD88: 0.1598896933 | AE88: 0
Y89: BioAgilytix | Z89: Term Loan B | AA89: 5398850.57 | AB89: 44427 | AC89: 3.837163697 | AD89: 0.1598896933 | AE89: 0
Y90: ECM INDUSTRIES, LLC | Z90: Term Loan B | AA90: 7500000 | AB90: 44442 | AC90: 4.410840048 | AD90: 0.4480804268 | AE90: 0 | AF90: Y
Y91: MONROE ENGINEERING, LLC | Z91: Term Loan C | AA91: 4000000 | AB91: 44477 | AC91: 3.092511217 | AD91: 0.3754087593 | AE91: 0
Y92: Home Care Assistance | Z92: Term Loan B | AA92: 251308.9008 | AB92: 44483 | AC92: 3.828388115 | AD92: 0.3245762936 | AE92: 0
Y93: Home Care Assistance | Z93: Delayed Draw B | AA93: 2748691.099 | AB93: 44483 | AC93: 3.828388115 | AD93: 0.3245762936 | AE93: 0
Y94: Tyto Athene | Z94: Term Loan A | AA94: 10000000 | AB94: 44490 | AC94: 4.216812821 | AD94: 0.5554505594 | AE94: 0
Y95: Krayden, Inc. | Z95: Term Loan A | AA95: 3000000 | AB95: 44491 | AC95: 4.713400568 | AD95: 0.534750149 | AE95: 0 | AF95: Y
Y96: Tranzonic | Z96: Term Loan A | AA96: 5000000 | AB96: 44495 | AC96: 2.84x | AD96: 0.4008 | AE96: 0
Y97: Controlled Products | Z97: Revolver | AA97: 898551 | AB97: 44495 | AC97: 4.485565337 | AD97: 0.4213695668 | AE97: 0
Y98: Controlled Products | Z98: Term Loan A | AA98: 4101449 | AB98: 44495 | AC98: 4.485565337 | AD98: 0.4213695668 | AE98: 0
Y99: Monroe Engineering | Z99: Term Loan D | AA99: 5000000 | AB99: 44501 | AC99: 3.229304939 | AD99: 0.3915830087 | AE99: 0
Y100: RefrigiWear | Z100: Revolver | AA100: 1421800.95 | AB100: 44502 | AC100: 5.12208972 | AD100: 0.3762830095 | AE100: 0
Y101: RefrigiWear | Z101: Term Loan A | AA101: 8578199.05 | AB101: 44502 | AC101: 5.12208972 | AD101: 0.3762830095 | AE101: 0
Y102: Anne Arundel Dermatology | Z102: Revolver | AA102: 260849.77 | AB102: 44509 | AC102: 4.31x | AD102: 0.3217 | AE102: 0
Y103: Anne Arundel Dermatology | Z103: Term Loan A | AA103: 2550000 | AB103: 44509 | AC103: 4.31x | AD103: 0.3217 | AE103: 0
Y104: Anne Arundel Dermatology | Z104: Delayed Draw | AA104: 563293.1 | AB104: 44509 | AC104: 4.31x | AD104: 0.3217 | AE104: 0
Y105: Anne Arundel Dermatology | Z105: Delayed Draw | AA105: 871180.01 | AB105: 44509 | AC105: 4.31x | AD105: 0.3217 | AE105: 0
Y106: Anne Arundel Dermatology | Z106: Delayed Draw | AA106: 754677.12 | AB106: 44509 | AC106: 4.31x | AD106: 0.3217 | AE106: 0
Y107: EFC International | Z107: Revolver | AA107: 1353383.46 | AB107: 44512 | AC107: 4.64398827 | AD107: 0.4558926202 | AE107: 0
Y108: EFC International | Z108: Term Loan A | AA108: 8390977.44 | AB108: 44512 | AC108: 4.64398827 | AD108: 0.4558926202 | AE108: 0
Y109: EFC International | Z109: Delayed Draw | AA109: 2255639.1 | AB109: 44512 | AC109: 4.64398827 | AD109: 0.4558926202 | AE109: 0
Y110: Big Bolt | Z110: Term Loan A | AA110: 5000000 | AB110: 44523 | AC110: 3.751226 | AD110: 0.4908291322 | AE110: 0
Y111: OptConnect, LLC | Z111: Revolver | AA111: 1538461.538 | AB111: 44523 | AC111: 4.895751383 | AD111: 0.4137427688 | AE111: 0
Y112: OptConnect, LLC | Z112: Term Loan A | AA112: 13461538.46 | AB112: 44523 | AC112: 4.895751383 | AD112: 0.4137427688 | AE112: 0
Y113: Payroc | Z113: Term Loan B | AA113: 2086622.89 | AB113: 44524 | AC113: 4.303638863 | AD113: 0.4708298823 | AE113: 0
Y114: Payroc | Z114: Delayed Draw | AA114: 918014.83 | AB114: 44524 | AC114: 4.303638863 | AD114: 0.4708298823 | AE114: 0
Y115: Payroc | Z115: Delayed Draw | AA115: 372168.17 | AB115: 44524 | AC115: 4.303638863 | AD115: 0.4708298823 | AE115: 0
Y116: Payroc | Z116: Delayed Draw | AA116: 1623194.11 | AB116: 44524 | AC116: 4.303638863 | AD116: 0.4708298823 | AE116: 0
Y117: SHIPLEY'S DONUTS | Z117: Term Loan B | AA117: 10500000 | AB117: 44530 | AC117: 5.349685731 | AD117: 0.4205394849 | AE117: 0 | AF117: Y
Y118: Solve Industrial Motion Group | Z118: Term Loan A | AA118: 1250000 | AB118: 44532 | AC118: 4.402695729 | AD118: 0.3335505521 | AE118: 0
Y119: SupplyOne Holdings, LLC | Z119: Term Loan | AA119: 1865546.22 | AB119: 44536 | AC119: 3.290498494 | AD119: 0.4133950846 | AE119: 0
Y120: SupplyOne Holdings, LLC | Z120: Term Loan | AA120: 4134453.78 | AB120: 44536 | AC120: 3.290498494 | AD120: 0.4133950846 | AE120: 0
Y121: Millstone Medical Outsourcing | Z121: Revolver | AA121: 1323529.41 | AB121: 44545 | AC121: 5.537227519 | AD121: 0.3507014028 | AE121: 0
Y122: Millstone Medical Outsourcing | Z122: Term Loan A | AA122: 6176470.59 | AB122: 44545 | AC122: 5.537227519 | AD122: 0.3507014028 | AE122: 0
Y123: Lazer Spot, Inc. | Z123: Term Loan B | AA123: 2500000 | AB123: 44545 | AC123: 4.015446617 | AD123: 0.3274225858 | AE123: 0
Y124: Trident Solutions (fka Presco) | Z124: Term Loan B | AA124: 7250000 | AB124: 44547 | AC124: 3.342849886 | AD124: 0.4058048999 | AE124: 0
Y125: Alliance PT | Z125: Revolver | AA125: 2117647.06 | AB125: 44551 | AC125: 4.103975535 | AD125: 0.366908965 | AE125: 0
Y126: Alliance PT | Z126: Term Loan A | AA126: 11011764.71 | AB126: 44551 | AC126: 4.103975535 | AD126: 0.366908965 | AE126: 0
Y127: Alliance PT | Z127: Delayed Draw A | AA127: 1588235.29 | AB127: 44551 | AC127: 4.103975535 | AD127: 0.366908965 | AE127: 0
Y128: Alliance PT | Z128: Delayed Draw B | AA128: 1588235.29 | AB128: 44551 | AC128: 4.103975535 | AD128: 0.366908965 | AE128: 0
Y129: Alliance PT | Z129: Delayed Draw C | AA129: 1694117.65 | AB129: 44551 | AC129: 4.103975535 | AD129: 0.366908965 | AE129: 0
Y130: Controlled Products | Z130: Revolver | AA130: 855076.87 | AB130: 44551 | AC130: 4.407000982 | AD130: 0.417031885 | AE130: 0
Y131: Controlled Products | Z131: Term Loan A | AA131: 8644923.13 | AB131: 44551 | AC131: 4.407000982 | AD131: 0.417031885 | AE131: 0
Y132: Mobile Communications America | Z132: Delayed Draw | AA132: 5536912.75 | AB132: 44553 | AC132: 3.6 | AD132: 0.3797268698 | AE132: 0
Y133: TTG Imaging | Z133: Revolver | AA133: 1153846.15 | AB133: 44553 | AC133: 3.849951702 | AD133: 0.3322638888 | AE133: 0
Y134: TTG Imaging | Z134: Term Loan A | AA134: 3846153.85 | AB134: 44553 | AC134: 3.849951702 | AD134: 0.3322638888 | AE134: 0
Y135: Vivify | Z135: Revolver | AA135: 859090.91 | AB135: 44553 | AC135: 4.650580469 | AD135: 0.3402173913 | AE135: 0
Y136: Vivify | Z136: Term Loan A | AA136: 5850000 | AB136: 44553 | AC136: 4.650580469 | AD136: 0.3402173913 | AE136: 0
Y137: Vivify | Z137: Delayed Draw | AA137: 2290909.09 | AB137: 44553 | AC137: 4.650580469 | AD137: 0.3402173913 | AE137: 0
Y138: Oliver Printing & Packaging | Z138: Term Loan A | AA138: 6000000 | AB138: 44554 | AC138: 3.226634023 | AD138: 0.4237098938 | AE138: 0
Y139: Tranzonic | Z139: Term Loan A | AA139: 6000000 | AB139: 44559 | AC139: 3.51987623 | AD139: 0.4456455483 | AE139: 0
Y140: Belt Power | Z140: Revolver | AA140: 649458.78 | AB140: 44560 | AC140: 5.017168865 | AD140: 0.5234160533 | AE140: 0
Y141: Belt Power | Z141: Term Loan A | AA141: 5850541.22 | AB141: 44560 | AC141: 5.017168865 | AD141: 0.5234160533 | AE141: 0
Y142: Western Veterinary Partners | Z142: Term Loan A | AA142: 1666666.67 | AB142: 44601 | AC142: 4.555661115 | AD142: 0.5087119603 | AE142: 0.02677376177
Y143: Western Veterinary Partners | Z143: Delayed Draw | AA143: 1666666.67 | AB143: 44601 | AC143: 4.555661115 | AD143: 0.5087119603 | AE143: 0.02677376177
Y144: Western Veterinary Partners | Z144: Delayed Draw | AA144: 1666666.66 | AB144: 44601 | AC144: 4.555661115 | AD144: 0.5087119603 | AE144: 0.02677376161
Y145: Pestco | Z145: Revolver | AA145: 500000 | AB145: 44609 | AC145: 4.786577472 | AD145: 0.319156205 | AE145: 0.008032128514
Y146: Pestco | Z146: Term Loan A | AA146: 3250000 | AB146: 44609 | AC146: 4.786577472 | AD146: 0.319156205 | AE146: 0.05220883534
Y147: Pestco | Z147: Delayed Draw | AA147: 1250000 | AB147: 44609 | AC147: 4.786577472 | AD147: 0.319156205 | AE147: 0.02008032129
Y148: Lazer Spot, Inc. | Z148: Delayed Draw | AA148: 1000000 | AB148: 44610 | AC148: 3.972529822 | AD148: 0.3165614733 | AE148: 0.01606425703
Y149: Solve Industrial Motion Group | Z149: Delayed Draw | AA149: 750000 | AB149: 44615 | AC149: 4.241164633 | AD149: 0.32792244 | AE149: 0.01204819277
Y150: GSM Outdoors | Z150: Term Loan A | AA150: 2000000 | AB150: 44615 | AC150: 4.183653881 | AD150: 0.4348848474 | AE150: 0.03212851406
Y151: Solmetex | Z151: Term Loan A | AA151: 2000000 | AB151: 44642 | AC151: 4.634190397 | AD151: 0.3525 | AE151: 0.03212851406
Y152: Flow Control Holdings | Z152: Revolver | AA152: 204545.45 | AB152: 44651 | AC152: 4.656855092 | AD152: 0.2517102505 | AE152: 0.003285870683
Y153: Flow Control Holdings | Z153: Term Loan A | AA153: 2250000 | AB153: 44651 | AC153: 4.656855092 | AD153: 0.2517102505 | AE153: 0.03614457831
Y154: Flow Control Holdings | Z154: Delayed Draw | AA154: 545454.55 | AB154: 44651 | AC154: 4.656855092 | AD154: 0.2517102505 | AE154: 0.008762322088
Y155: SurfacePrep | Z155: Term Loan B | AA155: 12500000 | AB155: 44652 | AC155: 5.036831898 | AD155: 0.4257528041 | AE155: 0.2008032129
Y156: The Dickson Company | Z156: Term Loan A | AA156: 10000000 | AB156: 44670 | AC156: 4.9867631 | AD156: 0.4301504861 | AE156: 0.1606425703
Y157: Wittichen | Z157: Revolver | AA157: 155215.23 | AB157: 44678 | AC157: 4.617301585 | AD157: 0.4305918552 | AE157: 0.002493417349
Y158: Wittichen | Z158: Term Loan A | AA158: 1568708.61 | AB158: 44678 | AC158: 4.617301585 | AD158: 0.4305918552 | AE158: 0.02520013831
Y159: Wittichen | Z159: Delayed Draw | AA159: 776076.16 | AB159: 44678 | AC159: 4.617301585 | AD159: 0.4305918552 | AE159: 0.01246708691
Y160: Swanson Health Products | Z160: Revolver | AA160: 393006.85 | AB160: 44684 | AC160: 3.988832967 | AD160: 0.4921030602 | AE160: 0.006313363052
Y161: Swanson Health Products | Z161: Term Loan A | AA161: 3606993.15 | AB161: 44684 | AC161: 3.988832967 | AD161: 0.4921030602 | AE161: 0.05794366506
Y162: RefrigiWear | Z162: Term Loan B | AA162: 1000000 | AB162: 44694 | AC162: 4.337864988 | AD162: 0.3201013438 | AE162: 0.01606425703
Y163: Mission Critical Electronics | Z163: Term Loan B | AA163: 3815165.88 | AB163: 44699 | AC163: 4.275711534 | AD163: 0.5639799682 | AE163: 0.0612878053
Y164: Mission Critical Electronics | Z164: Delayed Draw | AA164: 1184834.12 | AB164: 44699 | AC164: 4.275711534 | AD164: 0.5639799682 | AE164: 0.01903347984
Y165: HK Solutions | Z165: Delayed Draw | AA165: 500000 | AB165: 44704 | AC165: 4.71x | AD165: 0.3617 | AE165: 0.008032128514
Y166: HK Solutions | Z166: Delayed Draw | AA166: 500000 | AB166: 44704 | AC166: 4.71x | AD166: 0.3617 | AE166: 0.008032128514
Y167: Western Veterinary Partners | Z167: Term Loan A | AA167: 2564102.56 | AB167: 44708 | AC167: 5.216119714 | AD167: 0.5604680975 | AE167: 0.04119040257
Y168: Western Veterinary Partners | Z168: DDTL D | AA168: 1217948.72 | AB168: 44708 | AC168: 5.216119714 | AD168: 0.5604680975 | AE168: 0.01956544129
Y169: Western Veterinary Partners | Z169: DDTL E | AA169: 1217948.72 | AB169: 44708 | AC169: 5.216119714 | AD169: 0.5604680975 | AE169: 0.01956544129
Y170: Krayden | Z170: Term Loan A | AA170: 500000 | AB170: 44719 | AC170: 4.082620443 | AD170: 0.4658423312 | AE170: 0.008032128514
Y171: Tranzonic | Z171: Term Loan A | AA171: 2000000 | AB171: 44727 | AC171: 4.224754045 | AD171: 0.4434916575 | AE171: 0.03212851406

Sheet Protective Advances
A1: SMA | B1: Borrower Name | C1: Tranche | D1: Commitment Amount | E1: Date Closed | F1: Date Fully Realized
A2: SMA-AF JAP | B2: Mr. Greens | C2: Term Loan | D2: 44978.97 | E2: 2020-03-31
A3: SMA-AF JAP | B3: Mr. Greens | C3: Term Loan | D3: 204979.25 | E3: 2020-08-12
A4: SMA-AF JAP | B4: Gourmet Kitchen | C4: Revolver | D4: 221893.49 | E4: 2021-05-05 | F4: 2022-04-14
A5: SMA-AF JAP | B5: Raymundos | C5: Revolver | D5: 171232.87 | E5: 2022-03-15
A6: SMA-AF US | B6: Mr. Greens | C6: Term Loan | D6: 8995.79 | E6: 2020-03-31
A7: SMA-AF US | B7: Mr. Greens | C7: Term Loan | D7: 40995.85 | E7: 2020-08-12
A8: SMA-AF US | B8: Gourmet Kitchen | C8: Revolver | D8: 44378.7 | E8: 2021-05-05 | F8: 2022-04-14
A9: SMA-CC | B9: Mr. Greens | C9: Term Loan | D9: 46759.19 | E9: 2020-03-31
A10: SMA-CC | B10: Mr. Greens | C10: Term Loan | D10: 213115.53 | E10: 2020-08-12
A11: SMA-CC | B11: Phoenix Rehab | C11: Term Loan | D11: 364800 | E11: 2020-12-11
A12: SMA-CC | B12: Raymundos | C12: Revolver | D12: 171232.87 | E12: 2022-03-15
A13: SMA-CH | B13: Mr. Greens | C13: Term Loan | D13: 46759.19 | E13: 2020-03-31
A14: SMA-CH | B14: Mr. Greens | C14: Term Loan | D14: 213115.53 | E14: 2020-08-12
A15: SMA-CH | B15: Phoenix Rehab | C15: Term Loan | D15: 364800 | E15: 2020-12-11
A16: SMA-CH | B16: Gourmet Kitchen | C16: Revolver | D16: 838757.4 | E16: 2021-05-05 | F16: 2022-04-14
A17: SMA-CH | B17: Raymundos | C17: Revolver | D17: 171232.87 | E17: 2022-03-15
A18: SMA-SC | B18: Mr. Greens | C18: Term Loan | D18: 28777.07 | E18: 2020-03-31
A19: SMA-SC | B19: Mr. Greens | C19: Term Loan | D19: 131155.27 | E19: 2020-08-12
A20: SMA-SC | B20: Hub Pen | C20: Term Loan | D20: 119847.85 | E20: 2020-10-16
A21: SMA-SC | B21: Phoenix Rehab | C21: Term Loan | D21: 192000 | E21: 2020-12-11
A22: SMA-SC | B22: Raymundos | C22: Revolver | D22: 342465.76 | E22: 2022-03-15
A23: SMA-SC NT | B23: Mr. Greens | C23: Term Loan | D23: 14374.34 | E23: 2020-03-31
A24: SMA-SC NT | B24: Mr. Greens | C24: Term Loan | D24: 65530.47 | E24: 2020-08-12
A25: SMA-SC NT | B25: Hub Pen | C25: Term Loan | D25: 56318.05 | E25: 2020-10-16
A26: SMA-SC NT | B26: Phoenix Rehab | C26: Term Loan | D26: 76800 | E26: 2020-12-11
A27: SMA-SC NT | B27: Raymundos | C27: Revolver | D27: 102739.72 | E27: 2022-03-15

Sheet Deal Figures
A1: Facility ID | B1: Investor | C1: Net Senior Leverage | D1: Open Market Purchase | E1: DIP Loan | F1: Approved By Swiss
A2: 17124 | B2: SMA-CH | C2: 4.15
A3: 17106 | B3: SMA-CH | C3: 4.15
A4: 16178 | B4: SMA-CH | C4: 3.897742747
A5: 18801 | B5: SMA-CH | C5: 6.480366177
A6: 18819 | B6: SMA-CH | C6: 6.480366177
A7: 20308 | B7: SMA-CH | C7: 6.013199707
A8: 20287 | B8: SMA-CH | C8: 6.013199707
A9: 20293 | B9: SMA-CH | C9: 6.013199707
A10: 20007 | B10: SMA-CH | C10: 4.866330602
A11: 18248 | B11: SMA-CH | C11: 4.84
A12: 18232 | B12: SMA-CH | C12: 4.84
A13: 18189 | B13: SMA-CH | C13: 4.780369524
A14: 18196 | B14: SMA-CH | C14: 4.780369524
A15: 18683 | B15: SMA-CH | C15: 4.929983965
A16: 18692 | B16: SMA-CH | C16: 4.929983965
A17: 20743 | B17: SMA-CH | C17: 4.26
A18: 20737 | B18: SMA-CH | C18: 4.26
A19: 20752 | B19: SMA-CH | C19: 4.26
A20: 19014 | B20: SMA-CH | C20: 4.07
A21: 19004 | B21: SMA-CH | C21: 4.07
A22: 20871 | B22: SMA-CH | C22: 4.153938843
A23: 18593 | B23: SMA-CH | C23: 2.685642227
A24: 18608 | B24: SMA-CH | C24: 2.685642227
A25: 19148 | B25: SMA-CH | C25: 2.01
A26: 19132 | B26: SMA-CH | C26: 2.01
A27: 16594 | B27: SMA-CH | C27: 4.59
A28: 21264 | B28: SMA-CH | C28: 3.909082252
A29: 15253 | B29: SMA-CH | C29: 3.264285605
A30: 15262 | B30: SMA-CH | C30: 3.264285605
A31: 18773 | B31: SMA-CH | C31: 3.33
A32: 18654 | B32: SMA-CH | C32: 3.33
A33: 18767 | B33: SMA-CH | C33: 3.33
A34: 18024 | B34: SMA-CH | C34: 3.94
A35: 18037 | B35: SMA-CH | C35: 3.94
A36: 17016 | B36: SMA-CH | C36: 3.37
A37: 21652 | B37: SMA-CH | C37: 4.404114692
A38: 21668 | B38: SMA-CH | C38: 4.404114692
A39: 20955 | B39: SMA-CH | C39: 3.78838475
A40: 20948 | B40: SMA-CH | C40: 3.78838475
A41: 20979 | B41: SMA-CH | C41: 3.78838475
A42: 20961 | B42: SMA-CH | C42: 3.78838475
A43: 20932 | B43: SMA-CH | C43: 3.78838475
A44: 19847 | B44: SMA-CH | C44: 3.24
A45: 19834 | B45: SMA-CH | C45: 3.24
A46: 19824 | B46: SMA-CH | C46: 3.24
A47: 20411 | B47: SMA-CH | C47: 5.196015194
A48: 20405 | B48: SMA-CH | C48: 5.196015194
A49: 19968 | B49: SMA-CH | C49: 5.313367951
A50: 19981 | B50: SMA-CH | C50: 5.313367951
A51: 19975 | B51: SMA-CH | C51: 5.313367951
A52: 20022 | B52: SMA-CH | C52: 5.08
A53: 20038 | B53: SMA-CH | C53: 5.08
A54: 18574 | B54: SMA-CH | C54: 4.51
A55: 18587 | B55: SMA-CH | C55: 4.51
A56: 20662 | B56: SMA-CH | C56: 4.407883607
A57: 20678 | B57: SMA-CH | C57: 4.407883607
A58: 19636 | B58: SMA-CH | C58: 4.19
A59: 19629 | B59: SMA-CH | C59: 4.19
A60: 19611 | B60: SMA-CH | C60: 4.19
A61: 20482 | B61: SMA-CH | C61: 4.41
A62: 20501 | B62: SMA-CH | C62: 4.41
A63: 20498 | B63: SMA-CH | C63: 4.41
A64: 18484 | B64: SMA-CH | C64: 4.390421149
A65: 18497 | B65: SMA-CH | C65: 4.390421149
A66: 18549 | B66: SMA-CH | C66: 3.65
A67: 18556 | B67: SMA-CH | C67: 3.65
A68: 19071 | B68: SMA-CH | C68: 3.88
A69: 19065 | B69: SMA-CH | C69: 3.88
A70: 18947 | B70: SMA-CH | C70: 4.49
A71: 18953 | B71: SMA-CH | C71: 4.49
A72: 21578 | B72: SMA-CH | C72: 2.991358298
A73: 21553 | B73: SMA-CH | C73: 2.991358298
A74: 21585 | B74: SMA-CH | C74: 2.991358298
A75: 21727 | B75: SMA-CH | C75: 4.26
A76: 21817 | B76: SMA-CH | C76: 3.729646138
A77: 21804 | B77: SMA-CH | C77: 3.729646138
A78: 21796 | B78: SMA-CH | C78: 3.729646138
A79: 21832 | B79: SMA-CH | C79: 6.05
A80: 21848 | B80: SMA-CH | C80: 6.05
A81: 21823 | B81: SMA-CH | C81: 6.05
A82: 22786 | B82: SMA-CH | C82: 5.354295351
A83: 22779 | B83: SMA-CH | C83: 5.354295351
A84: 22732 | B84: SMA-CH | C84: 4.650179666
A85: 22748 | B85: SMA-CH | C85: 4.650179666
A86: 22813 | B86: SMA-CH | C86: 4.944500997
A87: 22822 | B87: SMA-CH | C87: 4.944500997
A88: 23083 | B88: SMA-CH | C88: 3.931713991
A89: 23077 | B89: SMA-CH | C89: 3.931713991
A90: 23129 | B90: SMA-CH | C90: 4.148497381
A91: 23136 | B91: SMA-CH | C91: 4.148497381
A92: 23111 | B92: SMA-CH | C92: 4.148497381
A93: 23015 | B93: SMA-CH | C93: 3.949308432
A94: 23105 | B94: SMA-CH | C94: 3.949308432
A95: 23452 | B95: SMA-CH | C95: 5.46
A96: 23468 | B96: SMA-CH | C96: 5.46
A97: 23475 | B97: SMA-CH | C97: 5.46
A98: 23533 | B98: SMA-CH | C98: 4.26
A99: 16576 | B99: SMA-CH | C99: 4.59
A100: 24036 | B100: SMA-CH | C100: 2.685642227
A101: 24098 | B101: SMA-CH | C101: 4.84
A102: 24082 | B102: SMA-CH | C102: 4.84
A103: 24101 | B103: SMA-CH | C103: 4.84
A104: 24134 | B104: SMA-CH | C104: 4.03
A105: 24126 | B105: SMA-CH | C105: 4.03
A106: 24144 | B106: SMA-CH | C106: 4.03
A107: 24262 | B107: SMA-CH | C107: 4.13
A108: 24253 | B108: SMA-CH | C108: 4.13
A109: 24216 | B109: SMA-CH | C109: 5.07
A110: 24209 | B110: SMA-CH | C110: 5.07
A111: 24188 | B111: SMA-CH | C111: 4.31
A112: 24172 | B112: SMA-CH | C112: 4.31
A113: 24306 | B113: SMA-CH | C113: 4.14
A114: 24285 | B114: SMA-CH | C114: 4.14
A115: 24291 | B115: SMA-CH | C115: 4.14
A116: 24352 | B116: SMA-CH | C116: 3.46
A117: 24343 | B117: SMA-CH | C117: 3.46
A118: 24465 | B118: SMA-CH | C118: 3
A119: 24471 | B119: SMA-CH | C119: 3
A120: 24613 | B120: SMA-CH | C120: 5.15 | D120: Y
A121: 24607 | B121: SMA-CH | C121: 5.15 | D121: Y
A122: 24594 | B122: SMA-CH | C122: 5.15 | D122: Y
A123: 24651 | B123: SMA-CH | C123: 3.73
A124: 24645 | B124: SMA-CH | C124: 3.73
A125: 24774 | B125: SMA-CH | C125: 5.42
A126: 24784 | B126: SMA-CH | C126: 5.42
A127: 24802 | B127: SMA-CH | C127: 5.354295351
A128: 24915 | B128: SMA-CH | C128: 4.6
A129: 24954 | B129: SMA-CH | C129: 3.949308432
A130: 25057 | B130: SMA-CH | C130: 6.013199707
A131: 25072 | B131: SMA-CH | C131: 3.897742747
A132: 25162 | B132: SMA-CH | C132: 3.949308432
A133: 25417 | B133: SMA-CH | C133: 3.13
A134: 25404 | B134: SMA-CH | C134: 3.13
A135: 25365 | B135: SMA-CH | C135: 6.480366177
A136: 25507 | B136: SMA-CH | C136: 3.65
A137: 25551 | B137: SMA-CH | C137: 4
A138: 25569 | B138: SMA-CH | C138: 4
A139: 25545 | B139: SMA-CH | C139: 4.51
A140: 25584 | B140: SMA-CH | C140: 4.84
A141: 25697 | B141: SMA-CH | C141: 4.41
A142: 25684 | B142: SMA-CH | C142: 4.41
A143: 25594 | B143: SMA-CH | C143: 5.07
A144: 25628 | B144: SMA-CH | C144: 4.92
A145: 25635 | B145: SMA-CH | C145: 4.92
A146: 25641 | B146: SMA-CH | C146: 4.92
A147: 25725 | B147: SMA-CH | C147: 4.19
A148: 25731 | B148: SMA-CH | C148: 4.19
A149: 25749 | B149: SMA-CH | C149: 3.989203004
A150: 25756 | B150: SMA-CH | C150: 3.989203004
A151: 25764 | B151: SMA-CH | C151: 3.78838475
A152: 25815 | B152: SMA-CH | C152: 3.75
A153: 25774 | B153: SMA-CH | C153: 3.75
A154: 25864 | B154: SMA-CH | C154: 3.247863248
A155: 25854 | B155: SMA-CH | C155: 4.03
A156: 25905 | B156: SMA-CH | C156: 2.966273923
A157: 25929 | B157: SMA-CH | C157: 2.966273923
A158: 25911 | B158: SMA-CH | C158: 2.966273923
A159: 25936 | B159: SMA-CH | C159: 2.966273923
A160: 25944 | B160: SMA-CH | C160: 3.13
A161: 25883 | B161: SMA-CH | C161: 3.900515536
A162: 25892 | B162: SMA-CH | C162: 3.900515536
A163: 25877 | B163: SMA-CH | C163: 3.900515536
A164: 26034 | B164: SMA-CH | C164: 2.213892307
A165: 26137 | B165: SMA-CH | C165: 3.36
A166: 26124 | B166: SMA-CH | C166: 3.36
A167: 26143 | B167: SMA-CH | C167: 3.36
A168: 26091 | B168: SMA-CH | C168: 4.94
A169: 26106 | B169: SMA-CH | C169: 4.94
A170: 26114 | B170: SMA-CH | C170: 4.94
A171: 26175 | B171: SMA-CH | C171: 4.5
A172: 26168 | B172: SMA-CH | C172: 4.5
A173: 26152 | B173: SMA-CH | C173: 4.5
A174: 16929 | B174: SMA-AF US | C174: 5.56
A175: 16905 | B175: SMA-AF US | C175: 5.56
A176: 16911 | B176: SMA-AF US | C176: 5.56
A177: 16793 | B177: SMA-AF US | C177: 3.83
A178: 16808 | B178: SMA-AF US | C178: 3.83
A179: 16954 | B179: SMA-AF US | C179: 4.49
A180: 16967 | B180: SMA-AF US | C180: 4.49
A181: 17199 | B181: SMA-AF US | C181: 3.24
A182: 17181 | B182: SMA-AF US | C182: 3.24
A183: 17214 | B183: SMA-AF US | C183: 4.09
A184: 17265 | B184: SMA-AF US | C184: 4.62
A185: 17271 | B185: SMA-AF US | C185: 4.62
A186: 17258 | B186: SMA-AF US | C186: 3.72
A187: 17323 | B187: SMA-AF US | C187: 3.14
A188: 17332 | B188: SMA-AF US | C188: 3.14
A189: 17379 | B189: SMA-AF US | C189: 3.67
A190: 17355 | B190: SMA-AF US | C190: 3.67
A191: 17438 | B191: SMA-AF US | C191: 3.96
A192: 17451 | B192: SMA-AF US | C192: 3.96
A193: 17445 | B193: SMA-AF US | C193: 3.96
A194: 19251 | B194: SMA-AF US | C194: 4.158342302
A195: 19276 | B195: SMA-AF US | C195: 4.158342302
A196: 17715 | B196: SMA-AF US | C196: 4.17
A197: 17708 | B197: SMA-AF US | C197: 4.17
A198: 17754 | B198: SMA-AF US | C198: 4.03
A199: 17721 | B199: SMA-AF US | C199: 4.03
A200: 17898 | B200: SMA-AF US | C200: 4.19
... 405 more rows

Sheet P.Allo
A1: Controls
A5: Details
B7: Deal Name | C7: n/a
B8: Description | C8: n/a
B9: Net Senior Leverage | C9: n/a
B10: Protective Advances | C10: n/a
B11: Open Market | C11: n/a
B12: Sponsor | C12: =IFERROR(VLOOKUP(dName,tblListOfDeals[],2,0),"n/a") -> n/a
B13: Industry | C13: =IFERROR(VLOOKUP(dName,tblListOfDeals[],3,0),"n/a") -> n/a
B14: Target Date | C14: n/a
B15: Dividend Recap | C15: n/a
B16: DIP Loan | C16: n/a
B17: LTV % | C17: n/a
B18: Approved by Swiss | C18: N
B19: Country (CAN) | C19: N
A20: Allocations
C22: Revolver | D22: Term Loan | E22: DDTL | F22: DDTL 2 | AF22: Totals | AG22: Cur. Pro Rata % | AH22: Inc. Pro Rata % | AI22: Funded | AJ22: Target Funded %
B23: FUNDED | C23: 0 | D23: 0 | E23: 0 | F23: 0 | G23: 0 | H23: 0 | I23: 0 | J23: 0 | K23: 0 | L23: 0 | M23: 0 | N23: 0 | O23: 0 | P23: 0 | Q23: 0 | R23: 0 | S23: 0 | T23: 0 | U23: 0 | V23: 0 | W23: 0 | X23: 0 | Y23: 0 | Z23: 0 | AA23: 0 | AB23: 0 | AC23: 0 | AD23: 0 | AE23: 0
B24: UNFUNDED | C24: =100%-C23 -> 1 | D24: =100%-D23 -> 1 | E24: 1 | F24: 1 | G24: 1 | H24: 1 | I24: 1 | J24: 1 | K24: 1 | L24: 1 | M24: 1 | N24: 1 | O24: 1 | P24: 1 | Q24: 1 | R24: 1 | S24: 1 | T24: 1 | U24: 1 | V24: =100%-V23 -> 1 | W24: 1 | X24: 1 | Y24: 1 | Z24: 1 | AA24: 1 | AB24: 1 | AC24: 1 | AD24: 1 | AE24: 1
B25: FUND STATUS | C25: =IF(AND(C$23>0%,C$23<100%,C$45>0),"Partially Funded",IF(AND(C23=100%,C$45>0),"Funded",IF(AND(C$23=0%,C$45>0),"Unfunded","-"))) -> - | D25: =IF(AND(D$23>0%,D$23<100%,D$45>0),"Partially Funded",IF(AND(D23=100%,D$45>0),"Funded",IF(AND(D$23=0%,D$45>0),"Unfunded","-"))) -> - | E25: =IF(AND(E$23>0%,E$23<100%,E$45>0),"Partially Funded",IF(AND(E23=100%,E$45>0),"Funded",IF(AND(E$23=0%,E$45>0),"Unfunded","-"))) -> - | F25: =IF(AND(F$23>0%,F$23<100%,F$45>0),"Partially Funded",IF(AND(F23=100%,F$45>0),"Funded",IF(AND(F$23=0%,F$45>0),"Unfunded","-"))) -> - | G25: =IF(AND(G$23>0%,G$23<100%,G$45>0),"Partially Funded",IF(AND(G23=100%,G$45>0),"Funded",IF(AND(G$23=0%,G$45>0),"Unfunded","-"))) -> - | H25: - | I25: - | J25: - | K25: - | L25: - | M25: - | N25: - | O25: - | P25: - | Q25: - | R25: - | S25: - | T25: - | U25: - | V25: - | W25: - | X25: - | Y25: - | Z25: - | AA25: - | AB25: - | AC25: - | AD25: - | AE25: -
B26: NXT | C26: =IF(AND(C$45>0,$AF26>0),C$23,0) -> 0 | D26: 0 | E26: 0 | F26: 0 | G26: 0 | H26: 0 | I26: 0 | J26: 0 | K26: 0 | L26: 0 | M26: =IF(AND(M$45>0,$AF26>0),M$23,0) -> 0 | N26: 0 | O26: 0 | P26: 0 | Q26: 0 | R26: 0 | S26: 0 | T26: 0 | U26: 0 | V26: 0 | W26: =IF(AND(W$45>0,$AF26>0),W$23,0) -> 0 | X26: 0 | Y26: 0 | Z26: 0 | AA26: 0 | AB26: 0 | AC26: 0 | AD26: 0 | AE26: 0 | AG26: =IFERROR(AF112/AF117,"-") -> - | AH26: =IFERROR(AF26/$AF$46,"-") -> - | AI26: N/A | AJ26: N/A
B27: SLF I | C27: 0 | D27: 0 | E27: 0 | F27: 0 | G27: 0 | H27: 0 | I27: 0 | J27: 0 | K27: 0 | L27: 0 | M27: 0 | N27: 0 | O27: 0 | P27: 0 | Q27: 0 | R27: 0 | S27: 0 | T27: 0 | U27: 0 | V27: 0 | W27: 0 | X27: 0 | Y27: 0 | Z27: 0 | AA27: 0 | AB27: 0 | AC27: 0 | AD27: 0 | AE27: 0 | AG27: =IFERROR(AF134/$AF$162,"-") -> - | AH27: - | AI27: =IF(AF27>0,IFERROR(MAX(($AF$48/$AF$46),$AJ27),0),0) -> 0 | AJ27: 0.75
A28: =AF28 -> 0 | B28: Potential SLF V | C28: 0 | D28: 0 | E28: 0 | F28: 0 | G28: 0 | H28: 0 | I28: 0 | J28: 0 | K28: 0 | L28: 0 | M28: 0 | N28: 0 | O28: 0 | P28: 0 | Q28: 0 | R28: 0 | S28: 0 | T28: 0 | U28: 0 | V28: 0 | W28: 0 | X28: 0 | Y28: 0 | Z28: 0 | AA28: 0 | AB28: 0 | AC28: 0 | AD28: 0 | AE28: 0 | AG28: =IFERROR(AF146/$AF$163,"-") -> - | AH28: - | AI28: =IF(AF28>0,IFERROR(MAX(($AF$48/$AF$46),$AJ28),0),0) -> 0 | AJ28: 0.75
A29: 0 | B29: Potential SLF VI L | C29: 0 | D29: 0 | E29: 0 | F29: 0 | G29: 0 | H29: 0 | I29: 0 | J29: 0 | K29: 0 | L29: 0 | M29: 0 | N29: 0 | O29: 0 | P29: 0 | Q29: 0 | R29: 0 | S29: 0 | T29: 0 | U29: 0 | V29: 0 | W29: 0 | X29: 0 | Y29: 0 | Z29: 0 | AA29: 0 | AB29: 0 | AC29: 0 | AD29: 0 | AE29: 0 | AG29: =IFERROR(AF149/$AF$163,"-") -> - | AH29: - | AI29: 0 | AJ29: 0.1818181818
A30: =AF30 -> 0 | B30: Potential SLF VI UL | C30: 0 | D30: 0 | E30: 0 | F30: 0 | G30: 0 | H30: 0 | I30: 0 | J30: 0 | K30: 0 | L30: 0 | M30: 0 | N30: 0 | O30: 0 | P30: 0 | Q30: 0 | R30: 0 | S30: 0 | T30: 0 | U30: 0 | V30: 0 | W30: 0 | X30: 0 | Y30: 0 | Z30: 0 | AA30: 0 | AB30: 0 | AC30: 0 | AD30: 0 | AE30: 0 | AG30: =IFERROR(AF152/$AF$163,"-") -> - | AH30: - | AI30: 0 | AJ30: 0.75
B31: Potential SLF VII | C31: 0 | D31: 0 | E31: 0 | F31: 0 | G31: 0 | H31: 0 | I31: 0 | J31: 0 | K31: 0 | L31: 0 | M31: 0 | N31: 0 | O31: 0 | P31: 0 | Q31: 0 | R31: 0 | S31: 0 | T31: 0 | U31: 0 | V31: 0 | W31: 0 | X31: 0 | Y31: 0 | Z31: 0 | AA31: 0 | AB31: 0 | AC31: 0 | AD31: 0 | AE31: 0 | AG31: =IFERROR(AF155/$AF$163,"-") -> - | AH31: - | AI31: 0 | AJ31: 0.75
B32: Potential SLF VIII | C32: 0 | D32: 0 | E32: 0 | F32: 0 | G32: 0 | H32: 0 | I32: 0 | J32: 0 | K32: 0 | L32: 0 | M32: 0 | N32: 0 | O32: 0 | P32: 0 | Q32: 0 | R32: 0 | S32: 0 | T32: 0 | U32: 0 | V32: 0 | W32: 0 | X32: 0 | Y32: 0 | Z32: 0 | AA32: 0 | AB32: 0 | AC32: 0 | AD32: 0 | AE32: 0 | AG32: =IFERROR(AF158/$AF$163,"-") -> - | AH32: - | AI32: 0 | AJ32: 0.75
A33: =AF33 -> 0 | B33: SMA-A A | C33: 0 | D33: 0 | E33: 0 | F33: 0 | G33: 0 | H33: 0 | I33: 0 | J33: 0 | K33: 0 | L33: 0 | M33: 0 | N33: 0 | O33: 0 | P33: 0 | Q33: 0 | R33: 0 | S33: 0 | T33: 0 | U33: 0 | V33: 0 | W33: 0 | X33: 0 | Y33: 0 | Z33: 0 | AA33: 0 | AB33: 0 | AC33: 0 | AD33: 0 | AE33: 0 | AG33: =IFERROR(AF119/$AF$163,"-") -> - | AH33: - | AI33: 0 | AJ33: 0.1818181818
A34: 0 | B34: SMA-A B | C34: 0 | D34: 0 | E34: 0 | F34: 0 | G34: 0 | H34: 0 | I34: 0 | J34: 0 | K34: 0 | L34: 0 | M34: 0 | N34: 0 | O34: 0 | P34: 0 | Q34: 0 | R34: 0 | S34: 0 | T34: 0 | U34: 0 | V34: 0 | W34: 0 | X34: 0 | Y34: 0 | Z34: 0 | AA34: 0 | AB34: 0 | AC34: 0 | AD34: 0 | AE34: 0 | AG34: =IFERROR(AF121/$AF$163,"-") -> - | AH34: - | AI34: 0 | AJ34: 0.1818181818
A35: 0 | B35: SMA-SC | C35: 0 | D35: 0 | E35: 0 | F35: 0 | G35: 0 | H35: 0 | I35: 0 | J35: 0 | K35: 0 | L35: 0 | M35: 0 | N35: 0 | O35: 0 | P35: 0 | Q35: 0 | R35: 0 | S35: 0 | T35: 0 | U35: 0 | V35: 0 | W35: 0 | X35: 0 | Y35: 0 | Z35: 0 | AA35: 0 | AB35: 0 | AC35: 0 | AD35: 0 | AE35: 0 | AG35: =IFERROR((AF128+AF129)/$AF$163,"-") -> - | AH35: - | AI35: 0 | AJ35: 0.75
A36: 0 | B36: Potential SMA-SC NT | C36: =IF(AND(C$45>0,$AF36>0),C$23,0) -> 0 | D36: 0 | E36: 0 | F36: 0 | G36: 0 | H36: 0 | I36: 0 | J36: 0 | K36: 0 | L36: 0 | M36: =IF(AND(M$45>0,$AF36>0),M$23,0) -> 0 | N36: 0 | O36: 0 | P36: 0 | Q36: 0 | R36: 0 | S36: 0 | T36: 0 | U36: 0 | V36: 0 | W36: =IF(AND(W$45>0,$AF36>0),W$23,0) -> 0 | X36: 0 | Y36: 0 | Z36: 0 | AA36: 0 | AB36: 0 | AC36: 0 | AD36: 0 | AE36: 0 | AG36: =IFERROR((AF130+AF131)/$AF$163,"-") -> - | AH36: - | AI36: 0 | AJ36: 0.75
A37: 0 | B37: SMA-AF | C37: 0 | D37: 0 | E37: 0 | F37: 0 | G37: 0 | H37: 0 | I37: 0 | J37: 0 | K37: 0 | L37: 0 | M37: 0 | N37: 0 | O37: 0 | P37: 0 | Q37: 0 | R37: 0 | S37: 0 | T37: 0 | U37: 0 | V37: 0 | W37: 0 | X37: 0 | Y37: 0 | Z37: 0 | AA37: 0 | AB37: 0 | AC37: 0 | AD37: 0 | AE37: 0 | AG37: =IFERROR((AF123+AF126)/$AF$163,"-") -> - | AH37: - | AI37: 0 | AJ37: 0.1818181818 | BJ37: Aflac Distribution
A38: 0 | B38: SMA-CH | C38: 0 | D38: 0 | E38: 0 | F38: 0 | G38: 0 | H38: 0 | I38: 0 | J38: 0 | K38: 0 | L38: 0 | M38: 0 | N38: 0 | O38: 0 | P38: 0 | Q38: 0 | R38: 0 | S38: 0 | T38: 0 | U38: 0 | V38: 0 | W38: 0 | X38: 0 | Y38: 0 | Z38: 0 | AA38: 0 | AB38: 0 | AC38: 0 | AD38: 0 | AE38: 0 | AG38: =IFERROR(AF127/$AF$163,"-") -> - | AH38: - | AI38: 0 | AJ38: 0.1818181818 | BJ38: AF-US | BK38: =1/6 -> 0.1666666667
A39: 0 | B39: SMA-CC | C39: 0 | D39: 0 | E39: 0 | F39: 0 | G39: 0 | H39: 0 | I39: 0 | J39: 0 | K39: 0 | L39: 0 | M39: 0 | N39: 0 | O39: 0 | P39: 0 | Q39: 0 | R39: 0 | S39: 0 | T39: 0 | U39: 0 | V39: 0 | W39: 0 | X39: 0 | Y39: 0 | Z39: 0 | AA39: 0 | AB39: 0 | AC39: 0 | AD39: 0 | AE39: 0 | AG39: =IFERROR(AF132/$AF$163,"-") -> - | AH39: - | AI39: 0 | AJ39: 0.1818181818 | BJ39: AF-JAP | BK39: =1-BK38 -> 0.8333333333
A40: =AF40 -> 0 | B40: SMA-VG | C40: 0 | D40: 0 | E40: 0 | F40: 0 | G40: 0 | H40: 0 | I40: 0 | J40: 0 | K40: 0 | L40: 0 | M40: 0 | N40: 0 | O40: 0 | P40: 0 | Q40: 0 | R40: 0 | S40: 0 | T40: 0 | U40: 0 | V40: 0 | W40: 0 | X40: 0 | Y40: 0 | Z40: 0 | AA40: 0 | AB40: 0 | AC40: 0 | AD40: 0 | AE40: 0 | AG40: =IFERROR(AF133/$AF$163,"-") -> - | AH40: - | AI40: 0 | AJ40: 0.75
A41: =AF41 -> 0 | B41: SMA-OML | C41: 0 | D41: 0 | E41: 0 | F41: 0 | G41: 0 | H41: 0 | I41: 0 | J41: 0 | K41: 0 | L41: 0 | M41: 0 | N41: 0 | O41: 0 | P41: 0 | Q41: 0 | R41: 0 | S41: 0 | T41: 0 | U41: 0 | V41: 0 | W41: 0 | X41: 0 | Y41: 0 | Z41: 0 | AA41: 0 | AB41: 0 | AC41: 0 | AD41: 0 | AE41: 0 | AG41: =IFERROR(AF159/$AF$163,"-") -> - | AH41: - | AI41: 0 | AJ41: 0.4
A42: =AF42 -> 0 | B42: SN-I | C42: 0 | D42: 0 | E42: 0 | F42: 0 | G42: 0 | H42: 0 | I42: 0 | J42: 0 | K42: 0 | L42: 0 | M42: 0 | N42: 0 | O42: 0 | P42: 0 | Q42: 0 | R42: 0 | S42: 0 | T42: 0 | U42: 0 | V42: 0 | W42: 0 | X42: 0 | Y42: 0 | Z42: 0 | AA42: 0 | AB42: 0 | AC42: 0 | AD42: 0 | AE42: 0 | AG42: =IFERROR(AF162/$AF$163,"-") -> - | AH42: - | AI42: 0 | AJ42: 0.75
A43: =AF43 -> 0 | B43: SMA SRC-1 | C43: 0 | D43: 0 | E43: 0 | F43: 0 | G43: 0 | H43: 0 | I43: 0 | J43: 0 | K43: 0 | L43: 0 | M43: 0 | N43: 0 | O43: 0 | P43: 0 | Q43: 0 | R43: 0 | S43: 0 | T43: 0 | U43: 0 | V43: 0 | W43: 0 | X43: 0 | Y43: 0 | Z43: 0 | AA43: 0 | AB43: 0 | AC43: 0 | AD43: 0 | AE43: 0 | AG43: =IFERROR(AF163/$AF$163,"-") -> - | AH43: - | AI43: 0 | AJ43: 0.75
B44: SMA-3 | C44: 0 | D44: 0 | E44: 0 | F44: 0 | G44: 0 | H44: 0 | I44: 0 | J44: 0 | K44: 0 | L44: 0 | M44: 0 | N44: 0 | O44: 0 | P44: 0 | Q44: 0 | R44: 0 | S44: 0 | T44: 0 | U44: 0 | V44: 0 | W44: 0 | X44: 0 | Y44: 0 | Z44: 0 | AA44: 0 | AB44: 0 | AC44: 0 | AD44: 0 | AE44: 0 | AG44: =IFERROR(AF162/$AF$163,"-") -> - | AH44: -
B45: NXT Underwrite | C45: 0 | D45: 0 | E45: 0 | F45: 0 | G45: 0 | H45: 0 | I45: 0 | J45: 0 | K45: 0 | L45: 0 | M45: 0 | N45: 0 | O45: 0 | P45: 0 | Q45: 0 | R45: 0 | S45: 0 | T45: 0 | U45: 0 | V45: 0 | W45: 0 | X45: 0 | Y45: 0 | Z45: 0 | AA45: 0 | AB45: 0 | AC45: 0 | AD45: 0 | AE45: 0 | AF45: =SUM(C45:AE45) -> 0 | AI45: =SUMPRODUCT($C$23:$AG$23,$C45:$AG45)/$AF45 -> 
B46: NXT Hold | C46: =IFERROR(C45/$AF$45,0)*$AF$46 -> 0 | D46: =IFERROR(D45/$AF$45,0)*$AF$46 -> 0 | E46: =IFERROR(E45/$AF$45,0)*$AF$46 -> 0 | F46: =IFERROR(F45/$AF$45,0)*$AF$46 -> 0 | G46: 0 | H46: 0 | I46: 0 | J46: 0 | K46: 0 | L46: 0 | M46: 0 | N46: 0 | O46: 0 | P46: 0 | Q46: 0 | R46: 0 | S46: 0 | T46: 0 | U46: 0 | V46: 0 | W46: 0 | X46: 0 | Y46: 0 | Z46: 0 | AA46: 0 | AB46: 0 | AC46: 0 | AD46: 0 | AE46: 0 | AF46: 0 | AG46: =AF46-SUM(AF26:AF44) -> 0 | AI46: =SUMPRODUCT($C$23:$AG$23,$C46:$AG46)/$AF46 -> 
B47: Tranche Split | C47: =IFERROR(C$45/$AF$45,0) -> 0 | D47: 0 | E47: 0 | F47: 0 | G47: 0 | H47: 0 | I47: 0 | J47: 0 | K47: 0 | L47: 0 | M47: 0 | N47: 0 | O47: 0 | P47: 0 | Q47: 0 | R47: 0 | S47: 0 | T47: 0 | U47: 0 | V47: 0 | W47: 0 | X47: 0 | Y47: 0 | Z47: 0 | AA47: 0 | AB47: 0 | AC47: 0 | AD47: 0 | AE47: 0 | AF47: =SUM(C47:AE47) -> 0 | AG47: To Allocate
B48: NXT Hold (Funded Dollars) | C48: =IF(C$25<>"Unfunded",C$46*C$23,0) -> 0 | D48: 0 | E48: 0 | F48: 0 | G48: 0 | H48: 0 | I48: 0 | J48: 0 | K48: 0 | L48: 0 | M48: 0 | N48: 0 | O48: 0 | P48: 0 | Q48: 0 | R48: 0 | S48: 0 | T48: 0 | U48: 0 | V48: 0 | W48: 0 | X48: 0 | Y48: 0 | Z48: 0 | AA48: 0 | AB48: 0 | AC48: 0 | AD48: 0 | AE48: 0 | AF48: =SUM(C48:AE48) -> 0 | AG48: =AF48/$AF$46 -> 
B49: NXT Hold (Unfunded Dollars) | C49: =IF(C$25<>"Funded",C$46*C$24,0) -> 0 | D49: 0 | E49: 0 | F49: 0 | G49: 0 | H49: 0 | I49: 0 | J49: 0 | K49: 0 | L49: 0 | M49: 0 | N49: 0 | O49: 0 | P49: 0 | Q49: 0 | R49: 0 | S49: 0 | T49: 0 | U49: 0 | V49: 0 | W49: 0 | X49: 0 | Y49: 0 | Z49: 0 | AA49: 0 | AB49: 0 | AC49: 0 | AD49: 0 | AE49: 0 | AF49: =SUM(C49:AE49) -> 0 | AG49: =AF49/$AF$46 -> 
B51: Potential SLF VI L | C51: THIS IS SCRATCHWORK - Not referenced anywhere and should be used for troubleshooting purposes - formulas are relevant to the calculations in the Portofolio Allocations Report Section
B52: Partially Funded Dollars | C52: =IF(C$25="Partially Funded",(($AF30/$AF$46)*C$46)*C$23,0) -> 0 | D52: 0 | E52: 0 | F52: 0 | G52: 0 | H52: 0 | I52: 0 | J52: 0 | K52: 0 | L52: 0 | M52: 0 | N52: 0 | O52: 0 | P52: 0 | Q52: 0 | R52: 0 | S52: 0 | T52: 0 | U52: 0 | V52: 0 | W52: 0 | X52: 0 | Y52: 0 | Z52: 0 | AA52: 0 | AB52: 0 | AC52: 0 | AD52: 0 | AE52: 0 | AF52: =SUM(C52:AE52) -> 0
B53: Partially Unfunded Dollars | C53: =IF(C$25="Partially Funded",(($AF30/$AF$46)*C$46)-(IF(C25="Partially Funded",(($AF30/$AF$46)*C$46)*C$23,0)),0) -> 0 | D53: 0 | E53: 0 | F53: 0 | G53: 0 | H53: 0 | I53: 0 | J53: 0 | K53: 0 | L53: 0 | M53: 0 | N53: 0 | O53: 0 | P53: 0 | Q53: 0 | R53: 0 | S53: 0 | T53: 0 | U53: 0 | V53: 0 | W53: 0 | X53: 0 | Y53: 0 | Z53: 0 | AA53: 0 | AB53: 0 | AC53: 0 | AD53: 0 | AE53: 0 | AF53: =SUM(C53:AE53) -> 0
B54: Unfunded Dollars | C54: =IF(C$25="Unfunded",(($AF30*(100%-$AJ30))-((SUMPRODUCT(($C$24:$F$24)*($C$25:$F$25="Partially Funded")*($C$46:$F$46))/$AF$46)*$AF30))*(C$49/(SUMIFS($C$49:$F$49,$C$25:$F$25,"Unfunded"))),0) -> 0 | D54: =IF(D$25="Unfunded",(($AF30*(100%-$AJ30))-((SUMPRODUCT(($C$24:$F$24)*($C$25:$F$25="Partially Funded")*($C$46:$F$46))/$AF$46)*$AF30))*(D$49/(SUMIFS($C$49:$F$49,$C$25:$F$25,"Unfunded"))),0) -> 0 | E54: =IF(E$25="Unfunded",(($AF30*(100%-$AJ30))-((SUMPRODUCT(($C$24:$F$24)*($C$25:$F$25="Partially Funded")*($C$46:$F$46))/$AF$46)*$AF30))*(E$49/(SUMIFS($C$49:$F$49,$C$25:$F$25,"Unfunded"))),0) -> 0 | F54: =IF(F$25="Unfunded",(($AF30*(100%-$AJ30))-((SUMPRODUCT(($C$24:$F$24)*($C$25:$F$25="Partially Funded")*($C$46:$F$46))/$AF$46)*$AF30))*(F$49/(SUMIFS($C$49:$F$49,$C$25:$F$25,"Unfunded"))),0) -> 0 | G54: =IF(G$25="Unfunded",(($AF30*(100%-$AJ30))-((SUMPRODUCT(($C$24:$F$24)*($C$25:$F$25="Partially Funded")*($C$46:$F$46))/$AF$46)*$AF30))*(G$49/(SUMIFS($C$49:$F$49,$C$25:$F$25,"Unfunded"))),0) -> 0 | H54: =IF(H$25="Unfunded",(($AF30*(100%-$AJ30))-((SUMPRODUCT(($C$24:$F$24)*($C$25:$F$25="Partially Funded")*($C$46:$F$46))/$AF$46)*$AF30))*(H$49/(SUMIFS($C$49:$F$49,$C$25:$F$25,"Unfunded"))),0) -> 0 | I54: =IF(I$25="Unfunded",(($AF30*(100%-$AJ30))-((SUMPRODUCT(($C$24:$F$24)*($C$25:$F$25="Partially Funded")*($C$46:$F$46))/$AF$46)*$AF30))*(I$49/(SUMIFS($C$49:$F$49,$C$25:$F$25,"Unfunded"))),0) -> 0 | J54: =IF(J$25="Unfunded",(($AF30*(100%-$AJ30))-((SUMPRODUCT(($C$24:$F$24)*($C$25:$F$25="Partially Funded")*($C$46:$F$46))/$AF$46)*$AF30))*(J$49/(SUMIFS($C$49:$F$49,$C$25:$F$25,"Unfunded"))),0) -> 0 | K54: =IF(K$25="Unfunded",(($AF30*(100%-$AJ30))-((SUMPRODUCT(($C$24:$F$24)*($C$25:$F$25="Partially Funded")*($C$46:$F$46))/$AF$46)*$AF30))*(K$49/(SUMIFS($C$49:$F$49,$C$25:$F$25,"Unfunded"))),0) -> 0 | L54: =IF(L$25="Unfunded",(($AF30*(100%-$AJ30))-((SUMPRODUCT(($C$24:$F$24)*($C$25:$F$25="Partially Funded")*($C$46:$F$46))/$AF$46)*$AF30))*(L$49/(SUMIFS($C$49:$F$49,$C$25:$F$25,"Unfunded"))),0) -> 0 | M54: =IF(M$25="Unfunded",(($AF30*(100%-$AJ30))-((SUMPRODUCT(($C$24:$F$24)*($C$25:$F$25="Partially Funded")*($C$46:$F$46))/$AF$46)*$AF30))*(M$49/(SUMIFS($C$49:$F$49,$C$25:$F$25,"Unfunded"))),0) -> 0 | N54: =IF(N$25="Unfunded",(($AF30*(100%-$AJ30))-((SUMPRODUCT(($C$24:$F$24)*($C$25:$F$25="Partially Funded")*($C$46:$F$46))/$AF$46)*$AF30))*(N$49/(SUMIFS($C$49:$F$49,$C$25:$F$25,"Unfunded"))),0) -> 0 | O54: =IF(O$25="Unfunded",(($AF30*(100%-$AJ30))-((SUMPRODUCT(($C$24:$F$24)*($C$25:$F$25="Partially Funded")*($C$46:$F$46))/$AF$46)*$AF30))*(O$49/(SUMIFS($C$49:$F$49,$C$25:$F$25,"Unfunded"))),0) -> 0 | P54: =IF(P$25="Unfunded",(($AF30*(100%-$AJ30))-((SUMPRODUCT(($C$24:$F$24)*($C$25:$F$25="Partially Funded")*($C$46:$F$46))/$AF$46)*$AF30))*(P$49/(SUMIFS($C$49:$F$49,$C$25:$F$25,"Unfunded"))),0) -> 0 | Q54: =IF(Q$25="Unfunded",(($AF30*(100%-$AJ30))-((SUMPRODUCT(($C$24:$F$24)*($C$25:$F$25="Partially Funded")*($C$46:$F$46))/$AF$46)*$AF30))*(Q$49/(SUMIFS($C$49:$F$49,$C$25:$F$25,"Unfunded"))),0) -> 0 | R54: =IF(R$25="Unfunded",(($AF30*(100%-$AJ30))-((SUMPRODUCT(($C$24:$F$24)*($C$25:$F$25="Partially Funded")*($C$46:$F$46))/$AF$46)*$AF30))*(R$49/(SUMIFS($C$49:$F$49,$C$25:$F$25,"Unfunded"))),0) -> 0 | S54: =IF(S$25="Unfunded",(($AF30*(100%-$AJ30))-((SUMPRODUCT(($C$24:$F$24)*($C$25:$F$25="Partially Funded")*($C$46:$F$46))/$AF$46)*$AF30))*(S$49/(SUMIFS($C$49:$F$49,$C$25:$F$25,"Unfunded"))),0) -> 0 | T54: =IF(T$25="Unfunded",(($AF30*(100%-$AJ30))-((SUMPRODUCT(($C$24:$F$24)*($C$25:$F$25="Partially Funded")*($C$46:$F$46))/$AF$46)*$AF30))*(T$49/(SUMIFS($C$49:$F$49,$C$25:$F$25,"Unfunded"))),0) -> 0 | U54: =IF(U$25="Unfunded",(($AF30*(100%-$AJ30))-((SUMPRODUCT(($C$24:$F$24)*($C$25:$F$25="Partially Funded")*($C$46:$F$46))/$AF$46)*$AF30))*(U$49/(SUMIFS($C$49:$F$49,$C$25:$F$25,"Unfunded"))),0) -> 0 | V54: =IF(V$25="Unfunded",(($AF30*(100%-$AJ30))-((SUMPRODUCT(($C$24:$F$24)*($C$25:$F$25="Partially Funded")*($C$46:$F$46))/$AF$46)*$AF30))*(V$49/(SUMIFS($C$49:$F$49,$C$25:$F$25,"Unfunded"))),0) -> 0 | W54: =IF(W$25="Unfunded",(($AF30*(100%-$AJ30))-((SUMPRODUCT(($C$24:$F$24)*($C$25:$F$25="Partially Funded")*($C$46:$F$46))/$AF$46)*$AF30))*(W$49/(SUMIFS($C$49:$F$49,$C$25:$F$25,"Unfunded"))),0) -> 0 | X54: =IF(X$25="Unfunded",(($AF30*(100%-$AJ30))-((SUMPRODUCT(($C$24:$F$24)*($C$25:$F$25="Partially Funded")*($C$46:$F$46))/$AF$46)*$AF30))*(X$49/(SUMIFS($C$49:$F$49,$C$25:$F$25,"Unfunded"))),0) -> 0 | Y54: =IF(Y$25="Unfunded",(($AF30*(100%-$AJ30))-((SUMPRODUCT(($C$24:$F$24)*($C$25:$F$25="Partially Funded")*($C$46:$F$46))/$AF$46)*$AF30))*(Y$49/(SUMIFS($C$49:$F$49,$C$25:$F$25,"Unfunded"))),0) -> 0 | Z54: =IF(Z$25="Unfunded",(($AF30*(100%-$AJ30))-((SUMPRODUCT(($C$24:$F$24)*($C$25:$F$25="Partially Funded")*($C$46:$F$46))/$AF$46)*$AF30))*(Z$49/(SUMIFS($C$49:$F$49,$C$25:$F$25,"Unfunded"))),0) -> 0 | AA54: =IF(AA$25="Unfunded",(($AF30*(100%-$AJ30))-((SUMPRODUCT(($C$24:$F$24)*($C$25:$F$25="Partially Funded")*($C$46:$F$46))/$AF$46)*$AF30))*(AA$49/(SUMIFS($C$49:$F$49,$C$25:$F$25,"Unfunded"))),0) -> 0 | AB54: =IF(AB$25="Unfunded",(($AF30*(100%-$AJ30))-((SUMPRODUCT(($C$24:$F$24)*($C$25:$F$25="Partially Funded")*($C$46:$F$46))/$AF$46)*$AF30))*(AB$49/(SUMIFS($C$49:$F$49,$C$25:$F$25,"Unfunded"))),0) -> 0 | AC54: =IF(AC$25="Unfunded",(($AF30*(100%-$AJ30))-((SUMPRODUCT(($C$24:$F$24)*($C$25:$F$25="Partially Funded")*($C$46:$F$46))/$AF$46)*$AF30))*(AC$49/(SUMIFS($C$49:$F$49,$C$25:$F$25,"Unfunded"))),0) -> 0 | AD54: =IF(AD$25="Unfunded",(($AF30*(100%-$AJ30))-((SUMPRODUCT(($C$24:$F$24)*($C$25:$F$25="Partially Funded")*($C$46:$F$46))/$AF$46)*$AF30))*(AD$49/(SUMIFS($C$49:$F$49,$C$25:$F$25,"Unfunded"))),0) -> 0 | AE54: =IF(AE$25="Unfunded",(($AF30*(100%-$AJ30))-((SUMPRODUCT(($C$24:$F$24)*($C$25:$F$25="Partially Funded")*($C$46:$F$46))/$AF$46)*$AF30))*(AE$49/(SUMIFS($C$49:$F$49,$C$25:$F$25,"Unfunded"))),0) -> 0 | AF54: =SUM(C54:AE54) -> 0
B55: Fully Funded Dollars | C55: =IF(C$25="Funded",(($AF30*$AJ30)-((SUMPRODUCT(($C$23:$F$23)*($C$25:$F$25="Partially Funded")*($C$46:$F$46))/$AF$46)*$AF30))*(C$48/(SUMIFS($C$48:$F$48,$C$25:$F$25,"Funded"))),0) -> 0 | D55: =IF(D$25="Funded",(($AF30*$AJ30)-((SUMPRODUCT(($C$23:$F$23)*($C$25:$F$25="Partially Funded")*($C$46:$F$46))/$AF$46)*$AF30))*(D$48/(SUMIFS($C$48:$F$48,$C$25:$F$25,"Funded"))),0) -> 0 | E55: =IF(E$25="Funded",(($AF30*$AJ30)-((SUMPRODUCT(($C$23:$F$23)*($C$25:$F$25="Partially Funded")*($C$46:$F$46))/$AF$46)*$AF30))*(E$48/(SUMIFS($C$48:$F$48,$C$25:$F$25,"Funded"))),0) -> 0 | F55: =IF(F$25="Funded",(($AF30*$AJ30)-((SUMPRODUCT(($C$23:$F$23)*($C$25:$F$25="Partially Funded")*($C$46:$F$46))/$AF$46)*$AF30))*(F$48/(SUMIFS($C$48:$F$48,$C$25:$F$25,"Funded"))),0) -> 0 | G55: =IF(G$25="Funded",(($AF30*$AJ30)-((SUMPRODUCT(($C$23:$F$23)*($C$25:$F$25="Partially Funded")*($C$46:$F$46))/$AF$46)*$AF30))*(G$48/(SUMIFS($C$48:$F$48,$C$25:$F$25,"Funded"))),0) -> 0 | H55: =IF(H$25="Funded",(($AF30*$AJ30)-((SUMPRODUCT(($C$23:$F$23)*($C$25:$F$25="Partially Funded")*($C$46:$F$46))/$AF$46)*$AF30))*(H$48/(SUMIFS($C$48:$F$48,$C$25:$F$25,"Funded"))),0) -> 0 | I55: =IF(I$25="Funded",(($AF30*$AJ30)-((SUMPRODUCT(($C$23:$F$23)*($C$25:$F$25="Partially Funded")*($C$46:$F$46))/$AF$46)*$AF30))*(I$48/(SUMIFS($C$48:$F$48,$C$25:$F$25,"Funded"))),0) -> 0 | J55: =IF(J$25="Funded",(($AF30*$AJ30)-((SUMPRODUCT(($C$23:$F$23)*($C$25:$F$25="Partially Funded")*($C$46:$F$46))/$AF$46)*$AF30))*(J$48/(SUMIFS($C$48:$F$48,$C$25:$F$25,"Funded"))),0) -> 0 | K55: =IF(K$25="Funded",(($AF30*$AJ30)-((SUMPRODUCT(($C$23:$F$23)*($C$25:$F$25="Partially Funded")*($C$46:$F$46))/$AF$46)*$AF30))*(K$48/(SUMIFS($C$48:$F$48,$C$25:$F$25,"Funded"))),0) -> 0 | L55: =IF(L$25="Funded",(($AF30*$AJ30)-((SUMPRODUCT(($C$23:$F$23)*($C$25:$F$25="Partially Funded")*($C$46:$F$46))/$AF$46)*$AF30))*(L$48/(SUMIFS($C$48:$F$48,$C$25:$F$25,"Funded"))),0) -> 0 | M55: =IF(M$25="Funded",(($AF30*$AJ30)-((SUMPRODUCT(($C$23:$F$23)*($C$25:$F$25="Partially Funded")*($C$46:$F$46))/$AF$46)*$AF30))*(M$48/(SUMIFS($C$48:$F$48,$C$25:$F$25,"Funded"))),0) -> 0 | N55: =IF(N$25="Funded",(($AF30*$AJ30)-((SUMPRODUCT(($C$23:$F$23)*($C$25:$F$25="Partially Funded")*($C$46:$F$46))/$AF$46)*$AF30))*(N$48/(SUMIFS($C$48:$F$48,$C$25:$F$25,"Funded"))),0) -> 0 | O55: =IF(O$25="Funded",(($AF30*$AJ30)-((SUMPRODUCT(($C$23:$F$23)*($C$25:$F$25="Partially Funded")*($C$46:$F$46))/$AF$46)*$AF30))*(O$48/(SUMIFS($C$48:$F$48,$C$25:$F$25,"Funded"))),0) -> 0 | P55: =IF(P$25="Funded",(($AF30*$AJ30)-((SUMPRODUCT(($C$23:$F$23)*($C$25:$F$25="Partially Funded")*($C$46:$F$46))/$AF$46)*$AF30))*(P$48/(SUMIFS($C$48:$F$48,$C$25:$F$25,"Funded"))),0) -> 0 | Q55: =IF(Q$25="Funded",(($AF30*$AJ30)-((SUMPRODUCT(($C$23:$F$23)*($C$25:$F$25="Partially Funded")*($C$46:$F$46))/$AF$46)*$AF30))*(Q$48/(SUMIFS($C$48:$F$48,$C$25:$F$25,"Funded"))),0) -> 0 | R55: =IF(R$25="Funded",(($AF30*$AJ30)-((SUMPRODUCT(($C$23:$F$23)*($C$25:$F$25="Partially Funded")*($C$46:$F$46))/$AF$46)*$AF30))*(R$48/(SUMIFS($C$48:$F$48,$C$25:$F$25,"Funded"))),0) -> 0 | S55: =IF(S$25="Funded",(($AF30*$AJ30)-((SUMPRODUCT(($C$23:$F$23)*($C$25:$F$25="Partially Funded")*($C$46:$F$46))/$AF$46)*$AF30))*(S$48/(SUMIFS($C$48:$F$48,$C$25:$F$25,"Funded"))),0) -> 0 | T55: =IF(T$25="Funded",(($AF30*$AJ30)-((SUMPRODUCT(($C$23:$F$23)*($C$25:$F$25="Partially Funded")*($C$46:$F$46))/$AF$46)*$AF30))*(T$48/(SUMIFS($C$48:$F$48,$C$25:$F$25,"Funded"))),0) -> 0 | U55: =IF(U$25="Funded",(($AF30*$AJ30)-((SUMPRODUCT(($C$23:$F$23)*($C$25:$F$25="Partially Funded")*($C$46:$F$46))/$AF$46)*$AF30))*(U$48/(SUMIFS($C$48:$F$48,$C$25:$F$25,"Funded"))),0) -> 0 | V55: =IF(V$25="Funded",(($AF30*$AJ30)-((SUMPRODUCT(($C$23:$F$23)*($C$25:$F$25="Partially Funded")*($C$46:$F$46))/$AF$46)*$AF30))*(V$48/(SUMIFS($C$48:$F$48,$C$25:$F$25,"Funded"))),0) -> 0 | W55: =IF(W$25="Funded",(($AF30*$AJ30)-((SUMPRODUCT(($C$23:$F$23)*($C$25:$F$25="Partially Funded")*($C$46:$F$46))/$AF$46)*$AF30))*(W$48/(SUMIFS($C$48:$F$48,$C$25:$F$25,"Funded"))),0) -> 0 | X55: =IF(X$25="Funded",(($AF30*$AJ30)-((SUMPRODUCT(($C$23:$F$23)*($C$25:$F$25="Partially Funded")*($C$46:$F$46))/$AF$46)*$AF30))*(X$48/(SUMIFS($C$48:$F$48,$C$25:$F$25,"Funded"))),0) -> 0 | Y55: =IF(Y$25="Funded",(($AF30*$AJ30)-((SUMPRODUCT(($C$23:$F$23)*($C$25:$F$25="Partially Funded")*($C$46:$F$46))/$AF$46)*$AF30))*(Y$48/(SUMIFS($C$48:$F$48,$C$25:$F$25,"Funded"))),0) -> 0 | Z55: =IF(Z$25="Funded",(($AF30*$AJ30)-((SUMPRODUCT(($C$23:$F$23)*($C$25:$F$25="Partially Funded")*($C$46:$F$46))/$AF$46)*$AF30))*(Z$48/(SUMIFS($C$48:$F$48,$C$25:$F$25,"Funded"))),0) -> 0 | AA55: =IF(AA$25="Funded",(($AF30*$AJ30)-((SUMPRODUCT(($C$23:$F$23)*($C$25:$F$25="Partially Funded")*($C$46:$F$46))/$AF$46)*$AF30))*(AA$48/(SUMIFS($C$48:$F$48,$C$25:$F$25,"Funded"))),0) -> 0 | AB55: =IF(AB$25="Funded",(($AF30*$AJ30)-((SUMPRODUCT(($C$23:$F$23)*($C$25:$F$25="Partially Funded")*($C$46:$F$46))/$AF$46)*$AF30))*(AB$48/(SUMIFS($C$48:$F$48,$C$25:$F$25,"Funded"))),0) -> 0 | AC55: =IF(AC$25="Funded",(($AF30*$AJ30)-((SUMPRODUCT(($C$23:$F$23)*($C$25:$F$25="Partially Funded")*($C$46:$F$46))/$AF$46)*$AF30))*(AC$48/(SUMIFS($C$48:$F$48,$C$25:$F$25,"Funded"))),0) -> 0 | AD55: =IF(AD$25="Funded",(($AF30*$AJ30)-((SUMPRODUCT(($C$23:$F$23)*($C$25:$F$25="Partially Funded")*($C$46:$F$46))/$AF$46)*$AF30))*(AD$48/(SUMIFS($C$48:$F$48,$C$25:$F$25,"Funded"))),0) -> 0 | AE55: =IF(AE$25="Funded",(($AF30*$AJ30)-((SUMPRODUCT(($C$23:$F$23)*($C$25:$F$25="Partially Funded")*($C$46:$F$46))/$AF$46)*$AF30))*(AE$48/(SUMIFS($C$48:$F$48,$C$25:$F$25,"Funded"))),0) -> 0 | AF55: =SUM(C55:AE55) -> 0
B56: Total Dollars | C56: =SUM(C52:C55) -> 0 | D56: =SUM(D52:D55) -> 0 | E56: 0 | F56: 0 | G56: =SUM(G52:G55) -> 0 | H56: 0 | I56: 0 | J56: 0 | K56: 0 | L56: 0 | M56: 0 | N56: 0 | O56: 0 | P56: 0 | Q56: 0 | R56: 0 | S56: 0 | T56: 0 | U56: 0 | V56: 0 | W56: 0 | X56: 0 | Y56: 0 | Z56: 0 | AA56: 0 | AB56: 0 | AC56: 0 | AD56: 0 | AE56: 0 | AF56: =SUM(AF52:AF55) -> 0
B57: Consolidated Formulas | C57: =IF(C$25="Partially Funded",((($AF30/$AF$46)*C$46)*C$23)+(($AF30/$AF$46)*C$46)-((($AF30/$AF$46)*C$46)*C$23),IF(C$25="Unfunded",(($AF30*(100%-$AJ30))-((SUMPRODUCT(($C$24:$F$24)*($C$25:$F$25="Partially Funded")*($C$46:$F$46))/$AF$46)*$AF30))*(C$49/(SUMIFS($C$49:$F$49,$C$25:$AG$25,"Unfunded"))),IF(C$25="Funded",(($AF30*$AJ30)-((SUMPRODUCT(($C$23:$F$23)*($C$25:$F$25="Partially Funded")*($C$46:$F$46))/$AF$46)*$AF30))*(C$48/(SUMIFS($C$48:$F$48,$C$25:$F$25,"Funded"))),0))) -> 0 | D57: =IF(D$25="Partially Funded",((($AF30/$AF$46)*D$46)*D$23)+(($AF30/$AF$46)*D$46)-((($AF30/$AF$46)*D$46)*D$23),IF(D$25="Unfunded",(($AF30*(100%-$AJ30))-((SUMPRODUCT(($C$24:$F$24)*($C$25:$F$25="Partially Funded")*($C$46:$F$46))/$AF$46)*$AF30))*(D$49/(SUMIFS($C$49:$F$49,$C$25:$AG$25,"Unfunded"))),IF(D$25="Funded",(($AF30*$AJ30)-((SUMPRODUCT(($C$23:$F$23)*($C$25:$F$25="Partially Funded")*($C$46:$F$46))/$AF$46)*$AF30))*(D$48/(SUMIFS($C$48:$F$48,$C$25:$F$25,"Funded"))),0))) -> 0 | E57: =IF(E$25="Partially Funded",((($AF30/$AF$46)*E$46)*E$23)+(($AF30/$AF$46)*E$46)-((($AF30/$AF$46)*E$46)*E$23),IF(E$25="Unfunded",(($AF30*(100%-$AJ30))-((SUMPRODUCT(($C$24:$F$24)*($C$25:$F$25="Partially Funded")*($C$46:$F$46))/$AF$46)*$AF30))*(E$49/(SUMIFS($C$49:$F$49,$C$25:$AG$25,"Unfunded"))),IF(E$25="Funded",(($AF30*$AJ30)-((SUMPRODUCT(($C$23:$F$23)*($C$25:$F$25="Partially Funded")*($C$46:$F$46))/$AF$46)*$AF30))*(E$48/(SUMIFS($C$48:$F$48,$C$25:$F$25,"Funded"))),0))) -> 0 | F57: =IF(F$25="Partially Funded",((($AF30/$AF$46)*F$46)*F$23)+(($AF30/$AF$46)*F$46)-((($AF30/$AF$46)*F$46)*F$23),IF(F$25="Unfunded",(($AF30*(100%-$AJ30))-((SUMPRODUCT(($C$24:$F$24)*($C$25:$F$25="Partially Funded")*($C$46:$F$46))/$AF$46)*$AF30))*(F$49/(SUMIFS($C$49:$F$49,$C$25:$AG$25,"Unfunded"))),IF(F$25="Funded",(($AF30*$AJ30)-((SUMPRODUCT(($C$23:$F$23)*($C$25:$F$25="Partially Funded")*($C$46:$F$46))/$AF$46)*$AF30))*(F$48/(SUMIFS($C$48:$F$48,$C$25:$F$25,"Funded"))),0))) -> 0 | G57: =IF(G$25="Partially Funded",((($AF30/$AF$46)*G$46)*G$23)+(($AF30/$AF$46)*G$46)-((($AF30/$AF$46)*G$46)*G$23),IF(G$25="Unfunded",(($AF30*(100%-$AJ30))-((SUMPRODUCT(($C$24:$F$24)*($C$25:$F$25="Partially Funded")*($C$46:$F$46))/$AF$46)*$AF30))*(G$49/(SUMIFS($C$49:$F$49,$C$25:$AG$25,"Unfunded"))),IF(G$25="Funded",(($AF30*$AJ30)-((SUMPRODUCT(($C$23:$F$23)*($C$25:$F$25="Partially Funded")*($C$46:$F$46))/$AF$46)*$AF30))*(G$48/(SUMIFS($C$48:$F$48,$C$25:$F$25,"Funded"))),0))) -> 0 | H57: =IF(H$25="Partially Funded",((($AF30/$AF$46)*H$46)*H$23)+(($AF30/$AF$46)*H$46)-((($AF30/$AF$46)*H$46)*H$23),IF(H$25="Unfunded",(($AF30*(100%-$AJ30))-((SUMPRODUCT(($C$24:$F$24)*($C$25:$F$25="Partially Funded")*($C$46:$F$46))/$AF$46)*$AF30))*(H$49/(SUMIFS($C$49:$F$49,$C$25:$AG$25,"Unfunded"))),IF(H$25="Funded",(($AF30*$AJ30)-((SUMPRODUCT(($C$23:$F$23)*($C$25:$F$25="Partially Funded")*($C$46:$F$46))/$AF$46)*$AF30))*(H$48/(SUMIFS($C$48:$F$48,$C$25:$F$25,"Funded"))),0))) -> 0 | I57: =IF(I$25="Partially Funded",((($AF30/$AF$46)*I$46)*I$23)+(($AF30/$AF$46)*I$46)-((($AF30/$AF$46)*I$46)*I$23),IF(I$25="Unfunded",(($AF30*(100%-$AJ30))-((SUMPRODUCT(($C$24:$F$24)*($C$25:$F$25="Partially Funded")*($C$46:$F$46))/$AF$46)*$AF30))*(I$49/(SUMIFS($C$49:$F$49,$C$25:$AG$25,"Unfunded"))),IF(I$25="Funded",(($AF30*$AJ30)-((SUMPRODUCT(($C$23:$F$23)*($C$25:$F$25="Partially Funded")*($C$46:$F$46))/$AF$46)*$AF30))*(I$48/(SUMIFS($C$48:$F$48,$C$25:$F$25,"Funded"))),0))) -> 0 | J57: =IF(J$25="Partially Funded",((($AF30/$AF$46)*J$46)*J$23)+(($AF30/$AF$46)*J$46)-((($AF30/$AF$46)*J$46)*J$23),IF(J$25="Unfunded",(($AF30*(100%-$AJ30))-((SUMPRODUCT(($C$24:$F$24)*($C$25:$F$25="Partially Funded")*($C$46:$F$46))/$AF$46)*$AF30))*(J$49/(SUMIFS($C$49:$F$49,$C$25:$AG$25,"Unfunded"))),IF(J$25="Funded",(($AF30*$AJ30)-((SUMPRODUCT(($C$23:$F$23)*($C$25:$F$25="Partially Funded")*($C$46:$F$46))/$AF$46)*$AF30))*(J$48/(SUMIFS($C$48:$F$48,$C$25:$F$25,"Funded"))),0))) -> 0 | K57: =IF(K$25="Partially Funded",((($AF30/$AF$46)*K$46)*K$23)+(($AF30/$AF$46)*K$46)-((($AF30/$AF$46)*K$46)*K$23),IF(K$25="Unfunded",(($AF30*(100%-$AJ30))-((SUMPRODUCT(($C$24:$F$24)*($C$25:$F$25="Partially Funded")*($C$46:$F$46))/$AF$46)*$AF30))*(K$49/(SUMIFS($C$49:$F$49,$C$25:$AG$25,"Unfunded"))),IF(K$25="Funded",(($AF30*$AJ30)-((SUMPRODUCT(($C$23:$F$23)*($C$25:$F$25="Partially Funded")*($C$46:$F$46))/$AF$46)*$AF30))*(K$48/(SUMIFS($C$48:$F$48,$C$25:$F$25,"Funded"))),0))) -> 0 | L57: =IF(L$25="Partially Funded",((($AF30/$AF$46)*L$46)*L$23)+(($AF30/$AF$46)*L$46)-((($AF30/$AF$46)*L$46)*L$23),IF(L$25="Unfunded",(($AF30*(100%-$AJ30))-((SUMPRODUCT(($C$24:$F$24)*($C$25:$F$25="Partially Funded")*($C$46:$F$46))/$AF$46)*$AF30))*(L$49/(SUMIFS($C$49:$F$49,$C$25:$AG$25,"Unfunded"))),IF(L$25="Funded",(($AF30*$AJ30)-((SUMPRODUCT(($C$23:$F$23)*($C$25:$F$25="Partially Funded")*($C$46:$F$46))/$AF$46)*$AF30))*(L$48/(SUMIFS($C$48:$F$48,$C$25:$F$25,"Funded"))),0))) -> 0 | M57: =IF(M$25="Partially Funded",((($AF30/$AF$46)*M$46)*M$23)+(($AF30/$AF$46)*M$46)-((($AF30/$AF$46)*M$46)*M$23),IF(M$25="Unfunded",(($AF30*(100%-$AJ30))-((SUMPRODUCT(($C$24:$F$24)*($C$25:$F$25="Partially Funded")*($C$46:$F$46))/$AF$46)*$AF30))*(M$49/(SUMIFS($C$49:$F$49,$C$25:$AG$25,"Unfunded"))),IF(M$25="Funded",(($AF30*$AJ30)-((SUMPRODUCT(($C$23:$F$23)*($C$25:$F$25="Partially Funded")*($C$46:$F$46))/$AF$46)*$AF30))*(M$48/(SUMIFS($C$48:$F$48,$C$25:$F$25,"Funded"))),0))) -> 0 | N57: =IF(N$25="Partially Funded",((($AF30/$AF$46)*N$46)*N$23)+(($AF30/$AF$46)*N$46)-((($AF30/$AF$46)*N$46)*N$23),IF(N$25="Unfunded",(($AF30*(100%-$AJ30))-((SUMPRODUCT(($C$24:$F$24)*($C$25:$F$25="Partially Funded")*($C$46:$F$46))/$AF$46)*$AF30))*(N$49/(SUMIFS($C$49:$F$49,$C$25:$AG$25,"Unfunded"))),IF(N$25="Funded",(($AF30*$AJ30)-((SUMPRODUCT(($C$23:$F$23)*($C$25:$F$25="Partially Funded")*($C$46:$F$46))/$AF$46)*$AF30))*(N$48/(SUMIFS($C$48:$F$48,$C$25:$F$25,"Funded"))),0))) -> 0 | O57: =IF(O$25="Partially Funded",((($AF30/$AF$46)*O$46)*O$23)+(($AF30/$AF$46)*O$46)-((($AF30/$AF$46)*O$46)*O$23),IF(O$25="Unfunded",(($AF30*(100%-$AJ30))-((SUMPRODUCT(($C$24:$F$24)*($C$25:$F$25="Partially Funded")*($C$46:$F$46))/$AF$46)*$AF30))*(O$49/(SUMIFS($C$49:$F$49,$C$25:$AG$25,"Unfunded"))),IF(O$25="Funded",(($AF30*$AJ30)-((SUMPRODUCT(($C$23:$F$23)*($C$25:$F$25="Partially Funded")*($C$46:$F$46))/$AF$46)*$AF30))*(O$48/(SUMIFS($C$48:$F$48,$C$25:$F$25,"Funded"))),0))) -> 0 | P57: =IF(P$25="Partially Funded",((($AF30/$AF$46)*P$46)*P$23)+(($AF30/$AF$46)*P$46)-((($AF30/$AF$46)*P$46)*P$23),IF(P$25="Unfunded",(($AF30*(100%-$AJ30))-((SUMPRODUCT(($C$24:$F$24)*($C$25:$F$25="Partially Funded")*($C$46:$F$46))/$AF$46)*$AF30))*(P$49/(SUMIFS($C$49:$F$49,$C$25:$AG$25,"Unfunded"))),IF(P$25="Funded",(($AF30*$AJ30)-((SUMPRODUCT(($C$23:$F$23)*($C$25:$F$25="Partially Funded")*($C$46:$F$46))/$AF$46)*$AF30))*(P$48/(SUMIFS($C$48:$F$48,$C$25:$F$25,"Funded"))),0))) -> 0 | Q57: =IF(Q$25="Partially Funded",((($AF30/$AF$46)*Q$46)*Q$23)+(($AF30/$AF$46)*Q$46)-((($AF30/$AF$46)*Q$46)*Q$23),IF(Q$25="Unfunded",(($AF30*(100%-$AJ30))-((SUMPRODUCT(($C$24:$F$24)*($C$25:$F$25="Partially Funded")*($C$46:$F$46))/$AF$46)*$AF30))*(Q$49/(SUMIFS($C$49:$F$49,$C$25:$AG$25,"Unfunded"))),IF(Q$25="Funded",(($AF30*$AJ30)-((SUMPRODUCT(($C$23:$F$23)*($C$25:$F$25="Partially Funded")*($C$46:$F$46))/$AF$46)*$AF30))*(Q$48/(SUMIFS($C$48:$F$48,$C$25:$F$25,"Funded"))),0))) -> 0 | R57: =IF(R$25="Partially Funded",((($AF30/$AF$46)*R$46)*R$23)+(($AF30/$AF$46)*R$46)-((($AF30/$AF$46)*R$46)*R$23),IF(R$25="Unfunded",(($AF30*(100%-$AJ30))-((SUMPRODUCT(($C$24:$F$24)*($C$25:$F$25="Partially Funded")*($C$46:$F$46))/$AF$46)*$AF30))*(R$49/(SUMIFS($C$49:$F$49,$C$25:$AG$25,"Unfunded"))),IF(R$25="Funded",(($AF30*$AJ30)-((SUMPRODUCT(($C$23:$F$23)*($C$25:$F$25="Partially Funded")*($C$46:$F$46))/$AF$46)*$AF30))*(R$48/(SUMIFS($C$48:$F$48,$C$25:$F$25,"Funded"))),0))) -> 0 | S57: =IF(S$25="Partially Funded",((($AF30/$AF$46)*S$46)*S$23)+(($AF30/$AF$46)*S$46)-((($AF30/$AF$46)*S$46)*S$23),IF(S$25="Unfunded",(($AF30*(100%-$AJ30))-((SUMPRODUCT(($C$24:$F$24)*($C$25:$F$25="Partially Funded")*($C$46:$F$46))/$AF$46)*$AF30))*(S$49/(SUMIFS($C$49:$F$49,$C$25:$AG$25,"Unfunded"))),IF(S$25="Funded",(($AF30*$AJ30)-((SUMPRODUCT(($C$23:$F$23)*($C$25:$F$25="Partially Funded")*($C$46:$F$46))/$AF$46)*$AF30))*(S$48/(SUMIFS($C$48:$F$48,$C$25:$F$25,"Funded"))),0))) -> 0 | T57: =IF(T$25="Partially Funded",((($AF30/$AF$46)*T$46)*T$23)+(($AF30/$AF$46)*T$46)-((($AF30/$AF$46)*T$46)*T$23),IF(T$25="Unfunded",(($AF30*(100%-$AJ30))-((SUMPRODUCT(($C$24:$F$24)*($C$25:$F$25="Partially Funded")*($C$46:$F$46))/$AF$46)*$AF30))*(T$49/(SUMIFS($C$49:$F$49,$C$25:$AG$25,"Unfunded"))),IF(T$25="Funded",(($AF30*$AJ30)-((SUMPRODUCT(($C$23:$F$23)*($C$25:$F$25="Partially Funded")*($C$46:$F$46))/$AF$46)*$AF30))*(T$48/(SUMIFS($C$48:$F$48,$C$25:$F$25,"Funded"))),0))) -> 0 | U57: =IF(U$25="Partially Funded",((($AF30/$AF$46)*U$46)*U$23)+(($AF30/$AF$46)*U$46)-((($AF30/$AF$46)*U$46)*U$23),IF(U$25="Unfunded",(($AF30*(100%-$AJ30))-((SUMPRODUCT(($C$24:$F$24)*($C$25:$F$25="Partially Funded")*($C$46:$F$46))/$AF$46)*$AF30))*(U$49/(SUMIFS($C$49:$F$49,$C$25:$AG$25,"Unfunded"))),IF(U$25="Funded",(($AF30*$AJ30)-((SUMPRODUCT(($C$23:$F$23)*($C$25:$F$25="Partially Funded")*($C$46:$F$46))/$AF$46)*$AF30))*(U$48/(SUMIFS($C$48:$F$48,$C$25:$F$25,"Funded"))),0))) -> 0 | V57: =IF(V$25="Partially Funded",((($AF30/$AF$46)*V$46)*V$23)+(($AF30/$AF$46)*V$46)-((($AF30/$AF$46)*V$46)*V$23),IF(V$25="Unfunded",(($AF30*(100%-$AJ30))-((SUMPRODUCT(($C$24:$F$24)*($C$25:$F$25="Partially Funded")*($C$46:$F$46))/$AF$46)*$AF30))*(V$49/(SUMIFS($C$49:$F$49,$C$25:$AG$25,"Unfunded"))),IF(V$25="Funded",(($AF30*$AJ30)-((SUMPRODUCT(($C$23:$F$23)*($C$25:$F$25="Partially Funded")*($C$46:$F$46))/$AF$46)*$AF30))*(V$48/(SUMIFS($C$48:$F$48,$C$25:$F$25,"Funded"))),0))) -> 0 | W57: =IF(W$25="Partially Funded",((($AF30/$AF$46)*W$46)*W$23)+(($AF30/$AF$46)*W$46)-((($AF30/$AF$46)*W$46)*W$23),IF(W$25="Unfunded",(($AF30*(100%-$AJ30))-((SUMPRODUCT(($C$24:$F$24)*($C$25:$F$25="Partially Funded")*($C$46:$F$46))/$AF$46)*$AF30))*(W$49/(SUMIFS($C$49:$F$49,$C$25:$AG$25,"Unfunded"))),IF(W$25="Funded",(($AF30*$AJ30)-((SUMPRODUCT(($C$23:$F$23)*($C$25:$F$25="Partially Funded")*($C$46:$F$46))/$AF$46)*$AF30))*(W$48/(SUMIFS($C$48:$F$48,$C$25:$F$25,"Funded"))),0))) -> 0 | X57: =IF(X$25="Partially Funded",((($AF30/$AF$46)*X$46)*X$23)+(($AF30/$AF$46)*X$46)-((($AF30/$AF$46)*X$46)*X$23),IF(X$25="Unfunded",(($AF30*(100%-$AJ30))-((SUMPRODUCT(($C$24:$F$24)*($C$25:$F$25="Partially Funded")*($C$46:$F$46))/$AF$46)*$AF30))*(X$49/(SUMIFS($C$49:$F$49,$C$25:$AG$25,"Unfunded"))),IF(X$25="Funded",(($AF30*$AJ30)-((SUMPRODUCT(($C$23:$F$23)*($C$25:$F$25="Partially Funded")*($C$46:$F$46))/$AF$46)*$AF30))*(X$48/(SUMIFS($C$48:$F$48,$C$25:$F$25,"Funded"))),0))) -> 0 | Y57: =IF(Y$25="Partially Funded",((($AF30/$AF$46)*Y$46)*Y$23)+(($AF30/$AF$46)*Y$46)-((($AF30/$AF$46)*Y$46)*Y$23),IF(Y$25="Unfunded",(($AF30*(100%-$AJ30))-((SUMPRODUCT(($C$24:$F$24)*($C$25:$F$25="Partially Funded")*($C$46:$F$46))/$AF$46)*$AF30))*(Y$49/(SUMIFS($C$49:$F$49,$C$25:$AG$25,"Unfunded"))),IF(Y$25="Funded",(($AF30*$AJ30)-((SUMPRODUCT(($C$23:$F$23)*($C$25:$F$25="Partially Funded")*($C$46:$F$46))/$AF$46)*$AF30))*(Y$48/(SUMIFS($C$48:$F$48,$C$25:$F$25,"Funded"))),0))) -> 0 | Z57: =IF(Z$25="Partially Funded",((($AF30/$AF$46)*Z$46)*Z$23)+(($AF30/$AF$46)*Z$46)-((($AF30/$AF$46)*Z$46)*Z$23),IF(Z$25="Unfunded",(($AF30*(100%-$AJ30))-((SUMPRODUCT(($C$24:$F$24)*($C$25:$F$25="Partially Funded")*($C$46:$F$46))/$AF$46)*$AF30))*(Z$49/(SUMIFS($C$49:$F$49,$C$25:$AG$25,"Unfunded"))),IF(Z$25="Funded",(($AF30*$AJ30)-((SUMPRODUCT(($C$23:$F$23)*($C$25:$F$25="Partially Funded")*($C$46:$F$46))/$AF$46)*$AF30))*(Z$48/(SUMIFS($C$48:$F$48,$C$25:$F$25,"Funded"))),0))) -> 0 | AA57: =IF(AA$25="Partially Funded",((($AF30/$AF$46)*AA$46)*AA$23)+(($AF30/$AF$46)*AA$46)-((($AF30/$AF$46)*AA$46)*AA$23),IF(AA$25="Unfunded",(($AF30*(100%-$AJ30))-((SUMPRODUCT(($C$24:$F$24)*($C$25:$F$25="Partially Funded")*($C$46:$F$46))/$AF$46)*$AF30))*(AA$49/(SUMIFS($C$49:$F$49,$C$25:$AG$25,"Unfunded"))),IF(AA$25="Funded",(($AF30*$AJ30)-((SUMPRODUCT(($C$23:$F$23)*($C$25:$F$25="Partially Funded")*($C$46:$F$46))/$AF$46)*$AF30))*(AA$48/(SUMIFS($C$48:$F$48,$C$25:$F$25,"Funded"))),0))) -> 0 | AB57: =IF(AB$25="Partially Funded",((($AF30/$AF$46)*AB$46)*AB$23)+(($AF30/$AF$46)*AB$46)-((($AF30/$AF$46)*AB$46)*AB$23),IF(AB$25="Unfunded",(($AF30*(100%-$AJ30))-((SUMPRODUCT(($C$24:$F$24)*($C$25:$F$25="Partially Funded")*($C$46:$F$46))/$AF$46)*$AF30))*(AB$49/(SUMIFS($C$49:$F$49,$C$25:$AG$25,"Unfunded"))),IF(AB$25="Funded",(($AF30*$AJ30)-((SUMPRODUCT(($C$23:$F$23)*($C$25:$F$25="Partially Funded")*($C$46:$F$46))/$AF$46)*$AF30))*(AB$48/(SUMIFS($C$48:$F$48,$C$25:$F$25,"Funded"))),0))) -> 0 | AC57: =IF(AC$25="Partially Funded",((($AF30/$AF$46)*AC$46)*AC$23)+(($AF30/$AF$46)*AC$46)-((($AF30/$AF$46)*AC$46)*AC$23),IF(AC$25="Unfunded",(($AF30*(100%-$AJ30))-((SUMPRODUCT(($C$24:$F$24)*($C$25:$F$25="Partially Funded")*($C$46:$F$46))/$AF$46)*$AF30))*(AC$49/(SUMIFS($C$49:$F$49,$C$25:$AG$25,"Unfunded"))),IF(AC$25="Funded",(($AF30*$AJ30)-((SUMPRODUCT(($C$23:$F$23)*($C$25:$F$25="Partially Funded")*($C$46:$F$46))/$AF$46)*$AF30))*(AC$48/(SUMIFS($C$48:$F$48,$C$25:$F$25,"Funded"))),0))) -> 0 | AD57: =IF(AD$25="Partially Funded",((($AF30/$AF$46)*AD$46)*AD$23)+(($AF30/$AF$46)*AD$46)-((($AF30/$AF$46)*AD$46)*AD$23),IF(AD$25="Unfunded",(($AF30*(100%-$AJ30))-((SUMPRODUCT(($C$24:$F$24)*($C$25:$F$25="Partially Funded")*($C$46:$F$46))/$AF$46)*$AF30))*(AD$49/(SUMIFS($C$49:$F$49,$C$25:$AG$25,"Unfunded"))),IF(AD$25="Funded",(($AF30*$AJ30)-((SUMPRODUCT(($C$23:$F$23)*($C$25:$F$25="Partially Funded")*($C$46:$F$46))/$AF$46)*$AF30))*(AD$48/(SUMIFS($C$48:$F$48,$C$25:$F$25,"Funded"))),0))) -> 0 | AE57: =IF(AE$25="Partially Funded",((($AF30/$AF$46)*AE$46)*AE$23)+(($AF30/$AF$46)*AE$46)-((($AF30/$AF$46)*AE$46)*AE$23),IF(AE$25="Unfunded",(($AF30*(100%-$AJ30))-((SUMPRODUCT(($C$24:$F$24)*($C$25:$F$25="Partially Funded")*($C$46:$F$46))/$AF$46)*$AF30))*(AE$49/(SUMIFS($C$49:$F$49,$C$25:$AG$25,"Unfunded"))),IF(AE$25="Funded",(($AF30*$AJ30)-((SUMPRODUCT(($C$23:$F$23)*($C$25:$F$25="Partially Funded")*($C$46:$F$46))/$AF$46)*$AF30))*(AE$48/(SUMIFS($C$48:$F$48,$C$25:$F$25,"Funded"))),0))) -> 0 | AF57: =SUM(C57:AE57) -> 0
B58: Check | C58: =C56-C57 -> 0 | D58: =D56-D57 -> 0 | E58: 0 | F58: 0 | G58: =G56-G57 -> 0 | H58: 0 | I58: 0 | J58: 0 | K58: 0 | L58: 0 | M58: 0 | N58: 0 | O58: 0 | P58: 0 | Q58: 0 | R58: 0 | S58: 0 | T58: 0 | U58: 0 | V58: 0 | W58: 0 | X58: 0 | Y58: 0 | Z58: 0 | AA58: 0 | AB58: 0 | AC58: 0 | AD58: 0 | AE58: 0 | AF58: 0
A60: Hypo Results
B62: SLF I | C62: =_xlfn.CONCAT("Passing ", COUNTIF(SummaryKaiser[Pass/Fail],"Pass"), "; Failing ", COUNTIF(SummaryKaiser[Pass/Fail],"Fail"), " (", _xlfn.TEXTJOIN(", ",TRUE,IF(SummaryKaiser[Pass/Fail]="Fail",SummaryKaiser[Constraint],"")),")" ) -> Passing 4; Failing 0 ()
A63: =AF35 -> 0 | B63: SMA-SC | C63: =_xlfn.CONCAT("Passing ", COUNTIF(SummarySwiss[Pass/Fail],"Pass"), "; Failing ", COUNTIF(SummarySwiss[Pass/Fail],"Fail"), " (", _xlfn.TEXTJOIN(", ",TRUE,IF(SummarySwiss[Pass/Fail]="Fail",SummarySwiss[Constraint],"")),")" ) -> Passing 11; Failing 1 (Max Commitment)
A64: 0 | B64: SMA-SC NT | C64: =_xlfn.CONCAT("Passing ", COUNTIF(SummarySwissNT[Pass/Fail],"Pass"), "; Failing ", COUNTIF(SummarySwissNT[Pass/Fail],"Fail"), " (", _xlfn.TEXTJOIN(", ",TRUE,IF(SummarySwissNT[Pass/Fail]="Fail",SummarySwissNT[Constraint],"")),")" ) -> Passing 12; Failing 0 ()
A65: 0 | B65: SMA-AF US | C65: =_xlfn.CONCAT("Passing ", COUNTIF(SummaryAFUS[Pass/Fail],"Pass"), "; Failing ", COUNTIF(SummaryAFUS[Pass/Fail],"Fail"), " (", _xlfn.TEXTJOIN(", ",TRUE,IF(SummaryAFUS[Pass/Fail]="Fail",SummaryAFUS[Constraint],"")),")" ) -> Passing 10; Failing 0 ()
A66: 0 | B66: SMA-AF JAP | C66: =_xlfn.CONCAT("Passing ", COUNTIF(SummaryAFJAP[Pass/Fail],"Pass"), "; Failing ", COUNTIF(SummaryAFJAP[Pass/Fail],"Fail"), " (", _xlfn.TEXTJOIN(", ",TRUE,IF(SummaryAFJAP[Pass/Fail]="Fail",SummaryAFJAP[Constraint],"")),")" ) -> Passing 10; Failing 0 ()
A67: 0 | B67: SMA-CH | C67: =_xlfn.CONCAT("Passing ", COUNTIF(SummaryChubb[Pass/Fail],"Pass"), "; Failing ", COUNTIF(SummaryChubb[Pass/Fail],"Fail"), " (", _xlfn.TEXTJOIN(", ",TRUE,IF(SummaryChubb[Pass/Fail]="Fail",SummaryChubb[Constraint],"")),")" ) -> Passing 10; Failing 0 ()
A68: 0 | B68: SMA-CC | C68: -
A69: 0 | B69: SMA-VG | C69: =_xlfn.CONCAT("Passing ", COUNTIF(SummaryVG[Pass/Fail],"Pass"), "; Failing ", COUNTIF(SummaryVG[Pass/Fail],"Fail"), " (", _xlfn.TEXTJOIN(", ",TRUE,IF(SummaryVG[Pass/Fail]="Fail",SummaryVG[Constraint],"")),")" ) -> Passing 9; Failing 0 ()
A70: =AF44 -> 0 | B70: SLF VI UL | C70: =_xlfn.CONCAT("Passing ", COUNTIF(SummarySLFVIUL[Pass/Fail],"Pass"), "; Failing ", COUNTIF(SummarySLFVIUL[Pass/Fail],"Fail"), " (", _xlfn.TEXTJOIN(", ",TRUE,IF(SummarySLFVIUL[Pass/Fail]="Fail",SummarySLFVIUL[Constraint],"")),")" ) -> Passing 4; Failing 0 ()
A71: =AF45 -> 0 | B71: SN-I | C71: -
A72: =AF46 -> 0 | B72: SMA SRC-1 | C72: -
B73: SMA-3
B74: Results current as of: | C74: Not yet submitted to hypo.
A76: Portfolio Allocations Report
C78: Credit Facility | BJ78: Fees
C80: =C22 -> Revolver | D80: =D22 -> Term Loan | E80: =E22 -> DDTL | F80: =F22 -> DDTL 2 | G80: 0 | H80: 0 | I80: 0 | J80: 0 | K80: 0 | L80: 0 | M80: 0 | N80: 0 | O80: 0 | P80: 0 | Q80: 0 | R80: 0 | S80: 0 | T80: 0 | U80: 0 | V80: 0 | W80: 0 | X80: 0 | Y80: 0 | Z80: 0 | AA80: 0 | AB80: 0 | AC80: 0 | AD80: 0 | AE80: 0 | AF80: Totals | AG80: Funded | AH80: Unfunded | BK80: Fee | BL80: $ Amt
B81: NXT | C81: =C$46-(SUM(C$82:C$100)) -> 0 | D81: =D$46-(SUM(D$82:D$100)) -> 0 | E81: =E$46-(SUM(E$82:E$100)) -> 0 | F81: =F$46-(SUM(F$82:F$100)) -> 0 | G81: =G$46-(SUM(G$82:G$100)) -> 0 | H81: 0 | I81: 0 | J81: 0 | K81: 0 | L81: 0 | M81: 0 | N81: 0 | O81: 0 | P81: 0 | Q81: 0 | R81: 0 | S81: 0 | T81: 0 | U81: 0 | V81: 0 | W81: 0 | X81: 0 | Y81: 0 | Z81: 0 | AA81: 0 | AB81: 0 | AC81: 0 | AD81: 0 | AE81: 0 | AF81: =AF26 -> 0 | AG81: =IFERROR(SUM(_xlfn._xlws.FILTER($C81:$AE81,$C81:$AE81>0)*_xlfn._xlws.FILTER($C$23:$AE$23,$C81:$AE81>0))/($AF81),"n/a") -> n/a | AH81: =IFERROR(1-AG81,"n/a") -> n/a | BJ81: Closing | BK81: 0 | BL81: =+BK81*$AF$26 -> 0
B82: SLF I | C82: =IF(C$25="Partially Funded",((($AF27/$AF$45)*C$45)*C$23)+(($AF27/$AF$45)*C$45)-((($AF27/$AF$45)*C$45)*C$23),IF(C$25="Unfunded",(($AF27*(100%-$AI27))-((SUMPRODUCT(($C$24:$F$24)*($C$25:$F$25="Partially Funded")*($C$45:$F$45))/$AF$45)*$AF27))*(C$48/(SUMIFS($C$48:$F$48,$C$25:$F$25,"Unfunded"))),IF(C$25="Funded",(($AF27*$AI27)-((SUMPRODUCT(($C$23:$F$23)*($C$25:$F$25="Partially Funded")*($C$45:$F$45))/$AF$45)*$AF27))*(C$47/(SUMIFS($C$47:$F$47,$C$25:$F$25,"Funded"))),0))) -> 0 | D82: =IF(D$25="Partially Funded",((($AF27/$AF$45)*D$45)*D$23)+(($AF27/$AF$45)*D$45)-((($AF27/$AF$45)*D$45)*D$23),IF(D$25="Unfunded",(($AF27*(100%-$AI27))-((SUMPRODUCT(($C$24:$F$24)*($C$25:$F$25="Partially Funded")*($C$45:$F$45))/$AF$45)*$AF27))*(D$48/(SUMIFS($C$48:$F$48,$C$25:$F$25,"Unfunded"))),IF(D$25="Funded",(($AF27*$AI27)-((SUMPRODUCT(($C$23:$F$23)*($C$25:$F$25="Partially Funded")*($C$45:$F$45))/$AF$45)*$AF27))*(D$47/(SUMIFS($C$47:$F$47,$C$25:$F$25,"Funded"))),0))) -> 0 | E82: =IF(E$25="Partially Funded",((($AF27/$AF$45)*E$45)*E$23)+(($AF27/$AF$45)*E$45)-((($AF27/$AF$45)*E$45)*E$23),IF(E$25="Unfunded",(($AF27*(100%-$AI27))-((SUMPRODUCT(($C$24:$F$24)*($C$25:$F$25="Partially Funded")*($C$45:$F$45))/$AF$45)*$AF27))*(E$48/(SUMIFS($C$48:$F$48,$C$25:$F$25,"Unfunded"))),IF(E$25="Funded",(($AF27*$AI27)-((SUMPRODUCT(($C$23:$F$23)*($C$25:$F$25="Partially Funded")*($C$45:$F$45))/$AF$45)*$AF27))*(E$47/(SUMIFS($C$47:$F$47,$C$25:$F$25,"Funded"))),0))) -> 0 | F82: =IF(F$25="Partially Funded",((($AF27/$AF$45)*F$45)*F$23)+(($AF27/$AF$45)*F$45)-((($AF27/$AF$45)*F$45)*F$23),IF(F$25="Unfunded",(($AF27*(100%-$AI27))-((SUMPRODUCT(($C$24:$F$24)*($C$25:$F$25="Partially Funded")*($C$45:$F$45))/$AF$45)*$AF27))*(F$48/(SUMIFS($C$48:$F$48,$C$25:$F$25,"Unfunded"))),IF(F$25="Funded",(($AF27*$AI27)-((SUMPRODUCT(($C$23:$F$23)*($C$25:$F$25="Partially Funded")*($C$45:$F$45))/$AF$45)*$AF27))*(F$47/(SUMIFS($C$47:$F$47,$C$25:$F$25,"Funded"))),0))) -> 0 | G82: =IF(G$25="Partially Funded",((($AF27/$AF$45)*G$45)*G$23)+(($AF27/$AF$45)*G$45)-((($AF27/$AF$45)*G$45)*G$23),IF(G$25="Unfunded",(($AF27*(100%-$AI27))-((SUMPRODUCT(($C$24:$F$24)*($C$25:$F$25="Partially Funded")*($C$45:$F$45))/$AF$45)*$AF27))*(G$48/(SUMIFS($C$48:$F$48,$C$25:$F$25,"Unfunded"))),IF(G$25="Funded",(($AF27*$AI27)-((SUMPRODUCT(($C$23:$F$23)*($C$25:$F$25="Partially Funded")*($C$45:$F$45))/$AF$45)*$AF27))*(G$47/(SUMIFS($C$47:$F$47,$C$25:$F$25,"Funded"))),0))) -> 0 | H82: =IF(H$25="Partially Funded",((($AF27/$AF$45)*H$45)*H$23)+(($AF27/$AF$45)*H$45)-((($AF27/$AF$45)*H$45)*H$23),IF(H$25="Unfunded",(($AF27*(100%-$AI27))-((SUMPRODUCT(($C$24:$F$24)*($C$25:$F$25="Partially Funded")*($C$45:$F$45))/$AF$45)*$AF27))*(H$48/(SUMIFS($C$48:$F$48,$C$25:$F$25,"Unfunded"))),IF(H$25="Funded",(($AF27*$AI27)-((SUMPRODUCT(($C$23:$F$23)*($C$25:$F$25="Partially Funded")*($C$45:$F$45))/$AF$45)*$AF27))*(H$47/(SUMIFS($C$47:$F$47,$C$25:$F$25,"Funded"))),0))) -> 0 | I82: =IF(I$25="Partially Funded",((($AF27/$AF$45)*I$45)*I$23)+(($AF27/$AF$45)*I$45)-((($AF27/$AF$45)*I$45)*I$23),IF(I$25="Unfunded",(($AF27*(100%-$AI27))-((SUMPRODUCT(($C$24:$F$24)*($C$25:$F$25="Partially Funded")*($C$45:$F$45))/$AF$45)*$AF27))*(I$48/(SUMIFS($C$48:$F$48,$C$25:$F$25,"Unfunded"))),IF(I$25="Funded",(($AF27*$AI27)-((SUMPRODUCT(($C$23:$F$23)*($C$25:$F$25="Partially Funded")*($C$45:$F$45))/$AF$45)*$AF27))*(I$47/(SUMIFS($C$47:$F$47,$C$25:$F$25,"Funded"))),0))) -> 0 | J82: =IF(J$25="Partially Funded",((($AF27/$AF$45)*J$45)*J$23)+(($AF27/$AF$45)*J$45)-((($AF27/$AF$45)*J$45)*J$23),IF(J$25="Unfunded",(($AF27*(100%-$AI27))-((SUMPRODUCT(($C$24:$F$24)*($C$25:$F$25="Partially Funded")*($C$45:$F$45))/$AF$45)*$AF27))*(J$48/(SUMIFS($C$48:$F$48,$C$25:$F$25,"Unfunded"))),IF(J$25="Funded",(($AF27*$AI27)-((SUMPRODUCT(($C$23:$F$23)*($C$25:$F$25="Partially Funded")*($C$45:$F$45))/$AF$45)*$AF27))*(J$47/(SUMIFS($C$47:$F$47,$C$25:$F$25,"Funded"))),0))) -> 0 | K82: =IF(K$25="Partially Funded",((($AF27/$AF$45)*K$45)*K$23)+(($AF27/$AF$45)*K$45)-((($AF27/$AF$45)*K$45)*K$23),IF(K$25="Unfunded",(($AF27*(100%-$AI27))-((SUMPRODUCT(($C$24:$F$24)*($C$25:$F$25="Partially Funded")*($C$45:$F$45))/$AF$45)*$AF27))*(K$48/(SUMIFS($C$48:$F$48,$C$25:$F$25,"Unfunded"))),IF(K$25="Funded",(($AF27*$AI27)-((SUMPRODUCT(($C$23:$F$23)*($C$25:$F$25="Partially Funded")*($C$45:$F$45))/$AF$45)*$AF27))*(K$47/(SUMIFS($C$47:$F$47,$C$25:$F$25,"Funded"))),0))) -> 0 | L82: =IF(L$25="Partially Funded",((($AF27/$AF$45)*L$45)*L$23)+(($AF27/$AF$45)*L$45)-((($AF27/$AF$45)*L$45)*L$23),IF(L$25="Unfunded",(($AF27*(100%-$AI27))-((SUMPRODUCT(($C$24:$F$24)*($C$25:$F$25="Partially Funded")*($C$45:$F$45))/$AF$45)*$AF27))*(L$48/(SUMIFS($C$48:$F$48,$C$25:$F$25,"Unfunded"))),IF(L$25="Funded",(($AF27*$AI27)-((SUMPRODUCT(($C$23:$F$23)*($C$25:$F$25="Partially Funded")*($C$45:$F$45))/$AF$45)*$AF27))*(L$47/(SUMIFS($C$47:$F$47,$C$25:$F$25,"Funded"))),0))) -> 0 | M82: =IF(M$25="Partially Funded",((($AF27/$AF$45)*M$45)*M$23)+(($AF27/$AF$45)*M$45)-((($AF27/$AF$45)*M$45)*M$23),IF(M$25="Unfunded",(($AF27*(100%-$AI27))-((SUMPRODUCT(($C$24:$F$24)*($C$25:$F$25="Partially Funded")*($C$45:$F$45))/$AF$45)*$AF27))*(M$48/(SUMIFS($C$48:$F$48,$C$25:$F$25,"Unfunded"))),IF(M$25="Funded",(($AF27*$AI27)-((SUMPRODUCT(($C$23:$F$23)*($C$25:$F$25="Partially Funded")*($C$45:$F$45))/$AF$45)*$AF27))*(M$47/(SUMIFS($C$47:$F$47,$C$25:$F$25,"Funded"))),0))) -> 0 | N82: =IF(N$25="Partially Funded",((($AF27/$AF$45)*N$45)*N$23)+(($AF27/$AF$45)*N$45)-((($AF27/$AF$45)*N$45)*N$23),IF(N$25="Unfunded",(($AF27*(100%-$AI27))-((SUMPRODUCT(($C$24:$F$24)*($C$25:$F$25="Partially Funded")*($C$45:$F$45))/$AF$45)*$AF27))*(N$48/(SUMIFS($C$48:$F$48,$C$25:$F$25,"Unfunded"))),IF(N$25="Funded",(($AF27*$AI27)-((SUMPRODUCT(($C$23:$F$23)*($C$25:$F$25="Partially Funded")*($C$45:$F$45))/$AF$45)*$AF27))*(N$47/(SUMIFS($C$47:$F$47,$C$25:$F$25,"Funded"))),0))) -> 0 | O82: =IF(O$25="Partially Funded",((($AF27/$AF$45)*O$45)*O$23)+(($AF27/$AF$45)*O$45)-((($AF27/$AF$45)*O$45)*O$23),IF(O$25="Unfunded",(($AF27*(100%-$AI27))-((SUMPRODUCT(($C$24:$F$24)*($C$25:$F$25="Partially Funded")*($C$45:$F$45))/$AF$45)*$AF27))*(O$48/(SUMIFS($C$48:$F$48,$C$25:$F$25,"Unfunded"))),IF(O$25="Funded",(($AF27*$AI27)-((SUMPRODUCT(($C$23:$F$23)*($C$25:$F$25="Partially Funded")*($C$45:$F$45))/$AF$45)*$AF27))*(O$47/(SUMIFS($C$47:$F$47,$C$25:$F$25,"Funded"))),0))) -> 0 | P82: =IF(P$25="Partially Funded",((($AF27/$AF$45)*P$45)*P$23)+(($AF27/$AF$45)*P$45)-((($AF27/$AF$45)*P$45)*P$23),IF(P$25="Unfunded",(($AF27*(100%-$AI27))-((SUMPRODUCT(($C$24:$F$24)*($C$25:$F$25="Partially Funded")*($C$45:$F$45))/$AF$45)*$AF27))*(P$48/(SUMIFS($C$48:$F$48,$C$25:$F$25,"Unfunded"))),IF(P$25="Funded",(($AF27*$AI27)-((SUMPRODUCT(($C$23:$F$23)*($C$25:$F$25="Partially Funded")*($C$45:$F$45))/$AF$45)*$AF27))*(P$47/(SUMIFS($C$47:$F$47,$C$25:$F$25,"Funded"))),0))) -> 0 | Q82: =IF(Q$25="Partially Funded",((($AF27/$AF$45)*Q$45)*Q$23)+(($AF27/$AF$45)*Q$45)-((($AF27/$AF$45)*Q$45)*Q$23),IF(Q$25="Unfunded",(($AF27*(100%-$AI27))-((SUMPRODUCT(($C$24:$F$24)*($C$25:$F$25="Partially Funded")*($C$45:$F$45))/$AF$45)*$AF27))*(Q$48/(SUMIFS($C$48:$F$48,$C$25:$F$25,"Unfunded"))),IF(Q$25="Funded",(($AF27*$AI27)-((SUMPRODUCT(($C$23:$F$23)*($C$25:$F$25="Partially Funded")*($C$45:$F$45))/$AF$45)*$AF27))*(Q$47/(SUMIFS($C$47:$F$47,$C$25:$F$25,"Funded"))),0))) -> 0 | R82: =IF(R$25="Partially Funded",((($AF27/$AF$45)*R$45)*R$23)+(($AF27/$AF$45)*R$45)-((($AF27/$AF$45)*R$45)*R$23),IF(R$25="Unfunded",(($AF27*(100%-$AI27))-((SUMPRODUCT(($C$24:$F$24)*($C$25:$F$25="Partially Funded")*($C$45:$F$45))/$AF$45)*$AF27))*(R$48/(SUMIFS($C$48:$F$48,$C$25:$F$25,"Unfunded"))),IF(R$25="Funded",(($AF27*$AI27)-((SUMPRODUCT(($C$23:$F$23)*($C$25:$F$25="Partially Funded")*($C$45:$F$45))/$AF$45)*$AF27))*(R$47/(SUMIFS($C$47:$F$47,$C$25:$F$25,"Funded"))),0))) -> 0 | S82: =IF(S$25="Partially Funded",((($AF27/$AF$45)*S$45)*S$23)+(($AF27/$AF$45)*S$45)-((($AF27/$AF$45)*S$45)*S$23),IF(S$25="Unfunded",(($AF27*(100%-$AI27))-((SUMPRODUCT(($C$24:$F$24)*($C$25:$F$25="Partially Funded")*($C$45:$F$45))/$AF$45)*$AF27))*(S$48/(SUMIFS($C$48:$F$48,$C$25:$F$25,"Unfunded"))),IF(S$25="Funded",(($AF27*$AI27)-((SUMPRODUCT(($C$23:$F$23)*($C$25:$F$25="Partially Funded")*($C$45:$F$45))/$AF$45)*$AF27))*(S$47/(SUMIFS($C$47:$F$47,$C$25:$F$25,"Funded"))),0))) -> 0 | T82: =IF(T$25="Partially Funded",((($AF27/$AF$45)*T$45)*T$23)+(($AF27/$AF$45)*T$45)-((($AF27/$AF$45)*T$45)*T$23),IF(T$25="Unfunded",(($AF27*(100%-$AI27))-((SUMPRODUCT(($C$24:$F$24)*($C$25:$F$25="Partially Funded")*($C$45:$F$45))/$AF$45)*$AF27))*(T$48/(SUMIFS($C$48:$F$48,$C$25:$F$25,"Unfunded"))),IF(T$25="Funded",(($AF27*$AI27)-((SUMPRODUCT(($C$23:$F$23)*($C$25:$F$25="Partially Funded")*($C$45:$F$45))/$AF$45)*$AF27))*(T$47/(SUMIFS($C$47:$F$47,$C$25:$F$25,"Funded"))),0))) -> 0 | U82: =IF(U$25="Partially Funded",((($AF27/$AF$45)*U$45)*U$23)+(($AF27/$AF$45)*U$45)-((($AF27/$AF$45)*U$45)*U$23),IF(U$25="Unfunded",(($AF27*(100%-$AI27))-((SUMPRODUCT(($C$24:$F$24)*($C$25:$F$25="Partially Funded")*($C$45:$F$45))/$AF$45)*$AF27))*(U$48/(SUMIFS($C$48:$F$48,$C$25:$F$25,"Unfunded"))),IF(U$25="Funded",(($AF27*$AI27)-((SUMPRODUCT(($C$23:$F$23)*($C$25:$F$25="Partially Funded")*($C$45:$F$45))/$AF$45)*$AF27))*(U$47/(SUMIFS($C$47:$F$47,$C$25:$F$25,"Funded"))),0))) -> 0 | V82: =IF(V$25="Partially Funded",((($AF27/$AF$45)*V$45)*V$23)+(($AF27/$AF$45)*V$45)-((($AF27/$AF$45)*V$45)*V$23),IF(V$25="Unfunded",(($AF27*(100%-$AI27))-((SUMPRODUCT(($C$24:$F$24)*($C$25:$F$25="Partially Funded")*($C$45:$F$45))/$AF$45)*$AF27))*(V$48/(SUMIFS($C$48:$F$48,$C$25:$F$25,"Unfunded"))),IF(V$25="Funded",(($AF27*$AI27)-((SUMPRODUCT(($C$23:$F$23)*($C$25:$F$25="Partially Funded")*($C$45:$F$45))/$AF$45)*$AF27))*(V$47/(SUMIFS($C$47:$F$47,$C$25:$F$25,"Funded"))),0))) -> 0 | W82: =IF(W$25="Partially Funded",((($AF27/$AF$45)*W$45)*W$23)+(($AF27/$AF$45)*W$45)-((($AF27/$AF$45)*W$45)*W$23),IF(W$25="Unfunded",(($AF27*(100%-$AI27))-((SUMPRODUCT(($C$24:$F$24)*($C$25:$F$25="Partially Funded")*($C$45:$F$45))/$AF$45)*$AF27))*(W$48/(SUMIFS($C$48:$F$48,$C$25:$F$25,"Unfunded"))),IF(W$25="Funded",(($AF27*$AI27)-((SUMPRODUCT(($C$23:$F$23)*($C$25:$F$25="Partially Funded")*($C$45:$F$45))/$AF$45)*$AF27))*(W$47/(SUMIFS($C$47:$F$47,$C$25:$F$25,"Funded"))),0))) -> 0 | X82: =IF(X$25="Partially Funded",((($AF27/$AF$45)*X$45)*X$23)+(($AF27/$AF$45)*X$45)-((($AF27/$AF$45)*X$45)*X$23),IF(X$25="Unfunded",(($AF27*(100%-$AI27))-((SUMPRODUCT(($C$24:$F$24)*($C$25:$F$25="Partially Funded")*($C$45:$F$45))/$AF$45)*$AF27))*(X$48/(SUMIFS($C$48:$F$48,$C$25:$F$25,"Unfunded"))),IF(X$25="Funded",(($AF27*$AI27)-((SUMPRODUCT(($C$23:$F$23)*($C$25:$F$25="Partially Funded")*($C$45:$F$45))/$AF$45)*$AF27))*(X$47/(SUMIFS($C$47:$F$47,$C$25:$F$25,"Funded"))),0))) -> 0 | Y82: =IF(Y$25="Partially Funded",((($AF27/$AF$45)*Y$45)*Y$23)+(($AF27/$AF$45)*Y$45)-((($AF27/$AF$45)*Y$45)*Y$23),IF(Y$25="Unfunded",(($AF27*(100%-$AI27))-((SUMPRODUCT(($C$24:$F$24)*($C$25:$F$25="Partially Funded")*($C$45:$F$45))/$AF$45)*$AF27))*(Y$48/(SUMIFS($C$48:$F$48,$C$25:$F$25,"Unfunded"))),IF(Y$25="Funded",(($AF27*$AI27)-((SUMPRODUCT(($C$23:$F$23)*($C$25:$F$25="Partially Funded")*($C$45:$F$45))/$AF$45)*$AF27))*(Y$47/(SUMIFS($C$47:$F$47,$C$25:$F$25,"Funded"))),0))) -> 0 | Z82: =IF(Z$25="Partially Funded",((($AF27/$AF$45)*Z$45)*Z$23)+(($AF27/$AF$45)*Z$45)-((($AF27/$AF$45)*Z$45)*Z$23),IF(Z$25="Unfunded",(($AF27*(100%-$AI27))-((SUMPRODUCT(($C$24:$F$24)*($C$25:$F$25="Partially Funded")*($C$45:$F$45))/$AF$45)*$AF27))*(Z$48/(SUMIFS($C$48:$F$48,$C$25:$F$25,"Unfunded"))),IF(Z$25="Funded",(($AF27*$AI27)-((SUMPRODUCT(($C$23:$F$23)*($C$25:$F$25="Partially Funded")*($C$45:$F$45))/$AF$45)*$AF27))*(Z$47/(SUMIFS($C$47:$F$47,$C$25:$F$25,"Funded"))),0))) -> 0 | AA82: =IF(AA$25="Partially Funded",((($AF27/$AF$45)*AA$45)*AA$23)+(($AF27/$AF$45)*AA$45)-((($AF27/$AF$45)*AA$45)*AA$23),IF(AA$25="Unfunded",(($AF27*(100%-$AI27))-((SUMPRODUCT(($C$24:$F$24)*($C$25:$F$25="Partially Funded")*($C$45:$F$45))/$AF$45)*$AF27))*(AA$48/(SUMIFS($C$48:$F$48,$C$25:$F$25,"Unfunded"))),IF(AA$25="Funded",(($AF27*$AI27)-((SUMPRODUCT(($C$23:$F$23)*($C$25:$F$25="Partially Funded")*($C$45:$F$45))/$AF$45)*$AF27))*(AA$47/(SUMIFS($C$47:$F$47,$C$25:$F$25,"Funded"))),0))) -> 0 | AB82: =IF(AB$25="Partially Funded",((($AF27/$AF$45)*AB$45)*AB$23)+(($AF27/$AF$45)*AB$45)-((($AF27/$AF$45)*AB$45)*AB$23),IF(AB$25="Unfunded",(($AF27*(100%-$AI27))-((SUMPRODUCT(($C$24:$F$24)*($C$25:$F$25="Partially Funded")*($C$45:$F$45))/$AF$45)*$AF27))*(AB$48/(SUMIFS($C$48:$F$48,$C$25:$F$25,"Unfunded"))),IF(AB$25="Funded",(($AF27*$AI27)-((SUMPRODUCT(($C$23:$F$23)*($C$25:$F$25="Partially Funded")*($C$45:$F$45))/$AF$45)*$AF27))*(AB$47/(SUMIFS($C$47:$F$47,$C$25:$F$25,"Funded"))),0))) -> 0 | AC82: =IF(AC$25="Partially Funded",((($AF27/$AF$45)*AC$45)*AC$23)+(($AF27/$AF$45)*AC$45)-((($AF27/$AF$45)*AC$45)*AC$23),IF(AC$25="Unfunded",(($AF27*(100%-$AI27))-((SUMPRODUCT(($C$24:$F$24)*($C$25:$F$25="Partially Funded")*($C$45:$F$45))/$AF$45)*$AF27))*(AC$48/(SUMIFS($C$48:$F$48,$C$25:$F$25,"Unfunded"))),IF(AC$25="Funded",(($AF27*$AI27)-((SUMPRODUCT(($C$23:$F$23)*($C$25:$F$25="Partially Funded")*($C$45:$F$45))/$AF$45)*$AF27))*(AC$47/(SUMIFS($C$47:$F$47,$C$25:$F$25,"Funded"))),0))) -> 0 | AD82: =IF(AD$25="Partially Funded",((($AF27/$AF$45)*AD$45)*AD$23)+(($AF27/$AF$45)*AD$45)-((($AF27/$AF$45)*AD$45)*AD$23),IF(AD$25="Unfunded",(($AF27*(100%-$AI27))-((SUMPRODUCT(($C$24:$F$24)*($C$25:$F$25="Partially Funded")*($C$45:$F$45))/$AF$45)*$AF27))*(AD$48/(SUMIFS($C$48:$F$48,$C$25:$F$25,"Unfunded"))),IF(AD$25="Funded",(($AF27*$AI27)-((SUMPRODUCT(($C$23:$F$23)*($C$25:$F$25="Partially Funded")*($C$45:$F$45))/$AF$45)*$AF27))*(AD$47/(SUMIFS($C$47:$F$47,$C$25:$F$25,"Funded"))),0))) -> 0 | AE82: =IF(AE$25="Partially Funded",((($AF27/$AF$45)*AE$45)*AE$23)+(($AF27/$AF$45)*AE$45)-((($AF27/$AF$45)*AE$45)*AE$23),IF(AE$25="Unfunded",(($AF27*(100%-$AI27))-((SUMPRODUCT(($C$24:$F$24)*($C$25:$F$25="Partially Funded")*($C$45:$F$45))/$AF$45)*$AF27))*(AE$48/(SUMIFS($C$48:$F$48,$C$25:$F$25,"Unfunded"))),IF(AE$25="Funded",(($AF27*$AI27)-((SUMPRODUCT(($C$23:$F$23)*($C$25:$F$25="Partially Funded")*($C$45:$F$45))/$AF$45)*$AF27))*(AE$47/(SUMIFS($C$47:$F$47,$C$25:$F$25,"Funded"))),0))) -> 0 | AF82: =AF27 -> 0 | AG82: =IFERROR(SUM(_xlfn._xlws.FILTER($C82:$AE82,$C82:$AE82>0)*_xlfn._xlws.FILTER($C$23:$AE$23,$C82:$AE82>0))/($AF82),"n/a") -> n/a | AH82: =IFERROR(1-AG82,"n/a") -> n/a | BJ82: Structuring | BK82: 0 | BL82: =+BK82*$AF$46 -> 0
A83: =AF83 -> 0 | B83: Potential SLF V | C83: =IF(C$25="Partially Funded",((($AF28/$AF$45)*C$45)*C$23)+(($AF28/$AF$45)*C$45)-((($AF28/$AF$45)*C$45)*C$23),IF(C$25="Unfunded",(($AF28*(100%-$AI28))-((SUMPRODUCT(($C$24:$F$24)*($C$25:$F$25="Partially Funded")*($C$45:$F$45))/$AF$45)*$AF28))*(C$48/(SUMIFS($C$48:$F$48,$C$25:$F$25,"Unfunded"))),IF(C$25="Funded",(($AF28*$AI28)-((SUMPRODUCT(($C$23:$F$23)*($C$25:$F$25="Partially Funded")*($C$45:$F$45))/$AF$45)*$AF28))*(C$47/(SUMIFS($C$47:$F$47,$C$25:$F$25,"Funded"))),0))) -> 0 | D83: =IF(D$25="Partially Funded",((($AF28/$AF$45)*D$45)*D$23)+(($AF28/$AF$45)*D$45)-((($AF28/$AF$45)*D$45)*D$23),IF(D$25="Unfunded",(($AF28*(100%-$AI28))-((SUMPRODUCT(($C$24:$F$24)*($C$25:$F$25="Partially Funded")*($C$45:$F$45))/$AF$45)*$AF28))*(D$48/(SUMIFS($C$48:$F$48,$C$25:$F$25,"Unfunded"))),IF(D$25="Funded",(($AF28*$AI28)-((SUMPRODUCT(($C$23:$F$23)*($C$25:$F$25="Partially Funded")*($C$45:$F$45))/$AF$45)*$AF28))*(D$47/(SUMIFS($C$47:$F$47,$C$25:$F$25,"Funded"))),0))) -> 0 | E83: =IF(E$25="Partially Funded",((($AF28/$AF$45)*E$45)*E$23)+(($AF28/$AF$45)*E$45)-((($AF28/$AF$45)*E$45)*E$23),IF(E$25="Unfunded",(($AF28*(100%-$AI28))-((SUMPRODUCT(($C$24:$F$24)*($C$25:$F$25="Partially Funded")*($C$45:$F$45))/$AF$45)*$AF28))*(E$48/(SUMIFS($C$48:$F$48,$C$25:$F$25,"Unfunded"))),IF(E$25="Funded",(($AF28*$AI28)-((SUMPRODUCT(($C$23:$F$23)*($C$25:$F$25="Partially Funded")*($C$45:$F$45))/$AF$45)*$AF28))*(E$47/(SUMIFS($C$47:$F$47,$C$25:$F$25,"Funded"))),0))) -> 0 | F83: =IF(F$25="Partially Funded",((($AF28/$AF$45)*F$45)*F$23)+(($AF28/$AF$45)*F$45)-((($AF28/$AF$45)*F$45)*F$23),IF(F$25="Unfunded",(($AF28*(100%-$AI28))-((SUMPRODUCT(($C$24:$F$24)*($C$25:$F$25="Partially Funded")*($C$45:$F$45))/$AF$45)*$AF28))*(F$48/(SUMIFS($C$48:$F$48,$C$25:$F$25,"Unfunded"))),IF(F$25="Funded",(($AF28*$AI28)-((SUMPRODUCT(($C$23:$F$23)*($C$25:$F$25="Partially Funded")*($C$45:$F$45))/$AF$45)*$AF28))*(F$47/(SUMIFS($C$47:$F$47,$C$25:$F$25,"Funded"))),0))) -> 0 | G83: =IF(G$25="Partially Funded",((($AF28/$AF$45)*G$45)*G$23)+(($AF28/$AF$45)*G$45)-((($AF28/$AF$45)*G$45)*G$23),IF(G$25="Unfunded",(($AF28*(100%-$AI28))-((SUMPRODUCT(($C$24:$F$24)*($C$25:$F$25="Partially Funded")*($C$45:$F$45))/$AF$45)*$AF28))*(G$48/(SUMIFS($C$48:$F$48,$C$25:$F$25,"Unfunded"))),IF(G$25="Funded",(($AF28*$AI28)-((SUMPRODUCT(($C$23:$F$23)*($C$25:$F$25="Partially Funded")*($C$45:$F$45))/$AF$45)*$AF28))*(G$47/(SUMIFS($C$47:$F$47,$C$25:$F$25,"Funded"))),0))) -> 0 | H83: =IF(H$25="Partially Funded",((($AF28/$AF$45)*H$45)*H$23)+(($AF28/$AF$45)*H$45)-((($AF28/$AF$45)*H$45)*H$23),IF(H$25="Unfunded",(($AF28*(100%-$AI28))-((SUMPRODUCT(($C$24:$F$24)*($C$25:$F$25="Partially Funded")*($C$45:$F$45))/$AF$45)*$AF28))*(H$48/(SUMIFS($C$48:$F$48,$C$25:$F$25,"Unfunded"))),IF(H$25="Funded",(($AF28*$AI28)-((SUMPRODUCT(($C$23:$F$23)*($C$25:$F$25="Partially Funded")*($C$45:$F$45))/$AF$45)*$AF28))*(H$47/(SUMIFS($C$47:$F$47,$C$25:$F$25,"Funded"))),0))) -> 0 | I83: =IF(I$25="Partially Funded",((($AF28/$AF$45)*I$45)*I$23)+(($AF28/$AF$45)*I$45)-((($AF28/$AF$45)*I$45)*I$23),IF(I$25="Unfunded",(($AF28*(100%-$AI28))-((SUMPRODUCT(($C$24:$F$24)*($C$25:$F$25="Partially Funded")*($C$45:$F$45))/$AF$45)*$AF28))*(I$48/(SUMIFS($C$48:$F$48,$C$25:$F$25,"Unfunded"))),IF(I$25="Funded",(($AF28*$AI28)-((SUMPRODUCT(($C$23:$F$23)*($C$25:$F$25="Partially Funded")*($C$45:$F$45))/$AF$45)*$AF28))*(I$47/(SUMIFS($C$47:$F$47,$C$25:$F$25,"Funded"))),0))) -> 0 | J83: =IF(J$25="Partially Funded",((($AF28/$AF$45)*J$45)*J$23)+(($AF28/$AF$45)*J$45)-((($AF28/$AF$45)*J$45)*J$23),IF(J$25="Unfunded",(($AF28*(100%-$AI28))-((SUMPRODUCT(($C$24:$F$24)*($C$25:$F$25="Partially Funded")*($C$45:$F$45))/$AF$45)*$AF28))*(J$48/(SUMIFS($C$48:$F$48,$C$25:$F$25,"Unfunded"))),IF(J$25="Funded",(($AF28*$AI28)-((SUMPRODUCT(($C$23:$F$23)*($C$25:$F$25="Partially Funded")*($C$45:$F$45))/$AF$45)*$AF28))*(J$47/(SUMIFS($C$47:$F$47,$C$25:$F$25,"Funded"))),0))) -> 0 | K83: =IF(K$25="Partially Funded",((($AF28/$AF$45)*K$45)*K$23)+(($AF28/$AF$45)*K$45)-((($AF28/$AF$45)*K$45)*K$23),IF(K$25="Unfunded",(($AF28*(100%-$AI28))-((SUMPRODUCT(($C$24:$F$24)*($C$25:$F$25="Partially Funded")*($C$45:$F$45))/$AF$45)*$AF28))*(K$48/(SUMIFS($C$48:$F$48,$C$25:$F$25,"Unfunded"))),IF(K$25="Funded",(($AF28*$AI28)-((SUMPRODUCT(($C$23:$F$23)*($C$25:$F$25="Partially Funded")*($C$45:$F$45))/$AF$45)*$AF28))*(K$47/(SUMIFS($C$47:$F$47,$C$25:$F$25,"Funded"))),0))) -> 0 | L83: =IF(L$25="Partially Funded",((($AF28/$AF$45)*L$45)*L$23)+(($AF28/$AF$45)*L$45)-((($AF28/$AF$45)*L$45)*L$23),IF(L$25="Unfunded",(($AF28*(100%-$AI28))-((SUMPRODUCT(($C$24:$F$24)*($C$25:$F$25="Partially Funded")*($C$45:$F$45))/$AF$45)*$AF28))*(L$48/(SUMIFS($C$48:$F$48,$C$25:$F$25,"Unfunded"))),IF(L$25="Funded",(($AF28*$AI28)-((SUMPRODUCT(($C$23:$F$23)*($C$25:$F$25="Partially Funded")*($C$45:$F$45))/$AF$45)*$AF28))*(L$47/(SUMIFS($C$47:$F$47,$C$25:$F$25,"Funded"))),0))) -> 0 | M83: =IF(M$25="Partially Funded",((($AF28/$AF$45)*M$45)*M$23)+(($AF28/$AF$45)*M$45)-((($AF28/$AF$45)*M$45)*M$23),IF(M$25="Unfunded",(($AF28*(100%-$AI28))-((SUMPRODUCT(($C$24:$F$24)*($C$25:$F$25="Partially Funded")*($C$45:$F$45))/$AF$45)*$AF28))*(M$48/(SUMIFS($C$48:$F$48,$C$25:$F$25,"Unfunded"))),IF(M$25="Funded",(($AF28*$AI28)-((SUMPRODUCT(($C$23:$F$23)*($C$25:$F$25="Partially Funded")*($C$45:$F$45))/$AF$45)*$AF28))*(M$47/(SUMIFS($C$47:$F$47,$C$25:$F$25,"Funded"))),0))) -> 0 | N83: =IF(N$25="Partially Funded",((($AF28/$AF$45)*N$45)*N$23)+(($AF28/$AF$45)*N$45)-((($AF28/$AF$45)*N$45)*N$23),IF(N$25="Unfunded",(($AF28*(100%-$AI28))-((SUMPRODUCT(($C$24:$F$24)*($C$25:$F$25="Partially Funded")*($C$45:$F$45))/$AF$45)*$AF28))*(N$48/(SUMIFS($C$48:$F$48,$C$25:$F$25,"Unfunded"))),IF(N$25="Funded",(($AF28*$AI28)-((SUMPRODUCT(($C$23:$F$23)*($C$25:$F$25="Partially Funded")*($C$45:$F$45))/$AF$45)*$AF28))*(N$47/(SUMIFS($C$47:$F$47,$C$25:$F$25,"Funded"))),0))) -> 0 | O83: =IF(O$25="Partially Funded",((($AF28/$AF$45)*O$45)*O$23)+(($AF28/$AF$45)*O$45)-((($AF28/$AF$45)*O$45)*O$23),IF(O$25="Unfunded",(($AF28*(100%-$AI28))-((SUMPRODUCT(($C$24:$F$24)*($C$25:$F$25="Partially Funded")*($C$45:$F$45))/$AF$45)*$AF28))*(O$48/(SUMIFS($C$48:$F$48,$C$25:$F$25,"Unfunded"))),IF(O$25="Funded",(($AF28*$AI28)-((SUMPRODUCT(($C$23:$F$23)*($C$25:$F$25="Partially Funded")*($C$45:$F$45))/$AF$45)*$AF28))*(O$47/(SUMIFS($C$47:$F$47,$C$25:$F$25,"Funded"))),0))) -> 0 | P83: =IF(P$25="Partially Funded",((($AF28/$AF$45)*P$45)*P$23)+(($AF28/$AF$45)*P$45)-((($AF28/$AF$45)*P$45)*P$23),IF(P$25="Unfunded",(($AF28*(100%-$AI28))-((SUMPRODUCT(($C$24:$F$24)*($C$25:$F$25="Partially Funded")*($C$45:$F$45))/$AF$45)*$AF28))*(P$48/(SUMIFS($C$48:$F$48,$C$25:$F$25,"Unfunded"))),IF(P$25="Funded",(($AF28*$AI28)-((SUMPRODUCT(($C$23:$F$23)*($C$25:$F$25="Partially Funded")*($C$45:$F$45))/$AF$45)*$AF28))*(P$47/(SUMIFS($C$47:$F$47,$C$25:$F$25,"Funded"))),0))) -> 0 | Q83: =IF(Q$25="Partially Funded",((($AF28/$AF$45)*Q$45)*Q$23)+(($AF28/$AF$45)*Q$45)-((($AF28/$AF$45)*Q$45)*Q$23),IF(Q$25="Unfunded",(($AF28*(100%-$AI28))-((SUMPRODUCT(($C$24:$F$24)*($C$25:$F$25="Partially Funded")*($C$45:$F$45))/$AF$45)*$AF28))*(Q$48/(SUMIFS($C$48:$F$48,$C$25:$F$25,"Unfunded"))),IF(Q$25="Funded",(($AF28*$AI28)-((SUMPRODUCT(($C$23:$F$23)*($C$25:$F$25="Partially Funded")*($C$45:$F$45))/$AF$45)*$AF28))*(Q$47/(SUMIFS($C$47:$F$47,$C$25:$F$25,"Funded"))),0))) -> 0 | R83: =IF(R$25="Partially Funded",((($AF28/$AF$45)*R$45)*R$23)+(($AF28/$AF$45)*R$45)-((($AF28/$AF$45)*R$45)*R$23),IF(R$25="Unfunded",(($AF28*(100%-$AI28))-((SUMPRODUCT(($C$24:$F$24)*($C$25:$F$25="Partially Funded")*($C$45:$F$45))/$AF$45)*$AF28))*(R$48/(SUMIFS($C$48:$F$48,$C$25:$F$25,"Unfunded"))),IF(R$25="Funded",(($AF28*$AI28)-((SUMPRODUCT(($C$23:$F$23)*($C$25:$F$25="Partially Funded")*($C$45:$F$45))/$AF$45)*$AF28))*(R$47/(SUMIFS($C$47:$F$47,$C$25:$F$25,"Funded"))),0))) -> 0 | S83: =IF(S$25="Partially Funded",((($AF28/$AF$45)*S$45)*S$23)+(($AF28/$AF$45)*S$45)-((($AF28/$AF$45)*S$45)*S$23),IF(S$25="Unfunded",(($AF28*(100%-$AI28))-((SUMPRODUCT(($C$24:$F$24)*($C$25:$F$25="Partially Funded")*($C$45:$F$45))/$AF$45)*$AF28))*(S$48/(SUMIFS($C$48:$F$48,$C$25:$F$25,"Unfunded"))),IF(S$25="Funded",(($AF28*$AI28)-((SUMPRODUCT(($C$23:$F$23)*($C$25:$F$25="Partially Funded")*($C$45:$F$45))/$AF$45)*$AF28))*(S$47/(SUMIFS($C$47:$F$47,$C$25:$F$25,"Funded"))),0))) -> 0 | T83: =IF(T$25="Partially Funded",((($AF28/$AF$45)*T$45)*T$23)+(($AF28/$AF$45)*T$45)-((($AF28/$AF$45)*T$45)*T$23),IF(T$25="Unfunded",(($AF28*(100%-$AI28))-((SUMPRODUCT(($C$24:$F$24)*($C$25:$F$25="Partially Funded")*($C$45:$F$45))/$AF$45)*$AF28))*(T$48/(SUMIFS($C$48:$F$48,$C$25:$F$25,"Unfunded"))),IF(T$25="Funded",(($AF28*$AI28)-((SUMPRODUCT(($C$23:$F$23)*($C$25:$F$25="Partially Funded")*($C$45:$F$45))/$AF$45)*$AF28))*(T$47/(SUMIFS($C$47:$F$47,$C$25:$F$25,"Funded"))),0))) -> 0 | U83: =IF(U$25="Partially Funded",((($AF28/$AF$45)*U$45)*U$23)+(($AF28/$AF$45)*U$45)-((($AF28/$AF$45)*U$45)*U$23),IF(U$25="Unfunded",(($AF28*(100%-$AI28))-((SUMPRODUCT(($C$24:$F$24)*($C$25:$F$25="Partially Funded")*($C$45:$F$45))/$AF$45)*$AF28))*(U$48/(SUMIFS($C$48:$F$48,$C$25:$F$25,"Unfunded"))),IF(U$25="Funded",(($AF28*$AI28)-((SUMPRODUCT(($C$23:$F$23)*($C$25:$F$25="Partially Funded")*($C$45:$F$45))/$AF$45)*$AF28))*(U$47/(SUMIFS($C$47:$F$47,$C$25:$F$25,"Funded"))),0))) -> 0 | V83: =IF(V$25="Partially Funded",((($AF28/$AF$45)*V$45)*V$23)+(($AF28/$AF$45)*V$45)-((($AF28/$AF$45)*V$45)*V$23),IF(V$25="Unfunded",(($AF28*(100%-$AI28))-((SUMPRODUCT(($C$24:$F$24)*($C$25:$F$25="Partially Funded")*($C$45:$F$45))/$AF$45)*$AF28))*(V$48/(SUMIFS($C$48:$F$48,$C$25:$F$25,"Unfunded"))),IF(V$25="Funded",(($AF28*$AI28)-((SUMPRODUCT(($C$23:$F$23)*($C$25:$F$25="Partially Funded")*($C$45:$F$45))/$AF$45)*$AF28))*(V$47/(SUMIFS($C$47:$F$47,$C$25:$F$25,"Funded"))),0))) -> 0 | W83: =IF(W$25="Partially Funded",((($AF28/$AF$45)*W$45)*W$23)+(($AF28/$AF$45)*W$45)-((($AF28/$AF$45)*W$45)*W$23),IF(W$25="Unfunded",(($AF28*(100%-$AI28))-((SUMPRODUCT(($C$24:$F$24)*($C$25:$F$25="Partially Funded")*($C$45:$F$45))/$AF$45)*$AF28))*(W$48/(SUMIFS($C$48:$F$48,$C$25:$F$25,"Unfunded"))),IF(W$25="Funded",(($AF28*$AI28)-((SUMPRODUCT(($C$23:$F$23)*($C$25:$F$25="Partially Funded")*($C$45:$F$45))/$AF$45)*$AF28))*(W$47/(SUMIFS($C$47:$F$47,$C$25:$F$25,"Funded"))),0))) -> 0 | X83: =IF(X$25="Partially Funded",((($AF28/$AF$45)*X$45)*X$23)+(($AF28/$AF$45)*X$45)-((($AF28/$AF$45)*X$45)*X$23),IF(X$25="Unfunded",(($AF28*(100%-$AI28))-((SUMPRODUCT(($C$24:$F$24)*($C$25:$F$25="Partially Funded")*($C$45:$F$45))/$AF$45)*$AF28))*(X$48/(SUMIFS($C$48:$F$48,$C$25:$F$25,"Unfunded"))),IF(X$25="Funded",(($AF28*$AI28)-((SUMPRODUCT(($C$23:$F$23)*($C$25:$F$25="Partially Funded")*($C$45:$F$45))/$AF$45)*$AF28))*(X$47/(SUMIFS($C$47:$F$47,$C$25:$F$25,"Funded"))),0))) -> 0 | Y83: =IF(Y$25="Partially Funded",((($AF28/$AF$45)*Y$45)*Y$23)+(($AF28/$AF$45)*Y$45)-((($AF28/$AF$45)*Y$45)*Y$23),IF(Y$25="Unfunded",(($AF28*(100%-$AI28))-((SUMPRODUCT(($C$24:$F$24)*($C$25:$F$25="Partially Funded")*($C$45:$F$45))/$AF$45)*$AF28))*(Y$48/(SUMIFS($C$48:$F$48,$C$25:$F$25,"Unfunded"))),IF(Y$25="Funded",(($AF28*$AI28)-((SUMPRODUCT(($C$23:$F$23)*($C$25:$F$25="Partially Funded")*($C$45:$F$45))/$AF$45)*$AF28))*(Y$47/(SUMIFS($C$47:$F$47,$C$25:$F$25,"Funded"))),0))) -> 0 | Z83: =IF(Z$25="Partially Funded",((($AF28/$AF$45)*Z$45)*Z$23)+(($AF28/$AF$45)*Z$45)-((($AF28/$AF$45)*Z$45)*Z$23),IF(Z$25="Unfunded",(($AF28*(100%-$AI28))-((SUMPRODUCT(($C$24:$F$24)*($C$25:$F$25="Partially Funded")*($C$45:$F$45))/$AF$45)*$AF28))*(Z$48/(SUMIFS($C$48:$F$48,$C$25:$F$25,"Unfunded"))),IF(Z$25="Funded",(($AF28*$AI28)-((SUMPRODUCT(($C$23:$F$23)*($C$25:$F$25="Partially Funded")*($C$45:$F$45))/$AF$45)*$AF28))*(Z$47/(SUMIFS($C$47:$F$47,$C$25:$F$25,"Funded"))),0))) -> 0 | AA83: =IF(AA$25="Partially Funded",((($AF28/$AF$45)*AA$45)*AA$23)+(($AF28/$AF$45)*AA$45)-((($AF28/$AF$45)*AA$45)*AA$23),IF(AA$25="Unfunded",(($AF28*(100%-$AI28))-((SUMPRODUCT(($C$24:$F$24)*($C$25:$F$25="Partially Funded")*($C$45:$F$45))/$AF$45)*$AF28))*(AA$48/(SUMIFS($C$48:$F$48,$C$25:$F$25,"Unfunded"))),IF(AA$25="Funded",(($AF28*$AI28)-((SUMPRODUCT(($C$23:$F$23)*($C$25:$F$25="Partially Funded")*($C$45:$F$45))/$AF$45)*$AF28))*(AA$47/(SUMIFS($C$47:$F$47,$C$25:$F$25,"Funded"))),0))) -> 0 | AB83: =IF(AB$25="Partially Funded",((($AF28/$AF$45)*AB$45)*AB$23)+(($AF28/$AF$45)*AB$45)-((($AF28/$AF$45)*AB$45)*AB$23),IF(AB$25="Unfunded",(($AF28*(100%-$AI28))-((SUMPRODUCT(($C$24:$F$24)*($C$25:$F$25="Partially Funded")*($C$45:$F$45))/$AF$45)*$AF28))*(AB$48/(SUMIFS($C$48:$F$48,$C$25:$F$25,"Unfunded"))),IF(AB$25="Funded",(($AF28*$AI28)-((SUMPRODUCT(($C$23:$F$23)*($C$25:$F$25="Partially Funded")*($C$45:$F$45))/$AF$45)*$AF28))*(AB$47/(SUMIFS($C$47:$F$47,$C$25:$F$25,"Funded"))),0))) -> 0 | AC83: =IF(AC$25="Partially Funded",((($AF28/$AF$45)*AC$45)*AC$23)+(($AF28/$AF$45)*AC$45)-((($AF28/$AF$45)*AC$45)*AC$23),IF(AC$25="Unfunded",(($AF28*(100%-$AI28))-((SUMPRODUCT(($C$24:$F$24)*($C$25:$F$25="Partially Funded")*($C$45:$F$45))/$AF$45)*$AF28))*(AC$48/(SUMIFS($C$48:$F$48,$C$25:$F$25,"Unfunded"))),IF(AC$25="Funded",(($AF28*$AI28)-((SUMPRODUCT(($C$23:$F$23)*($C$25:$F$25="Partially Funded")*($C$45:$F$45))/$AF$45)*$AF28))*(AC$47/(SUMIFS($C$47:$F$47,$C$25:$F$25,"Funded"))),0))) -> 0 | AD83: =IF(AD$25="Partially Funded",((($AF28/$AF$45)*AD$45)*AD$23)+(($AF28/$AF$45)*AD$45)-((($AF28/$AF$45)*AD$45)*AD$23),IF(AD$25="Unfunded",(($AF28*(100%-$AI28))-((SUMPRODUCT(($C$24:$F$24)*($C$25:$F$25="Partially Funded")*($C$45:$F$45))/$AF$45)*$AF28))*(AD$48/(SUMIFS($C$48:$F$48,$C$25:$F$25,"Unfunded"))),IF(AD$25="Funded",(($AF28*$AI28)-((SUMPRODUCT(($C$23:$F$23)*($C$25:$F$25="Partially Funded")*($C$45:$F$45))/$AF$45)*$AF28))*(AD$47/(SUMIFS($C$47:$F$47,$C$25:$F$25,"Funded"))),0))) -> 0 | AE83: =IF(AE$25="Partially Funded",((($AF28/$AF$45)*AE$45)*AE$23)+(($AF28/$AF$45)*AE$45)-((($AF28/$AF$45)*AE$45)*AE$23),IF(AE$25="Unfunded",(($AF28*(100%-$AI28))-((SUMPRODUCT(($C$24:$F$24)*($C$25:$F$25="Partially Funded")*($C$45:$F$45))/$AF$45)*$AF28))*(AE$48/(SUMIFS($C$48:$F$48,$C$25:$F$25,"Unfunded"))),IF(AE$25="Funded",(($AF28*$AI28)-((SUMPRODUCT(($C$23:$F$23)*($C$25:$F$25="Partially Funded")*($C$45:$F$45))/$AF$45)*$AF28))*(AE$47/(SUMIFS($C$47:$F$47,$C$25:$F$25,"Funded"))),0))) -> 0 | AF83: 0 | AG83: =IFERROR(SUM(_xlfn._xlws.FILTER($C83:$AE83,$C83:$AE83>0)*_xlfn._xlws.FILTER($C$23:$AE$23,$C83:$AE83>0))/($AF83),"n/a") -> n/a | AH83: n/a | BJ83: Agency | BK83: 0 | BL83: =BK83*$AF$45 -> 0
A84: 0 | B84: Potential SLF VI L | C84: =IF(C$25="Partially Funded",((($AF29/$AF$45)*C$45)*C$23)+(($AF29/$AF$45)*C$45)-((($AF29/$AF$45)*C$45)*C$23),IF(C$25="Unfunded",(($AF29*(100%-$AI29))-((SUMPRODUCT(($C$24:$F$24)*($C$25:$F$25="Partially Funded")*($C$45:$F$45))/$AF$45)*$AF29))*(C$48/(SUMIFS($C$48:$F$48,$C$25:$F$25,"Unfunded"))),IF(C$25="Funded",(($AF29*$AI29)-((SUMPRODUCT(($C$23:$F$23)*($C$25:$F$25="Partially Funded")*($C$45:$F$45))/$AF$45)*$AF29))*(C$47/(SUMIFS($C$47:$F$47,$C$25:$F$25,"Funded"))),0))) -> 0 | D84: =IF(D$25="Partially Funded",((($AF29/$AF$45)*D$45)*D$23)+(($AF29/$AF$45)*D$45)-((($AF29/$AF$45)*D$45)*D$23),IF(D$25="Unfunded",(($AF29*(100%-$AI29))-((SUMPRODUCT(($C$24:$F$24)*($C$25:$F$25="Partially Funded")*($C$45:$F$45))/$AF$45)*$AF29))*(D$48/(SUMIFS($C$48:$F$48,$C$25:$F$25,"Unfunded"))),IF(D$25="Funded",(($AF29*$AI29)-((SUMPRODUCT(($C$23:$F$23)*($C$25:$F$25="Partially Funded")*($C$45:$F$45))/$AF$45)*$AF29))*(D$47/(SUMIFS($C$47:$F$47,$C$25:$F$25,"Funded"))),0))) -> 0 | E84: =IF(E$25="Partially Funded",((($AF29/$AF$45)*E$45)*E$23)+(($AF29/$AF$45)*E$45)-((($AF29/$AF$45)*E$45)*E$23),IF(E$25="Unfunded",(($AF29*(100%-$AI29))-((SUMPRODUCT(($C$24:$F$24)*($C$25:$F$25="Partially Funded")*($C$45:$F$45))/$AF$45)*$AF29))*(E$48/(SUMIFS($C$48:$F$48,$C$25:$F$25,"Unfunded"))),IF(E$25="Funded",(($AF29*$AI29)-((SUMPRODUCT(($C$23:$F$23)*($C$25:$F$25="Partially Funded")*($C$45:$F$45))/$AF$45)*$AF29))*(E$47/(SUMIFS($C$47:$F$47,$C$25:$F$25,"Funded"))),0))) -> 0 | F84: =IF(F$25="Partially Funded",((($AF29/$AF$45)*F$45)*F$23)+(($AF29/$AF$45)*F$45)-((($AF29/$AF$45)*F$45)*F$23),IF(F$25="Unfunded",(($AF29*(100%-$AI29))-((SUMPRODUCT(($C$24:$F$24)*($C$25:$F$25="Partially Funded")*($C$45:$F$45))/$AF$45)*$AF29))*(F$48/(SUMIFS($C$48:$F$48,$C$25:$F$25,"Unfunded"))),IF(F$25="Funded",(($AF29*$AI29)-((SUMPRODUCT(($C$23:$F$23)*($C$25:$F$25="Partially Funded")*($C$45:$F$45))/$AF$45)*$AF29))*(F$47/(SUMIFS($C$47:$F$47,$C$25:$F$25,"Funded"))),0))) -> 0 | G84: =IF(G$25="Partially Funded",((($AF29/$AF$45)*G$45)*G$23)+(($AF29/$AF$45)*G$45)-((($AF29/$AF$45)*G$45)*G$23),IF(G$25="Unfunded",(($AF29*(100%-$AI29))-((SUMPRODUCT(($C$24:$F$24)*($C$25:$F$25="Partially Funded")*($C$45:$F$45))/$AF$45)*$AF29))*(G$48/(SUMIFS($C$48:$F$48,$C$25:$F$25,"Unfunded"))),IF(G$25="Funded",(($AF29*$AI29)-((SUMPRODUCT(($C$23:$F$23)*($C$25:$F$25="Partially Funded")*($C$45:$F$45))/$AF$45)*$AF29))*(G$47/(SUMIFS($C$47:$F$47,$C$25:$F$25,"Funded"))),0))) -> 0 | H84: =IF(H$25="Partially Funded",((($AF29/$AF$45)*H$45)*H$23)+(($AF29/$AF$45)*H$45)-((($AF29/$AF$45)*H$45)*H$23),IF(H$25="Unfunded",(($AF29*(100%-$AI29))-((SUMPRODUCT(($C$24:$F$24)*($C$25:$F$25="Partially Funded")*($C$45:$F$45))/$AF$45)*$AF29))*(H$48/(SUMIFS($C$48:$F$48,$C$25:$F$25,"Unfunded"))),IF(H$25="Funded",(($AF29*$AI29)-((SUMPRODUCT(($C$23:$F$23)*($C$25:$F$25="Partially Funded")*($C$45:$F$45))/$AF$45)*$AF29))*(H$47/(SUMIFS($C$47:$F$47,$C$25:$F$25,"Funded"))),0))) -> 0 | I84: =IF(I$25="Partially Funded",((($AF29/$AF$45)*I$45)*I$23)+(($AF29/$AF$45)*I$45)-((($AF29/$AF$45)*I$45)*I$23),IF(I$25="Unfunded",(($AF29*(100%-$AI29))-((SUMPRODUCT(($C$24:$F$24)*($C$25:$F$25="Partially Funded")*($C$45:$F$45))/$AF$45)*$AF29))*(I$48/(SUMIFS($C$48:$F$48,$C$25:$F$25,"Unfunded"))),IF(I$25="Funded",(($AF29*$AI29)-((SUMPRODUCT(($C$23:$F$23)*($C$25:$F$25="Partially Funded")*($C$45:$F$45))/$AF$45)*$AF29))*(I$47/(SUMIFS($C$47:$F$47,$C$25:$F$25,"Funded"))),0))) -> 0 | J84: =IF(J$25="Partially Funded",((($AF29/$AF$45)*J$45)*J$23)+(($AF29/$AF$45)*J$45)-((($AF29/$AF$45)*J$45)*J$23),IF(J$25="Unfunded",(($AF29*(100%-$AI29))-((SUMPRODUCT(($C$24:$F$24)*($C$25:$F$25="Partially Funded")*($C$45:$F$45))/$AF$45)*$AF29))*(J$48/(SUMIFS($C$48:$F$48,$C$25:$F$25,"Unfunded"))),IF(J$25="Funded",(($AF29*$AI29)-((SUMPRODUCT(($C$23:$F$23)*($C$25:$F$25="Partially Funded")*($C$45:$F$45))/$AF$45)*$AF29))*(J$47/(SUMIFS($C$47:$F$47,$C$25:$F$25,"Funded"))),0))) -> 0 | K84: =IF(K$25="Partially Funded",((($AF29/$AF$45)*K$45)*K$23)+(($AF29/$AF$45)*K$45)-((($AF29/$AF$45)*K$45)*K$23),IF(K$25="Unfunded",(($AF29*(100%-$AI29))-((SUMPRODUCT(($C$24:$F$24)*($C$25:$F$25="Partially Funded")*($C$45:$F$45))/$AF$45)*$AF29))*(K$48/(SUMIFS($C$48:$F$48,$C$25:$F$25,"Unfunded"))),IF(K$25="Funded",(($AF29*$AI29)-((SUMPRODUCT(($C$23:$F$23)*($C$25:$F$25="Partially Funded")*($C$45:$F$45))/$AF$45)*$AF29))*(K$47/(SUMIFS($C$47:$F$47,$C$25:$F$25,"Funded"))),0))) -> 0 | L84: =IF(L$25="Partially Funded",((($AF29/$AF$45)*L$45)*L$23)+(($AF29/$AF$45)*L$45)-((($AF29/$AF$45)*L$45)*L$23),IF(L$25="Unfunded",(($AF29*(100%-$AI29))-((SUMPRODUCT(($C$24:$F$24)*($C$25:$F$25="Partially Funded")*($C$45:$F$45))/$AF$45)*$AF29))*(L$48/(SUMIFS($C$48:$F$48,$C$25:$F$25,"Unfunded"))),IF(L$25="Funded",(($AF29*$AI29)-((SUMPRODUCT(($C$23:$F$23)*($C$25:$F$25="Partially Funded")*($C$45:$F$45))/$AF$45)*$AF29))*(L$47/(SUMIFS($C$47:$F$47,$C$25:$F$25,"Funded"))),0))) -> 0 | M84: =IF(M$25="Partially Funded",((($AF29/$AF$45)*M$45)*M$23)+(($AF29/$AF$45)*M$45)-((($AF29/$AF$45)*M$45)*M$23),IF(M$25="Unfunded",(($AF29*(100%-$AI29))-((SUMPRODUCT(($C$24:$F$24)*($C$25:$F$25="Partially Funded")*($C$45:$F$45))/$AF$45)*$AF29))*(M$48/(SUMIFS($C$48:$F$48,$C$25:$F$25,"Unfunded"))),IF(M$25="Funded",(($AF29*$AI29)-((SUMPRODUCT(($C$23:$F$23)*($C$25:$F$25="Partially Funded")*($C$45:$F$45))/$AF$45)*$AF29))*(M$47/(SUMIFS($C$47:$F$47,$C$25:$F$25,"Funded"))),0))) -> 0 | N84: =IF(N$25="Partially Funded",((($AF29/$AF$45)*N$45)*N$23)+(($AF29/$AF$45)*N$45)-((($AF29/$AF$45)*N$45)*N$23),IF(N$25="Unfunded",(($AF29*(100%-$AI29))-((SUMPRODUCT(($C$24:$F$24)*($C$25:$F$25="Partially Funded")*($C$45:$F$45))/$AF$45)*$AF29))*(N$48/(SUMIFS($C$48:$F$48,$C$25:$F$25,"Unfunded"))),IF(N$25="Funded",(($AF29*$AI29)-((SUMPRODUCT(($C$23:$F$23)*($C$25:$F$25="Partially Funded")*($C$45:$F$45))/$AF$45)*$AF29))*(N$47/(SUMIFS($C$47:$F$47,$C$25:$F$25,"Funded"))),0))) -> 0 | O84: =IF(O$25="Partially Funded",((($AF29/$AF$45)*O$45)*O$23)+(($AF29/$AF$45)*O$45)-((($AF29/$AF$45)*O$45)*O$23),IF(O$25="Unfunded",(($AF29*(100%-$AI29))-((SUMPRODUCT(($C$24:$F$24)*($C$25:$F$25="Partially Funded")*($C$45:$F$45))/$AF$45)*$AF29))*(O$48/(SUMIFS($C$48:$F$48,$C$25:$F$25,"Unfunded"))),IF(O$25="Funded",(($AF29*$AI29)-((SUMPRODUCT(($C$23:$F$23)*($C$25:$F$25="Partially Funded")*($C$45:$F$45))/$AF$45)*$AF29))*(O$47/(SUMIFS($C$47:$F$47,$C$25:$F$25,"Funded"))),0))) -> 0 | P84: =IF(P$25="Partially Funded",((($AF29/$AF$45)*P$45)*P$23)+(($AF29/$AF$45)*P$45)-((($AF29/$AF$45)*P$45)*P$23),IF(P$25="Unfunded",(($AF29*(100%-$AI29))-((SUMPRODUCT(($C$24:$F$24)*($C$25:$F$25="Partially Funded")*($C$45:$F$45))/$AF$45)*$AF29))*(P$48/(SUMIFS($C$48:$F$48,$C$25:$F$25,"Unfunded"))),IF(P$25="Funded",(($AF29*$AI29)-((SUMPRODUCT(($C$23:$F$23)*($C$25:$F$25="Partially Funded")*($C$45:$F$45))/$AF$45)*$AF29))*(P$47/(SUMIFS($C$47:$F$47,$C$25:$F$25,"Funded"))),0))) -> 0 | Q84: =IF(Q$25="Partially Funded",((($AF29/$AF$45)*Q$45)*Q$23)+(($AF29/$AF$45)*Q$45)-((($AF29/$AF$45)*Q$45)*Q$23),IF(Q$25="Unfunded",(($AF29*(100%-$AI29))-((SUMPRODUCT(($C$24:$F$24)*($C$25:$F$25="Partially Funded")*($C$45:$F$45))/$AF$45)*$AF29))*(Q$48/(SUMIFS($C$48:$F$48,$C$25:$F$25,"Unfunded"))),IF(Q$25="Funded",(($AF29*$AI29)-((SUMPRODUCT(($C$23:$F$23)*($C$25:$F$25="Partially Funded")*($C$45:$F$45))/$AF$45)*$AF29))*(Q$47/(SUMIFS($C$47:$F$47,$C$25:$F$25,"Funded"))),0))) -> 0 | R84: =IF(R$25="Partially Funded",((($AF29/$AF$45)*R$45)*R$23)+(($AF29/$AF$45)*R$45)-((($AF29/$AF$45)*R$45)*R$23),IF(R$25="Unfunded",(($AF29*(100%-$AI29))-((SUMPRODUCT(($C$24:$F$24)*($C$25:$F$25="Partially Funded")*($C$45:$F$45))/$AF$45)*$AF29))*(R$48/(SUMIFS($C$48:$F$48,$C$25:$F$25,"Unfunded"))),IF(R$25="Funded",(($AF29*$AI29)-((SUMPRODUCT(($C$23:$F$23)*($C$25:$F$25="Partially Funded")*($C$45:$F$45))/$AF$45)*$AF29))*(R$47/(SUMIFS($C$47:$F$47,$C$25:$F$25,"Funded"))),0))) -> 0 | S84: =IF(S$25="Partially Funded",((($AF29/$AF$45)*S$45)*S$23)+(($AF29/$AF$45)*S$45)-((($AF29/$AF$45)*S$45)*S$23),IF(S$25="Unfunded",(($AF29*(100%-$AI29))-((SUMPRODUCT(($C$24:$F$24)*($C$25:$F$25="Partially Funded")*($C$45:$F$45))/$AF$45)*$AF29))*(S$48/(SUMIFS($C$48:$F$48,$C$25:$F$25,"Unfunded"))),IF(S$25="Funded",(($AF29*$AI29)-((SUMPRODUCT(($C$23:$F$23)*($C$25:$F$25="Partially Funded")*($C$45:$F$45))/$AF$45)*$AF29))*(S$47/(SUMIFS($C$47:$F$47,$C$25:$F$25,"Funded"))),0))) -> 0 | T84: =IF(T$25="Partially Funded",((($AF29/$AF$45)*T$45)*T$23)+(($AF29/$AF$45)*T$45)-((($AF29/$AF$45)*T$45)*T$23),IF(T$25="Unfunded",(($AF29*(100%-$AI29))-((SUMPRODUCT(($C$24:$F$24)*($C$25:$F$25="Partially Funded")*($C$45:$F$45))/$AF$45)*$AF29))*(T$48/(SUMIFS($C$48:$F$48,$C$25:$F$25,"Unfunded"))),IF(T$25="Funded",(($AF29*$AI29)-((SUMPRODUCT(($C$23:$F$23)*($C$25:$F$25="Partially Funded")*($C$45:$F$45))/$AF$45)*$AF29))*(T$47/(SUMIFS($C$47:$F$47,$C$25:$F$25,"Funded"))),0))) -> 0 | U84: =IF(U$25="Partially Funded",((($AF29/$AF$45)*U$45)*U$23)+(($AF29/$AF$45)*U$45)-((($AF29/$AF$45)*U$45)*U$23),IF(U$25="Unfunded",(($AF29*(100%-$AI29))-((SUMPRODUCT(($C$24:$F$24)*($C$25:$F$25="Partially Funded")*($C$45:$F$45))/$AF$45)*$AF29))*(U$48/(SUMIFS($C$48:$F$48,$C$25:$F$25,"Unfunded"))),IF(U$25="Funded",(($AF29*$AI29)-((SUMPRODUCT(($C$23:$F$23)*($C$25:$F$25="Partially Funded")*($C$45:$F$45))/$AF$45)*$AF29))*(U$47/(SUMIFS($C$47:$F$47,$C$25:$F$25,"Funded"))),0))) -> 0 | V84: =IF(V$25="Partially Funded",((($AF29/$AF$45)*V$45)*V$23)+(($AF29/$AF$45)*V$45)-((($AF29/$AF$45)*V$45)*V$23),IF(V$25="Unfunded",(($AF29*(100%-$AI29))-((SUMPRODUCT(($C$24:$F$24)*($C$25:$F$25="Partially Funded")*($C$45:$F$45))/$AF$45)*$AF29))*(V$48/(SUMIFS($C$48:$F$48,$C$25:$F$25,"Unfunded"))),IF(V$25="Funded",(($AF29*$AI29)-((SUMPRODUCT(($C$23:$F$23)*($C$25:$F$25="Partially Funded")*($C$45:$F$45))/$AF$45)*$AF29))*(V$47/(SUMIFS($C$47:$F$47,$C$25:$F$25,"Funded"))),0))) -> 0 | W84: =IF(W$25="Partially Funded",((($AF29/$AF$45)*W$45)*W$23)+(($AF29/$AF$45)*W$45)-((($AF29/$AF$45)*W$45)*W$23),IF(W$25="Unfunded",(($AF29*(100%-$AI29))-((SUMPRODUCT(($C$24:$F$24)*($C$25:$F$25="Partially Funded")*($C$45:$F$45))/$AF$45)*$AF29))*(W$48/(SUMIFS($C$48:$F$48,$C$25:$F$25,"Unfunded"))),IF(W$25="Funded",(($AF29*$AI29)-((SUMPRODUCT(($C$23:$F$23)*($C$25:$F$25="Partially Funded")*($C$45:$F$45))/$AF$45)*$AF29))*(W$47/(SUMIFS($C$47:$F$47,$C$25:$F$25,"Funded"))),0))) -> 0 | X84: =IF(X$25="Partially Funded",((($AF29/$AF$45)*X$45)*X$23)+(($AF29/$AF$45)*X$45)-((($AF29/$AF$45)*X$45)*X$23),IF(X$25="Unfunded",(($AF29*(100%-$AI29))-((SUMPRODUCT(($C$24:$F$24)*($C$25:$F$25="Partially Funded")*($C$45:$F$45))/$AF$45)*$AF29))*(X$48/(SUMIFS($C$48:$F$48,$C$25:$F$25,"Unfunded"))),IF(X$25="Funded",(($AF29*$AI29)-((SUMPRODUCT(($C$23:$F$23)*($C$25:$F$25="Partially Funded")*($C$45:$F$45))/$AF$45)*$AF29))*(X$47/(SUMIFS($C$47:$F$47,$C$25:$F$25,"Funded"))),0))) -> 0 | Y84: =IF(Y$25="Partially Funded",((($AF29/$AF$45)*Y$45)*Y$23)+(($AF29/$AF$45)*Y$45)-((($AF29/$AF$45)*Y$45)*Y$23),IF(Y$25="Unfunded",(($AF29*(100%-$AI29))-((SUMPRODUCT(($C$24:$F$24)*($C$25:$F$25="Partially Funded")*($C$45:$F$45))/$AF$45)*$AF29))*(Y$48/(SUMIFS($C$48:$F$48,$C$25:$F$25,"Unfunded"))),IF(Y$25="Funded",(($AF29*$AI29)-((SUMPRODUCT(($C$23:$F$23)*($C$25:$F$25="Partially Funded")*($C$45:$F$45))/$AF$45)*$AF29))*(Y$47/(SUMIFS($C$47:$F$47,$C$25:$F$25,"Funded"))),0))) -> 0 | Z84: =IF(Z$25="Partially Funded",((($AF29/$AF$45)*Z$45)*Z$23)+(($AF29/$AF$45)*Z$45)-((($AF29/$AF$45)*Z$45)*Z$23),IF(Z$25="Unfunded",(($AF29*(100%-$AI29))-((SUMPRODUCT(($C$24:$F$24)*($C$25:$F$25="Partially Funded")*($C$45:$F$45))/$AF$45)*$AF29))*(Z$48/(SUMIFS($C$48:$F$48,$C$25:$F$25,"Unfunded"))),IF(Z$25="Funded",(($AF29*$AI29)-((SUMPRODUCT(($C$23:$F$23)*($C$25:$F$25="Partially Funded")*($C$45:$F$45))/$AF$45)*$AF29))*(Z$47/(SUMIFS($C$47:$F$47,$C$25:$F$25,"Funded"))),0))) -> 0 | AA84: =IF(AA$25="Partially Funded",((($AF29/$AF$45)*AA$45)*AA$23)+(($AF29/$AF$45)*AA$45)-((($AF29/$AF$45)*AA$45)*AA$23),IF(AA$25="Unfunded",(($AF29*(100%-$AI29))-((SUMPRODUCT(($C$24:$F$24)*($C$25:$F$25="Partially Funded")*($C$45:$F$45))/$AF$45)*$AF29))*(AA$48/(SUMIFS($C$48:$F$48,$C$25:$F$25,"Unfunded"))),IF(AA$25="Funded",(($AF29*$AI29)-((SUMPRODUCT(($C$23:$F$23)*($C$25:$F$25="Partially Funded")*($C$45:$F$45))/$AF$45)*$AF29))*(AA$47/(SUMIFS($C$47:$F$47,$C$25:$F$25,"Funded"))),0))) -> 0 | AB84: =IF(AB$25="Partially Funded",((($AF29/$AF$45)*AB$45)*AB$23)+(($AF29/$AF$45)*AB$45)-((($AF29/$AF$45)*AB$45)*AB$23),IF(AB$25="Unfunded",(($AF29*(100%-$AI29))-((SUMPRODUCT(($C$24:$F$24)*($C$25:$F$25="Partially Funded")*($C$45:$F$45))/$AF$45)*$AF29))*(AB$48/(SUMIFS($C$48:$F$48,$C$25:$F$25,"Unfunded"))),IF(AB$25="Funded",(($AF29*$AI29)-((SUMPRODUCT(($C$23:$F$23)*($C$25:$F$25="Partially Funded")*($C$45:$F$45))/$AF$45)*$AF29))*(AB$47/(SUMIFS($C$47:$F$47,$C$25:$F$25,"Funded"))),0))) -> 0 | AC84: =IF(AC$25="Partially Funded",((($AF29/$AF$45)*AC$45)*AC$23)+(($AF29/$AF$45)*AC$45)-((($AF29/$AF$45)*AC$45)*AC$23),IF(AC$25="Unfunded",(($AF29*(100%-$AI29))-((SUMPRODUCT(($C$24:$F$24)*($C$25:$F$25="Partially Funded")*($C$45:$F$45))/$AF$45)*$AF29))*(AC$48/(SUMIFS($C$48:$F$48,$C$25:$F$25,"Unfunded"))),IF(AC$25="Funded",(($AF29*$AI29)-((SUMPRODUCT(($C$23:$F$23)*($C$25:$F$25="Partially Funded")*($C$45:$F$45))/$AF$45)*$AF29))*(AC$47/(SUMIFS($C$47:$F$47,$C$25:$F$25,"Funded"))),0))) -> 0 | AD84: =IF(AD$25="Partially Funded",((($AF29/$AF$45)*AD$45)*AD$23)+(($AF29/$AF$45)*AD$45)-((($AF29/$AF$45)*AD$45)*AD$23),IF(AD$25="Unfunded",(($AF29*(100%-$AI29))-((SUMPRODUCT(($C$24:$F$24)*($C$25:$F$25="Partially Funded")*($C$45:$F$45))/$AF$45)*$AF29))*(AD$48/(SUMIFS($C$48:$F$48,$C$25:$F$25,"Unfunded"))),IF(AD$25="Funded",(($AF29*$AI29)-((SUMPRODUCT(($C$23:$F$23)*($C$25:$F$25="Partially Funded")*($C$45:$F$45))/$AF$45)*$AF29))*(AD$47/(SUMIFS($C$47:$F$47,$C$25:$F$25,"Funded"))),0))) -> 0 | AE84: =IF(AE$25="Partially Funded",((($AF29/$AF$45)*AE$45)*AE$23)+(($AF29/$AF$45)*AE$45)-((($AF29/$AF$45)*AE$45)*AE$23),IF(AE$25="Unfunded",(($AF29*(100%-$AI29))-((SUMPRODUCT(($C$24:$F$24)*($C$25:$F$25="Partially Funded")*($C$45:$F$45))/$AF$45)*$AF29))*(AE$48/(SUMIFS($C$48:$F$48,$C$25:$F$25,"Unfunded"))),IF(AE$25="Funded",(($AF29*$AI29)-((SUMPRODUCT(($C$23:$F$23)*($C$25:$F$25="Partially Funded")*($C$45:$F$45))/$AF$45)*$AF29))*(AE$47/(SUMIFS($C$47:$F$47,$C$25:$F$25,"Funded"))),0))) -> 0 | AF84: 0 | AG84: =IFERROR(SUM(_xlfn._xlws.FILTER($C84:$AE84,$C84:$AE84>0)*_xlfn._xlws.FILTER($C$23:$AE$23,$C84:$AE84>0))/($AF84),"n/a") -> n/a | AH84: n/a | BJ84: NXT Fees | BL84: =SUM(BL81:BL83) -> 0
A85: =AF85 -> 0 | B85: Potential SLF VI UL | C85: =IF(C$25="Partially Funded",((($AF30/$AF$45)*C$45)*C$23)+(($AF30/$AF$45)*C$45)-((($AF30/$AF$45)*C$45)*C$23),IF(C$25="Unfunded",(($AF30*(100%-$AI30))-((SUMPRODUCT(($C$24:$F$24)*($C$25:$F$25="Partially Funded")*($C$45:$F$45))/$AF$45)*$AF30))*(C$48/(SUMIFS($C$48:$F$48,$C$25:$F$25,"Unfunded"))),IF(C$25="Funded",(($AF30*$AI30)-((SUMPRODUCT(($C$23:$F$23)*($C$25:$F$25="Partially Funded")*($C$45:$F$45))/$AF$45)*$AF30))*(C$47/(SUMIFS($C$47:$F$47,$C$25:$F$25,"Funded"))),0))) -> 0 | D85: =IF(D$25="Partially Funded",((($AF30/$AF$45)*D$45)*D$23)+(($AF30/$AF$45)*D$45)-((($AF30/$AF$45)*D$45)*D$23),IF(D$25="Unfunded",(($AF30*(100%-$AI30))-((SUMPRODUCT(($C$24:$F$24)*($C$25:$F$25="Partially Funded")*($C$45:$F$45))/$AF$45)*$AF30))*(D$48/(SUMIFS($C$48:$F$48,$C$25:$F$25,"Unfunded"))),IF(D$25="Funded",(($AF30*$AI30)-((SUMPRODUCT(($C$23:$F$23)*($C$25:$F$25="Partially Funded")*($C$45:$F$45))/$AF$45)*$AF30))*(D$47/(SUMIFS($C$47:$F$47,$C$25:$F$25,"Funded"))),0))) -> 0 | E85: =IF(E$25="Partially Funded",((($AF30/$AF$45)*E$45)*E$23)+(($AF30/$AF$45)*E$45)-((($AF30/$AF$45)*E$45)*E$23),IF(E$25="Unfunded",(($AF30*(100%-$AI30))-((SUMPRODUCT(($C$24:$F$24)*($C$25:$F$25="Partially Funded")*($C$45:$F$45))/$AF$45)*$AF30))*(E$48/(SUMIFS($C$48:$F$48,$C$25:$F$25,"Unfunded"))),IF(E$25="Funded",(($AF30*$AI30)-((SUMPRODUCT(($C$23:$F$23)*($C$25:$F$25="Partially Funded")*($C$45:$F$45))/$AF$45)*$AF30))*(E$47/(SUMIFS($C$47:$F$47,$C$25:$F$25,"Funded"))),0))) -> 0 | F85: =IF(F$25="Partially Funded",((($AF30/$AF$45)*F$45)*F$23)+(($AF30/$AF$45)*F$45)-((($AF30/$AF$45)*F$45)*F$23),IF(F$25="Unfunded",(($AF30*(100%-$AI30))-((SUMPRODUCT(($C$24:$F$24)*($C$25:$F$25="Partially Funded")*($C$45:$F$45))/$AF$45)*$AF30))*(F$48/(SUMIFS($C$48:$F$48,$C$25:$F$25,"Unfunded"))),IF(F$25="Funded",(($AF30*$AI30)-((SUMPRODUCT(($C$23:$F$23)*($C$25:$F$25="Partially Funded")*($C$45:$F$45))/$AF$45)*$AF30))*(F$47/(SUMIFS($C$47:$F$47,$C$25:$F$25,"Funded"))),0))) -> 0 | G85: =IF(G$25="Partially Funded",((($AF30/$AF$45)*G$45)*G$23)+(($AF30/$AF$45)*G$45)-((($AF30/$AF$45)*G$45)*G$23),IF(G$25="Unfunded",(($AF30*(100%-$AI30))-((SUMPRODUCT(($C$24:$F$24)*($C$25:$F$25="Partially Funded")*($C$45:$F$45))/$AF$45)*$AF30))*(G$48/(SUMIFS($C$48:$F$48,$C$25:$F$25,"Unfunded"))),IF(G$25="Funded",(($AF30*$AI30)-((SUMPRODUCT(($C$23:$F$23)*($C$25:$F$25="Partially Funded")*($C$45:$F$45))/$AF$45)*$AF30))*(G$47/(SUMIFS($C$47:$F$47,$C$25:$F$25,"Funded"))),0))) -> 0 | H85: =IF(H$25="Partially Funded",((($AF30/$AF$45)*H$45)*H$23)+(($AF30/$AF$45)*H$45)-((($AF30/$AF$45)*H$45)*H$23),IF(H$25="Unfunded",(($AF30*(100%-$AI30))-((SUMPRODUCT(($C$24:$F$24)*($C$25:$F$25="Partially Funded")*($C$45:$F$45))/$AF$45)*$AF30))*(H$48/(SUMIFS($C$48:$F$48,$C$25:$F$25,"Unfunded"))),IF(H$25="Funded",(($AF30*$AI30)-((SUMPRODUCT(($C$23:$F$23)*($C$25:$F$25="Partially Funded")*($C$45:$F$45))/$AF$45)*$AF30))*(H$47/(SUMIFS($C$47:$F$47,$C$25:$F$25,"Funded"))),0))) -> 0 | I85: =IF(I$25="Partially Funded",((($AF30/$AF$45)*I$45)*I$23)+(($AF30/$AF$45)*I$45)-((($AF30/$AF$45)*I$45)*I$23),IF(I$25="Unfunded",(($AF30*(100%-$AI30))-((SUMPRODUCT(($C$24:$F$24)*($C$25:$F$25="Partially Funded")*($C$45:$F$45))/$AF$45)*$AF30))*(I$48/(SUMIFS($C$48:$F$48,$C$25:$F$25,"Unfunded"))),IF(I$25="Funded",(($AF30*$AI30)-((SUMPRODUCT(($C$23:$F$23)*($C$25:$F$25="Partially Funded")*($C$45:$F$45))/$AF$45)*$AF30))*(I$47/(SUMIFS($C$47:$F$47,$C$25:$F$25,"Funded"))),0))) -> 0 | J85: =IF(J$25="Partially Funded",((($AF30/$AF$45)*J$45)*J$23)+(($AF30/$AF$45)*J$45)-((($AF30/$AF$45)*J$45)*J$23),IF(J$25="Unfunded",(($AF30*(100%-$AI30))-((SUMPRODUCT(($C$24:$F$24)*($C$25:$F$25="Partially Funded")*($C$45:$F$45))/$AF$45)*$AF30))*(J$48/(SUMIFS($C$48:$F$48,$C$25:$F$25,"Unfunded"))),IF(J$25="Funded",(($AF30*$AI30)-((SUMPRODUCT(($C$23:$F$23)*($C$25:$F$25="Partially Funded")*($C$45:$F$45))/$AF$45)*$AF30))*(J$47/(SUMIFS($C$47:$F$47,$C$25:$F$25,"Funded"))),0))) -> 0 | K85: =IF(K$25="Partially Funded",((($AF30/$AF$45)*K$45)*K$23)+(($AF30/$AF$45)*K$45)-((($AF30/$AF$45)*K$45)*K$23),IF(K$25="Unfunded",(($AF30*(100%-$AI30))-((SUMPRODUCT(($C$24:$F$24)*($C$25:$F$25="Partially Funded")*($C$45:$F$45))/$AF$45)*$AF30))*(K$48/(SUMIFS($C$48:$F$48,$C$25:$F$25,"Unfunded"))),IF(K$25="Funded",(($AF30*$AI30)-((SUMPRODUCT(($C$23:$F$23)*($C$25:$F$25="Partially Funded")*($C$45:$F$45))/$AF$45)*$AF30))*(K$47/(SUMIFS($C$47:$F$47,$C$25:$F$25,"Funded"))),0))) -> 0 | L85: =IF(L$25="Partially Funded",((($AF30/$AF$45)*L$45)*L$23)+(($AF30/$AF$45)*L$45)-((($AF30/$AF$45)*L$45)*L$23),IF(L$25="Unfunded",(($AF30*(100%-$AI30))-((SUMPRODUCT(($C$24:$F$24)*($C$25:$F$25="Partially Funded")*($C$45:$F$45))/$AF$45)*$AF30))*(L$48/(SUMIFS($C$48:$F$48,$C$25:$F$25,"Unfunded"))),IF(L$25="Funded",(($AF30*$AI30)-((SUMPRODUCT(($C$23:$F$23)*($C$25:$F$25="Partially Funded")*($C$45:$F$45))/$AF$45)*$AF30))*(L$47/(SUMIFS($C$47:$F$47,$C$25:$F$25,"Funded"))),0))) -> 0 | M85: =IF(M$25="Partially Funded",((($AF30/$AF$45)*M$45)*M$23)+(($AF30/$AF$45)*M$45)-((($AF30/$AF$45)*M$45)*M$23),IF(M$25="Unfunded",(($AF30*(100%-$AI30))-((SUMPRODUCT(($C$24:$F$24)*($C$25:$F$25="Partially Funded")*($C$45:$F$45))/$AF$45)*$AF30))*(M$48/(SUMIFS($C$48:$F$48,$C$25:$F$25,"Unfunded"))),IF(M$25="Funded",(($AF30*$AI30)-((SUMPRODUCT(($C$23:$F$23)*($C$25:$F$25="Partially Funded")*($C$45:$F$45))/$AF$45)*$AF30))*(M$47/(SUMIFS($C$47:$F$47,$C$25:$F$25,"Funded"))),0))) -> 0 | N85: =IF(N$25="Partially Funded",((($AF30/$AF$45)*N$45)*N$23)+(($AF30/$AF$45)*N$45)-((($AF30/$AF$45)*N$45)*N$23),IF(N$25="Unfunded",(($AF30*(100%-$AI30))-((SUMPRODUCT(($C$24:$F$24)*($C$25:$F$25="Partially Funded")*($C$45:$F$45))/$AF$45)*$AF30))*(N$48/(SUMIFS($C$48:$F$48,$C$25:$F$25,"Unfunded"))),IF(N$25="Funded",(($AF30*$AI30)-((SUMPRODUCT(($C$23:$F$23)*($C$25:$F$25="Partially Funded")*($C$45:$F$45))/$AF$45)*$AF30))*(N$47/(SUMIFS($C$47:$F$47,$C$25:$F$25,"Funded"))),0))) -> 0 | O85: =IF(O$25="Partially Funded",((($AF30/$AF$45)*O$45)*O$23)+(($AF30/$AF$45)*O$45)-((($AF30/$AF$45)*O$45)*O$23),IF(O$25="Unfunded",(($AF30*(100%-$AI30))-((SUMPRODUCT(($C$24:$F$24)*($C$25:$F$25="Partially Funded")*($C$45:$F$45))/$AF$45)*$AF30))*(O$48/(SUMIFS($C$48:$F$48,$C$25:$F$25,"Unfunded"))),IF(O$25="Funded",(($AF30*$AI30)-((SUMPRODUCT(($C$23:$F$23)*($C$25:$F$25="Partially Funded")*($C$45:$F$45))/$AF$45)*$AF30))*(O$47/(SUMIFS($C$47:$F$47,$C$25:$F$25,"Funded"))),0))) -> 0 | P85: =IF(P$25="Partially Funded",((($AF30/$AF$45)*P$45)*P$23)+(($AF30/$AF$45)*P$45)-((($AF30/$AF$45)*P$45)*P$23),IF(P$25="Unfunded",(($AF30*(100%-$AI30))-((SUMPRODUCT(($C$24:$F$24)*($C$25:$F$25="Partially Funded")*($C$45:$F$45))/$AF$45)*$AF30))*(P$48/(SUMIFS($C$48:$F$48,$C$25:$F$25,"Unfunded"))),IF(P$25="Funded",(($AF30*$AI30)-((SUMPRODUCT(($C$23:$F$23)*($C$25:$F$25="Partially Funded")*($C$45:$F$45))/$AF$45)*$AF30))*(P$47/(SUMIFS($C$47:$F$47,$C$25:$F$25,"Funded"))),0))) -> 0 | Q85: =IF(Q$25="Partially Funded",((($AF30/$AF$45)*Q$45)*Q$23)+(($AF30/$AF$45)*Q$45)-((($AF30/$AF$45)*Q$45)*Q$23),IF(Q$25="Unfunded",(($AF30*(100%-$AI30))-((SUMPRODUCT(($C$24:$F$24)*($C$25:$F$25="Partially Funded")*($C$45:$F$45))/$AF$45)*$AF30))*(Q$48/(SUMIFS($C$48:$F$48,$C$25:$F$25,"Unfunded"))),IF(Q$25="Funded",(($AF30*$AI30)-((SUMPRODUCT(($C$23:$F$23)*($C$25:$F$25="Partially Funded")*($C$45:$F$45))/$AF$45)*$AF30))*(Q$47/(SUMIFS($C$47:$F$47,$C$25:$F$25,"Funded"))),0))) -> 0 | R85: =IF(R$25="Partially Funded",((($AF30/$AF$45)*R$45)*R$23)+(($AF30/$AF$45)*R$45)-((($AF30/$AF$45)*R$45)*R$23),IF(R$25="Unfunded",(($AF30*(100%-$AI30))-((SUMPRODUCT(($C$24:$F$24)*($C$25:$F$25="Partially Funded")*($C$45:$F$45))/$AF$45)*$AF30))*(R$48/(SUMIFS($C$48:$F$48,$C$25:$F$25,"Unfunded"))),IF(R$25="Funded",(($AF30*$AI30)-((SUMPRODUCT(($C$23:$F$23)*($C$25:$F$25="Partially Funded")*($C$45:$F$45))/$AF$45)*$AF30))*(R$47/(SUMIFS($C$47:$F$47,$C$25:$F$25,"Funded"))),0))) -> 0 | S85: =IF(S$25="Partially Funded",((($AF30/$AF$45)*S$45)*S$23)+(($AF30/$AF$45)*S$45)-((($AF30/$AF$45)*S$45)*S$23),IF(S$25="Unfunded",(($AF30*(100%-$AI30))-((SUMPRODUCT(($C$24:$F$24)*($C$25:$F$25="Partially Funded")*($C$45:$F$45))/$AF$45)*$AF30))*(S$48/(SUMIFS($C$48:$F$48,$C$25:$F$25,"Unfunded"))),IF(S$25="Funded",(($AF30*$AI30)-((SUMPRODUCT(($C$23:$F$23)*($C$25:$F$25="Partially Funded")*($C$45:$F$45))/$AF$45)*$AF30))*(S$47/(SUMIFS($C$47:$F$47,$C$25:$F$25,"Funded"))),0))) -> 0 | T85: =IF(T$25="Partially Funded",((($AF30/$AF$45)*T$45)*T$23)+(($AF30/$AF$45)*T$45)-((($AF30/$AF$45)*T$45)*T$23),IF(T$25="Unfunded",(($AF30*(100%-$AI30))-((SUMPRODUCT(($C$24:$F$24)*($C$25:$F$25="Partially Funded")*($C$45:$F$45))/$AF$45)*$AF30))*(T$48/(SUMIFS($C$48:$F$48,$C$25:$F$25,"Unfunded"))),IF(T$25="Funded",(($AF30*$AI30)-((SUMPRODUCT(($C$23:$F$23)*($C$25:$F$25="Partially Funded")*($C$45:$F$45))/$AF$45)*$AF30))*(T$47/(SUMIFS($C$47:$F$47,$C$25:$F$25,"Funded"))),0))) -> 0 | U85: =IF(U$25="Partially Funded",((($AF30/$AF$45)*U$45)*U$23)+(($AF30/$AF$45)*U$45)-((($AF30/$AF$45)*U$45)*U$23),IF(U$25="Unfunded",(($AF30*(100%-$AI30))-((SUMPRODUCT(($C$24:$F$24)*($C$25:$F$25="Partially Funded")*($C$45:$F$45))/$AF$45)*$AF30))*(U$48/(SUMIFS($C$48:$F$48,$C$25:$F$25,"Unfunded"))),IF(U$25="Funded",(($AF30*$AI30)-((SUMPRODUCT(($C$23:$F$23)*($C$25:$F$25="Partially Funded")*($C$45:$F$45))/$AF$45)*$AF30))*(U$47/(SUMIFS($C$47:$F$47,$C$25:$F$25,"Funded"))),0))) -> 0 | V85: =IF(V$25="Partially Funded",((($AF30/$AF$45)*V$45)*V$23)+(($AF30/$AF$45)*V$45)-((($AF30/$AF$45)*V$45)*V$23),IF(V$25="Unfunded",(($AF30*(100%-$AI30))-((SUMPRODUCT(($C$24:$F$24)*($C$25:$F$25="Partially Funded")*($C$45:$F$45))/$AF$45)*$AF30))*(V$48/(SUMIFS($C$48:$F$48,$C$25:$F$25,"Unfunded"))),IF(V$25="Funded",(($AF30*$AI30)-((SUMPRODUCT(($C$23:$F$23)*($C$25:$F$25="Partially Funded")*($C$45:$F$45))/$AF$45)*$AF30))*(V$47/(SUMIFS($C$47:$F$47,$C$25:$F$25,"Funded"))),0))) -> 0 | W85: =IF(W$25="Partially Funded",((($AF30/$AF$45)*W$45)*W$23)+(($AF30/$AF$45)*W$45)-((($AF30/$AF$45)*W$45)*W$23),IF(W$25="Unfunded",(($AF30*(100%-$AI30))-((SUMPRODUCT(($C$24:$F$24)*($C$25:$F$25="Partially Funded")*($C$45:$F$45))/$AF$45)*$AF30))*(W$48/(SUMIFS($C$48:$F$48,$C$25:$F$25,"Unfunded"))),IF(W$25="Funded",(($AF30*$AI30)-((SUMPRODUCT(($C$23:$F$23)*($C$25:$F$25="Partially Funded")*($C$45:$F$45))/$AF$45)*$AF30))*(W$47/(SUMIFS($C$47:$F$47,$C$25:$F$25,"Funded"))),0))) -> 0 | X85: =IF(X$25="Partially Funded",((($AF30/$AF$45)*X$45)*X$23)+(($AF30/$AF$45)*X$45)-((($AF30/$AF$45)*X$45)*X$23),IF(X$25="Unfunded",(($AF30*(100%-$AI30))-((SUMPRODUCT(($C$24:$F$24)*($C$25:$F$25="Partially Funded")*($C$45:$F$45))/$AF$45)*$AF30))*(X$48/(SUMIFS($C$48:$F$48,$C$25:$F$25,"Unfunded"))),IF(X$25="Funded",(($AF30*$AI30)-((SUMPRODUCT(($C$23:$F$23)*($C$25:$F$25="Partially Funded")*($C$45:$F$45))/$AF$45)*$AF30))*(X$47/(SUMIFS($C$47:$F$47,$C$25:$F$25,"Funded"))),0))) -> 0 | Y85: =IF(Y$25="Partially Funded",((($AF30/$AF$45)*Y$45)*Y$23)+(($AF30/$AF$45)*Y$45)-((($AF30/$AF$45)*Y$45)*Y$23),IF(Y$25="Unfunded",(($AF30*(100%-$AI30))-((SUMPRODUCT(($C$24:$F$24)*($C$25:$F$25="Partially Funded")*($C$45:$F$45))/$AF$45)*$AF30))*(Y$48/(SUMIFS($C$48:$F$48,$C$25:$F$25,"Unfunded"))),IF(Y$25="Funded",(($AF30*$AI30)-((SUMPRODUCT(($C$23:$F$23)*($C$25:$F$25="Partially Funded")*($C$45:$F$45))/$AF$45)*$AF30))*(Y$47/(SUMIFS($C$47:$F$47,$C$25:$F$25,"Funded"))),0))) -> 0 | Z85: =IF(Z$25="Partially Funded",((($AF30/$AF$45)*Z$45)*Z$23)+(($AF30/$AF$45)*Z$45)-((($AF30/$AF$45)*Z$45)*Z$23),IF(Z$25="Unfunded",(($AF30*(100%-$AI30))-((SUMPRODUCT(($C$24:$F$24)*($C$25:$F$25="Partially Funded")*($C$45:$F$45))/$AF$45)*$AF30))*(Z$48/(SUMIFS($C$48:$F$48,$C$25:$F$25,"Unfunded"))),IF(Z$25="Funded",(($AF30*$AI30)-((SUMPRODUCT(($C$23:$F$23)*($C$25:$F$25="Partially Funded")*($C$45:$F$45))/$AF$45)*$AF30))*(Z$47/(SUMIFS($C$47:$F$47,$C$25:$F$25,"Funded"))),0))) -> 0 | AA85: =IF(AA$25="Partially Funded",((($AF30/$AF$45)*AA$45)*AA$23)+(($AF30/$AF$45)*AA$45)-((($AF30/$AF$45)*AA$45)*AA$23),IF(AA$25="Unfunded",(($AF30*(100%-$AI30))-((SUMPRODUCT(($C$24:$F$24)*($C$25:$F$25="Partially Funded")*($C$45:$F$45))/$AF$45)*$AF30))*(AA$48/(SUMIFS($C$48:$F$48,$C$25:$F$25,"Unfunded"))),IF(AA$25="Funded",(($AF30*$AI30)-((SUMPRODUCT(($C$23:$F$23)*($C$25:$F$25="Partially Funded")*($C$45:$F$45))/$AF$45)*$AF30))*(AA$47/(SUMIFS($C$47:$F$47,$C$25:$F$25,"Funded"))),0))) -> 0 | AB85: =IF(AB$25="Partially Funded",((($AF30/$AF$45)*AB$45)*AB$23)+(($AF30/$AF$45)*AB$45)-((($AF30/$AF$45)*AB$45)*AB$23),IF(AB$25="Unfunded",(($AF30*(100%-$AI30))-((SUMPRODUCT(($C$24:$F$24)*($C$25:$F$25="Partially Funded")*($C$45:$F$45))/$AF$45)*$AF30))*(AB$48/(SUMIFS($C$48:$F$48,$C$25:$F$25,"Unfunded"))),IF(AB$25="Funded",(($AF30*$AI30)-((SUMPRODUCT(($C$23:$F$23)*($C$25:$F$25="Partially Funded")*($C$45:$F$45))/$AF$45)*$AF30))*(AB$47/(SUMIFS($C$47:$F$47,$C$25:$F$25,"Funded"))),0))) -> 0 | AC85: =IF(AC$25="Partially Funded",((($AF30/$AF$45)*AC$45)*AC$23)+(($AF30/$AF$45)*AC$45)-((($AF30/$AF$45)*AC$45)*AC$23),IF(AC$25="Unfunded",(($AF30*(100%-$AI30))-((SUMPRODUCT(($C$24:$F$24)*($C$25:$F$25="Partially Funded")*($C$45:$F$45))/$AF$45)*$AF30))*(AC$48/(SUMIFS($C$48:$F$48,$C$25:$F$25,"Unfunded"))),IF(AC$25="Funded",(($AF30*$AI30)-((SUMPRODUCT(($C$23:$F$23)*($C$25:$F$25="Partially Funded")*($C$45:$F$45))/$AF$45)*$AF30))*(AC$47/(SUMIFS($C$47:$F$47,$C$25:$F$25,"Funded"))),0))) -> 0 | AD85: =IF(AD$25="Partially Funded",((($AF30/$AF$45)*AD$45)*AD$23)+(($AF30/$AF$45)*AD$45)-((($AF30/$AF$45)*AD$45)*AD$23),IF(AD$25="Unfunded",(($AF30*(100%-$AI30))-((SUMPRODUCT(($C$24:$F$24)*($C$25:$F$25="Partially Funded")*($C$45:$F$45))/$AF$45)*$AF30))*(AD$48/(SUMIFS($C$48:$F$48,$C$25:$F$25,"Unfunded"))),IF(AD$25="Funded",(($AF30*$AI30)-((SUMPRODUCT(($C$23:$F$23)*($C$25:$F$25="Partially Funded")*($C$45:$F$45))/$AF$45)*$AF30))*(AD$47/(SUMIFS($C$47:$F$47,$C$25:$F$25,"Funded"))),0))) -> 0 | AE85: =IF(AE$25="Partially Funded",((($AF30/$AF$45)*AE$45)*AE$23)+(($AF30/$AF$45)*AE$45)-((($AF30/$AF$45)*AE$45)*AE$23),IF(AE$25="Unfunded",(($AF30*(100%-$AI30))-((SUMPRODUCT(($C$24:$F$24)*($C$25:$F$25="Partially Funded")*($C$45:$F$45))/$AF$45)*$AF30))*(AE$48/(SUMIFS($C$48:$F$48,$C$25:$F$25,"Unfunded"))),IF(AE$25="Funded",(($AF30*$AI30)-((SUMPRODUCT(($C$23:$F$23)*($C$25:$F$25="Partially Funded")*($C$45:$F$45))/$AF$45)*$AF30))*(AE$47/(SUMIFS($C$47:$F$47,$C$25:$F$25,"Funded"))),0))) -> 0 | AF85: 0 | AG85: =IFERROR(SUM(_xlfn._xlws.FILTER($C85:$AE85,$C85:$AE85>0)*_xlfn._xlws.FILTER($C$23:$AE$23,$C85:$AE85>0))/($AF85),"n/a") -> n/a | AH85: n/a
B86: Potential SLF VII | C86: =IF(C$25="Partially Funded",((($AF31/$AF$45)*C$45)*C$23)+(($AF31/$AF$45)*C$45)-((($AF31/$AF$45)*C$45)*C$23),IF(C$25="Unfunded",(($AF31*(100%-$AI31))-((SUMPRODUCT(($C$24:$F$24)*($C$25:$F$25="Partially Funded")*($C$45:$F$45))/$AF$45)*$AF31))*(C$48/(SUMIFS($C$48:$F$48,$C$25:$F$25,"Unfunded"))),IF(C$25="Funded",(($AF31*$AI31)-((SUMPRODUCT(($C$23:$F$23)*($C$25:$F$25="Partially Funded")*($C$45:$F$45))/$AF$45)*$AF31))*(C$47/(SUMIFS($C$47:$F$47,$C$25:$F$25,"Funded"))),0))) -> 0 | D86: =IF(D$25="Partially Funded",((($AF31/$AF$45)*D$45)*D$23)+(($AF31/$AF$45)*D$45)-((($AF31/$AF$45)*D$45)*D$23),IF(D$25="Unfunded",(($AF31*(100%-$AI31))-((SUMPRODUCT(($C$24:$F$24)*($C$25:$F$25="Partially Funded")*($C$45:$F$45))/$AF$45)*$AF31))*(D$48/(SUMIFS($C$48:$F$48,$C$25:$F$25,"Unfunded"))),IF(D$25="Funded",(($AF31*$AI31)-((SUMPRODUCT(($C$23:$F$23)*($C$25:$F$25="Partially Funded")*($C$45:$F$45))/$AF$45)*$AF31))*(D$47/(SUMIFS($C$47:$F$47,$C$25:$F$25,"Funded"))),0))) -> 0 | E86: =IF(E$25="Partially Funded",((($AF31/$AF$45)*E$45)*E$23)+(($AF31/$AF$45)*E$45)-((($AF31/$AF$45)*E$45)*E$23),IF(E$25="Unfunded",(($AF31*(100%-$AI31))-((SUMPRODUCT(($C$24:$F$24)*($C$25:$F$25="Partially Funded")*($C$45:$F$45))/$AF$45)*$AF31))*(E$48/(SUMIFS($C$48:$F$48,$C$25:$F$25,"Unfunded"))),IF(E$25="Funded",(($AF31*$AI31)-((SUMPRODUCT(($C$23:$F$23)*($C$25:$F$25="Partially Funded")*($C$45:$F$45))/$AF$45)*$AF31))*(E$47/(SUMIFS($C$47:$F$47,$C$25:$F$25,"Funded"))),0))) -> 0 | F86: =IF(F$25="Partially Funded",((($AF31/$AF$45)*F$45)*F$23)+(($AF31/$AF$45)*F$45)-((($AF31/$AF$45)*F$45)*F$23),IF(F$25="Unfunded",(($AF31*(100%-$AI31))-((SUMPRODUCT(($C$24:$F$24)*($C$25:$F$25="Partially Funded")*($C$45:$F$45))/$AF$45)*$AF31))*(F$48/(SUMIFS($C$48:$F$48,$C$25:$F$25,"Unfunded"))),IF(F$25="Funded",(($AF31*$AI31)-((SUMPRODUCT(($C$23:$F$23)*($C$25:$F$25="Partially Funded")*($C$45:$F$45))/$AF$45)*$AF31))*(F$47/(SUMIFS($C$47:$F$47,$C$25:$F$25,"Funded"))),0))) -> 0 | G86: =IF(G$25="Partially Funded",((($AF31/$AF$45)*G$45)*G$23)+(($AF31/$AF$45)*G$45)-((($AF31/$AF$45)*G$45)*G$23),IF(G$25="Unfunded",(($AF31*(100%-$AI31))-((SUMPRODUCT(($C$24:$F$24)*($C$25:$F$25="Partially Funded")*($C$45:$F$45))/$AF$45)*$AF31))*(G$48/(SUMIFS($C$48:$F$48,$C$25:$F$25,"Unfunded"))),IF(G$25="Funded",(($AF31*$AI31)-((SUMPRODUCT(($C$23:$F$23)*($C$25:$F$25="Partially Funded")*($C$45:$F$45))/$AF$45)*$AF31))*(G$47/(SUMIFS($C$47:$F$47,$C$25:$F$25,"Funded"))),0))) -> 0 | H86: =IF(H$25="Partially Funded",((($AF31/$AF$45)*H$45)*H$23)+(($AF31/$AF$45)*H$45)-((($AF31/$AF$45)*H$45)*H$23),IF(H$25="Unfunded",(($AF31*(100%-$AI31))-((SUMPRODUCT(($C$24:$F$24)*($C$25:$F$25="Partially Funded")*($C$45:$F$45))/$AF$45)*$AF31))*(H$48/(SUMIFS($C$48:$F$48,$C$25:$F$25,"Unfunded"))),IF(H$25="Funded",(($AF31*$AI31)-((SUMPRODUCT(($C$23:$F$23)*($C$25:$F$25="Partially Funded")*($C$45:$F$45))/$AF$45)*$AF31))*(H$47/(SUMIFS($C$47:$F$47,$C$25:$F$25,"Funded"))),0))) -> 0 | I86: =IF(I$25="Partially Funded",((($AF31/$AF$45)*I$45)*I$23)+(($AF31/$AF$45)*I$45)-((($AF31/$AF$45)*I$45)*I$23),IF(I$25="Unfunded",(($AF31*(100%-$AI31))-((SUMPRODUCT(($C$24:$F$24)*($C$25:$F$25="Partially Funded")*($C$45:$F$45))/$AF$45)*$AF31))*(I$48/(SUMIFS($C$48:$F$48,$C$25:$F$25,"Unfunded"))),IF(I$25="Funded",(($AF31*$AI31)-((SUMPRODUCT(($C$23:$F$23)*($C$25:$F$25="Partially Funded")*($C$45:$F$45))/$AF$45)*$AF31))*(I$47/(SUMIFS($C$47:$F$47,$C$25:$F$25,"Funded"))),0))) -> 0 | J86: =IF(J$25="Partially Funded",((($AF31/$AF$45)*J$45)*J$23)+(($AF31/$AF$45)*J$45)-((($AF31/$AF$45)*J$45)*J$23),IF(J$25="Unfunded",(($AF31*(100%-$AI31))-((SUMPRODUCT(($C$24:$F$24)*($C$25:$F$25="Partially Funded")*($C$45:$F$45))/$AF$45)*$AF31))*(J$48/(SUMIFS($C$48:$F$48,$C$25:$F$25,"Unfunded"))),IF(J$25="Funded",(($AF31*$AI31)-((SUMPRODUCT(($C$23:$F$23)*($C$25:$F$25="Partially Funded")*($C$45:$F$45))/$AF$45)*$AF31))*(J$47/(SUMIFS($C$47:$F$47,$C$25:$F$25,"Funded"))),0))) -> 0 | K86: =IF(K$25="Partially Funded",((($AF31/$AF$45)*K$45)*K$23)+(($AF31/$AF$45)*K$45)-((($AF31/$AF$45)*K$45)*K$23),IF(K$25="Unfunded",(($AF31*(100%-$AI31))-((SUMPRODUCT(($C$24:$F$24)*($C$25:$F$25="Partially Funded")*($C$45:$F$45))/$AF$45)*$AF31))*(K$48/(SUMIFS($C$48:$F$48,$C$25:$F$25,"Unfunded"))),IF(K$25="Funded",(($AF31*$AI31)-((SUMPRODUCT(($C$23:$F$23)*($C$25:$F$25="Partially Funded")*($C$45:$F$45))/$AF$45)*$AF31))*(K$47/(SUMIFS($C$47:$F$47,$C$25:$F$25,"Funded"))),0))) -> 0 | L86: =IF(L$25="Partially Funded",((($AF31/$AF$45)*L$45)*L$23)+(($AF31/$AF$45)*L$45)-((($AF31/$AF$45)*L$45)*L$23),IF(L$25="Unfunded",(($AF31*(100%-$AI31))-((SUMPRODUCT(($C$24:$F$24)*($C$25:$F$25="Partially Funded")*($C$45:$F$45))/$AF$45)*$AF31))*(L$48/(SUMIFS($C$48:$F$48,$C$25:$F$25,"Unfunded"))),IF(L$25="Funded",(($AF31*$AI31)-((SUMPRODUCT(($C$23:$F$23)*($C$25:$F$25="Partially Funded")*($C$45:$F$45))/$AF$45)*$AF31))*(L$47/(SUMIFS($C$47:$F$47,$C$25:$F$25,"Funded"))),0))) -> 0 | M86: =IF(M$25="Partially Funded",((($AF31/$AF$45)*M$45)*M$23)+(($AF31/$AF$45)*M$45)-((($AF31/$AF$45)*M$45)*M$23),IF(M$25="Unfunded",(($AF31*(100%-$AI31))-((SUMPRODUCT(($C$24:$F$24)*($C$25:$F$25="Partially Funded")*($C$45:$F$45))/$AF$45)*$AF31))*(M$48/(SUMIFS($C$48:$F$48,$C$25:$F$25,"Unfunded"))),IF(M$25="Funded",(($AF31*$AI31)-((SUMPRODUCT(($C$23:$F$23)*($C$25:$F$25="Partially Funded")*($C$45:$F$45))/$AF$45)*$AF31))*(M$47/(SUMIFS($C$47:$F$47,$C$25:$F$25,"Funded"))),0))) -> 0 | N86: =IF(N$25="Partially Funded",((($AF31/$AF$45)*N$45)*N$23)+(($AF31/$AF$45)*N$45)-((($AF31/$AF$45)*N$45)*N$23),IF(N$25="Unfunded",(($AF31*(100%-$AI31))-((SUMPRODUCT(($C$24:$F$24)*($C$25:$F$25="Partially Funded")*($C$45:$F$45))/$AF$45)*$AF31))*(N$48/(SUMIFS($C$48:$F$48,$C$25:$F$25,"Unfunded"))),IF(N$25="Funded",(($AF31*$AI31)-((SUMPRODUCT(($C$23:$F$23)*($C$25:$F$25="Partially Funded")*($C$45:$F$45))/$AF$45)*$AF31))*(N$47/(SUMIFS($C$47:$F$47,$C$25:$F$25,"Funded"))),0))) -> 0 | O86: =IF(O$25="Partially Funded",((($AF31/$AF$45)*O$45)*O$23)+(($AF31/$AF$45)*O$45)-((($AF31/$AF$45)*O$45)*O$23),IF(O$25="Unfunded",(($AF31*(100%-$AI31))-((SUMPRODUCT(($C$24:$F$24)*($C$25:$F$25="Partially Funded")*($C$45:$F$45))/$AF$45)*$AF31))*(O$48/(SUMIFS($C$48:$F$48,$C$25:$F$25,"Unfunded"))),IF(O$25="Funded",(($AF31*$AI31)-((SUMPRODUCT(($C$23:$F$23)*($C$25:$F$25="Partially Funded")*($C$45:$F$45))/$AF$45)*$AF31))*(O$47/(SUMIFS($C$47:$F$47,$C$25:$F$25,"Funded"))),0))) -> 0 | P86: =IF(P$25="Partially Funded",((($AF31/$AF$45)*P$45)*P$23)+(($AF31/$AF$45)*P$45)-((($AF31/$AF$45)*P$45)*P$23),IF(P$25="Unfunded",(($AF31*(100%-$AI31))-((SUMPRODUCT(($C$24:$F$24)*($C$25:$F$25="Partially Funded")*($C$45:$F$45))/$AF$45)*$AF31))*(P$48/(SUMIFS($C$48:$F$48,$C$25:$F$25,"Unfunded"))),IF(P$25="Funded",(($AF31*$AI31)-((SUMPRODUCT(($C$23:$F$23)*($C$25:$F$25="Partially Funded")*($C$45:$F$45))/$AF$45)*$AF31))*(P$47/(SUMIFS($C$47:$F$47,$C$25:$F$25,"Funded"))),0))) -> 0 | Q86: =IF(Q$25="Partially Funded",((($AF31/$AF$45)*Q$45)*Q$23)+(($AF31/$AF$45)*Q$45)-((($AF31/$AF$45)*Q$45)*Q$23),IF(Q$25="Unfunded",(($AF31*(100%-$AI31))-((SUMPRODUCT(($C$24:$F$24)*($C$25:$F$25="Partially Funded")*($C$45:$F$45))/$AF$45)*$AF31))*(Q$48/(SUMIFS($C$48:$F$48,$C$25:$F$25,"Unfunded"))),IF(Q$25="Funded",(($AF31*$AI31)-((SUMPRODUCT(($C$23:$F$23)*($C$25:$F$25="Partially Funded")*($C$45:$F$45))/$AF$45)*$AF31))*(Q$47/(SUMIFS($C$47:$F$47,$C$25:$F$25,"Funded"))),0))) -> 0 | R86: =IF(R$25="Partially Funded",((($AF31/$AF$45)*R$45)*R$23)+(($AF31/$AF$45)*R$45)-((($AF31/$AF$45)*R$45)*R$23),IF(R$25="Unfunded",(($AF31*(100%-$AI31))-((SUMPRODUCT(($C$24:$F$24)*($C$25:$F$25="Partially Funded")*($C$45:$F$45))/$AF$45)*$AF31))*(R$48/(SUMIFS($C$48:$F$48,$C$25:$F$25,"Unfunded"))),IF(R$25="Funded",(($AF31*$AI31)-((SUMPRODUCT(($C$23:$F$23)*($C$25:$F$25="Partially Funded")*($C$45:$F$45))/$AF$45)*$AF31))*(R$47/(SUMIFS($C$47:$F$47,$C$25:$F$25,"Funded"))),0))) -> 0 | S86: =IF(S$25="Partially Funded",((($AF31/$AF$45)*S$45)*S$23)+(($AF31/$AF$45)*S$45)-((($AF31/$AF$45)*S$45)*S$23),IF(S$25="Unfunded",(($AF31*(100%-$AI31))-((SUMPRODUCT(($C$24:$F$24)*($C$25:$F$25="Partially Funded")*($C$45:$F$45))/$AF$45)*$AF31))*(S$48/(SUMIFS($C$48:$F$48,$C$25:$F$25,"Unfunded"))),IF(S$25="Funded",(($AF31*$AI31)-((SUMPRODUCT(($C$23:$F$23)*($C$25:$F$25="Partially Funded")*($C$45:$F$45))/$AF$45)*$AF31))*(S$47/(SUMIFS($C$47:$F$47,$C$25:$F$25,"Funded"))),0))) -> 0 | T86: =IF(T$25="Partially Funded",((($AF31/$AF$45)*T$45)*T$23)+(($AF31/$AF$45)*T$45)-((($AF31/$AF$45)*T$45)*T$23),IF(T$25="Unfunded",(($AF31*(100%-$AI31))-((SUMPRODUCT(($C$24:$F$24)*($C$25:$F$25="Partially Funded")*($C$45:$F$45))/$AF$45)*$AF31))*(T$48/(SUMIFS($C$48:$F$48,$C$25:$F$25,"Unfunded"))),IF(T$25="Funded",(($AF31*$AI31)-((SUMPRODUCT(($C$23:$F$23)*($C$25:$F$25="Partially Funded")*($C$45:$F$45))/$AF$45)*$AF31))*(T$47/(SUMIFS($C$47:$F$47,$C$25:$F$25,"Funded"))),0))) -> 0 | U86: =IF(U$25="Partially Funded",((($AF31/$AF$45)*U$45)*U$23)+(($AF31/$AF$45)*U$45)-((($AF31/$AF$45)*U$45)*U$23),IF(U$25="Unfunded",(($AF31*(100%-$AI31))-((SUMPRODUCT(($C$24:$F$24)*($C$25:$F$25="Partially Funded")*($C$45:$F$45))/$AF$45)*$AF31))*(U$48/(SUMIFS($C$48:$F$48,$C$25:$F$25,"Unfunded"))),IF(U$25="Funded",(($AF31*$AI31)-((SUMPRODUCT(($C$23:$F$23)*($C$25:$F$25="Partially Funded")*($C$45:$F$45))/$AF$45)*$AF31))*(U$47/(SUMIFS($C$47:$F$47,$C$25:$F$25,"Funded"))),0))) -> 0 | V86: =IF(V$25="Partially Funded",((($AF31/$AF$45)*V$45)*V$23)+(($AF31/$AF$45)*V$45)-((($AF31/$AF$45)*V$45)*V$23),IF(V$25="Unfunded",(($AF31*(100%-$AI31))-((SUMPRODUCT(($C$24:$F$24)*($C$25:$F$25="Partially Funded")*($C$45:$F$45))/$AF$45)*$AF31))*(V$48/(SUMIFS($C$48:$F$48,$C$25:$F$25,"Unfunded"))),IF(V$25="Funded",(($AF31*$AI31)-((SUMPRODUCT(($C$23:$F$23)*($C$25:$F$25="Partially Funded")*($C$45:$F$45))/$AF$45)*$AF31))*(V$47/(SUMIFS($C$47:$F$47,$C$25:$F$25,"Funded"))),0))) -> 0 | W86: =IF(W$25="Partially Funded",((($AF31/$AF$45)*W$45)*W$23)+(($AF31/$AF$45)*W$45)-((($AF31/$AF$45)*W$45)*W$23),IF(W$25="Unfunded",(($AF31*(100%-$AI31))-((SUMPRODUCT(($C$24:$F$24)*($C$25:$F$25="Partially Funded")*($C$45:$F$45))/$AF$45)*$AF31))*(W$48/(SUMIFS($C$48:$F$48,$C$25:$F$25,"Unfunded"))),IF(W$25="Funded",(($AF31*$AI31)-((SUMPRODUCT(($C$23:$F$23)*($C$25:$F$25="Partially Funded")*($C$45:$F$45))/$AF$45)*$AF31))*(W$47/(SUMIFS($C$47:$F$47,$C$25:$F$25,"Funded"))),0))) -> 0 | X86: =IF(X$25="Partially Funded",((($AF31/$AF$45)*X$45)*X$23)+(($AF31/$AF$45)*X$45)-((($AF31/$AF$45)*X$45)*X$23),IF(X$25="Unfunded",(($AF31*(100%-$AI31))-((SUMPRODUCT(($C$24:$F$24)*($C$25:$F$25="Partially Funded")*($C$45:$F$45))/$AF$45)*$AF31))*(X$48/(SUMIFS($C$48:$F$48,$C$25:$F$25,"Unfunded"))),IF(X$25="Funded",(($AF31*$AI31)-((SUMPRODUCT(($C$23:$F$23)*($C$25:$F$25="Partially Funded")*($C$45:$F$45))/$AF$45)*$AF31))*(X$47/(SUMIFS($C$47:$F$47,$C$25:$F$25,"Funded"))),0))) -> 0 | Y86: =IF(Y$25="Partially Funded",((($AF31/$AF$45)*Y$45)*Y$23)+(($AF31/$AF$45)*Y$45)-((($AF31/$AF$45)*Y$45)*Y$23),IF(Y$25="Unfunded",(($AF31*(100%-$AI31))-((SUMPRODUCT(($C$24:$F$24)*($C$25:$F$25="Partially Funded")*($C$45:$F$45))/$AF$45)*$AF31))*(Y$48/(SUMIFS($C$48:$F$48,$C$25:$F$25,"Unfunded"))),IF(Y$25="Funded",(($AF31*$AI31)-((SUMPRODUCT(($C$23:$F$23)*($C$25:$F$25="Partially Funded")*($C$45:$F$45))/$AF$45)*$AF31))*(Y$47/(SUMIFS($C$47:$F$47,$C$25:$F$25,"Funded"))),0))) -> 0 | Z86: =IF(Z$25="Partially Funded",((($AF31/$AF$45)*Z$45)*Z$23)+(($AF31/$AF$45)*Z$45)-((($AF31/$AF$45)*Z$45)*Z$23),IF(Z$25="Unfunded",(($AF31*(100%-$AI31))-((SUMPRODUCT(($C$24:$F$24)*($C$25:$F$25="Partially Funded")*($C$45:$F$45))/$AF$45)*$AF31))*(Z$48/(SUMIFS($C$48:$F$48,$C$25:$F$25,"Unfunded"))),IF(Z$25="Funded",(($AF31*$AI31)-((SUMPRODUCT(($C$23:$F$23)*($C$25:$F$25="Partially Funded")*($C$45:$F$45))/$AF$45)*$AF31))*(Z$47/(SUMIFS($C$47:$F$47,$C$25:$F$25,"Funded"))),0))) -> 0 | AA86: =IF(AA$25="Partially Funded",((($AF31/$AF$45)*AA$45)*AA$23)+(($AF31/$AF$45)*AA$45)-((($AF31/$AF$45)*AA$45)*AA$23),IF(AA$25="Unfunded",(($AF31*(100%-$AI31))-((SUMPRODUCT(($C$24:$F$24)*($C$25:$F$25="Partially Funded")*($C$45:$F$45))/$AF$45)*$AF31))*(AA$48/(SUMIFS($C$48:$F$48,$C$25:$F$25,"Unfunded"))),IF(AA$25="Funded",(($AF31*$AI31)-((SUMPRODUCT(($C$23:$F$23)*($C$25:$F$25="Partially Funded")*($C$45:$F$45))/$AF$45)*$AF31))*(AA$47/(SUMIFS($C$47:$F$47,$C$25:$F$25,"Funded"))),0))) -> 0 | AB86: =IF(AB$25="Partially Funded",((($AF31/$AF$45)*AB$45)*AB$23)+(($AF31/$AF$45)*AB$45)-((($AF31/$AF$45)*AB$45)*AB$23),IF(AB$25="Unfunded",(($AF31*(100%-$AI31))-((SUMPRODUCT(($C$24:$F$24)*($C$25:$F$25="Partially Funded")*($C$45:$F$45))/$AF$45)*$AF31))*(AB$48/(SUMIFS($C$48:$F$48,$C$25:$F$25,"Unfunded"))),IF(AB$25="Funded",(($AF31*$AI31)-((SUMPRODUCT(($C$23:$F$23)*($C$25:$F$25="Partially Funded")*($C$45:$F$45))/$AF$45)*$AF31))*(AB$47/(SUMIFS($C$47:$F$47,$C$25:$F$25,"Funded"))),0))) -> 0 | AC86: =IF(AC$25="Partially Funded",((($AF31/$AF$45)*AC$45)*AC$23)+(($AF31/$AF$45)*AC$45)-((($AF31/$AF$45)*AC$45)*AC$23),IF(AC$25="Unfunded",(($AF31*(100%-$AI31))-((SUMPRODUCT(($C$24:$F$24)*($C$25:$F$25="Partially Funded")*($C$45:$F$45))/$AF$45)*$AF31))*(AC$48/(SUMIFS($C$48:$F$48,$C$25:$F$25,"Unfunded"))),IF(AC$25="Funded",(($AF31*$AI31)-((SUMPRODUCT(($C$23:$F$23)*($C$25:$F$25="Partially Funded")*($C$45:$F$45))/$AF$45)*$AF31))*(AC$47/(SUMIFS($C$47:$F$47,$C$25:$F$25,"Funded"))),0))) -> 0 | AD86: =IF(AD$25="Partially Funded",((($AF31/$AF$45)*AD$45)*AD$23)+(($AF31/$AF$45)*AD$45)-((($AF31/$AF$45)*AD$45)*AD$23),IF(AD$25="Unfunded",(($AF31*(100%-$AI31))-((SUMPRODUCT(($C$24:$F$24)*($C$25:$F$25="Partially Funded")*($C$45:$F$45))/$AF$45)*$AF31))*(AD$48/(SUMIFS($C$48:$F$48,$C$25:$F$25,"Unfunded"))),IF(AD$25="Funded",(($AF31*$AI31)-((SUMPRODUCT(($C$23:$F$23)*($C$25:$F$25="Partially Funded")*($C$45:$F$45))/$AF$45)*$AF31))*(AD$47/(SUMIFS($C$47:$F$47,$C$25:$F$25,"Funded"))),0))) -> 0 | AE86: =IF(AE$25="Partially Funded",((($AF31/$AF$45)*AE$45)*AE$23)+(($AF31/$AF$45)*AE$45)-((($AF31/$AF$45)*AE$45)*AE$23),IF(AE$25="Unfunded",(($AF31*(100%-$AI31))-((SUMPRODUCT(($C$24:$F$24)*($C$25:$F$25="Partially Funded")*($C$45:$F$45))/$AF$45)*$AF31))*(AE$48/(SUMIFS($C$48:$F$48,$C$25:$F$25,"Unfunded"))),IF(AE$25="Funded",(($AF31*$AI31)-((SUMPRODUCT(($C$23:$F$23)*($C$25:$F$25="Partially Funded")*($C$45:$F$45))/$AF$45)*$AF31))*(AE$47/(SUMIFS($C$47:$F$47,$C$25:$F$25,"Funded"))),0))) -> 0 | AF86: 0 | AG86: =IFERROR(SUM(_xlfn._xlws.FILTER($C86:$AE86,$C86:$AE86>0)*_xlfn._xlws.FILTER($C$23:$AE$23,$C86:$AE86>0))/($AF86),"n/a") -> n/a | AH86: n/a
B87: Potential SLF VIII | C87: =IF(C$25="Partially Funded",((($AF32/$AF$45)*C$45)*C$23)+(($AF32/$AF$45)*C$45)-((($AF32/$AF$45)*C$45)*C$23),IF(C$25="Unfunded",(($AF32*(100%-$AI32))-((SUMPRODUCT(($C$24:$F$24)*($C$25:$F$25="Partially Funded")*($C$45:$F$45))/$AF$45)*$AF32))*(C$48/(SUMIFS($C$48:$F$48,$C$25:$F$25,"Unfunded"))),IF(C$25="Funded",(($AF32*$AI32)-((SUMPRODUCT(($C$23:$F$23)*($C$25:$F$25="Partially Funded")*($C$45:$F$45))/$AF$45)*$AF32))*(C$47/(SUMIFS($C$47:$F$47,$C$25:$F$25,"Funded"))),0))) -> 0 | D87: =IF(D$25="Partially Funded",((($AF32/$AF$45)*D$45)*D$23)+(($AF32/$AF$45)*D$45)-((($AF32/$AF$45)*D$45)*D$23),IF(D$25="Unfunded",(($AF32*(100%-$AI32))-((SUMPRODUCT(($C$24:$F$24)*($C$25:$F$25="Partially Funded")*($C$45:$F$45))/$AF$45)*$AF32))*(D$48/(SUMIFS($C$48:$F$48,$C$25:$F$25,"Unfunded"))),IF(D$25="Funded",(($AF32*$AI32)-((SUMPRODUCT(($C$23:$F$23)*($C$25:$F$25="Partially Funded")*($C$45:$F$45))/$AF$45)*$AF32))*(D$47/(SUMIFS($C$47:$F$47,$C$25:$F$25,"Funded"))),0))) -> 0 | E87: =IF(E$25="Partially Funded",((($AF32/$AF$45)*E$45)*E$23)+(($AF32/$AF$45)*E$45)-((($AF32/$AF$45)*E$45)*E$23),IF(E$25="Unfunded",(($AF32*(100%-$AI32))-((SUMPRODUCT(($C$24:$F$24)*($C$25:$F$25="Partially Funded")*($C$45:$F$45))/$AF$45)*$AF32))*(E$48/(SUMIFS($C$48:$F$48,$C$25:$F$25,"Unfunded"))),IF(E$25="Funded",(($AF32*$AI32)-((SUMPRODUCT(($C$23:$F$23)*($C$25:$F$25="Partially Funded")*($C$45:$F$45))/$AF$45)*$AF32))*(E$47/(SUMIFS($C$47:$F$47,$C$25:$F$25,"Funded"))),0))) -> 0 | F87: =IF(F$25="Partially Funded",((($AF32/$AF$45)*F$45)*F$23)+(($AF32/$AF$45)*F$45)-((($AF32/$AF$45)*F$45)*F$23),IF(F$25="Unfunded",(($AF32*(100%-$AI32))-((SUMPRODUCT(($C$24:$F$24)*($C$25:$F$25="Partially Funded")*($C$45:$F$45))/$AF$45)*$AF32))*(F$48/(SUMIFS($C$48:$F$48,$C$25:$F$25,"Unfunded"))),IF(F$25="Funded",(($AF32*$AI32)-((SUMPRODUCT(($C$23:$F$23)*($C$25:$F$25="Partially Funded")*($C$45:$F$45))/$AF$45)*$AF32))*(F$47/(SUMIFS($C$47:$F$47,$C$25:$F$25,"Funded"))),0))) -> 0 | G87: =IF(G$25="Partially Funded",((($AF32/$AF$45)*G$45)*G$23)+(($AF32/$AF$45)*G$45)-((($AF32/$AF$45)*G$45)*G$23),IF(G$25="Unfunded",(($AF32*(100%-$AI32))-((SUMPRODUCT(($C$24:$F$24)*($C$25:$F$25="Partially Funded")*($C$45:$F$45))/$AF$45)*$AF32))*(G$48/(SUMIFS($C$48:$F$48,$C$25:$F$25,"Unfunded"))),IF(G$25="Funded",(($AF32*$AI32)-((SUMPRODUCT(($C$23:$F$23)*($C$25:$F$25="Partially Funded")*($C$45:$F$45))/$AF$45)*$AF32))*(G$47/(SUMIFS($C$47:$F$47,$C$25:$F$25,"Funded"))),0))) -> 0 | H87: =IF(H$25="Partially Funded",((($AF32/$AF$45)*H$45)*H$23)+(($AF32/$AF$45)*H$45)-((($AF32/$AF$45)*H$45)*H$23),IF(H$25="Unfunded",(($AF32*(100%-$AI32))-((SUMPRODUCT(($C$24:$F$24)*($C$25:$F$25="Partially Funded")*($C$45:$F$45))/$AF$45)*$AF32))*(H$48/(SUMIFS($C$48:$F$48,$C$25:$F$25,"Unfunded"))),IF(H$25="Funded",(($AF32*$AI32)-((SUMPRODUCT(($C$23:$F$23)*($C$25:$F$25="Partially Funded")*($C$45:$F$45))/$AF$45)*$AF32))*(H$47/(SUMIFS($C$47:$F$47,$C$25:$F$25,"Funded"))),0))) -> 0 | I87: =IF(I$25="Partially Funded",((($AF32/$AF$45)*I$45)*I$23)+(($AF32/$AF$45)*I$45)-((($AF32/$AF$45)*I$45)*I$23),IF(I$25="Unfunded",(($AF32*(100%-$AI32))-((SUMPRODUCT(($C$24:$F$24)*($C$25:$F$25="Partially Funded")*($C$45:$F$45))/$AF$45)*$AF32))*(I$48/(SUMIFS($C$48:$F$48,$C$25:$F$25,"Unfunded"))),IF(I$25="Funded",(($AF32*$AI32)-((SUMPRODUCT(($C$23:$F$23)*($C$25:$F$25="Partially Funded")*($C$45:$F$45))/$AF$45)*$AF32))*(I$47/(SUMIFS($C$47:$F$47,$C$25:$F$25,"Funded"))),0))) -> 0 | J87: =IF(J$25="Partially Funded",((($AF32/$AF$45)*J$45)*J$23)+(($AF32/$AF$45)*J$45)-((($AF32/$AF$45)*J$45)*J$23),IF(J$25="Unfunded",(($AF32*(100%-$AI32))-((SUMPRODUCT(($C$24:$F$24)*($C$25:$F$25="Partially Funded")*($C$45:$F$45))/$AF$45)*$AF32))*(J$48/(SUMIFS($C$48:$F$48,$C$25:$F$25,"Unfunded"))),IF(J$25="Funded",(($AF32*$AI32)-((SUMPRODUCT(($C$23:$F$23)*($C$25:$F$25="Partially Funded")*($C$45:$F$45))/$AF$45)*$AF32))*(J$47/(SUMIFS($C$47:$F$47,$C$25:$F$25,"Funded"))),0))) -> 0 | K87: =IF(K$25="Partially Funded",((($AF32/$AF$45)*K$45)*K$23)+(($AF32/$AF$45)*K$45)-((($AF32/$AF$45)*K$45)*K$23),IF(K$25="Unfunded",(($AF32*(100%-$AI32))-((SUMPRODUCT(($C$24:$F$24)*($C$25:$F$25="Partially Funded")*($C$45:$F$45))/$AF$45)*$AF32))*(K$48/(SUMIFS($C$48:$F$48,$C$25:$F$25,"Unfunded"))),IF(K$25="Funded",(($AF32*$AI32)-((SUMPRODUCT(($C$23:$F$23)*($C$25:$F$25="Partially Funded")*($C$45:$F$45))/$AF$45)*$AF32))*(K$47/(SUMIFS($C$47:$F$47,$C$25:$F$25,"Funded"))),0))) -> 0 | L87: =IF(L$25="Partially Funded",((($AF32/$AF$45)*L$45)*L$23)+(($AF32/$AF$45)*L$45)-((($AF32/$AF$45)*L$45)*L$23),IF(L$25="Unfunded",(($AF32*(100%-$AI32))-((SUMPRODUCT(($C$24:$F$24)*($C$25:$F$25="Partially Funded")*($C$45:$F$45))/$AF$45)*$AF32))*(L$48/(SUMIFS($C$48:$F$48,$C$25:$F$25,"Unfunded"))),IF(L$25="Funded",(($AF32*$AI32)-((SUMPRODUCT(($C$23:$F$23)*($C$25:$F$25="Partially Funded")*($C$45:$F$45))/$AF$45)*$AF32))*(L$47/(SUMIFS($C$47:$F$47,$C$25:$F$25,"Funded"))),0))) -> 0 | M87: =IF(M$25="Partially Funded",((($AF32/$AF$45)*M$45)*M$23)+(($AF32/$AF$45)*M$45)-((($AF32/$AF$45)*M$45)*M$23),IF(M$25="Unfunded",(($AF32*(100%-$AI32))-((SUMPRODUCT(($C$24:$F$24)*($C$25:$F$25="Partially Funded")*($C$45:$F$45))/$AF$45)*$AF32))*(M$48/(SUMIFS($C$48:$F$48,$C$25:$F$25,"Unfunded"))),IF(M$25="Funded",(($AF32*$AI32)-((SUMPRODUCT(($C$23:$F$23)*($C$25:$F$25="Partially Funded")*($C$45:$F$45))/$AF$45)*$AF32))*(M$47/(SUMIFS($C$47:$F$47,$C$25:$F$25,"Funded"))),0))) -> 0 | N87: =IF(N$25="Partially Funded",((($AF32/$AF$45)*N$45)*N$23)+(($AF32/$AF$45)*N$45)-((($AF32/$AF$45)*N$45)*N$23),IF(N$25="Unfunded",(($AF32*(100%-$AI32))-((SUMPRODUCT(($C$24:$F$24)*($C$25:$F$25="Partially Funded")*($C$45:$F$45))/$AF$45)*$AF32))*(N$48/(SUMIFS($C$48:$F$48,$C$25:$F$25,"Unfunded"))),IF(N$25="Funded",(($AF32*$AI32)-((SUMPRODUCT(($C$23:$F$23)*($C$25:$F$25="Partially Funded")*($C$45:$F$45))/$AF$45)*$AF32))*(N$47/(SUMIFS($C$47:$F$47,$C$25:$F$25,"Funded"))),0))) -> 0 | O87: =IF(O$25="Partially Funded",((($AF32/$AF$45)*O$45)*O$23)+(($AF32/$AF$45)*O$45)-((($AF32/$AF$45)*O$45)*O$23),IF(O$25="Unfunded",(($AF32*(100%-$AI32))-((SUMPRODUCT(($C$24:$F$24)*($C$25:$F$25="Partially Funded")*($C$45:$F$45))/$AF$45)*$AF32))*(O$48/(SUMIFS($C$48:$F$48,$C$25:$F$25,"Unfunded"))),IF(O$25="Funded",(($AF32*$AI32)-((SUMPRODUCT(($C$23:$F$23)*($C$25:$F$25="Partially Funded")*($C$45:$F$45))/$AF$45)*$AF32))*(O$47/(SUMIFS($C$47:$F$47,$C$25:$F$25,"Funded"))),0))) -> 0 | P87: =IF(P$25="Partially Funded",((($AF32/$AF$45)*P$45)*P$23)+(($AF32/$AF$45)*P$45)-((($AF32/$AF$45)*P$45)*P$23),IF(P$25="Unfunded",(($AF32*(100%-$AI32))-((SUMPRODUCT(($C$24:$F$24)*($C$25:$F$25="Partially Funded")*($C$45:$F$45))/$AF$45)*$AF32))*(P$48/(SUMIFS($C$48:$F$48,$C$25:$F$25,"Unfunded"))),IF(P$25="Funded",(($AF32*$AI32)-((SUMPRODUCT(($C$23:$F$23)*($C$25:$F$25="Partially Funded")*($C$45:$F$45))/$AF$45)*$AF32))*(P$47/(SUMIFS($C$47:$F$47,$C$25:$F$25,"Funded"))),0))) -> 0 | Q87: =IF(Q$25="Partially Funded",((($AF32/$AF$45)*Q$45)*Q$23)+(($AF32/$AF$45)*Q$45)-((($AF32/$AF$45)*Q$45)*Q$23),IF(Q$25="Unfunded",(($AF32*(100%-$AI32))-((SUMPRODUCT(($C$24:$F$24)*($C$25:$F$25="Partially Funded")*($C$45:$F$45))/$AF$45)*$AF32))*(Q$48/(SUMIFS($C$48:$F$48,$C$25:$F$25,"Unfunded"))),IF(Q$25="Funded",(($AF32*$AI32)-((SUMPRODUCT(($C$23:$F$23)*($C$25:$F$25="Partially Funded")*($C$45:$F$45))/$AF$45)*$AF32))*(Q$47/(SUMIFS($C$47:$F$47,$C$25:$F$25,"Funded"))),0))) -> 0 | R87: =IF(R$25="Partially Funded",((($AF32/$AF$45)*R$45)*R$23)+(($AF32/$AF$45)*R$45)-((($AF32/$AF$45)*R$45)*R$23),IF(R$25="Unfunded",(($AF32*(100%-$AI32))-((SUMPRODUCT(($C$24:$F$24)*($C$25:$F$25="Partially Funded")*($C$45:$F$45))/$AF$45)*$AF32))*(R$48/(SUMIFS($C$48:$F$48,$C$25:$F$25,"Unfunded"))),IF(R$25="Funded",(($AF32*$AI32)-((SUMPRODUCT(($C$23:$F$23)*($C$25:$F$25="Partially Funded")*($C$45:$F$45))/$AF$45)*$AF32))*(R$47/(SUMIFS($C$47:$F$47,$C$25:$F$25,"Funded"))),0))) -> 0 | S87: =IF(S$25="Partially Funded",((($AF32/$AF$45)*S$45)*S$23)+(($AF32/$AF$45)*S$45)-((($AF32/$AF$45)*S$45)*S$23),IF(S$25="Unfunded",(($AF32*(100%-$AI32))-((SUMPRODUCT(($C$24:$F$24)*($C$25:$F$25="Partially Funded")*($C$45:$F$45))/$AF$45)*$AF32))*(S$48/(SUMIFS($C$48:$F$48,$C$25:$F$25,"Unfunded"))),IF(S$25="Funded",(($AF32*$AI32)-((SUMPRODUCT(($C$23:$F$23)*($C$25:$F$25="Partially Funded")*($C$45:$F$45))/$AF$45)*$AF32))*(S$47/(SUMIFS($C$47:$F$47,$C$25:$F$25,"Funded"))),0))) -> 0 | T87: =IF(T$25="Partially Funded",((($AF32/$AF$45)*T$45)*T$23)+(($AF32/$AF$45)*T$45)-((($AF32/$AF$45)*T$45)*T$23),IF(T$25="Unfunded",(($AF32*(100%-$AI32))-((SUMPRODUCT(($C$24:$F$24)*($C$25:$F$25="Partially Funded")*($C$45:$F$45))/$AF$45)*$AF32))*(T$48/(SUMIFS($C$48:$F$48,$C$25:$F$25,"Unfunded"))),IF(T$25="Funded",(($AF32*$AI32)-((SUMPRODUCT(($C$23:$F$23)*($C$25:$F$25="Partially Funded")*($C$45:$F$45))/$AF$45)*$AF32))*(T$47/(SUMIFS($C$47:$F$47,$C$25:$F$25,"Funded"))),0))) -> 0 | U87: =IF(U$25="Partially Funded",((($AF32/$AF$45)*U$45)*U$23)+(($AF32/$AF$45)*U$45)-((($AF32/$AF$45)*U$45)*U$23),IF(U$25="Unfunded",(($AF32*(100%-$AI32))-((SUMPRODUCT(($C$24:$F$24)*($C$25:$F$25="Partially Funded")*($C$45:$F$45))/$AF$45)*$AF32))*(U$48/(SUMIFS($C$48:$F$48,$C$25:$F$25,"Unfunded"))),IF(U$25="Funded",(($AF32*$AI32)-((SUMPRODUCT(($C$23:$F$23)*($C$25:$F$25="Partially Funded")*($C$45:$F$45))/$AF$45)*$AF32))*(U$47/(SUMIFS($C$47:$F$47,$C$25:$F$25,"Funded"))),0))) -> 0 | V87: =IF(V$25="Partially Funded",((($AF32/$AF$45)*V$45)*V$23)+(($AF32/$AF$45)*V$45)-((($AF32/$AF$45)*V$45)*V$23),IF(V$25="Unfunded",(($AF32*(100%-$AI32))-((SUMPRODUCT(($C$24:$F$24)*($C$25:$F$25="Partially Funded")*($C$45:$F$45))/$AF$45)*$AF32))*(V$48/(SUMIFS($C$48:$F$48,$C$25:$F$25,"Unfunded"))),IF(V$25="Funded",(($AF32*$AI32)-((SUMPRODUCT(($C$23:$F$23)*($C$25:$F$25="Partially Funded")*($C$45:$F$45))/$AF$45)*$AF32))*(V$47/(SUMIFS($C$47:$F$47,$C$25:$F$25,"Funded"))),0))) -> 0 | W87: =IF(W$25="Partially Funded",((($AF32/$AF$45)*W$45)*W$23)+(($AF32/$AF$45)*W$45)-((($AF32/$AF$45)*W$45)*W$23),IF(W$25="Unfunded",(($AF32*(100%-$AI32))-((SUMPRODUCT(($C$24:$F$24)*($C$25:$F$25="Partially Funded")*($C$45:$F$45))/$AF$45)*$AF32))*(W$48/(SUMIFS($C$48:$F$48,$C$25:$F$25,"Unfunded"))),IF(W$25="Funded",(($AF32*$AI32)-((SUMPRODUCT(($C$23:$F$23)*($C$25:$F$25="Partially Funded")*($C$45:$F$45))/$AF$45)*$AF32))*(W$47/(SUMIFS($C$47:$F$47,$C$25:$F$25,"Funded"))),0))) -> 0 | X87: =IF(X$25="Partially Funded",((($AF32/$AF$45)*X$45)*X$23)+(($AF32/$AF$45)*X$45)-((($AF32/$AF$45)*X$45)*X$23),IF(X$25="Unfunded",(($AF32*(100%-$AI32))-((SUMPRODUCT(($C$24:$F$24)*($C$25:$F$25="Partially Funded")*($C$45:$F$45))/$AF$45)*$AF32))*(X$48/(SUMIFS($C$48:$F$48,$C$25:$F$25,"Unfunded"))),IF(X$25="Funded",(($AF32*$AI32)-((SUMPRODUCT(($C$23:$F$23)*($C$25:$F$25="Partially Funded")*($C$45:$F$45))/$AF$45)*$AF32))*(X$47/(SUMIFS($C$47:$F$47,$C$25:$F$25,"Funded"))),0))) -> 0 | Y87: =IF(Y$25="Partially Funded",((($AF32/$AF$45)*Y$45)*Y$23)+(($AF32/$AF$45)*Y$45)-((($AF32/$AF$45)*Y$45)*Y$23),IF(Y$25="Unfunded",(($AF32*(100%-$AI32))-((SUMPRODUCT(($C$24:$F$24)*($C$25:$F$25="Partially Funded")*($C$45:$F$45))/$AF$45)*$AF32))*(Y$48/(SUMIFS($C$48:$F$48,$C$25:$F$25,"Unfunded"))),IF(Y$25="Funded",(($AF32*$AI32)-((SUMPRODUCT(($C$23:$F$23)*($C$25:$F$25="Partially Funded")*($C$45:$F$45))/$AF$45)*$AF32))*(Y$47/(SUMIFS($C$47:$F$47,$C$25:$F$25,"Funded"))),0))) -> 0 | Z87: =IF(Z$25="Partially Funded",((($AF32/$AF$45)*Z$45)*Z$23)+(($AF32/$AF$45)*Z$45)-((($AF32/$AF$45)*Z$45)*Z$23),IF(Z$25="Unfunded",(($AF32*(100%-$AI32))-((SUMPRODUCT(($C$24:$F$24)*($C$25:$F$25="Partially Funded")*($C$45:$F$45))/$AF$45)*$AF32))*(Z$48/(SUMIFS($C$48:$F$48,$C$25:$F$25,"Unfunded"))),IF(Z$25="Funded",(($AF32*$AI32)-((SUMPRODUCT(($C$23:$F$23)*($C$25:$F$25="Partially Funded")*($C$45:$F$45))/$AF$45)*$AF32))*(Z$47/(SUMIFS($C$47:$F$47,$C$25:$F$25,"Funded"))),0))) -> 0 | AA87: =IF(AA$25="Partially Funded",((($AF32/$AF$45)*AA$45)*AA$23)+(($AF32/$AF$45)*AA$45)-((($AF32/$AF$45)*AA$45)*AA$23),IF(AA$25="Unfunded",(($AF32*(100%-$AI32))-((SUMPRODUCT(($C$24:$F$24)*($C$25:$F$25="Partially Funded")*($C$45:$F$45))/$AF$45)*$AF32))*(AA$48/(SUMIFS($C$48:$F$48,$C$25:$F$25,"Unfunded"))),IF(AA$25="Funded",(($AF32*$AI32)-((SUMPRODUCT(($C$23:$F$23)*($C$25:$F$25="Partially Funded")*($C$45:$F$45))/$AF$45)*$AF32))*(AA$47/(SUMIFS($C$47:$F$47,$C$25:$F$25,"Funded"))),0))) -> 0 | AB87: =IF(AB$25="Partially Funded",((($AF32/$AF$45)*AB$45)*AB$23)+(($AF32/$AF$45)*AB$45)-((($AF32/$AF$45)*AB$45)*AB$23),IF(AB$25="Unfunded",(($AF32*(100%-$AI32))-((SUMPRODUCT(($C$24:$F$24)*($C$25:$F$25="Partially Funded")*($C$45:$F$45))/$AF$45)*$AF32))*(AB$48/(SUMIFS($C$48:$F$48,$C$25:$F$25,"Unfunded"))),IF(AB$25="Funded",(($AF32*$AI32)-((SUMPRODUCT(($C$23:$F$23)*($C$25:$F$25="Partially Funded")*($C$45:$F$45))/$AF$45)*$AF32))*(AB$47/(SUMIFS($C$47:$F$47,$C$25:$F$25,"Funded"))),0))) -> 0 | AC87: =IF(AC$25="Partially Funded",((($AF32/$AF$45)*AC$45)*AC$23)+(($AF32/$AF$45)*AC$45)-((($AF32/$AF$45)*AC$45)*AC$23),IF(AC$25="Unfunded",(($AF32*(100%-$AI32))-((SUMPRODUCT(($C$24:$F$24)*($C$25:$F$25="Partially Funded")*($C$45:$F$45))/$AF$45)*$AF32))*(AC$48/(SUMIFS($C$48:$F$48,$C$25:$F$25,"Unfunded"))),IF(AC$25="Funded",(($AF32*$AI32)-((SUMPRODUCT(($C$23:$F$23)*($C$25:$F$25="Partially Funded")*($C$45:$F$45))/$AF$45)*$AF32))*(AC$47/(SUMIFS($C$47:$F$47,$C$25:$F$25,"Funded"))),0))) -> 0 | AD87: =IF(AD$25="Partially Funded",((($AF32/$AF$45)*AD$45)*AD$23)+(($AF32/$AF$45)*AD$45)-((($AF32/$AF$45)*AD$45)*AD$23),IF(AD$25="Unfunded",(($AF32*(100%-$AI32))-((SUMPRODUCT(($C$24:$F$24)*($C$25:$F$25="Partially Funded")*($C$45:$F$45))/$AF$45)*$AF32))*(AD$48/(SUMIFS($C$48:$F$48,$C$25:$F$25,"Unfunded"))),IF(AD$25="Funded",(($AF32*$AI32)-((SUMPRODUCT(($C$23:$F$23)*($C$25:$F$25="Partially Funded")*($C$45:$F$45))/$AF$45)*$AF32))*(AD$47/(SUMIFS($C$47:$F$47,$C$25:$F$25,"Funded"))),0))) -> 0 | AE87: =IF(AE$25="Partially Funded",((($AF32/$AF$45)*AE$45)*AE$23)+(($AF32/$AF$45)*AE$45)-((($AF32/$AF$45)*AE$45)*AE$23),IF(AE$25="Unfunded",(($AF32*(100%-$AI32))-((SUMPRODUCT(($C$24:$F$24)*($C$25:$F$25="Partially Funded")*($C$45:$F$45))/$AF$45)*$AF32))*(AE$48/(SUMIFS($C$48:$F$48,$C$25:$F$25,"Unfunded"))),IF(AE$25="Funded",(($AF32*$AI32)-((SUMPRODUCT(($C$23:$F$23)*($C$25:$F$25="Partially Funded")*($C$45:$F$45))/$AF$45)*$AF32))*(AE$47/(SUMIFS($C$47:$F$47,$C$25:$F$25,"Funded"))),0))) -> 0 | AF87: 0 | AG87: =IFERROR(SUM(_xlfn._xlws.FILTER($C87:$AE87,$C87:$AE87>0)*_xlfn._xlws.FILTER($C$23:$AE$23,$C87:$AE87>0))/($AF87),"n/a") -> n/a | AH87: n/a | BJ87: ="Issues" & IF(SUMPRODUCT(1*(AI88:AI104<>""))=0," (none)","") -> Issues (none)
A88: =AF88 -> 0 | B88: SMA-A A | C88: =IF(C$25="Partially Funded",((($AF33/$AF$45)*C$45)*C$23)+(($AF33/$AF$45)*C$45)-((($AF33/$AF$45)*C$45)*C$23),IF(C$25="Unfunded",(($AF33*(100%-$AI33))-((SUMPRODUCT(($C$24:$F$24)*($C$25:$F$25="Partially Funded")*($C$45:$F$45))/$AF$45)*$AF33))*(C$48/(SUMIFS($C$48:$F$48,$C$25:$F$25,"Unfunded"))),IF(C$25="Funded",(($AF33*$AI33)-((SUMPRODUCT(($C$23:$F$23)*($C$25:$F$25="Partially Funded")*($C$45:$F$45))/$AF$45)*$AF33))*(C$47/(SUMIFS($C$47:$F$47,$C$25:$F$25,"Funded"))),0))) -> 0 | D88: =IF(D$25="Partially Funded",((($AF33/$AF$45)*D$45)*D$23)+(($AF33/$AF$45)*D$45)-((($AF33/$AF$45)*D$45)*D$23),IF(D$25="Unfunded",(($AF33*(100%-$AI33))-((SUMPRODUCT(($C$24:$F$24)*($C$25:$F$25="Partially Funded")*($C$45:$F$45))/$AF$45)*$AF33))*(D$48/(SUMIFS($C$48:$F$48,$C$25:$F$25,"Unfunded"))),IF(D$25="Funded",(($AF33*$AI33)-((SUMPRODUCT(($C$23:$F$23)*($C$25:$F$25="Partially Funded")*($C$45:$F$45))/$AF$45)*$AF33))*(D$47/(SUMIFS($C$47:$F$47,$C$25:$F$25,"Funded"))),0))) -> 0 | E88: =IF(E$25="Partially Funded",((($AF33/$AF$45)*E$45)*E$23)+(($AF33/$AF$45)*E$45)-((($AF33/$AF$45)*E$45)*E$23),IF(E$25="Unfunded",(($AF33*(100%-$AI33))-((SUMPRODUCT(($C$24:$F$24)*($C$25:$F$25="Partially Funded")*($C$45:$F$45))/$AF$45)*$AF33))*(E$48/(SUMIFS($C$48:$F$48,$C$25:$F$25,"Unfunded"))),IF(E$25="Funded",(($AF33*$AI33)-((SUMPRODUCT(($C$23:$F$23)*($C$25:$F$25="Partially Funded")*($C$45:$F$45))/$AF$45)*$AF33))*(E$47/(SUMIFS($C$47:$F$47,$C$25:$F$25,"Funded"))),0))) -> 0 | F88: =IF(F$25="Partially Funded",((($AF33/$AF$45)*F$45)*F$23)+(($AF33/$AF$45)*F$45)-((($AF33/$AF$45)*F$45)*F$23),IF(F$25="Unfunded",(($AF33*(100%-$AI33))-((SUMPRODUCT(($C$24:$F$24)*($C$25:$F$25="Partially Funded")*($C$45:$F$45))/$AF$45)*$AF33))*(F$48/(SUMIFS($C$48:$F$48,$C$25:$F$25,"Unfunded"))),IF(F$25="Funded",(($AF33*$AI33)-((SUMPRODUCT(($C$23:$F$23)*($C$25:$F$25="Partially Funded")*($C$45:$F$45))/$AF$45)*$AF33))*(F$47/(SUMIFS($C$47:$F$47,$C$25:$F$25,"Funded"))),0))) -> 0 | G88: =IF(G$25="Partially Funded",((($AF33/$AF$45)*G$45)*G$23)+(($AF33/$AF$45)*G$45)-((($AF33/$AF$45)*G$45)*G$23),IF(G$25="Unfunded",(($AF33*(100%-$AI33))-((SUMPRODUCT(($C$24:$F$24)*($C$25:$F$25="Partially Funded")*($C$45:$F$45))/$AF$45)*$AF33))*(G$48/(SUMIFS($C$48:$F$48,$C$25:$F$25,"Unfunded"))),IF(G$25="Funded",(($AF33*$AI33)-((SUMPRODUCT(($C$23:$F$23)*($C$25:$F$25="Partially Funded")*($C$45:$F$45))/$AF$45)*$AF33))*(G$47/(SUMIFS($C$47:$F$47,$C$25:$F$25,"Funded"))),0))) -> 0 | H88: =IF(H$25="Partially Funded",((($AF33/$AF$45)*H$45)*H$23)+(($AF33/$AF$45)*H$45)-((($AF33/$AF$45)*H$45)*H$23),IF(H$25="Unfunded",(($AF33*(100%-$AI33))-((SUMPRODUCT(($C$24:$F$24)*($C$25:$F$25="Partially Funded")*($C$45:$F$45))/$AF$45)*$AF33))*(H$48/(SUMIFS($C$48:$F$48,$C$25:$F$25,"Unfunded"))),IF(H$25="Funded",(($AF33*$AI33)-((SUMPRODUCT(($C$23:$F$23)*($C$25:$F$25="Partially Funded")*($C$45:$F$45))/$AF$45)*$AF33))*(H$47/(SUMIFS($C$47:$F$47,$C$25:$F$25,"Funded"))),0))) -> 0 | I88: =IF(I$25="Partially Funded",((($AF33/$AF$45)*I$45)*I$23)+(($AF33/$AF$45)*I$45)-((($AF33/$AF$45)*I$45)*I$23),IF(I$25="Unfunded",(($AF33*(100%-$AI33))-((SUMPRODUCT(($C$24:$F$24)*($C$25:$F$25="Partially Funded")*($C$45:$F$45))/$AF$45)*$AF33))*(I$48/(SUMIFS($C$48:$F$48,$C$25:$F$25,"Unfunded"))),IF(I$25="Funded",(($AF33*$AI33)-((SUMPRODUCT(($C$23:$F$23)*($C$25:$F$25="Partially Funded")*($C$45:$F$45))/$AF$45)*$AF33))*(I$47/(SUMIFS($C$47:$F$47,$C$25:$F$25,"Funded"))),0))) -> 0 | J88: =IF(J$25="Partially Funded",((($AF33/$AF$45)*J$45)*J$23)+(($AF33/$AF$45)*J$45)-((($AF33/$AF$45)*J$45)*J$23),IF(J$25="Unfunded",(($AF33*(100%-$AI33))-((SUMPRODUCT(($C$24:$F$24)*($C$25:$F$25="Partially Funded")*($C$45:$F$45))/$AF$45)*$AF33))*(J$48/(SUMIFS($C$48:$F$48,$C$25:$F$25,"Unfunded"))),IF(J$25="Funded",(($AF33*$AI33)-((SUMPRODUCT(($C$23:$F$23)*($C$25:$F$25="Partially Funded")*($C$45:$F$45))/$AF$45)*$AF33))*(J$47/(SUMIFS($C$47:$F$47,$C$25:$F$25,"Funded"))),0))) -> 0 | K88: =IF(K$25="Partially Funded",((($AF33/$AF$45)*K$45)*K$23)+(($AF33/$AF$45)*K$45)-((($AF33/$AF$45)*K$45)*K$23),IF(K$25="Unfunded",(($AF33*(100%-$AI33))-((SUMPRODUCT(($C$24:$F$24)*($C$25:$F$25="Partially Funded")*($C$45:$F$45))/$AF$45)*$AF33))*(K$48/(SUMIFS($C$48:$F$48,$C$25:$F$25,"Unfunded"))),IF(K$25="Funded",(($AF33*$AI33)-((SUMPRODUCT(($C$23:$F$23)*($C$25:$F$25="Partially Funded")*($C$45:$F$45))/$AF$45)*$AF33))*(K$47/(SUMIFS($C$47:$F$47,$C$25:$F$25,"Funded"))),0))) -> 0 | L88: =IF(L$25="Partially Funded",((($AF33/$AF$45)*L$45)*L$23)+(($AF33/$AF$45)*L$45)-((($AF33/$AF$45)*L$45)*L$23),IF(L$25="Unfunded",(($AF33*(100%-$AI33))-((SUMPRODUCT(($C$24:$F$24)*($C$25:$F$25="Partially Funded")*($C$45:$F$45))/$AF$45)*$AF33))*(L$48/(SUMIFS($C$48:$F$48,$C$25:$F$25,"Unfunded"))),IF(L$25="Funded",(($AF33*$AI33)-((SUMPRODUCT(($C$23:$F$23)*($C$25:$F$25="Partially Funded")*($C$45:$F$45))/$AF$45)*$AF33))*(L$47/(SUMIFS($C$47:$F$47,$C$25:$F$25,"Funded"))),0))) -> 0 | M88: =IF(M$25="Partially Funded",((($AF33/$AF$45)*M$45)*M$23)+(($AF33/$AF$45)*M$45)-((($AF33/$AF$45)*M$45)*M$23),IF(M$25="Unfunded",(($AF33*(100%-$AI33))-((SUMPRODUCT(($C$24:$F$24)*($C$25:$F$25="Partially Funded")*($C$45:$F$45))/$AF$45)*$AF33))*(M$48/(SUMIFS($C$48:$F$48,$C$25:$F$25,"Unfunded"))),IF(M$25="Funded",(($AF33*$AI33)-((SUMPRODUCT(($C$23:$F$23)*($C$25:$F$25="Partially Funded")*($C$45:$F$45))/$AF$45)*$AF33))*(M$47/(SUMIFS($C$47:$F$47,$C$25:$F$25,"Funded"))),0))) -> 0 | N88: =IF(N$25="Partially Funded",((($AF33/$AF$45)*N$45)*N$23)+(($AF33/$AF$45)*N$45)-((($AF33/$AF$45)*N$45)*N$23),IF(N$25="Unfunded",(($AF33*(100%-$AI33))-((SUMPRODUCT(($C$24:$F$24)*($C$25:$F$25="Partially Funded")*($C$45:$F$45))/$AF$45)*$AF33))*(N$48/(SUMIFS($C$48:$F$48,$C$25:$F$25,"Unfunded"))),IF(N$25="Funded",(($AF33*$AI33)-((SUMPRODUCT(($C$23:$F$23)*($C$25:$F$25="Partially Funded")*($C$45:$F$45))/$AF$45)*$AF33))*(N$47/(SUMIFS($C$47:$F$47,$C$25:$F$25,"Funded"))),0))) -> 0 | O88: =IF(O$25="Partially Funded",((($AF33/$AF$45)*O$45)*O$23)+(($AF33/$AF$45)*O$45)-((($AF33/$AF$45)*O$45)*O$23),IF(O$25="Unfunded",(($AF33*(100%-$AI33))-((SUMPRODUCT(($C$24:$F$24)*($C$25:$F$25="Partially Funded")*($C$45:$F$45))/$AF$45)*$AF33))*(O$48/(SUMIFS($C$48:$F$48,$C$25:$F$25,"Unfunded"))),IF(O$25="Funded",(($AF33*$AI33)-((SUMPRODUCT(($C$23:$F$23)*($C$25:$F$25="Partially Funded")*($C$45:$F$45))/$AF$45)*$AF33))*(O$47/(SUMIFS($C$47:$F$47,$C$25:$F$25,"Funded"))),0))) -> 0 | P88: =IF(P$25="Partially Funded",((($AF33/$AF$45)*P$45)*P$23)+(($AF33/$AF$45)*P$45)-((($AF33/$AF$45)*P$45)*P$23),IF(P$25="Unfunded",(($AF33*(100%-$AI33))-((SUMPRODUCT(($C$24:$F$24)*($C$25:$F$25="Partially Funded")*($C$45:$F$45))/$AF$45)*$AF33))*(P$48/(SUMIFS($C$48:$F$48,$C$25:$F$25,"Unfunded"))),IF(P$25="Funded",(($AF33*$AI33)-((SUMPRODUCT(($C$23:$F$23)*($C$25:$F$25="Partially Funded")*($C$45:$F$45))/$AF$45)*$AF33))*(P$47/(SUMIFS($C$47:$F$47,$C$25:$F$25,"Funded"))),0))) -> 0 | Q88: =IF(Q$25="Partially Funded",((($AF33/$AF$45)*Q$45)*Q$23)+(($AF33/$AF$45)*Q$45)-((($AF33/$AF$45)*Q$45)*Q$23),IF(Q$25="Unfunded",(($AF33*(100%-$AI33))-((SUMPRODUCT(($C$24:$F$24)*($C$25:$F$25="Partially Funded")*($C$45:$F$45))/$AF$45)*$AF33))*(Q$48/(SUMIFS($C$48:$F$48,$C$25:$F$25,"Unfunded"))),IF(Q$25="Funded",(($AF33*$AI33)-((SUMPRODUCT(($C$23:$F$23)*($C$25:$F$25="Partially Funded")*($C$45:$F$45))/$AF$45)*$AF33))*(Q$47/(SUMIFS($C$47:$F$47,$C$25:$F$25,"Funded"))),0))) -> 0 | R88: =IF(R$25="Partially Funded",((($AF33/$AF$45)*R$45)*R$23)+(($AF33/$AF$45)*R$45)-((($AF33/$AF$45)*R$45)*R$23),IF(R$25="Unfunded",(($AF33*(100%-$AI33))-((SUMPRODUCT(($C$24:$F$24)*($C$25:$F$25="Partially Funded")*($C$45:$F$45))/$AF$45)*$AF33))*(R$48/(SUMIFS($C$48:$F$48,$C$25:$F$25,"Unfunded"))),IF(R$25="Funded",(($AF33*$AI33)-((SUMPRODUCT(($C$23:$F$23)*($C$25:$F$25="Partially Funded")*($C$45:$F$45))/$AF$45)*$AF33))*(R$47/(SUMIFS($C$47:$F$47,$C$25:$F$25,"Funded"))),0))) -> 0 | S88: =IF(S$25="Partially Funded",((($AF33/$AF$45)*S$45)*S$23)+(($AF33/$AF$45)*S$45)-((($AF33/$AF$45)*S$45)*S$23),IF(S$25="Unfunded",(($AF33*(100%-$AI33))-((SUMPRODUCT(($C$24:$F$24)*($C$25:$F$25="Partially Funded")*($C$45:$F$45))/$AF$45)*$AF33))*(S$48/(SUMIFS($C$48:$F$48,$C$25:$F$25,"Unfunded"))),IF(S$25="Funded",(($AF33*$AI33)-((SUMPRODUCT(($C$23:$F$23)*($C$25:$F$25="Partially Funded")*($C$45:$F$45))/$AF$45)*$AF33))*(S$47/(SUMIFS($C$47:$F$47,$C$25:$F$25,"Funded"))),0))) -> 0 | T88: =IF(T$25="Partially Funded",((($AF33/$AF$45)*T$45)*T$23)+(($AF33/$AF$45)*T$45)-((($AF33/$AF$45)*T$45)*T$23),IF(T$25="Unfunded",(($AF33*(100%-$AI33))-((SUMPRODUCT(($C$24:$F$24)*($C$25:$F$25="Partially Funded")*($C$45:$F$45))/$AF$45)*$AF33))*(T$48/(SUMIFS($C$48:$F$48,$C$25:$F$25,"Unfunded"))),IF(T$25="Funded",(($AF33*$AI33)-((SUMPRODUCT(($C$23:$F$23)*($C$25:$F$25="Partially Funded")*($C$45:$F$45))/$AF$45)*$AF33))*(T$47/(SUMIFS($C$47:$F$47,$C$25:$F$25,"Funded"))),0))) -> 0 | U88: =IF(U$25="Partially Funded",((($AF33/$AF$45)*U$45)*U$23)+(($AF33/$AF$45)*U$45)-((($AF33/$AF$45)*U$45)*U$23),IF(U$25="Unfunded",(($AF33*(100%-$AI33))-((SUMPRODUCT(($C$24:$F$24)*($C$25:$F$25="Partially Funded")*($C$45:$F$45))/$AF$45)*$AF33))*(U$48/(SUMIFS($C$48:$F$48,$C$25:$F$25,"Unfunded"))),IF(U$25="Funded",(($AF33*$AI33)-((SUMPRODUCT(($C$23:$F$23)*($C$25:$F$25="Partially Funded")*($C$45:$F$45))/$AF$45)*$AF33))*(U$47/(SUMIFS($C$47:$F$47,$C$25:$F$25,"Funded"))),0))) -> 0 | V88: =IF(V$25="Partially Funded",((($AF33/$AF$45)*V$45)*V$23)+(($AF33/$AF$45)*V$45)-((($AF33/$AF$45)*V$45)*V$23),IF(V$25="Unfunded",(($AF33*(100%-$AI33))-((SUMPRODUCT(($C$24:$F$24)*($C$25:$F$25="Partially Funded")*($C$45:$F$45))/$AF$45)*$AF33))*(V$48/(SUMIFS($C$48:$F$48,$C$25:$F$25,"Unfunded"))),IF(V$25="Funded",(($AF33*$AI33)-((SUMPRODUCT(($C$23:$F$23)*($C$25:$F$25="Partially Funded")*($C$45:$F$45))/$AF$45)*$AF33))*(V$47/(SUMIFS($C$47:$F$47,$C$25:$F$25,"Funded"))),0))) -> 0 | W88: =IF(W$25="Partially Funded",((($AF33/$AF$45)*W$45)*W$23)+(($AF33/$AF$45)*W$45)-((($AF33/$AF$45)*W$45)*W$23),IF(W$25="Unfunded",(($AF33*(100%-$AI33))-((SUMPRODUCT(($C$24:$F$24)*($C$25:$F$25="Partially Funded")*($C$45:$F$45))/$AF$45)*$AF33))*(W$48/(SUMIFS($C$48:$F$48,$C$25:$F$25,"Unfunded"))),IF(W$25="Funded",(($AF33*$AI33)-((SUMPRODUCT(($C$23:$F$23)*($C$25:$F$25="Partially Funded")*($C$45:$F$45))/$AF$45)*$AF33))*(W$47/(SUMIFS($C$47:$F$47,$C$25:$F$25,"Funded"))),0))) -> 0 | X88: =IF(X$25="Partially Funded",((($AF33/$AF$45)*X$45)*X$23)+(($AF33/$AF$45)*X$45)-((($AF33/$AF$45)*X$45)*X$23),IF(X$25="Unfunded",(($AF33*(100%-$AI33))-((SUMPRODUCT(($C$24:$F$24)*($C$25:$F$25="Partially Funded")*($C$45:$F$45))/$AF$45)*$AF33))*(X$48/(SUMIFS($C$48:$F$48,$C$25:$F$25,"Unfunded"))),IF(X$25="Funded",(($AF33*$AI33)-((SUMPRODUCT(($C$23:$F$23)*($C$25:$F$25="Partially Funded")*($C$45:$F$45))/$AF$45)*$AF33))*(X$47/(SUMIFS($C$47:$F$47,$C$25:$F$25,"Funded"))),0))) -> 0 | Y88: =IF(Y$25="Partially Funded",((($AF33/$AF$45)*Y$45)*Y$23)+(($AF33/$AF$45)*Y$45)-((($AF33/$AF$45)*Y$45)*Y$23),IF(Y$25="Unfunded",(($AF33*(100%-$AI33))-((SUMPRODUCT(($C$24:$F$24)*($C$25:$F$25="Partially Funded")*($C$45:$F$45))/$AF$45)*$AF33))*(Y$48/(SUMIFS($C$48:$F$48,$C$25:$F$25,"Unfunded"))),IF(Y$25="Funded",(($AF33*$AI33)-((SUMPRODUCT(($C$23:$F$23)*($C$25:$F$25="Partially Funded")*($C$45:$F$45))/$AF$45)*$AF33))*(Y$47/(SUMIFS($C$47:$F$47,$C$25:$F$25,"Funded"))),0))) -> 0 | Z88: =IF(Z$25="Partially Funded",((($AF33/$AF$45)*Z$45)*Z$23)+(($AF33/$AF$45)*Z$45)-((($AF33/$AF$45)*Z$45)*Z$23),IF(Z$25="Unfunded",(($AF33*(100%-$AI33))-((SUMPRODUCT(($C$24:$F$24)*($C$25:$F$25="Partially Funded")*($C$45:$F$45))/$AF$45)*$AF33))*(Z$48/(SUMIFS($C$48:$F$48,$C$25:$F$25,"Unfunded"))),IF(Z$25="Funded",(($AF33*$AI33)-((SUMPRODUCT(($C$23:$F$23)*($C$25:$F$25="Partially Funded")*($C$45:$F$45))/$AF$45)*$AF33))*(Z$47/(SUMIFS($C$47:$F$47,$C$25:$F$25,"Funded"))),0))) -> 0 | AA88: =IF(AA$25="Partially Funded",((($AF33/$AF$45)*AA$45)*AA$23)+(($AF33/$AF$45)*AA$45)-((($AF33/$AF$45)*AA$45)*AA$23),IF(AA$25="Unfunded",(($AF33*(100%-$AI33))-((SUMPRODUCT(($C$24:$F$24)*($C$25:$F$25="Partially Funded")*($C$45:$F$45))/$AF$45)*$AF33))*(AA$48/(SUMIFS($C$48:$F$48,$C$25:$F$25,"Unfunded"))),IF(AA$25="Funded",(($AF33*$AI33)-((SUMPRODUCT(($C$23:$F$23)*($C$25:$F$25="Partially Funded")*($C$45:$F$45))/$AF$45)*$AF33))*(AA$47/(SUMIFS($C$47:$F$47,$C$25:$F$25,"Funded"))),0))) -> 0 | AB88: =IF(AB$25="Partially Funded",((($AF33/$AF$45)*AB$45)*AB$23)+(($AF33/$AF$45)*AB$45)-((($AF33/$AF$45)*AB$45)*AB$23),IF(AB$25="Unfunded",(($AF33*(100%-$AI33))-((SUMPRODUCT(($C$24:$F$24)*($C$25:$F$25="Partially Funded")*($C$45:$F$45))/$AF$45)*$AF33))*(AB$48/(SUMIFS($C$48:$F$48,$C$25:$F$25,"Unfunded"))),IF(AB$25="Funded",(($AF33*$AI33)-((SUMPRODUCT(($C$23:$F$23)*($C$25:$F$25="Partially Funded")*($C$45:$F$45))/$AF$45)*$AF33))*(AB$47/(SUMIFS($C$47:$F$47,$C$25:$F$25,"Funded"))),0))) -> 0 | AC88: =IF(AC$25="Partially Funded",((($AF33/$AF$45)*AC$45)*AC$23)+(($AF33/$AF$45)*AC$45)-((($AF33/$AF$45)*AC$45)*AC$23),IF(AC$25="Unfunded",(($AF33*(100%-$AI33))-((SUMPRODUCT(($C$24:$F$24)*($C$25:$F$25="Partially Funded")*($C$45:$F$45))/$AF$45)*$AF33))*(AC$48/(SUMIFS($C$48:$F$48,$C$25:$F$25,"Unfunded"))),IF(AC$25="Funded",(($AF33*$AI33)-((SUMPRODUCT(($C$23:$F$23)*($C$25:$F$25="Partially Funded")*($C$45:$F$45))/$AF$45)*$AF33))*(AC$47/(SUMIFS($C$47:$F$47,$C$25:$F$25,"Funded"))),0))) -> 0 | AD88: =IF(AD$25="Partially Funded",((($AF33/$AF$45)*AD$45)*AD$23)+(($AF33/$AF$45)*AD$45)-((($AF33/$AF$45)*AD$45)*AD$23),IF(AD$25="Unfunded",(($AF33*(100%-$AI33))-((SUMPRODUCT(($C$24:$F$24)*($C$25:$F$25="Partially Funded")*($C$45:$F$45))/$AF$45)*$AF33))*(AD$48/(SUMIFS($C$48:$F$48,$C$25:$F$25,"Unfunded"))),IF(AD$25="Funded",(($AF33*$AI33)-((SUMPRODUCT(($C$23:$F$23)*($C$25:$F$25="Partially Funded")*($C$45:$F$45))/$AF$45)*$AF33))*(AD$47/(SUMIFS($C$47:$F$47,$C$25:$F$25,"Funded"))),0))) -> 0 | AE88: =IF(AE$25="Partially Funded",((($AF33/$AF$45)*AE$45)*AE$23)+(($AF33/$AF$45)*AE$45)-((($AF33/$AF$45)*AE$45)*AE$23),IF(AE$25="Unfunded",(($AF33*(100%-$AI33))-((SUMPRODUCT(($C$24:$F$24)*($C$25:$F$25="Partially Funded")*($C$45:$F$45))/$AF$45)*$AF33))*(AE$48/(SUMIFS($C$48:$F$48,$C$25:$F$25,"Unfunded"))),IF(AE$25="Funded",(($AF33*$AI33)-((SUMPRODUCT(($C$23:$F$23)*($C$25:$F$25="Partially Funded")*($C$45:$F$45))/$AF$45)*$AF33))*(AE$47/(SUMIFS($C$47:$F$47,$C$25:$F$25,"Funded"))),0))) -> 0 | AF88: 0 | AG88: =IFERROR(SUM(_xlfn._xlws.FILTER($C88:$AE88,$C88:$AE88>0)*_xlfn._xlws.FILTER($C$23:$AE$23,$C88:$AE88>0))/($AF88),"n/a") -> n/a | AH88: n/a | AI88: =IF(SUMPRODUCT(1*(C82:AF83>C$81:AF$81))>0,"SLF I and SLF V can neither have commitments greater than NXT's.","") -> 
A89: 0 | B89: SMA-A B | C89: =IF(C$25="Partially Funded",((($AF34/$AF$45)*C$45)*C$23)+(($AF34/$AF$45)*C$45)-((($AF34/$AF$45)*C$45)*C$23),IF(C$25="Unfunded",(($AF34*(100%-$AI34))-((SUMPRODUCT(($C$24:$F$24)*($C$25:$F$25="Partially Funded")*($C$45:$F$45))/$AF$45)*$AF34))*(C$48/(SUMIFS($C$48:$F$48,$C$25:$F$25,"Unfunded"))),IF(C$25="Funded",(($AF34*$AI34)-((SUMPRODUCT(($C$23:$F$23)*($C$25:$F$25="Partially Funded")*($C$45:$F$45))/$AF$45)*$AF34))*(C$47/(SUMIFS($C$47:$F$47,$C$25:$F$25,"Funded"))),0))) -> 0 | D89: =IF(D$25="Partially Funded",((($AF34/$AF$45)*D$45)*D$23)+(($AF34/$AF$45)*D$45)-((($AF34/$AF$45)*D$45)*D$23),IF(D$25="Unfunded",(($AF34*(100%-$AI34))-((SUMPRODUCT(($C$24:$F$24)*($C$25:$F$25="Partially Funded")*($C$45:$F$45))/$AF$45)*$AF34))*(D$48/(SUMIFS($C$48:$F$48,$C$25:$F$25,"Unfunded"))),IF(D$25="Funded",(($AF34*$AI34)-((SUMPRODUCT(($C$23:$F$23)*($C$25:$F$25="Partially Funded")*($C$45:$F$45))/$AF$45)*$AF34))*(D$47/(SUMIFS($C$47:$F$47,$C$25:$F$25,"Funded"))),0))) -> 0 | E89: =IF(E$25="Partially Funded",((($AF34/$AF$45)*E$45)*E$23)+(($AF34/$AF$45)*E$45)-((($AF34/$AF$45)*E$45)*E$23),IF(E$25="Unfunded",(($AF34*(100%-$AI34))-((SUMPRODUCT(($C$24:$F$24)*($C$25:$F$25="Partially Funded")*($C$45:$F$45))/$AF$45)*$AF34))*(E$48/(SUMIFS($C$48:$F$48,$C$25:$F$25,"Unfunded"))),IF(E$25="Funded",(($AF34*$AI34)-((SUMPRODUCT(($C$23:$F$23)*($C$25:$F$25="Partially Funded")*($C$45:$F$45))/$AF$45)*$AF34))*(E$47/(SUMIFS($C$47:$F$47,$C$25:$F$25,"Funded"))),0))) -> 0 | F89: =IF(F$25="Partially Funded",((($AF34/$AF$45)*F$45)*F$23)+(($AF34/$AF$45)*F$45)-((($AF34/$AF$45)*F$45)*F$23),IF(F$25="Unfunded",(($AF34*(100%-$AI34))-((SUMPRODUCT(($C$24:$F$24)*($C$25:$F$25="Partially Funded")*($C$45:$F$45))/$AF$45)*$AF34))*(F$48/(SUMIFS($C$48:$F$48,$C$25:$F$25,"Unfunded"))),IF(F$25="Funded",(($AF34*$AI34)-((SUMPRODUCT(($C$23:$F$23)*($C$25:$F$25="Partially Funded")*($C$45:$F$45))/$AF$45)*$AF34))*(F$47/(SUMIFS($C$47:$F$47,$C$25:$F$25,"Funded"))),0))) -> 0 | G89: =IF(G$25="Partially Funded",((($AF34/$AF$45)*G$45)*G$23)+(($AF34/$AF$45)*G$45)-((($AF34/$AF$45)*G$45)*G$23),IF(G$25="Unfunded",(($AF34*(100%-$AI34))-((SUMPRODUCT(($C$24:$F$24)*($C$25:$F$25="Partially Funded")*($C$45:$F$45))/$AF$45)*$AF34))*(G$48/(SUMIFS($C$48:$F$48,$C$25:$F$25,"Unfunded"))),IF(G$25="Funded",(($AF34*$AI34)-((SUMPRODUCT(($C$23:$F$23)*($C$25:$F$25="Partially Funded")*($C$45:$F$45))/$AF$45)*$AF34))*(G$47/(SUMIFS($C$47:$F$47,$C$25:$F$25,"Funded"))),0))) -> 0 | H89: =IF(H$25="Partially Funded",((($AF34/$AF$45)*H$45)*H$23)+(($AF34/$AF$45)*H$45)-((($AF34/$AF$45)*H$45)*H$23),IF(H$25="Unfunded",(($AF34*(100%-$AI34))-((SUMPRODUCT(($C$24:$F$24)*($C$25:$F$25="Partially Funded")*($C$45:$F$45))/$AF$45)*$AF34))*(H$48/(SUMIFS($C$48:$F$48,$C$25:$F$25,"Unfunded"))),IF(H$25="Funded",(($AF34*$AI34)-((SUMPRODUCT(($C$23:$F$23)*($C$25:$F$25="Partially Funded")*($C$45:$F$45))/$AF$45)*$AF34))*(H$47/(SUMIFS($C$47:$F$47,$C$25:$F$25,"Funded"))),0))) -> 0 | I89: =IF(I$25="Partially Funded",((($AF34/$AF$45)*I$45)*I$23)+(($AF34/$AF$45)*I$45)-((($AF34/$AF$45)*I$45)*I$23),IF(I$25="Unfunded",(($AF34*(100%-$AI34))-((SUMPRODUCT(($C$24:$F$24)*($C$25:$F$25="Partially Funded")*($C$45:$F$45))/$AF$45)*$AF34))*(I$48/(SUMIFS($C$48:$F$48,$C$25:$F$25,"Unfunded"))),IF(I$25="Funded",(($AF34*$AI34)-((SUMPRODUCT(($C$23:$F$23)*($C$25:$F$25="Partially Funded")*($C$45:$F$45))/$AF$45)*$AF34))*(I$47/(SUMIFS($C$47:$F$47,$C$25:$F$25,"Funded"))),0))) -> 0 | J89: =IF(J$25="Partially Funded",((($AF34/$AF$45)*J$45)*J$23)+(($AF34/$AF$45)*J$45)-((($AF34/$AF$45)*J$45)*J$23),IF(J$25="Unfunded",(($AF34*(100%-$AI34))-((SUMPRODUCT(($C$24:$F$24)*($C$25:$F$25="Partially Funded")*($C$45:$F$45))/$AF$45)*$AF34))*(J$48/(SUMIFS($C$48:$F$48,$C$25:$F$25,"Unfunded"))),IF(J$25="Funded",(($AF34*$AI34)-((SUMPRODUCT(($C$23:$F$23)*($C$25:$F$25="Partially Funded")*($C$45:$F$45))/$AF$45)*$AF34))*(J$47/(SUMIFS($C$47:$F$47,$C$25:$F$25,"Funded"))),0))) -> 0 | K89: =IF(K$25="Partially Funded",((($AF34/$AF$45)*K$45)*K$23)+(($AF34/$AF$45)*K$45)-((($AF34/$AF$45)*K$45)*K$23),IF(K$25="Unfunded",(($AF34*(100%-$AI34))-((SUMPRODUCT(($C$24:$F$24)*($C$25:$F$25="Partially Funded")*($C$45:$F$45))/$AF$45)*$AF34))*(K$48/(SUMIFS($C$48:$F$48,$C$25:$F$25,"Unfunded"))),IF(K$25="Funded",(($AF34*$AI34)-((SUMPRODUCT(($C$23:$F$23)*($C$25:$F$25="Partially Funded")*($C$45:$F$45))/$AF$45)*$AF34))*(K$47/(SUMIFS($C$47:$F$47,$C$25:$F$25,"Funded"))),0))) -> 0 | L89: =IF(L$25="Partially Funded",((($AF34/$AF$45)*L$45)*L$23)+(($AF34/$AF$45)*L$45)-((($AF34/$AF$45)*L$45)*L$23),IF(L$25="Unfunded",(($AF34*(100%-$AI34))-((SUMPRODUCT(($C$24:$F$24)*($C$25:$F$25="Partially Funded")*($C$45:$F$45))/$AF$45)*$AF34))*(L$48/(SUMIFS($C$48:$F$48,$C$25:$F$25,"Unfunded"))),IF(L$25="Funded",(($AF34*$AI34)-((SUMPRODUCT(($C$23:$F$23)*($C$25:$F$25="Partially Funded")*($C$45:$F$45))/$AF$45)*$AF34))*(L$47/(SUMIFS($C$47:$F$47,$C$25:$F$25,"Funded"))),0))) -> 0 | M89: =IF(M$25="Partially Funded",((($AF34/$AF$45)*M$45)*M$23)+(($AF34/$AF$45)*M$45)-((($AF34/$AF$45)*M$45)*M$23),IF(M$25="Unfunded",(($AF34*(100%-$AI34))-((SUMPRODUCT(($C$24:$F$24)*($C$25:$F$25="Partially Funded")*($C$45:$F$45))/$AF$45)*$AF34))*(M$48/(SUMIFS($C$48:$F$48,$C$25:$F$25,"Unfunded"))),IF(M$25="Funded",(($AF34*$AI34)-((SUMPRODUCT(($C$23:$F$23)*($C$25:$F$25="Partially Funded")*($C$45:$F$45))/$AF$45)*$AF34))*(M$47/(SUMIFS($C$47:$F$47,$C$25:$F$25,"Funded"))),0))) -> 0 | N89: =IF(N$25="Partially Funded",((($AF34/$AF$45)*N$45)*N$23)+(($AF34/$AF$45)*N$45)-((($AF34/$AF$45)*N$45)*N$23),IF(N$25="Unfunded",(($AF34*(100%-$AI34))-((SUMPRODUCT(($C$24:$F$24)*($C$25:$F$25="Partially Funded")*($C$45:$F$45))/$AF$45)*$AF34))*(N$48/(SUMIFS($C$48:$F$48,$C$25:$F$25,"Unfunded"))),IF(N$25="Funded",(($AF34*$AI34)-((SUMPRODUCT(($C$23:$F$23)*($C$25:$F$25="Partially Funded")*($C$45:$F$45))/$AF$45)*$AF34))*(N$47/(SUMIFS($C$47:$F$47,$C$25:$F$25,"Funded"))),0))) -> 0 | O89: =IF(O$25="Partially Funded",((($AF34/$AF$45)*O$45)*O$23)+(($AF34/$AF$45)*O$45)-((($AF34/$AF$45)*O$45)*O$23),IF(O$25="Unfunded",(($AF34*(100%-$AI34))-((SUMPRODUCT(($C$24:$F$24)*($C$25:$F$25="Partially Funded")*($C$45:$F$45))/$AF$45)*$AF34))*(O$48/(SUMIFS($C$48:$F$48,$C$25:$F$25,"Unfunded"))),IF(O$25="Funded",(($AF34*$AI34)-((SUMPRODUCT(($C$23:$F$23)*($C$25:$F$25="Partially Funded")*($C$45:$F$45))/$AF$45)*$AF34))*(O$47/(SUMIFS($C$47:$F$47,$C$25:$F$25,"Funded"))),0))) -> 0 | P89: =IF(P$25="Partially Funded",((($AF34/$AF$45)*P$45)*P$23)+(($AF34/$AF$45)*P$45)-((($AF34/$AF$45)*P$45)*P$23),IF(P$25="Unfunded",(($AF34*(100%-$AI34))-((SUMPRODUCT(($C$24:$F$24)*($C$25:$F$25="Partially Funded")*($C$45:$F$45))/$AF$45)*$AF34))*(P$48/(SUMIFS($C$48:$F$48,$C$25:$F$25,"Unfunded"))),IF(P$25="Funded",(($AF34*$AI34)-((SUMPRODUCT(($C$23:$F$23)*($C$25:$F$25="Partially Funded")*($C$45:$F$45))/$AF$45)*$AF34))*(P$47/(SUMIFS($C$47:$F$47,$C$25:$F$25,"Funded"))),0))) -> 0 | Q89: =IF(Q$25="Partially Funded",((($AF34/$AF$45)*Q$45)*Q$23)+(($AF34/$AF$45)*Q$45)-((($AF34/$AF$45)*Q$45)*Q$23),IF(Q$25="Unfunded",(($AF34*(100%-$AI34))-((SUMPRODUCT(($C$24:$F$24)*($C$25:$F$25="Partially Funded")*($C$45:$F$45))/$AF$45)*$AF34))*(Q$48/(SUMIFS($C$48:$F$48,$C$25:$F$25,"Unfunded"))),IF(Q$25="Funded",(($AF34*$AI34)-((SUMPRODUCT(($C$23:$F$23)*($C$25:$F$25="Partially Funded")*($C$45:$F$45))/$AF$45)*$AF34))*(Q$47/(SUMIFS($C$47:$F$47,$C$25:$F$25,"Funded"))),0))) -> 0 | R89: =IF(R$25="Partially Funded",((($AF34/$AF$45)*R$45)*R$23)+(($AF34/$AF$45)*R$45)-((($AF34/$AF$45)*R$45)*R$23),IF(R$25="Unfunded",(($AF34*(100%-$AI34))-((SUMPRODUCT(($C$24:$F$24)*($C$25:$F$25="Partially Funded")*($C$45:$F$45))/$AF$45)*$AF34))*(R$48/(SUMIFS($C$48:$F$48,$C$25:$F$25,"Unfunded"))),IF(R$25="Funded",(($AF34*$AI34)-((SUMPRODUCT(($C$23:$F$23)*($C$25:$F$25="Partially Funded")*($C$45:$F$45))/$AF$45)*$AF34))*(R$47/(SUMIFS($C$47:$F$47,$C$25:$F$25,"Funded"))),0))) -> 0 | S89: =IF(S$25="Partially Funded",((($AF34/$AF$45)*S$45)*S$23)+(($AF34/$AF$45)*S$45)-((($AF34/$AF$45)*S$45)*S$23),IF(S$25="Unfunded",(($AF34*(100%-$AI34))-((SUMPRODUCT(($C$24:$F$24)*($C$25:$F$25="Partially Funded")*($C$45:$F$45))/$AF$45)*$AF34))*(S$48/(SUMIFS($C$48:$F$48,$C$25:$F$25,"Unfunded"))),IF(S$25="Funded",(($AF34*$AI34)-((SUMPRODUCT(($C$23:$F$23)*($C$25:$F$25="Partially Funded")*($C$45:$F$45))/$AF$45)*$AF34))*(S$47/(SUMIFS($C$47:$F$47,$C$25:$F$25,"Funded"))),0))) -> 0 | T89: =IF(T$25="Partially Funded",((($AF34/$AF$45)*T$45)*T$23)+(($AF34/$AF$45)*T$45)-((($AF34/$AF$45)*T$45)*T$23),IF(T$25="Unfunded",(($AF34*(100%-$AI34))-((SUMPRODUCT(($C$24:$F$24)*($C$25:$F$25="Partially Funded")*($C$45:$F$45))/$AF$45)*$AF34))*(T$48/(SUMIFS($C$48:$F$48,$C$25:$F$25,"Unfunded"))),IF(T$25="Funded",(($AF34*$AI34)-((SUMPRODUCT(($C$23:$F$23)*($C$25:$F$25="Partially Funded")*($C$45:$F$45))/$AF$45)*$AF34))*(T$47/(SUMIFS($C$47:$F$47,$C$25:$F$25,"Funded"))),0))) -> 0 | U89: =IF(U$25="Partially Funded",((($AF34/$AF$45)*U$45)*U$23)+(($AF34/$AF$45)*U$45)-((($AF34/$AF$45)*U$45)*U$23),IF(U$25="Unfunded",(($AF34*(100%-$AI34))-((SUMPRODUCT(($C$24:$F$24)*($C$25:$F$25="Partially Funded")*($C$45:$F$45))/$AF$45)*$AF34))*(U$48/(SUMIFS($C$48:$F$48,$C$25:$F$25,"Unfunded"))),IF(U$25="Funded",(($AF34*$AI34)-((SUMPRODUCT(($C$23:$F$23)*($C$25:$F$25="Partially Funded")*($C$45:$F$45))/$AF$45)*$AF34))*(U$47/(SUMIFS($C$47:$F$47,$C$25:$F$25,"Funded"))),0))) -> 0 | V89: =IF(V$25="Partially Funded",((($AF34/$AF$45)*V$45)*V$23)+(($AF34/$AF$45)*V$45)-((($AF34/$AF$45)*V$45)*V$23),IF(V$25="Unfunded",(($AF34*(100%-$AI34))-((SUMPRODUCT(($C$24:$F$24)*($C$25:$F$25="Partially Funded")*($C$45:$F$45))/$AF$45)*$AF34))*(V$48/(SUMIFS($C$48:$F$48,$C$25:$F$25,"Unfunded"))),IF(V$25="Funded",(($AF34*$AI34)-((SUMPRODUCT(($C$23:$F$23)*($C$25:$F$25="Partially Funded")*($C$45:$F$45))/$AF$45)*$AF34))*(V$47/(SUMIFS($C$47:$F$47,$C$25:$F$25,"Funded"))),0))) -> 0 | W89: =IF(W$25="Partially Funded",((($AF34/$AF$45)*W$45)*W$23)+(($AF34/$AF$45)*W$45)-((($AF34/$AF$45)*W$45)*W$23),IF(W$25="Unfunded",(($AF34*(100%-$AI34))-((SUMPRODUCT(($C$24:$F$24)*($C$25:$F$25="Partially Funded")*($C$45:$F$45))/$AF$45)*$AF34))*(W$48/(SUMIFS($C$48:$F$48,$C$25:$F$25,"Unfunded"))),IF(W$25="Funded",(($AF34*$AI34)-((SUMPRODUCT(($C$23:$F$23)*($C$25:$F$25="Partially Funded")*($C$45:$F$45))/$AF$45)*$AF34))*(W$47/(SUMIFS($C$47:$F$47,$C$25:$F$25,"Funded"))),0))) -> 0 | X89: =IF(X$25="Partially Funded",((($AF34/$AF$45)*X$45)*X$23)+(($AF34/$AF$45)*X$45)-((($AF34/$AF$45)*X$45)*X$23),IF(X$25="Unfunded",(($AF34*(100%-$AI34))-((SUMPRODUCT(($C$24:$F$24)*($C$25:$F$25="Partially Funded")*($C$45:$F$45))/$AF$45)*$AF34))*(X$48/(SUMIFS($C$48:$F$48,$C$25:$F$25,"Unfunded"))),IF(X$25="Funded",(($AF34*$AI34)-((SUMPRODUCT(($C$23:$F$23)*($C$25:$F$25="Partially Funded")*($C$45:$F$45))/$AF$45)*$AF34))*(X$47/(SUMIFS($C$47:$F$47,$C$25:$F$25,"Funded"))),0))) -> 0 | Y89: =IF(Y$25="Partially Funded",((($AF34/$AF$45)*Y$45)*Y$23)+(($AF34/$AF$45)*Y$45)-((($AF34/$AF$45)*Y$45)*Y$23),IF(Y$25="Unfunded",(($AF34*(100%-$AI34))-((SUMPRODUCT(($C$24:$F$24)*($C$25:$F$25="Partially Funded")*($C$45:$F$45))/$AF$45)*$AF34))*(Y$48/(SUMIFS($C$48:$F$48,$C$25:$F$25,"Unfunded"))),IF(Y$25="Funded",(($AF34*$AI34)-((SUMPRODUCT(($C$23:$F$23)*($C$25:$F$25="Partially Funded")*($C$45:$F$45))/$AF$45)*$AF34))*(Y$47/(SUMIFS($C$47:$F$47,$C$25:$F$25,"Funded"))),0))) -> 0 | Z89: =IF(Z$25="Partially Funded",((($AF34/$AF$45)*Z$45)*Z$23)+(($AF34/$AF$45)*Z$45)-((($AF34/$AF$45)*Z$45)*Z$23),IF(Z$25="Unfunded",(($AF34*(100%-$AI34))-((SUMPRODUCT(($C$24:$F$24)*($C$25:$F$25="Partially Funded")*($C$45:$F$45))/$AF$45)*$AF34))*(Z$48/(SUMIFS($C$48:$F$48,$C$25:$F$25,"Unfunded"))),IF(Z$25="Funded",(($AF34*$AI34)-((SUMPRODUCT(($C$23:$F$23)*($C$25:$F$25="Partially Funded")*($C$45:$F$45))/$AF$45)*$AF34))*(Z$47/(SUMIFS($C$47:$F$47,$C$25:$F$25,"Funded"))),0))) -> 0 | AA89: =IF(AA$25="Partially Funded",((($AF34/$AF$45)*AA$45)*AA$23)+(($AF34/$AF$45)*AA$45)-((($AF34/$AF$45)*AA$45)*AA$23),IF(AA$25="Unfunded",(($AF34*(100%-$AI34))-((SUMPRODUCT(($C$24:$F$24)*($C$25:$F$25="Partially Funded")*($C$45:$F$45))/$AF$45)*$AF34))*(AA$48/(SUMIFS($C$48:$F$48,$C$25:$F$25,"Unfunded"))),IF(AA$25="Funded",(($AF34*$AI34)-((SUMPRODUCT(($C$23:$F$23)*($C$25:$F$25="Partially Funded")*($C$45:$F$45))/$AF$45)*$AF34))*(AA$47/(SUMIFS($C$47:$F$47,$C$25:$F$25,"Funded"))),0))) -> 0 | AB89: =IF(AB$25="Partially Funded",((($AF34/$AF$45)*AB$45)*AB$23)+(($AF34/$AF$45)*AB$45)-((($AF34/$AF$45)*AB$45)*AB$23),IF(AB$25="Unfunded",(($AF34*(100%-$AI34))-((SUMPRODUCT(($C$24:$F$24)*($C$25:$F$25="Partially Funded")*($C$45:$F$45))/$AF$45)*$AF34))*(AB$48/(SUMIFS($C$48:$F$48,$C$25:$F$25,"Unfunded"))),IF(AB$25="Funded",(($AF34*$AI34)-((SUMPRODUCT(($C$23:$F$23)*($C$25:$F$25="Partially Funded")*($C$45:$F$45))/$AF$45)*$AF34))*(AB$47/(SUMIFS($C$47:$F$47,$C$25:$F$25,"Funded"))),0))) -> 0 | AC89: =IF(AC$25="Partially Funded",((($AF34/$AF$45)*AC$45)*AC$23)+(($AF34/$AF$45)*AC$45)-((($AF34/$AF$45)*AC$45)*AC$23),IF(AC$25="Unfunded",(($AF34*(100%-$AI34))-((SUMPRODUCT(($C$24:$F$24)*($C$25:$F$25="Partially Funded")*($C$45:$F$45))/$AF$45)*$AF34))*(AC$48/(SUMIFS($C$48:$F$48,$C$25:$F$25,"Unfunded"))),IF(AC$25="Funded",(($AF34*$AI34)-((SUMPRODUCT(($C$23:$F$23)*($C$25:$F$25="Partially Funded")*($C$45:$F$45))/$AF$45)*$AF34))*(AC$47/(SUMIFS($C$47:$F$47,$C$25:$F$25,"Funded"))),0))) -> 0 | AD89: =IF(AD$25="Partially Funded",((($AF34/$AF$45)*AD$45)*AD$23)+(($AF34/$AF$45)*AD$45)-((($AF34/$AF$45)*AD$45)*AD$23),IF(AD$25="Unfunded",(($AF34*(100%-$AI34))-((SUMPRODUCT(($C$24:$F$24)*($C$25:$F$25="Partially Funded")*($C$45:$F$45))/$AF$45)*$AF34))*(AD$48/(SUMIFS($C$48:$F$48,$C$25:$F$25,"Unfunded"))),IF(AD$25="Funded",(($AF34*$AI34)-((SUMPRODUCT(($C$23:$F$23)*($C$25:$F$25="Partially Funded")*($C$45:$F$45))/$AF$45)*$AF34))*(AD$47/(SUMIFS($C$47:$F$47,$C$25:$F$25,"Funded"))),0))) -> 0 | AE89: =IF(AE$25="Partially Funded",((($AF34/$AF$45)*AE$45)*AE$23)+(($AF34/$AF$45)*AE$45)-((($AF34/$AF$45)*AE$45)*AE$23),IF(AE$25="Unfunded",(($AF34*(100%-$AI34))-((SUMPRODUCT(($C$24:$F$24)*($C$25:$F$25="Partially Funded")*($C$45:$F$45))/$AF$45)*$AF34))*(AE$48/(SUMIFS($C$48:$F$48,$C$25:$F$25,"Unfunded"))),IF(AE$25="Funded",(($AF34*$AI34)-((SUMPRODUCT(($C$23:$F$23)*($C$25:$F$25="Partially Funded")*($C$45:$F$45))/$AF$45)*$AF34))*(AE$47/(SUMIFS($C$47:$F$47,$C$25:$F$25,"Funded"))),0))) -> 0 | AF89: 0 | AG89: =IFERROR(SUM(_xlfn._xlws.FILTER($C89:$AE89,$C89:$AE89>0)*_xlfn._xlws.FILTER($C$23:$AE$23,$C89:$AE89>0))/($AF89),"n/a") -> n/a | AH89: n/a
A90: 0 | B90: SMA-SC | C90: =IF(C$25="Partially Funded",((($AF35/$AF$45)*C$45)*C$23)+(($AF35/$AF$45)*C$45)-((($AF35/$AF$45)*C$45)*C$23),IF(C$25="Unfunded",(($AF35*(100%-$AI35))-((SUMPRODUCT(($C$24:$F$24)*($C$25:$F$25="Partially Funded")*($C$45:$F$45))/$AF$45)*$AF35))*(C$48/(SUMIFS($C$48:$F$48,$C$25:$F$25,"Unfunded"))),IF(C$25="Funded",(($AF35*$AI35)-((SUMPRODUCT(($C$23:$F$23)*($C$25:$F$25="Partially Funded")*($C$45:$F$45))/$AF$45)*$AF35))*(C$47/(SUMIFS($C$47:$F$47,$C$25:$F$25,"Funded"))),0))) -> 0 | D90: =IF(D$25="Partially Funded",((($AF35/$AF$45)*D$45)*D$23)+(($AF35/$AF$45)*D$45)-((($AF35/$AF$45)*D$45)*D$23),IF(D$25="Unfunded",(($AF35*(100%-$AI35))-((SUMPRODUCT(($C$24:$F$24)*($C$25:$F$25="Partially Funded")*($C$45:$F$45))/$AF$45)*$AF35))*(D$48/(SUMIFS($C$48:$F$48,$C$25:$F$25,"Unfunded"))),IF(D$25="Funded",(($AF35*$AI35)-((SUMPRODUCT(($C$23:$F$23)*($C$25:$F$25="Partially Funded")*($C$45:$F$45))/$AF$45)*$AF35))*(D$47/(SUMIFS($C$47:$F$47,$C$25:$F$25,"Funded"))),0))) -> 0 | E90: =IF(E$25="Partially Funded",((($AF35/$AF$45)*E$45)*E$23)+(($AF35/$AF$45)*E$45)-((($AF35/$AF$45)*E$45)*E$23),IF(E$25="Unfunded",(($AF35*(100%-$AI35))-((SUMPRODUCT(($C$24:$F$24)*($C$25:$F$25="Partially Funded")*($C$45:$F$45))/$AF$45)*$AF35))*(E$48/(SUMIFS($C$48:$F$48,$C$25:$F$25,"Unfunded"))),IF(E$25="Funded",(($AF35*$AI35)-((SUMPRODUCT(($C$23:$F$23)*($C$25:$F$25="Partially Funded")*($C$45:$F$45))/$AF$45)*$AF35))*(E$47/(SUMIFS($C$47:$F$47,$C$25:$F$25,"Funded"))),0))) -> 0 | F90: =IF(F$25="Partially Funded",((($AF35/$AF$45)*F$45)*F$23)+(($AF35/$AF$45)*F$45)-((($AF35/$AF$45)*F$45)*F$23),IF(F$25="Unfunded",(($AF35*(100%-$AI35))-((SUMPRODUCT(($C$24:$F$24)*($C$25:$F$25="Partially Funded")*($C$45:$F$45))/$AF$45)*$AF35))*(F$48/(SUMIFS($C$48:$F$48,$C$25:$F$25,"Unfunded"))),IF(F$25="Funded",(($AF35*$AI35)-((SUMPRODUCT(($C$23:$F$23)*($C$25:$F$25="Partially Funded")*($C$45:$F$45))/$AF$45)*$AF35))*(F$47/(SUMIFS($C$47:$F$47,$C$25:$F$25,"Funded"))),0))) -> 0 | G90: =IF(G$25="Partially Funded",((($AF35/$AF$45)*G$45)*G$23)+(($AF35/$AF$45)*G$45)-((($AF35/$AF$45)*G$45)*G$23),IF(G$25="Unfunded",(($AF35*(100%-$AI35))-((SUMPRODUCT(($C$24:$F$24)*($C$25:$F$25="Partially Funded")*($C$45:$F$45))/$AF$45)*$AF35))*(G$48/(SUMIFS($C$48:$F$48,$C$25:$F$25,"Unfunded"))),IF(G$25="Funded",(($AF35*$AI35)-((SUMPRODUCT(($C$23:$F$23)*($C$25:$F$25="Partially Funded")*($C$45:$F$45))/$AF$45)*$AF35))*(G$47/(SUMIFS($C$47:$F$47,$C$25:$F$25,"Funded"))),0))) -> 0 | H90: =IF(H$25="Partially Funded",((($AF35/$AF$45)*H$45)*H$23)+(($AF35/$AF$45)*H$45)-((($AF35/$AF$45)*H$45)*H$23),IF(H$25="Unfunded",(($AF35*(100%-$AI35))-((SUMPRODUCT(($C$24:$F$24)*($C$25:$F$25="Partially Funded")*($C$45:$F$45))/$AF$45)*$AF35))*(H$48/(SUMIFS($C$48:$F$48,$C$25:$F$25,"Unfunded"))),IF(H$25="Funded",(($AF35*$AI35)-((SUMPRODUCT(($C$23:$F$23)*($C$25:$F$25="Partially Funded")*($C$45:$F$45))/$AF$45)*$AF35))*(H$47/(SUMIFS($C$47:$F$47,$C$25:$F$25,"Funded"))),0))) -> 0 | I90: =IF(I$25="Partially Funded",((($AF35/$AF$45)*I$45)*I$23)+(($AF35/$AF$45)*I$45)-((($AF35/$AF$45)*I$45)*I$23),IF(I$25="Unfunded",(($AF35*(100%-$AI35))-((SUMPRODUCT(($C$24:$F$24)*($C$25:$F$25="Partially Funded")*($C$45:$F$45))/$AF$45)*$AF35))*(I$48/(SUMIFS($C$48:$F$48,$C$25:$F$25,"Unfunded"))),IF(I$25="Funded",(($AF35*$AI35)-((SUMPRODUCT(($C$23:$F$23)*($C$25:$F$25="Partially Funded")*($C$45:$F$45))/$AF$45)*$AF35))*(I$47/(SUMIFS($C$47:$F$47,$C$25:$F$25,"Funded"))),0))) -> 0 | J90: =IF(J$25="Partially Funded",((($AF35/$AF$45)*J$45)*J$23)+(($AF35/$AF$45)*J$45)-((($AF35/$AF$45)*J$45)*J$23),IF(J$25="Unfunded",(($AF35*(100%-$AI35))-((SUMPRODUCT(($C$24:$F$24)*($C$25:$F$25="Partially Funded")*($C$45:$F$45))/$AF$45)*$AF35))*(J$48/(SUMIFS($C$48:$F$48,$C$25:$F$25,"Unfunded"))),IF(J$25="Funded",(($AF35*$AI35)-((SUMPRODUCT(($C$23:$F$23)*($C$25:$F$25="Partially Funded")*($C$45:$F$45))/$AF$45)*$AF35))*(J$47/(SUMIFS($C$47:$F$47,$C$25:$F$25,"Funded"))),0))) -> 0 | K90: =IF(K$25="Partially Funded",((($AF35/$AF$45)*K$45)*K$23)+(($AF35/$AF$45)*K$45)-((($AF35/$AF$45)*K$45)*K$23),IF(K$25="Unfunded",(($AF35*(100%-$AI35))-((SUMPRODUCT(($C$24:$F$24)*($C$25:$F$25="Partially Funded")*($C$45:$F$45))/$AF$45)*$AF35))*(K$48/(SUMIFS($C$48:$F$48,$C$25:$F$25,"Unfunded"))),IF(K$25="Funded",(($AF35*$AI35)-((SUMPRODUCT(($C$23:$F$23)*($C$25:$F$25="Partially Funded")*($C$45:$F$45))/$AF$45)*$AF35))*(K$47/(SUMIFS($C$47:$F$47,$C$25:$F$25,"Funded"))),0))) -> 0 | L90: =IF(L$25="Partially Funded",((($AF35/$AF$45)*L$45)*L$23)+(($AF35/$AF$45)*L$45)-((($AF35/$AF$45)*L$45)*L$23),IF(L$25="Unfunded",(($AF35*(100%-$AI35))-((SUMPRODUCT(($C$24:$F$24)*($C$25:$F$25="Partially Funded")*($C$45:$F$45))/$AF$45)*$AF35))*(L$48/(SUMIFS($C$48:$F$48,$C$25:$F$25,"Unfunded"))),IF(L$25="Funded",(($AF35*$AI35)-((SUMPRODUCT(($C$23:$F$23)*($C$25:$F$25="Partially Funded")*($C$45:$F$45))/$AF$45)*$AF35))*(L$47/(SUMIFS($C$47:$F$47,$C$25:$F$25,"Funded"))),0))) -> 0 | M90: =IF(M$25="Partially Funded",((($AF35/$AF$45)*M$45)*M$23)+(($AF35/$AF$45)*M$45)-((($AF35/$AF$45)*M$45)*M$23),IF(M$25="Unfunded",(($AF35*(100%-$AI35))-((SUMPRODUCT(($C$24:$F$24)*($C$25:$F$25="Partially Funded")*($C$45:$F$45))/$AF$45)*$AF35))*(M$48/(SUMIFS($C$48:$F$48,$C$25:$F$25,"Unfunded"))),IF(M$25="Funded",(($AF35*$AI35)-((SUMPRODUCT(($C$23:$F$23)*($C$25:$F$25="Partially Funded")*($C$45:$F$45))/$AF$45)*$AF35))*(M$47/(SUMIFS($C$47:$F$47,$C$25:$F$25,"Funded"))),0))) -> 0 | N90: =IF(N$25="Partially Funded",((($AF35/$AF$45)*N$45)*N$23)+(($AF35/$AF$45)*N$45)-((($AF35/$AF$45)*N$45)*N$23),IF(N$25="Unfunded",(($AF35*(100%-$AI35))-((SUMPRODUCT(($C$24:$F$24)*($C$25:$F$25="Partially Funded")*($C$45:$F$45))/$AF$45)*$AF35))*(N$48/(SUMIFS($C$48:$F$48,$C$25:$F$25,"Unfunded"))),IF(N$25="Funded",(($AF35*$AI35)-((SUMPRODUCT(($C$23:$F$23)*($C$25:$F$25="Partially Funded")*($C$45:$F$45))/$AF$45)*$AF35))*(N$47/(SUMIFS($C$47:$F$47,$C$25:$F$25,"Funded"))),0))) -> 0 | O90: =IF(O$25="Partially Funded",((($AF35/$AF$45)*O$45)*O$23)+(($AF35/$AF$45)*O$45)-((($AF35/$AF$45)*O$45)*O$23),IF(O$25="Unfunded",(($AF35*(100%-$AI35))-((SUMPRODUCT(($C$24:$F$24)*($C$25:$F$25="Partially Funded")*($C$45:$F$45))/$AF$45)*$AF35))*(O$48/(SUMIFS($C$48:$F$48,$C$25:$F$25,"Unfunded"))),IF(O$25="Funded",(($AF35*$AI35)-((SUMPRODUCT(($C$23:$F$23)*($C$25:$F$25="Partially Funded")*($C$45:$F$45))/$AF$45)*$AF35))*(O$47/(SUMIFS($C$47:$F$47,$C$25:$F$25,"Funded"))),0))) -> 0 | P90: =IF(P$25="Partially Funded",((($AF35/$AF$45)*P$45)*P$23)+(($AF35/$AF$45)*P$45)-((($AF35/$AF$45)*P$45)*P$23),IF(P$25="Unfunded",(($AF35*(100%-$AI35))-((SUMPRODUCT(($C$24:$F$24)*($C$25:$F$25="Partially Funded")*($C$45:$F$45))/$AF$45)*$AF35))*(P$48/(SUMIFS($C$48:$F$48,$C$25:$F$25,"Unfunded"))),IF(P$25="Funded",(($AF35*$AI35)-((SUMPRODUCT(($C$23:$F$23)*($C$25:$F$25="Partially Funded")*($C$45:$F$45))/$AF$45)*$AF35))*(P$47/(SUMIFS($C$47:$F$47,$C$25:$F$25,"Funded"))),0))) -> 0 | Q90: =IF(Q$25="Partially Funded",((($AF35/$AF$45)*Q$45)*Q$23)+(($AF35/$AF$45)*Q$45)-((($AF35/$AF$45)*Q$45)*Q$23),IF(Q$25="Unfunded",(($AF35*(100%-$AI35))-((SUMPRODUCT(($C$24:$F$24)*($C$25:$F$25="Partially Funded")*($C$45:$F$45))/$AF$45)*$AF35))*(Q$48/(SUMIFS($C$48:$F$48,$C$25:$F$25,"Unfunded"))),IF(Q$25="Funded",(($AF35*$AI35)-((SUMPRODUCT(($C$23:$F$23)*($C$25:$F$25="Partially Funded")*($C$45:$F$45))/$AF$45)*$AF35))*(Q$47/(SUMIFS($C$47:$F$47,$C$25:$F$25,"Funded"))),0))) -> 0 | R90: =IF(R$25="Partially Funded",((($AF35/$AF$45)*R$45)*R$23)+(($AF35/$AF$45)*R$45)-((($AF35/$AF$45)*R$45)*R$23),IF(R$25="Unfunded",(($AF35*(100%-$AI35))-((SUMPRODUCT(($C$24:$F$24)*($C$25:$F$25="Partially Funded")*($C$45:$F$45))/$AF$45)*$AF35))*(R$48/(SUMIFS($C$48:$F$48,$C$25:$F$25,"Unfunded"))),IF(R$25="Funded",(($AF35*$AI35)-((SUMPRODUCT(($C$23:$F$23)*($C$25:$F$25="Partially Funded")*($C$45:$F$45))/$AF$45)*$AF35))*(R$47/(SUMIFS($C$47:$F$47,$C$25:$F$25,"Funded"))),0))) -> 0 | S90: =IF(S$25="Partially Funded",((($AF35/$AF$45)*S$45)*S$23)+(($AF35/$AF$45)*S$45)-((($AF35/$AF$45)*S$45)*S$23),IF(S$25="Unfunded",(($AF35*(100%-$AI35))-((SUMPRODUCT(($C$24:$F$24)*($C$25:$F$25="Partially Funded")*($C$45:$F$45))/$AF$45)*$AF35))*(S$48/(SUMIFS($C$48:$F$48,$C$25:$F$25,"Unfunded"))),IF(S$25="Funded",(($AF35*$AI35)-((SUMPRODUCT(($C$23:$F$23)*($C$25:$F$25="Partially Funded")*($C$45:$F$45))/$AF$45)*$AF35))*(S$47/(SUMIFS($C$47:$F$47,$C$25:$F$25,"Funded"))),0))) -> 0 | T90: =IF(T$25="Partially Funded",((($AF35/$AF$45)*T$45)*T$23)+(($AF35/$AF$45)*T$45)-((($AF35/$AF$45)*T$45)*T$23),IF(T$25="Unfunded",(($AF35*(100%-$AI35))-((SUMPRODUCT(($C$24:$F$24)*($C$25:$F$25="Partially Funded")*($C$45:$F$45))/$AF$45)*$AF35))*(T$48/(SUMIFS($C$48:$F$48,$C$25:$F$25,"Unfunded"))),IF(T$25="Funded",(($AF35*$AI35)-((SUMPRODUCT(($C$23:$F$23)*($C$25:$F$25="Partially Funded")*($C$45:$F$45))/$AF$45)*$AF35))*(T$47/(SUMIFS($C$47:$F$47,$C$25:$F$25,"Funded"))),0))) -> 0 | U90: =IF(U$25="Partially Funded",((($AF35/$AF$45)*U$45)*U$23)+(($AF35/$AF$45)*U$45)-((($AF35/$AF$45)*U$45)*U$23),IF(U$25="Unfunded",(($AF35*(100%-$AI35))-((SUMPRODUCT(($C$24:$F$24)*($C$25:$F$25="Partially Funded")*($C$45:$F$45))/$AF$45)*$AF35))*(U$48/(SUMIFS($C$48:$F$48,$C$25:$F$25,"Unfunded"))),IF(U$25="Funded",(($AF35*$AI35)-((SUMPRODUCT(($C$23:$F$23)*($C$25:$F$25="Partially Funded")*($C$45:$F$45))/$AF$45)*$AF35))*(U$47/(SUMIFS($C$47:$F$47,$C$25:$F$25,"Funded"))),0))) -> 0 | V90: =IF(V$25="Partially Funded",((($AF35/$AF$45)*V$45)*V$23)+(($AF35/$AF$45)*V$45)-((($AF35/$AF$45)*V$45)*V$23),IF(V$25="Unfunded",(($AF35*(100%-$AI35))-((SUMPRODUCT(($C$24:$F$24)*($C$25:$F$25="Partially Funded")*($C$45:$F$45))/$AF$45)*$AF35))*(V$48/(SUMIFS($C$48:$F$48,$C$25:$F$25,"Unfunded"))),IF(V$25="Funded",(($AF35*$AI35)-((SUMPRODUCT(($C$23:$F$23)*($C$25:$F$25="Partially Funded")*($C$45:$F$45))/$AF$45)*$AF35))*(V$47/(SUMIFS($C$47:$F$47,$C$25:$F$25,"Funded"))),0))) -> 0 | W90: =IF(W$25="Partially Funded",((($AF35/$AF$45)*W$45)*W$23)+(($AF35/$AF$45)*W$45)-((($AF35/$AF$45)*W$45)*W$23),IF(W$25="Unfunded",(($AF35*(100%-$AI35))-((SUMPRODUCT(($C$24:$F$24)*($C$25:$F$25="Partially Funded")*($C$45:$F$45))/$AF$45)*$AF35))*(W$48/(SUMIFS($C$48:$F$48,$C$25:$F$25,"Unfunded"))),IF(W$25="Funded",(($AF35*$AI35)-((SUMPRODUCT(($C$23:$F$23)*($C$25:$F$25="Partially Funded")*($C$45:$F$45))/$AF$45)*$AF35))*(W$47/(SUMIFS($C$47:$F$47,$C$25:$F$25,"Funded"))),0))) -> 0 | X90: =IF(X$25="Partially Funded",((($AF35/$AF$45)*X$45)*X$23)+(($AF35/$AF$45)*X$45)-((($AF35/$AF$45)*X$45)*X$23),IF(X$25="Unfunded",(($AF35*(100%-$AI35))-((SUMPRODUCT(($C$24:$F$24)*($C$25:$F$25="Partially Funded")*($C$45:$F$45))/$AF$45)*$AF35))*(X$48/(SUMIFS($C$48:$F$48,$C$25:$F$25,"Unfunded"))),IF(X$25="Funded",(($AF35*$AI35)-((SUMPRODUCT(($C$23:$F$23)*($C$25:$F$25="Partially Funded")*($C$45:$F$45))/$AF$45)*$AF35))*(X$47/(SUMIFS($C$47:$F$47,$C$25:$F$25,"Funded"))),0))) -> 0 | Y90: =IF(Y$25="Partially Funded",((($AF35/$AF$45)*Y$45)*Y$23)+(($AF35/$AF$45)*Y$45)-((($AF35/$AF$45)*Y$45)*Y$23),IF(Y$25="Unfunded",(($AF35*(100%-$AI35))-((SUMPRODUCT(($C$24:$F$24)*($C$25:$F$25="Partially Funded")*($C$45:$F$45))/$AF$45)*$AF35))*(Y$48/(SUMIFS($C$48:$F$48,$C$25:$F$25,"Unfunded"))),IF(Y$25="Funded",(($AF35*$AI35)-((SUMPRODUCT(($C$23:$F$23)*($C$25:$F$25="Partially Funded")*($C$45:$F$45))/$AF$45)*$AF35))*(Y$47/(SUMIFS($C$47:$F$47,$C$25:$F$25,"Funded"))),0))) -> 0 | Z90: =IF(Z$25="Partially Funded",((($AF35/$AF$45)*Z$45)*Z$23)+(($AF35/$AF$45)*Z$45)-((($AF35/$AF$45)*Z$45)*Z$23),IF(Z$25="Unfunded",(($AF35*(100%-$AI35))-((SUMPRODUCT(($C$24:$F$24)*($C$25:$F$25="Partially Funded")*($C$45:$F$45))/$AF$45)*$AF35))*(Z$48/(SUMIFS($C$48:$F$48,$C$25:$F$25,"Unfunded"))),IF(Z$25="Funded",(($AF35*$AI35)-((SUMPRODUCT(($C$23:$F$23)*($C$25:$F$25="Partially Funded")*($C$45:$F$45))/$AF$45)*$AF35))*(Z$47/(SUMIFS($C$47:$F$47,$C$25:$F$25,"Funded"))),0))) -> 0 | AA90: =IF(AA$25="Partially Funded",((($AF35/$AF$45)*AA$45)*AA$23)+(($AF35/$AF$45)*AA$45)-((($AF35/$AF$45)*AA$45)*AA$23),IF(AA$25="Unfunded",(($AF35*(100%-$AI35))-((SUMPRODUCT(($C$24:$F$24)*($C$25:$F$25="Partially Funded")*($C$45:$F$45))/$AF$45)*$AF35))*(AA$48/(SUMIFS($C$48:$F$48,$C$25:$F$25,"Unfunded"))),IF(AA$25="Funded",(($AF35*$AI35)-((SUMPRODUCT(($C$23:$F$23)*($C$25:$F$25="Partially Funded")*($C$45:$F$45))/$AF$45)*$AF35))*(AA$47/(SUMIFS($C$47:$F$47,$C$25:$F$25,"Funded"))),0))) -> 0 | AB90: =IF(AB$25="Partially Funded",((($AF35/$AF$45)*AB$45)*AB$23)+(($AF35/$AF$45)*AB$45)-((($AF35/$AF$45)*AB$45)*AB$23),IF(AB$25="Unfunded",(($AF35*(100%-$AI35))-((SUMPRODUCT(($C$24:$F$24)*($C$25:$F$25="Partially Funded")*($C$45:$F$45))/$AF$45)*$AF35))*(AB$48/(SUMIFS($C$48:$F$48,$C$25:$F$25,"Unfunded"))),IF(AB$25="Funded",(($AF35*$AI35)-((SUMPRODUCT(($C$23:$F$23)*($C$25:$F$25="Partially Funded")*($C$45:$F$45))/$AF$45)*$AF35))*(AB$47/(SUMIFS($C$47:$F$47,$C$25:$F$25,"Funded"))),0))) -> 0 | AC90: =IF(AC$25="Partially Funded",((($AF35/$AF$45)*AC$45)*AC$23)+(($AF35/$AF$45)*AC$45)-((($AF35/$AF$45)*AC$45)*AC$23),IF(AC$25="Unfunded",(($AF35*(100%-$AI35))-((SUMPRODUCT(($C$24:$F$24)*($C$25:$F$25="Partially Funded")*($C$45:$F$45))/$AF$45)*$AF35))*(AC$48/(SUMIFS($C$48:$F$48,$C$25:$F$25,"Unfunded"))),IF(AC$25="Funded",(($AF35*$AI35)-((SUMPRODUCT(($C$23:$F$23)*($C$25:$F$25="Partially Funded")*($C$45:$F$45))/$AF$45)*$AF35))*(AC$47/(SUMIFS($C$47:$F$47,$C$25:$F$25,"Funded"))),0))) -> 0 | AD90: =IF(AD$25="Partially Funded",((($AF35/$AF$45)*AD$45)*AD$23)+(($AF35/$AF$45)*AD$45)-((($AF35/$AF$45)*AD$45)*AD$23),IF(AD$25="Unfunded",(($AF35*(100%-$AI35))-((SUMPRODUCT(($C$24:$F$24)*($C$25:$F$25="Partially Funded")*($C$45:$F$45))/$AF$45)*$AF35))*(AD$48/(SUMIFS($C$48:$F$48,$C$25:$F$25,"Unfunded"))),IF(AD$25="Funded",(($AF35*$AI35)-((SUMPRODUCT(($C$23:$F$23)*($C$25:$F$25="Partially Funded")*($C$45:$F$45))/$AF$45)*$AF35))*(AD$47/(SUMIFS($C$47:$F$47,$C$25:$F$25,"Funded"))),0))) -> 0 | AE90: =IF(AE$25="Partially Funded",((($AF35/$AF$45)*AE$45)*AE$23)+(($AF35/$AF$45)*AE$45)-((($AF35/$AF$45)*AE$45)*AE$23),IF(AE$25="Unfunded",(($AF35*(100%-$AI35))-((SUMPRODUCT(($C$24:$F$24)*($C$25:$F$25="Partially Funded")*($C$45:$F$45))/$AF$45)*$AF35))*(AE$48/(SUMIFS($C$48:$F$48,$C$25:$F$25,"Unfunded"))),IF(AE$25="Funded",(($AF35*$AI35)-((SUMPRODUCT(($C$23:$F$23)*($C$25:$F$25="Partially Funded")*($C$45:$F$45))/$AF$45)*$AF35))*(AE$47/(SUMIFS($C$47:$F$47,$C$25:$F$25,"Funded"))),0))) -> 0 | AF90: 0 | AG90: =IFERROR(SUM(_xlfn._xlws.FILTER($C90:$AE90,$C90:$AE90>0)*_xlfn._xlws.FILTER($C$23:$AE$23,$C90:$AE90>0))/($AF90),"n/a") -> n/a | AH90: n/a
A91: 0 | B91: Potential SMA-SC NT | C91: =IF(C$25="Partially Funded",((($AF36/$AF$45)*C$45)*C$23)+(($AF36/$AF$45)*C$45)-((($AF36/$AF$45)*C$45)*C$23),IF(C$25="Unfunded",(($AF36*(100%-$AI36))-((SUMPRODUCT(($C$24:$F$24)*($C$25:$F$25="Partially Funded")*($C$45:$F$45))/$AF$45)*$AF36))*(C$48/(SUMIFS($C$48:$F$48,$C$25:$F$25,"Unfunded"))),IF(C$25="Funded",(($AF36*$AI36)-((SUMPRODUCT(($C$23:$F$23)*($C$25:$F$25="Partially Funded")*($C$45:$F$45))/$AF$45)*$AF36))*(C$47/(SUMIFS($C$47:$F$47,$C$25:$F$25,"Funded"))),0))) -> 0 | D91: =IF(D$25="Partially Funded",((($AF36/$AF$45)*D$45)*D$23)+(($AF36/$AF$45)*D$45)-((($AF36/$AF$45)*D$45)*D$23),IF(D$25="Unfunded",(($AF36*(100%-$AI36))-((SUMPRODUCT(($C$24:$F$24)*($C$25:$F$25="Partially Funded")*($C$45:$F$45))/$AF$45)*$AF36))*(D$48/(SUMIFS($C$48:$F$48,$C$25:$F$25,"Unfunded"))),IF(D$25="Funded",(($AF36*$AI36)-((SUMPRODUCT(($C$23:$F$23)*($C$25:$F$25="Partially Funded")*($C$45:$F$45))/$AF$45)*$AF36))*(D$47/(SUMIFS($C$47:$F$47,$C$25:$F$25,"Funded"))),0))) -> 0 | E91: =IF(E$25="Partially Funded",((($AF36/$AF$45)*E$45)*E$23)+(($AF36/$AF$45)*E$45)-((($AF36/$AF$45)*E$45)*E$23),IF(E$25="Unfunded",(($AF36*(100%-$AI36))-((SUMPRODUCT(($C$24:$F$24)*($C$25:$F$25="Partially Funded")*($C$45:$F$45))/$AF$45)*$AF36))*(E$48/(SUMIFS($C$48:$F$48,$C$25:$F$25,"Unfunded"))),IF(E$25="Funded",(($AF36*$AI36)-((SUMPRODUCT(($C$23:$F$23)*($C$25:$F$25="Partially Funded")*($C$45:$F$45))/$AF$45)*$AF36))*(E$47/(SUMIFS($C$47:$F$47,$C$25:$F$25,"Funded"))),0))) -> 0 | F91: =IF(F$25="Partially Funded",((($AF36/$AF$45)*F$45)*F$23)+(($AF36/$AF$45)*F$45)-((($AF36/$AF$45)*F$45)*F$23),IF(F$25="Unfunded",(($AF36*(100%-$AI36))-((SUMPRODUCT(($C$24:$F$24)*($C$25:$F$25="Partially Funded")*($C$45:$F$45))/$AF$45)*$AF36))*(F$48/(SUMIFS($C$48:$F$48,$C$25:$F$25,"Unfunded"))),IF(F$25="Funded",(($AF36*$AI36)-((SUMPRODUCT(($C$23:$F$23)*($C$25:$F$25="Partially Funded")*($C$45:$F$45))/$AF$45)*$AF36))*(F$47/(SUMIFS($C$47:$F$47,$C$25:$F$25,"Funded"))),0))) -> 0 | G91: =IF(G$25="Partially Funded",((($AF36/$AF$45)*G$45)*G$23)+(($AF36/$AF$45)*G$45)-((($AF36/$AF$45)*G$45)*G$23),IF(G$25="Unfunded",(($AF36*(100%-$AI36))-((SUMPRODUCT(($C$24:$F$24)*($C$25:$F$25="Partially Funded")*($C$45:$F$45))/$AF$45)*$AF36))*(G$48/(SUMIFS($C$48:$F$48,$C$25:$F$25,"Unfunded"))),IF(G$25="Funded",(($AF36*$AI36)-((SUMPRODUCT(($C$23:$F$23)*($C$25:$F$25="Partially Funded")*($C$45:$F$45))/$AF$45)*$AF36))*(G$47/(SUMIFS($C$47:$F$47,$C$25:$F$25,"Funded"))),0))) -> 0 | H91: =IF(H$25="Partially Funded",((($AF36/$AF$45)*H$45)*H$23)+(($AF36/$AF$45)*H$45)-((($AF36/$AF$45)*H$45)*H$23),IF(H$25="Unfunded",(($AF36*(100%-$AI36))-((SUMPRODUCT(($C$24:$F$24)*($C$25:$F$25="Partially Funded")*($C$45:$F$45))/$AF$45)*$AF36))*(H$48/(SUMIFS($C$48:$F$48,$C$25:$F$25,"Unfunded"))),IF(H$25="Funded",(($AF36*$AI36)-((SUMPRODUCT(($C$23:$F$23)*($C$25:$F$25="Partially Funded")*($C$45:$F$45))/$AF$45)*$AF36))*(H$47/(SUMIFS($C$47:$F$47,$C$25:$F$25,"Funded"))),0))) -> 0 | I91: =IF(I$25="Partially Funded",((($AF36/$AF$45)*I$45)*I$23)+(($AF36/$AF$45)*I$45)-((($AF36/$AF$45)*I$45)*I$23),IF(I$25="Unfunded",(($AF36*(100%-$AI36))-((SUMPRODUCT(($C$24:$F$24)*($C$25:$F$25="Partially Funded")*($C$45:$F$45))/$AF$45)*$AF36))*(I$48/(SUMIFS($C$48:$F$48,$C$25:$F$25,"Unfunded"))),IF(I$25="Funded",(($AF36*$AI36)-((SUMPRODUCT(($C$23:$F$23)*($C$25:$F$25="Partially Funded")*($C$45:$F$45))/$AF$45)*$AF36))*(I$47/(SUMIFS($C$47:$F$47,$C$25:$F$25,"Funded"))),0))) -> 0 | J91: =IF(J$25="Partially Funded",((($AF36/$AF$45)*J$45)*J$23)+(($AF36/$AF$45)*J$45)-((($AF36/$AF$45)*J$45)*J$23),IF(J$25="Unfunded",(($AF36*(100%-$AI36))-((SUMPRODUCT(($C$24:$F$24)*($C$25:$F$25="Partially Funded")*($C$45:$F$45))/$AF$45)*$AF36))*(J$48/(SUMIFS($C$48:$F$48,$C$25:$F$25,"Unfunded"))),IF(J$25="Funded",(($AF36*$AI36)-((SUMPRODUCT(($C$23:$F$23)*($C$25:$F$25="Partially Funded")*($C$45:$F$45))/$AF$45)*$AF36))*(J$47/(SUMIFS($C$47:$F$47,$C$25:$F$25,"Funded"))),0))) -> 0 | K91: =IF(K$25="Partially Funded",((($AF36/$AF$45)*K$45)*K$23)+(($AF36/$AF$45)*K$45)-((($AF36/$AF$45)*K$45)*K$23),IF(K$25="Unfunded",(($AF36*(100%-$AI36))-((SUMPRODUCT(($C$24:$F$24)*($C$25:$F$25="Partially Funded")*($C$45:$F$45))/$AF$45)*$AF36))*(K$48/(SUMIFS($C$48:$F$48,$C$25:$F$25,"Unfunded"))),IF(K$25="Funded",(($AF36*$AI36)-((SUMPRODUCT(($C$23:$F$23)*($C$25:$F$25="Partially Funded")*($C$45:$F$45))/$AF$45)*$AF36))*(K$47/(SUMIFS($C$47:$F$47,$C$25:$F$25,"Funded"))),0))) -> 0 | L91: =IF(L$25="Partially Funded",((($AF36/$AF$45)*L$45)*L$23)+(($AF36/$AF$45)*L$45)-((($AF36/$AF$45)*L$45)*L$23),IF(L$25="Unfunded",(($AF36*(100%-$AI36))-((SUMPRODUCT(($C$24:$F$24)*($C$25:$F$25="Partially Funded")*($C$45:$F$45))/$AF$45)*$AF36))*(L$48/(SUMIFS($C$48:$F$48,$C$25:$F$25,"Unfunded"))),IF(L$25="Funded",(($AF36*$AI36)-((SUMPRODUCT(($C$23:$F$23)*($C$25:$F$25="Partially Funded")*($C$45:$F$45))/$AF$45)*$AF36))*(L$47/(SUMIFS($C$47:$F$47,$C$25:$F$25,"Funded"))),0))) -> 0 | M91: =IF(M$25="Partially Funded",((($AF36/$AF$45)*M$45)*M$23)+(($AF36/$AF$45)*M$45)-((($AF36/$AF$45)*M$45)*M$23),IF(M$25="Unfunded",(($AF36*(100%-$AI36))-((SUMPRODUCT(($C$24:$F$24)*($C$25:$F$25="Partially Funded")*($C$45:$F$45))/$AF$45)*$AF36))*(M$48/(SUMIFS($C$48:$F$48,$C$25:$F$25,"Unfunded"))),IF(M$25="Funded",(($AF36*$AI36)-((SUMPRODUCT(($C$23:$F$23)*($C$25:$F$25="Partially Funded")*($C$45:$F$45))/$AF$45)*$AF36))*(M$47/(SUMIFS($C$47:$F$47,$C$25:$F$25,"Funded"))),0))) -> 0 | N91: =IF(N$25="Partially Funded",((($AF36/$AF$45)*N$45)*N$23)+(($AF36/$AF$45)*N$45)-((($AF36/$AF$45)*N$45)*N$23),IF(N$25="Unfunded",(($AF36*(100%-$AI36))-((SUMPRODUCT(($C$24:$F$24)*($C$25:$F$25="Partially Funded")*($C$45:$F$45))/$AF$45)*$AF36))*(N$48/(SUMIFS($C$48:$F$48,$C$25:$F$25,"Unfunded"))),IF(N$25="Funded",(($AF36*$AI36)-((SUMPRODUCT(($C$23:$F$23)*($C$25:$F$25="Partially Funded")*($C$45:$F$45))/$AF$45)*$AF36))*(N$47/(SUMIFS($C$47:$F$47,$C$25:$F$25,"Funded"))),0))) -> 0 | O91: =IF(O$25="Partially Funded",((($AF36/$AF$45)*O$45)*O$23)+(($AF36/$AF$45)*O$45)-((($AF36/$AF$45)*O$45)*O$23),IF(O$25="Unfunded",(($AF36*(100%-$AI36))-((SUMPRODUCT(($C$24:$F$24)*($C$25:$F$25="Partially Funded")*($C$45:$F$45))/$AF$45)*$AF36))*(O$48/(SUMIFS($C$48:$F$48,$C$25:$F$25,"Unfunded"))),IF(O$25="Funded",(($AF36*$AI36)-((SUMPRODUCT(($C$23:$F$23)*($C$25:$F$25="Partially Funded")*($C$45:$F$45))/$AF$45)*$AF36))*(O$47/(SUMIFS($C$47:$F$47,$C$25:$F$25,"Funded"))),0))) -> 0 | P91: =IF(P$25="Partially Funded",((($AF36/$AF$45)*P$45)*P$23)+(($AF36/$AF$45)*P$45)-((($AF36/$AF$45)*P$45)*P$23),IF(P$25="Unfunded",(($AF36*(100%-$AI36))-((SUMPRODUCT(($C$24:$F$24)*($C$25:$F$25="Partially Funded")*($C$45:$F$45))/$AF$45)*$AF36))*(P$48/(SUMIFS($C$48:$F$48,$C$25:$F$25,"Unfunded"))),IF(P$25="Funded",(($AF36*$AI36)-((SUMPRODUCT(($C$23:$F$23)*($C$25:$F$25="Partially Funded")*($C$45:$F$45))/$AF$45)*$AF36))*(P$47/(SUMIFS($C$47:$F$47,$C$25:$F$25,"Funded"))),0))) -> 0 | Q91: =IF(Q$25="Partially Funded",((($AF36/$AF$45)*Q$45)*Q$23)+(($AF36/$AF$45)*Q$45)-((($AF36/$AF$45)*Q$45)*Q$23),IF(Q$25="Unfunded",(($AF36*(100%-$AI36))-((SUMPRODUCT(($C$24:$F$24)*($C$25:$F$25="Partially Funded")*($C$45:$F$45))/$AF$45)*$AF36))*(Q$48/(SUMIFS($C$48:$F$48,$C$25:$F$25,"Unfunded"))),IF(Q$25="Funded",(($AF36*$AI36)-((SUMPRODUCT(($C$23:$F$23)*($C$25:$F$25="Partially Funded")*($C$45:$F$45))/$AF$45)*$AF36))*(Q$47/(SUMIFS($C$47:$F$47,$C$25:$F$25,"Funded"))),0))) -> 0 | R91: =IF(R$25="Partially Funded",((($AF36/$AF$45)*R$45)*R$23)+(($AF36/$AF$45)*R$45)-((($AF36/$AF$45)*R$45)*R$23),IF(R$25="Unfunded",(($AF36*(100%-$AI36))-((SUMPRODUCT(($C$24:$F$24)*($C$25:$F$25="Partially Funded")*($C$45:$F$45))/$AF$45)*$AF36))*(R$48/(SUMIFS($C$48:$F$48,$C$25:$F$25,"Unfunded"))),IF(R$25="Funded",(($AF36*$AI36)-((SUMPRODUCT(($C$23:$F$23)*($C$25:$F$25="Partially Funded")*($C$45:$F$45))/$AF$45)*$AF36))*(R$47/(SUMIFS($C$47:$F$47,$C$25:$F$25,"Funded"))),0))) -> 0 | S91: =IF(S$25="Partially Funded",((($AF36/$AF$45)*S$45)*S$23)+(($AF36/$AF$45)*S$45)-((($AF36/$AF$45)*S$45)*S$23),IF(S$25="Unfunded",(($AF36*(100%-$AI36))-((SUMPRODUCT(($C$24:$F$24)*($C$25:$F$25="Partially Funded")*($C$45:$F$45))/$AF$45)*$AF36))*(S$48/(SUMIFS($C$48:$F$48,$C$25:$F$25,"Unfunded"))),IF(S$25="Funded",(($AF36*$AI36)-((SUMPRODUCT(($C$23:$F$23)*($C$25:$F$25="Partially Funded")*($C$45:$F$45))/$AF$45)*$AF36))*(S$47/(SUMIFS($C$47:$F$47,$C$25:$F$25,"Funded"))),0))) -> 0 | T91: =IF(T$25="Partially Funded",((($AF36/$AF$45)*T$45)*T$23)+(($AF36/$AF$45)*T$45)-((($AF36/$AF$45)*T$45)*T$23),IF(T$25="Unfunded",(($AF36*(100%-$AI36))-((SUMPRODUCT(($C$24:$F$24)*($C$25:$F$25="Partially Funded")*($C$45:$F$45))/$AF$45)*$AF36))*(T$48/(SUMIFS($C$48:$F$48,$C$25:$F$25,"Unfunded"))),IF(T$25="Funded",(($AF36*$AI36)-((SUMPRODUCT(($C$23:$F$23)*($C$25:$F$25="Partially Funded")*($C$45:$F$45))/$AF$45)*$AF36))*(T$47/(SUMIFS($C$47:$F$47,$C$25:$F$25,"Funded"))),0))) -> 0 | U91: =IF(U$25="Partially Funded",((($AF36/$AF$45)*U$45)*U$23)+(($AF36/$AF$45)*U$45)-((($AF36/$AF$45)*U$45)*U$23),IF(U$25="Unfunded",(($AF36*(100%-$AI36))-((SUMPRODUCT(($C$24:$F$24)*($C$25:$F$25="Partially Funded")*($C$45:$F$45))/$AF$45)*$AF36))*(U$48/(SUMIFS($C$48:$F$48,$C$25:$F$25,"Unfunded"))),IF(U$25="Funded",(($AF36*$AI36)-((SUMPRODUCT(($C$23:$F$23)*($C$25:$F$25="Partially Funded")*($C$45:$F$45))/$AF$45)*$AF36))*(U$47/(SUMIFS($C$47:$F$47,$C$25:$F$25,"Funded"))),0))) -> 0 | V91: =IF(V$25="Partially Funded",((($AF36/$AF$45)*V$45)*V$23)+(($AF36/$AF$45)*V$45)-((($AF36/$AF$45)*V$45)*V$23),IF(V$25="Unfunded",(($AF36*(100%-$AI36))-((SUMPRODUCT(($C$24:$F$24)*($C$25:$F$25="Partially Funded")*($C$45:$F$45))/$AF$45)*$AF36))*(V$48/(SUMIFS($C$48:$F$48,$C$25:$F$25,"Unfunded"))),IF(V$25="Funded",(($AF36*$AI36)-((SUMPRODUCT(($C$23:$F$23)*($C$25:$F$25="Partially Funded")*($C$45:$F$45))/$AF$45)*$AF36))*(V$47/(SUMIFS($C$47:$F$47,$C$25:$F$25,"Funded"))),0))) -> 0 | W91: =IF(W$25="Partially Funded",((($AF36/$AF$45)*W$45)*W$23)+(($AF36/$AF$45)*W$45)-((($AF36/$AF$45)*W$45)*W$23),IF(W$25="Unfunded",(($AF36*(100%-$AI36))-((SUMPRODUCT(($C$24:$F$24)*($C$25:$F$25="Partially Funded")*($C$45:$F$45))/$AF$45)*$AF36))*(W$48/(SUMIFS($C$48:$F$48,$C$25:$F$25,"Unfunded"))),IF(W$25="Funded",(($AF36*$AI36)-((SUMPRODUCT(($C$23:$F$23)*($C$25:$F$25="Partially Funded")*($C$45:$F$45))/$AF$45)*$AF36))*(W$47/(SUMIFS($C$47:$F$47,$C$25:$F$25,"Funded"))),0))) -> 0 | X91: =IF(X$25="Partially Funded",((($AF36/$AF$45)*X$45)*X$23)+(($AF36/$AF$45)*X$45)-((($AF36/$AF$45)*X$45)*X$23),IF(X$25="Unfunded",(($AF36*(100%-$AI36))-((SUMPRODUCT(($C$24:$F$24)*($C$25:$F$25="Partially Funded")*($C$45:$F$45))/$AF$45)*$AF36))*(X$48/(SUMIFS($C$48:$F$48,$C$25:$F$25,"Unfunded"))),IF(X$25="Funded",(($AF36*$AI36)-((SUMPRODUCT(($C$23:$F$23)*($C$25:$F$25="Partially Funded")*($C$45:$F$45))/$AF$45)*$AF36))*(X$47/(SUMIFS($C$47:$F$47,$C$25:$F$25,"Funded"))),0))) -> 0 | Y91: =IF(Y$25="Partially Funded",((($AF36/$AF$45)*Y$45)*Y$23)+(($AF36/$AF$45)*Y$45)-((($AF36/$AF$45)*Y$45)*Y$23),IF(Y$25="Unfunded",(($AF36*(100%-$AI36))-((SUMPRODUCT(($C$24:$F$24)*($C$25:$F$25="Partially Funded")*($C$45:$F$45))/$AF$45)*$AF36))*(Y$48/(SUMIFS($C$48:$F$48,$C$25:$F$25,"Unfunded"))),IF(Y$25="Funded",(($AF36*$AI36)-((SUMPRODUCT(($C$23:$F$23)*($C$25:$F$25="Partially Funded")*($C$45:$F$45))/$AF$45)*$AF36))*(Y$47/(SUMIFS($C$47:$F$47,$C$25:$F$25,"Funded"))),0))) -> 0 | Z91: =IF(Z$25="Partially Funded",((($AF36/$AF$45)*Z$45)*Z$23)+(($AF36/$AF$45)*Z$45)-((($AF36/$AF$45)*Z$45)*Z$23),IF(Z$25="Unfunded",(($AF36*(100%-$AI36))-((SUMPRODUCT(($C$24:$F$24)*($C$25:$F$25="Partially Funded")*($C$45:$F$45))/$AF$45)*$AF36))*(Z$48/(SUMIFS($C$48:$F$48,$C$25:$F$25,"Unfunded"))),IF(Z$25="Funded",(($AF36*$AI36)-((SUMPRODUCT(($C$23:$F$23)*($C$25:$F$25="Partially Funded")*($C$45:$F$45))/$AF$45)*$AF36))*(Z$47/(SUMIFS($C$47:$F$47,$C$25:$F$25,"Funded"))),0))) -> 0 | AA91: =IF(AA$25="Partially Funded",((($AF36/$AF$45)*AA$45)*AA$23)+(($AF36/$AF$45)*AA$45)-((($AF36/$AF$45)*AA$45)*AA$23),IF(AA$25="Unfunded",(($AF36*(100%-$AI36))-((SUMPRODUCT(($C$24:$F$24)*($C$25:$F$25="Partially Funded")*($C$45:$F$45))/$AF$45)*$AF36))*(AA$48/(SUMIFS($C$48:$F$48,$C$25:$F$25,"Unfunded"))),IF(AA$25="Funded",(($AF36*$AI36)-((SUMPRODUCT(($C$23:$F$23)*($C$25:$F$25="Partially Funded")*($C$45:$F$45))/$AF$45)*$AF36))*(AA$47/(SUMIFS($C$47:$F$47,$C$25:$F$25,"Funded"))),0))) -> 0 | AB91: =IF(AB$25="Partially Funded",((($AF36/$AF$45)*AB$45)*AB$23)+(($AF36/$AF$45)*AB$45)-((($AF36/$AF$45)*AB$45)*AB$23),IF(AB$25="Unfunded",(($AF36*(100%-$AI36))-((SUMPRODUCT(($C$24:$F$24)*($C$25:$F$25="Partially Funded")*($C$45:$F$45))/$AF$45)*$AF36))*(AB$48/(SUMIFS($C$48:$F$48,$C$25:$F$25,"Unfunded"))),IF(AB$25="Funded",(($AF36*$AI36)-((SUMPRODUCT(($C$23:$F$23)*($C$25:$F$25="Partially Funded")*($C$45:$F$45))/$AF$45)*$AF36))*(AB$47/(SUMIFS($C$47:$F$47,$C$25:$F$25,"Funded"))),0))) -> 0 | AC91: =IF(AC$25="Partially Funded",((($AF36/$AF$45)*AC$45)*AC$23)+(($AF36/$AF$45)*AC$45)-((($AF36/$AF$45)*AC$45)*AC$23),IF(AC$25="Unfunded",(($AF36*(100%-$AI36))-((SUMPRODUCT(($C$24:$F$24)*($C$25:$F$25="Partially Funded")*($C$45:$F$45))/$AF$45)*$AF36))*(AC$48/(SUMIFS($C$48:$F$48,$C$25:$F$25,"Unfunded"))),IF(AC$25="Funded",(($AF36*$AI36)-((SUMPRODUCT(($C$23:$F$23)*($C$25:$F$25="Partially Funded")*($C$45:$F$45))/$AF$45)*$AF36))*(AC$47/(SUMIFS($C$47:$F$47,$C$25:$F$25,"Funded"))),0))) -> 0 | AD91: =IF(AD$25="Partially Funded",((($AF36/$AF$45)*AD$45)*AD$23)+(($AF36/$AF$45)*AD$45)-((($AF36/$AF$45)*AD$45)*AD$23),IF(AD$25="Unfunded",(($AF36*(100%-$AI36))-((SUMPRODUCT(($C$24:$F$24)*($C$25:$F$25="Partially Funded")*($C$45:$F$45))/$AF$45)*$AF36))*(AD$48/(SUMIFS($C$48:$F$48,$C$25:$F$25,"Unfunded"))),IF(AD$25="Funded",(($AF36*$AI36)-((SUMPRODUCT(($C$23:$F$23)*($C$25:$F$25="Partially Funded")*($C$45:$F$45))/$AF$45)*$AF36))*(AD$47/(SUMIFS($C$47:$F$47,$C$25:$F$25,"Funded"))),0))) -> 0 | AE91: =IF(AE$25="Partially Funded",((($AF36/$AF$45)*AE$45)*AE$23)+(($AF36/$AF$45)*AE$45)-((($AF36/$AF$45)*AE$45)*AE$23),IF(AE$25="Unfunded",(($AF36*(100%-$AI36))-((SUMPRODUCT(($C$24:$F$24)*($C$25:$F$25="Partially Funded")*($C$45:$F$45))/$AF$45)*$AF36))*(AE$48/(SUMIFS($C$48:$F$48,$C$25:$F$25,"Unfunded"))),IF(AE$25="Funded",(($AF36*$AI36)-((SUMPRODUCT(($C$23:$F$23)*($C$25:$F$25="Partially Funded")*($C$45:$F$45))/$AF$45)*$AF36))*(AE$47/(SUMIFS($C$47:$F$47,$C$25:$F$25,"Funded"))),0))) -> 0 | AF91: 0 | AG91: =IFERROR(SUM(_xlfn._xlws.FILTER($C91:$AE91,$C91:$AE91>0)*_xlfn._xlws.FILTER($C$23:$AE$23,$C91:$AE91>0))/($AF91),"n/a") -> n/a | AH91: n/a
A92: =A94 -> 0 | B92: *SMA-AF US | C92: =IF(C$25="Partially Funded",((($AF37/$AF$45)*C$45)*C$23)+(($AF37/$AF$45)*C$45)-((($AF37/$AF$45)*C$45)*C$23),IF(C$25="Unfunded",(($AF37*(100%-$AI37))-((SUMPRODUCT(($C$24:$F$24)*($C$25:$F$25="Partially Funded")*($C$45:$F$45))/$AF$45)*$AF37))*(C$48/(SUMIFS($C$48:$F$48,$C$25:$F$25,"Unfunded"))),IF(C$25="Funded",(($AF37*$AI37)-((SUMPRODUCT(($C$23:$F$23)*($C$25:$F$25="Partially Funded")*($C$45:$F$45))/$AF$45)*$AF37))*(C$47/(SUMIFS($C$47:$F$47,$C$25:$F$25,"Funded"))),0))) -> 0 | D92: =IF(D$25="Partially Funded",((($AF37/$AF$45)*D$45)*D$23)+(($AF37/$AF$45)*D$45)-((($AF37/$AF$45)*D$45)*D$23),IF(D$25="Unfunded",(($AF37*(100%-$AI37))-((SUMPRODUCT(($C$24:$F$24)*($C$25:$F$25="Partially Funded")*($C$45:$F$45))/$AF$45)*$AF37))*(D$48/(SUMIFS($C$48:$F$48,$C$25:$F$25,"Unfunded"))),IF(D$25="Funded",(($AF37*$AI37)-((SUMPRODUCT(($C$23:$F$23)*($C$25:$F$25="Partially Funded")*($C$45:$F$45))/$AF$45)*$AF37))*(D$47/(SUMIFS($C$47:$F$47,$C$25:$F$25,"Funded"))),0))) -> 0 | E92: =IF(E$25="Partially Funded",((($AF37/$AF$45)*E$45)*E$23)+(($AF37/$AF$45)*E$45)-((($AF37/$AF$45)*E$45)*E$23),IF(E$25="Unfunded",(($AF37*(100%-$AI37))-((SUMPRODUCT(($C$24:$F$24)*($C$25:$F$25="Partially Funded")*($C$45:$F$45))/$AF$45)*$AF37))*(E$48/(SUMIFS($C$48:$F$48,$C$25:$F$25,"Unfunded"))),IF(E$25="Funded",(($AF37*$AI37)-((SUMPRODUCT(($C$23:$F$23)*($C$25:$F$25="Partially Funded")*($C$45:$F$45))/$AF$45)*$AF37))*(E$47/(SUMIFS($C$47:$F$47,$C$25:$F$25,"Funded"))),0))) -> 0 | F92: =IF(F$25="Partially Funded",((($AF37/$AF$45)*F$45)*F$23)+(($AF37/$AF$45)*F$45)-((($AF37/$AF$45)*F$45)*F$23),IF(F$25="Unfunded",(($AF37*(100%-$AI37))-((SUMPRODUCT(($C$24:$F$24)*($C$25:$F$25="Partially Funded")*($C$45:$F$45))/$AF$45)*$AF37))*(F$48/(SUMIFS($C$48:$F$48,$C$25:$F$25,"Unfunded"))),IF(F$25="Funded",(($AF37*$AI37)-((SUMPRODUCT(($C$23:$F$23)*($C$25:$F$25="Partially Funded")*($C$45:$F$45))/$AF$45)*$AF37))*(F$47/(SUMIFS($C$47:$F$47,$C$25:$F$25,"Funded"))),0))) -> 0 | G92: =IF(G$25="Partially Funded",((($AF37/$AF$45)*G$45)*G$23)+(($AF37/$AF$45)*G$45)-((($AF37/$AF$45)*G$45)*G$23),IF(G$25="Unfunded",(($AF37*(100%-$AI37))-((SUMPRODUCT(($C$24:$F$24)*($C$25:$F$25="Partially Funded")*($C$45:$F$45))/$AF$45)*$AF37))*(G$48/(SUMIFS($C$48:$F$48,$C$25:$F$25,"Unfunded"))),IF(G$25="Funded",(($AF37*$AI37)-((SUMPRODUCT(($C$23:$F$23)*($C$25:$F$25="Partially Funded")*($C$45:$F$45))/$AF$45)*$AF37))*(G$47/(SUMIFS($C$47:$F$47,$C$25:$F$25,"Funded"))),0))) -> 0 | H92: =IF(H$25="Partially Funded",((($AF37/$AF$45)*H$45)*H$23)+(($AF37/$AF$45)*H$45)-((($AF37/$AF$45)*H$45)*H$23),IF(H$25="Unfunded",(($AF37*(100%-$AI37))-((SUMPRODUCT(($C$24:$F$24)*($C$25:$F$25="Partially Funded")*($C$45:$F$45))/$AF$45)*$AF37))*(H$48/(SUMIFS($C$48:$F$48,$C$25:$F$25,"Unfunded"))),IF(H$25="Funded",(($AF37*$AI37)-((SUMPRODUCT(($C$23:$F$23)*($C$25:$F$25="Partially Funded")*($C$45:$F$45))/$AF$45)*$AF37))*(H$47/(SUMIFS($C$47:$F$47,$C$25:$F$25,"Funded"))),0))) -> 0 | I92: =IF(I$25="Partially Funded",((($AF37/$AF$45)*I$45)*I$23)+(($AF37/$AF$45)*I$45)-((($AF37/$AF$45)*I$45)*I$23),IF(I$25="Unfunded",(($AF37*(100%-$AI37))-((SUMPRODUCT(($C$24:$F$24)*($C$25:$F$25="Partially Funded")*($C$45:$F$45))/$AF$45)*$AF37))*(I$48/(SUMIFS($C$48:$F$48,$C$25:$F$25,"Unfunded"))),IF(I$25="Funded",(($AF37*$AI37)-((SUMPRODUCT(($C$23:$F$23)*($C$25:$F$25="Partially Funded")*($C$45:$F$45))/$AF$45)*$AF37))*(I$47/(SUMIFS($C$47:$F$47,$C$25:$F$25,"Funded"))),0))) -> 0 | J92: =IF(J$25="Partially Funded",((($AF37/$AF$45)*J$45)*J$23)+(($AF37/$AF$45)*J$45)-((($AF37/$AF$45)*J$45)*J$23),IF(J$25="Unfunded",(($AF37*(100%-$AI37))-((SUMPRODUCT(($C$24:$F$24)*($C$25:$F$25="Partially Funded")*($C$45:$F$45))/$AF$45)*$AF37))*(J$48/(SUMIFS($C$48:$F$48,$C$25:$F$25,"Unfunded"))),IF(J$25="Funded",(($AF37*$AI37)-((SUMPRODUCT(($C$23:$F$23)*($C$25:$F$25="Partially Funded")*($C$45:$F$45))/$AF$45)*$AF37))*(J$47/(SUMIFS($C$47:$F$47,$C$25:$F$25,"Funded"))),0))) -> 0 | K92: =IF(K$25="Partially Funded",((($AF37/$AF$45)*K$45)*K$23)+(($AF37/$AF$45)*K$45)-((($AF37/$AF$45)*K$45)*K$23),IF(K$25="Unfunded",(($AF37*(100%-$AI37))-((SUMPRODUCT(($C$24:$F$24)*($C$25:$F$25="Partially Funded")*($C$45:$F$45))/$AF$45)*$AF37))*(K$48/(SUMIFS($C$48:$F$48,$C$25:$F$25,"Unfunded"))),IF(K$25="Funded",(($AF37*$AI37)-((SUMPRODUCT(($C$23:$F$23)*($C$25:$F$25="Partially Funded")*($C$45:$F$45))/$AF$45)*$AF37))*(K$47/(SUMIFS($C$47:$F$47,$C$25:$F$25,"Funded"))),0))) -> 0 | L92: =IF(L$25="Partially Funded",((($AF37/$AF$45)*L$45)*L$23)+(($AF37/$AF$45)*L$45)-((($AF37/$AF$45)*L$45)*L$23),IF(L$25="Unfunded",(($AF37*(100%-$AI37))-((SUMPRODUCT(($C$24:$F$24)*($C$25:$F$25="Partially Funded")*($C$45:$F$45))/$AF$45)*$AF37))*(L$48/(SUMIFS($C$48:$F$48,$C$25:$F$25,"Unfunded"))),IF(L$25="Funded",(($AF37*$AI37)-((SUMPRODUCT(($C$23:$F$23)*($C$25:$F$25="Partially Funded")*($C$45:$F$45))/$AF$45)*$AF37))*(L$47/(SUMIFS($C$47:$F$47,$C$25:$F$25,"Funded"))),0))) -> 0 | M92: =IF(M$25="Partially Funded",((($AF37/$AF$45)*M$45)*M$23)+(($AF37/$AF$45)*M$45)-((($AF37/$AF$45)*M$45)*M$23),IF(M$25="Unfunded",(($AF37*(100%-$AI37))-((SUMPRODUCT(($C$24:$F$24)*($C$25:$F$25="Partially Funded")*($C$45:$F$45))/$AF$45)*$AF37))*(M$48/(SUMIFS($C$48:$F$48,$C$25:$F$25,"Unfunded"))),IF(M$25="Funded",(($AF37*$AI37)-((SUMPRODUCT(($C$23:$F$23)*($C$25:$F$25="Partially Funded")*($C$45:$F$45))/$AF$45)*$AF37))*(M$47/(SUMIFS($C$47:$F$47,$C$25:$F$25,"Funded"))),0))) -> 0 | N92: =IF(N$25="Partially Funded",((($AF37/$AF$45)*N$45)*N$23)+(($AF37/$AF$45)*N$45)-((($AF37/$AF$45)*N$45)*N$23),IF(N$25="Unfunded",(($AF37*(100%-$AI37))-((SUMPRODUCT(($C$24:$F$24)*($C$25:$F$25="Partially Funded")*($C$45:$F$45))/$AF$45)*$AF37))*(N$48/(SUMIFS($C$48:$F$48,$C$25:$F$25,"Unfunded"))),IF(N$25="Funded",(($AF37*$AI37)-((SUMPRODUCT(($C$23:$F$23)*($C$25:$F$25="Partially Funded")*($C$45:$F$45))/$AF$45)*$AF37))*(N$47/(SUMIFS($C$47:$F$47,$C$25:$F$25,"Funded"))),0))) -> 0 | O92: =IF(O$25="Partially Funded",((($AF37/$AF$45)*O$45)*O$23)+(($AF37/$AF$45)*O$45)-((($AF37/$AF$45)*O$45)*O$23),IF(O$25="Unfunded",(($AF37*(100%-$AI37))-((SUMPRODUCT(($C$24:$F$24)*($C$25:$F$25="Partially Funded")*($C$45:$F$45))/$AF$45)*$AF37))*(O$48/(SUMIFS($C$48:$F$48,$C$25:$F$25,"Unfunded"))),IF(O$25="Funded",(($AF37*$AI37)-((SUMPRODUCT(($C$23:$F$23)*($C$25:$F$25="Partially Funded")*($C$45:$F$45))/$AF$45)*$AF37))*(O$47/(SUMIFS($C$47:$F$47,$C$25:$F$25,"Funded"))),0))) -> 0 | P92: =IF(P$25="Partially Funded",((($AF37/$AF$45)*P$45)*P$23)+(($AF37/$AF$45)*P$45)-((($AF37/$AF$45)*P$45)*P$23),IF(P$25="Unfunded",(($AF37*(100%-$AI37))-((SUMPRODUCT(($C$24:$F$24)*($C$25:$F$25="Partially Funded")*($C$45:$F$45))/$AF$45)*$AF37))*(P$48/(SUMIFS($C$48:$F$48,$C$25:$F$25,"Unfunded"))),IF(P$25="Funded",(($AF37*$AI37)-((SUMPRODUCT(($C$23:$F$23)*($C$25:$F$25="Partially Funded")*($C$45:$F$45))/$AF$45)*$AF37))*(P$47/(SUMIFS($C$47:$F$47,$C$25:$F$25,"Funded"))),0))) -> 0 | Q92: =IF(Q$25="Partially Funded",((($AF37/$AF$45)*Q$45)*Q$23)+(($AF37/$AF$45)*Q$45)-((($AF37/$AF$45)*Q$45)*Q$23),IF(Q$25="Unfunded",(($AF37*(100%-$AI37))-((SUMPRODUCT(($C$24:$F$24)*($C$25:$F$25="Partially Funded")*($C$45:$F$45))/$AF$45)*$AF37))*(Q$48/(SUMIFS($C$48:$F$48,$C$25:$F$25,"Unfunded"))),IF(Q$25="Funded",(($AF37*$AI37)-((SUMPRODUCT(($C$23:$F$23)*($C$25:$F$25="Partially Funded")*($C$45:$F$45))/$AF$45)*$AF37))*(Q$47/(SUMIFS($C$47:$F$47,$C$25:$F$25,"Funded"))),0))) -> 0 | R92: =IF(R$25="Partially Funded",((($AF37/$AF$45)*R$45)*R$23)+(($AF37/$AF$45)*R$45)-((($AF37/$AF$45)*R$45)*R$23),IF(R$25="Unfunded",(($AF37*(100%-$AI37))-((SUMPRODUCT(($C$24:$F$24)*($C$25:$F$25="Partially Funded")*($C$45:$F$45))/$AF$45)*$AF37))*(R$48/(SUMIFS($C$48:$F$48,$C$25:$F$25,"Unfunded"))),IF(R$25="Funded",(($AF37*$AI37)-((SUMPRODUCT(($C$23:$F$23)*($C$25:$F$25="Partially Funded")*($C$45:$F$45))/$AF$45)*$AF37))*(R$47/(SUMIFS($C$47:$F$47,$C$25:$F$25,"Funded"))),0))) -> 0 | S92: =IF(S$25="Partially Funded",((($AF37/$AF$45)*S$45)*S$23)+(($AF37/$AF$45)*S$45)-((($AF37/$AF$45)*S$45)*S$23),IF(S$25="Unfunded",(($AF37*(100%-$AI37))-((SUMPRODUCT(($C$24:$F$24)*($C$25:$F$25="Partially Funded")*($C$45:$F$45))/$AF$45)*$AF37))*(S$48/(SUMIFS($C$48:$F$48,$C$25:$F$25,"Unfunded"))),IF(S$25="Funded",(($AF37*$AI37)-((SUMPRODUCT(($C$23:$F$23)*($C$25:$F$25="Partially Funded")*($C$45:$F$45))/$AF$45)*$AF37))*(S$47/(SUMIFS($C$47:$F$47,$C$25:$F$25,"Funded"))),0))) -> 0 | T92: =IF(T$25="Partially Funded",((($AF37/$AF$45)*T$45)*T$23)+(($AF37/$AF$45)*T$45)-((($AF37/$AF$45)*T$45)*T$23),IF(T$25="Unfunded",(($AF37*(100%-$AI37))-((SUMPRODUCT(($C$24:$F$24)*($C$25:$F$25="Partially Funded")*($C$45:$F$45))/$AF$45)*$AF37))*(T$48/(SUMIFS($C$48:$F$48,$C$25:$F$25,"Unfunded"))),IF(T$25="Funded",(($AF37*$AI37)-((SUMPRODUCT(($C$23:$F$23)*($C$25:$F$25="Partially Funded")*($C$45:$F$45))/$AF$45)*$AF37))*(T$47/(SUMIFS($C$47:$F$47,$C$25:$F$25,"Funded"))),0))) -> 0 | U92: =IF(U$25="Partially Funded",((($AF37/$AF$45)*U$45)*U$23)+(($AF37/$AF$45)*U$45)-((($AF37/$AF$45)*U$45)*U$23),IF(U$25="Unfunded",(($AF37*(100%-$AI37))-((SUMPRODUCT(($C$24:$F$24)*($C$25:$F$25="Partially Funded")*($C$45:$F$45))/$AF$45)*$AF37))*(U$48/(SUMIFS($C$48:$F$48,$C$25:$F$25,"Unfunded"))),IF(U$25="Funded",(($AF37*$AI37)-((SUMPRODUCT(($C$23:$F$23)*($C$25:$F$25="Partially Funded")*($C$45:$F$45))/$AF$45)*$AF37))*(U$47/(SUMIFS($C$47:$F$47,$C$25:$F$25,"Funded"))),0))) -> 0 | V92: =IF(V$25="Partially Funded",((($AF37/$AF$45)*V$45)*V$23)+(($AF37/$AF$45)*V$45)-((($AF37/$AF$45)*V$45)*V$23),IF(V$25="Unfunded",(($AF37*(100%-$AI37))-((SUMPRODUCT(($C$24:$F$24)*($C$25:$F$25="Partially Funded")*($C$45:$F$45))/$AF$45)*$AF37))*(V$48/(SUMIFS($C$48:$F$48,$C$25:$F$25,"Unfunded"))),IF(V$25="Funded",(($AF37*$AI37)-((SUMPRODUCT(($C$23:$F$23)*($C$25:$F$25="Partially Funded")*($C$45:$F$45))/$AF$45)*$AF37))*(V$47/(SUMIFS($C$47:$F$47,$C$25:$F$25,"Funded"))),0))) -> 0 | W92: =IF(W$25="Partially Funded",((($AF37/$AF$45)*W$45)*W$23)+(($AF37/$AF$45)*W$45)-((($AF37/$AF$45)*W$45)*W$23),IF(W$25="Unfunded",(($AF37*(100%-$AI37))-((SUMPRODUCT(($C$24:$F$24)*($C$25:$F$25="Partially Funded")*($C$45:$F$45))/$AF$45)*$AF37))*(W$48/(SUMIFS($C$48:$F$48,$C$25:$F$25,"Unfunded"))),IF(W$25="Funded",(($AF37*$AI37)-((SUMPRODUCT(($C$23:$F$23)*($C$25:$F$25="Partially Funded")*($C$45:$F$45))/$AF$45)*$AF37))*(W$47/(SUMIFS($C$47:$F$47,$C$25:$F$25,"Funded"))),0))) -> 0 | X92: =IF(X$25="Partially Funded",((($AF37/$AF$45)*X$45)*X$23)+(($AF37/$AF$45)*X$45)-((($AF37/$AF$45)*X$45)*X$23),IF(X$25="Unfunded",(($AF37*(100%-$AI37))-((SUMPRODUCT(($C$24:$F$24)*($C$25:$F$25="Partially Funded")*($C$45:$F$45))/$AF$45)*$AF37))*(X$48/(SUMIFS($C$48:$F$48,$C$25:$F$25,"Unfunded"))),IF(X$25="Funded",(($AF37*$AI37)-((SUMPRODUCT(($C$23:$F$23)*($C$25:$F$25="Partially Funded")*($C$45:$F$45))/$AF$45)*$AF37))*(X$47/(SUMIFS($C$47:$F$47,$C$25:$F$25,"Funded"))),0))) -> 0 | Y92: =IF(Y$25="Partially Funded",((($AF37/$AF$45)*Y$45)*Y$23)+(($AF37/$AF$45)*Y$45)-((($AF37/$AF$45)*Y$45)*Y$23),IF(Y$25="Unfunded",(($AF37*(100%-$AI37))-((SUMPRODUCT(($C$24:$F$24)*($C$25:$F$25="Partially Funded")*($C$45:$F$45))/$AF$45)*$AF37))*(Y$48/(SUMIFS($C$48:$F$48,$C$25:$F$25,"Unfunded"))),IF(Y$25="Funded",(($AF37*$AI37)-((SUMPRODUCT(($C$23:$F$23)*($C$25:$F$25="Partially Funded")*($C$45:$F$45))/$AF$45)*$AF37))*(Y$47/(SUMIFS($C$47:$F$47,$C$25:$F$25,"Funded"))),0))) -> 0 | Z92: =IF(Z$25="Partially Funded",((($AF37/$AF$45)*Z$45)*Z$23)+(($AF37/$AF$45)*Z$45)-((($AF37/$AF$45)*Z$45)*Z$23),IF(Z$25="Unfunded",(($AF37*(100%-$AI37))-((SUMPRODUCT(($C$24:$F$24)*($C$25:$F$25="Partially Funded")*($C$45:$F$45))/$AF$45)*$AF37))*(Z$48/(SUMIFS($C$48:$F$48,$C$25:$F$25,"Unfunded"))),IF(Z$25="Funded",(($AF37*$AI37)-((SUMPRODUCT(($C$23:$F$23)*($C$25:$F$25="Partially Funded")*($C$45:$F$45))/$AF$45)*$AF37))*(Z$47/(SUMIFS($C$47:$F$47,$C$25:$F$25,"Funded"))),0))) -> 0 | AA92: =IF(AA$25="Partially Funded",((($AF37/$AF$45)*AA$45)*AA$23)+(($AF37/$AF$45)*AA$45)-((($AF37/$AF$45)*AA$45)*AA$23),IF(AA$25="Unfunded",(($AF37*(100%-$AI37))-((SUMPRODUCT(($C$24:$F$24)*($C$25:$F$25="Partially Funded")*($C$45:$F$45))/$AF$45)*$AF37))*(AA$48/(SUMIFS($C$48:$F$48,$C$25:$F$25,"Unfunded"))),IF(AA$25="Funded",(($AF37*$AI37)-((SUMPRODUCT(($C$23:$F$23)*($C$25:$F$25="Partially Funded")*($C$45:$F$45))/$AF$45)*$AF37))*(AA$47/(SUMIFS($C$47:$F$47,$C$25:$F$25,"Funded"))),0))) -> 0 | AB92: =IF(AB$25="Partially Funded",((($AF37/$AF$45)*AB$45)*AB$23)+(($AF37/$AF$45)*AB$45)-((($AF37/$AF$45)*AB$45)*AB$23),IF(AB$25="Unfunded",(($AF37*(100%-$AI37))-((SUMPRODUCT(($C$24:$F$24)*($C$25:$F$25="Partially Funded")*($C$45:$F$45))/$AF$45)*$AF37))*(AB$48/(SUMIFS($C$48:$F$48,$C$25:$F$25,"Unfunded"))),IF(AB$25="Funded",(($AF37*$AI37)-((SUMPRODUCT(($C$23:$F$23)*($C$25:$F$25="Partially Funded")*($C$45:$F$45))/$AF$45)*$AF37))*(AB$47/(SUMIFS($C$47:$F$47,$C$25:$F$25,"Funded"))),0))) -> 0 | AC92: =IF(AC$25="Partially Funded",((($AF37/$AF$45)*AC$45)*AC$23)+(($AF37/$AF$45)*AC$45)-((($AF37/$AF$45)*AC$45)*AC$23),IF(AC$25="Unfunded",(($AF37*(100%-$AI37))-((SUMPRODUCT(($C$24:$F$24)*($C$25:$F$25="Partially Funded")*($C$45:$F$45))/$AF$45)*$AF37))*(AC$48/(SUMIFS($C$48:$F$48,$C$25:$F$25,"Unfunded"))),IF(AC$25="Funded",(($AF37*$AI37)-((SUMPRODUCT(($C$23:$F$23)*($C$25:$F$25="Partially Funded")*($C$45:$F$45))/$AF$45)*$AF37))*(AC$47/(SUMIFS($C$47:$F$47,$C$25:$F$25,"Funded"))),0))) -> 0 | AD92: =IF(AD$25="Partially Funded",((($AF37/$AF$45)*AD$45)*AD$23)+(($AF37/$AF$45)*AD$45)-((($AF37/$AF$45)*AD$45)*AD$23),IF(AD$25="Unfunded",(($AF37*(100%-$AI37))-((SUMPRODUCT(($C$24:$F$24)*($C$25:$F$25="Partially Funded")*($C$45:$F$45))/$AF$45)*$AF37))*(AD$48/(SUMIFS($C$48:$F$48,$C$25:$F$25,"Unfunded"))),IF(AD$25="Funded",(($AF37*$AI37)-((SUMPRODUCT(($C$23:$F$23)*($C$25:$F$25="Partially Funded")*($C$45:$F$45))/$AF$45)*$AF37))*(AD$47/(SUMIFS($C$47:$F$47,$C$25:$F$25,"Funded"))),0))) -> 0 | AE92: =IF(AE$25="Partially Funded",((($AF37/$AF$45)*AE$45)*AE$23)+(($AF37/$AF$45)*AE$45)-((($AF37/$AF$45)*AE$45)*AE$23),IF(AE$25="Unfunded",(($AF37*(100%-$AI37))-((SUMPRODUCT(($C$24:$F$24)*($C$25:$F$25="Partially Funded")*($C$45:$F$45))/$AF$45)*$AF37))*(AE$48/(SUMIFS($C$48:$F$48,$C$25:$F$25,"Unfunded"))),IF(AE$25="Funded",(($AF37*$AI37)-((SUMPRODUCT(($C$23:$F$23)*($C$25:$F$25="Partially Funded")*($C$45:$F$45))/$AF$45)*$AF37))*(AE$47/(SUMIFS($C$47:$F$47,$C$25:$F$25,"Funded"))),0))) -> 0 | AF92: =$AF$37*AFUS_Portion -> 0 | AG92: =IFERROR(SUM(_xlfn._xlws.FILTER($C92:$AE92,$C92:$AE92>0)*_xlfn._xlws.FILTER($C$23:$AE$23,$C92:$AE92>0))/($AF92),"n/a") -> n/a | AH92: n/a
